Workbook

Sheet PI vs gap
A1: Measurement | B1: Hall
A2: Type | B2: Gap dependence
A4: Project | B4: ='10 mm'!B5 -> 504314
A5: PS serial no | B5: ='10 mm'!B7 -> 2410086
A7: Measurement date | B7: =LEFT('10 mm'!B4,10) -> 03-10-2024
A11: Nominal gap [mm] | B11: Encoder [counts] | C11: Encoder [mm] | D11: PI [T^2mm^3] | E11: PI spec [T^2mm^3] | F11: Encoder value at 10 mm gap:
A12: ='10 mm'!$B$53 -> 10 | B12: ='10 mm'!$B$55 -> 19.8493 | C12: =-1*($F$12-B12)+10 -> 9.99775 | D12: ='10 mm'!$K$3 -> 10612.16037 | F12: 19.85155
A13: ='15 mm'!$B$53 -> 15 | B13: ='15 mm'!$B$55 -> 24.8512 | C13: =-1*($F$12-B13)+10 -> 14.99965 | D13: ='15 mm'!$K$3 -> 7238.189419
A14: ='20 mm'!$B$53 -> 20 | B14: ='20 mm'!$B$55 -> 29.8502 | C14: 19.99865 | D14: ='20 mm'!$K$3 -> 5006.079073
A15: ='30 mm'!$B$53 -> 30 | B15: ='30 mm'!$B$55 -> 39.8516 | C15: 30.00005 | D15: ='30 mm'!$K$3 -> 2465.597066
A16: ='100 mm'!$B$53 -> 100 | B16: ='100 mm'!$B$55 -> 109.8678 | C16: 100.01625 | D16: ='100 mm'!$K$3 -> 39.19412657
A47: Measuring series at larger gaps:
A48: Reference magnet
A49: Tref | B49: 21.38 | C49: degC
A50: Hall ref field | B50: 0.505 | C50: T
A51: NMR ref field | B51: 0.50627 | C51: T
A53: Offset from Faro

Sheet 10 mm
A1: =IF('DF raw data'!A1="","",'DF raw data'!A1) -> Number of header lines | B1: =IF('DF raw data'!B1="","",'DF raw data'!B1) -> 54 | C1: =IF('DF raw data'!C1="","",'DF raw data'!C1) ->  | D1: =IF('DF raw data'!D1="","",'DF raw data'!D1) ->  | F1: T_coeff | G1: -0.001 | H1: /degC | J1: IBy total | K1: =J1267*1000 -> -5.289650009 | L1: muTm | M1: =L1267*1000 -> -19.26721046 | R1: DF ref | S1: 1
A2: =IF('DF raw data'!A2="","",'DF raw data'!A2) -> Measured by | B2: =IF('DF raw data'!B2="","",'DF raw data'!B2) -> Danfysik | C2: =IF('DF raw data'!C2="","",'DF raw data'!C2) ->  | D2: =IF('DF raw data'!D2="","",'DF raw data'!D2) ->  | F2: Tcorr | G2: 20 | H2: degC | J2: JBy total | K2: =K1267 -> -8.160172067 | L2: muTm^2 | M2: =M1267 -> -2.451050222
A3: =IF('DF raw data'!A3="","",'DF raw data'!A3) -> Operator | B3: =IF('DF raw data'!B3="","",'DF raw data'!B3) -> PMHA | C3: =IF('DF raw data'!C3="","",'DF raw data'!C3) ->  | D3: =IF('DF raw data'!D3="","",'DF raw data'!D3) ->  | F3: Step | G3: =A68-A67 -> 0.5 | H3: mm | J3: PI total | K3: =N1267 -> 10612.16037 | L3: T^2mm^3
A4: =IF('DF raw data'!A4="","",'DF raw data'!A4) -> Data-time | B4: =IF('DF raw data'!B4="","",'DF raw data'!B4) -> 03-10-2024, 16:59:42 | C4: =IF('DF raw data'!C4="","",'DF raw data'!C4) ->  | D4: =IF('DF raw data'!D4="","",'DF raw data'!D4) -> 
A5: =IF('DF raw data'!A5="","",'DF raw data'!A5) -> Project | B5: =IF('DF raw data'!B5="","",'DF raw data'!B5) -> 504314 | C5: =IF('DF raw data'!C5="","",'DF raw data'!C5) ->  | D5: Bamb avr | F5: =(AVERAGE(B67:B107) + AVERAGE(B1227:B1267))/2 -> -2.024450183e-05 | G5: =(AVERAGE(C67:C107) + AVERAGE(C1227:C1267))/2 -> -3.995984155e-05 | H5: =(AVERAGE(D67:D107) + AVERAGE(D1227:D1267))/2 -> -3.500462439e-05
A6: =IF('DF raw data'!A6="","",'DF raw data'!A6) -> Magnet type | B6: =IF('DF raw data'!B6="","",'DF raw data'!B6) -> Dipole | C6: =IF('DF raw data'!C6="","",'DF raw data'!C6) -> 
A7: =IF('DF raw data'!A7="","",'DF raw data'!A7) -> Magnet nr. | B7: =IF('DF raw data'!B7="","",'DF raw data'!B7) -> 2410086 | C7: =IF('DF raw data'!C7="","",'DF raw data'!C7) -> 
A8: =IF('DF raw data'!A8="","",'DF raw data'!A8) -> Meas. number | B8: =IF('DF raw data'!B8="","",'DF raw data'!B8) -> 1038 | C8: =IF('DF raw data'!C8="","",'DF raw data'!C8) -> 
A9: =IF('DF raw data'!A9="","",'DF raw data'!A9) -> Add. info | B9: =IF('DF raw data'!B9="","",'DF raw data'!B9) -> Y-alignment scan 3) | C9: =IF('DF raw data'!C9="","",'DF raw data'!C9) ->  | D9: =IF('DF raw data'!D9="","",'DF raw data'!D9) -> 
A10: =IF('DF raw data'!A10="","",'DF raw data'!A10) -> Device | B10: =IF('DF raw data'!B10="","",'DF raw data'!B10) -> (HAL) HALL-PROBE | C10: =IF('DF raw data'!C10="","",'DF raw data'!C10) ->  | D10: =IF('DF raw data'!D10="","",'DF raw data'!D10) -> 
A11: =IF('DF raw data'!A11="","",'DF raw data'!A11) -> Goal | B11: =IF('DF raw data'!B11="","",'DF raw data'!B11) -> (AXI) AXis Integral (Line, EFB) | C11: =IF('DF raw data'!C11="","",'DF raw data'!C11) ->  | D11: =IF('DF raw data'!D11="","",'DF raw data'!D11) -> 
A12: =IF('DF raw data'!A12="","",'DF raw data'!A12) -> Power supply mode | B12: =IF('DF raw data'!B12="","",'DF raw data'!B12) -> (PM) Permanent Magnet (no MPS in use) | C12: =IF('DF raw data'!C12="","",'DF raw data'!C12) ->  | D12: =IF('DF raw data'!D12="","",'DF raw data'!D12) -> 
A13: =IF('DF raw data'!A13="","",'DF raw data'!A13) -> Data format | B13: =IF('DF raw data'!B13="","",'DF raw data'!B13) -> Raw data text file | C13: =IF('DF raw data'!C13="","",'DF raw data'!C13) ->  | D13: =IF('DF raw data'!D13="","",'DF raw data'!D13) -> 
A14: =IF('DF raw data'!A14="","",'DF raw data'!A14) -> Direction of the pos. x-axis | B14: =IF('DF raw data'!B14="","",'DF raw data'!B14) -> See test program | C14: =IF('DF raw data'!C14="","",'DF raw data'!C14) ->  | D14: =IF('DF raw data'!D14="","",'DF raw data'!D14) -> 
A15: =IF('DF raw data'!A15="","",'DF raw data'!A15) -> Direction of the pos. y-axis | B15: =IF('DF raw data'!B15="","",'DF raw data'!B15) -> Vertical up | C15: =IF('DF raw data'!C15="","",'DF raw data'!C15) ->  | D15: =IF('DF raw data'!D15="","",'DF raw data'!D15) -> 
A16: =IF('DF raw data'!A16="","",'DF raw data'!A16) -> Direction of the pos. z-axis | B16: =IF('DF raw data'!B16="","",'DF raw data'!B16) -> See test program | C16: =IF('DF raw data'!C16="","",'DF raw data'!C16) ->  | D16: =IF('DF raw data'!D16="","",'DF raw data'!D16) -> 
A17: =IF('DF raw data'!A17="","",'DF raw data'!A17) -> Mapper type | B17: =IF('DF raw data'!B17="","",'DF raw data'!B17) -> Precision Hall Mapper | C17: =IF('DF raw data'!C17="","",'DF raw data'!C17) ->  | D17: =IF('DF raw data'!D17="","",'DF raw data'!D17) -> 
A18: =IF('DF raw data'!A18="","",'DF raw data'!A18) -> Mapper Danfysik Reg. Number | B18: =IF('DF raw data'!B18="","",'DF raw data'!B18) -> 2033-D (mapper 1) | C18: =IF('DF raw data'!C18="","",'DF raw data'!C18) ->  | D18: =IF('DF raw data'!D18="","",'DF raw data'!D18) -> 
A19: =IF('DF raw data'!A19="","",'DF raw data'!A19) -> Measurement consept | B19: =IF('DF raw data'!B19="","",'DF raw data'!B19) -> Square line grid | C19: =IF('DF raw data'!C19="","",'DF raw data'!C19) ->  | D19: =IF('DF raw data'!D19="","",'DF raw data'!D19) -> 
A20: =IF('DF raw data'!A20="","",'DF raw data'!A20) -> Mode | B20: =IF('DF raw data'!B20="","",'DF raw data'!B20) -> On-the-fly measurement | C20: =IF('DF raw data'!C20="","",'DF raw data'!C20) ->  | D20: =IF('DF raw data'!D20="","",'DF raw data'!D20) -> 
A21: =IF('DF raw data'!A21="","",'DF raw data'!A21) ->  | B21: =IF('DF raw data'!B21="","",'DF raw data'!B21) ->  | C21: =IF('DF raw data'!C21="","",'DF raw data'!C21) ->  | D21: =IF('DF raw data'!D21="","",'DF raw data'!D21) -> 
A22: =IF('DF raw data'!A22="","",'DF raw data'!A22) -> Probe Name | B22: =IF('DF raw data'!B22="","",'DF raw data'!B22) -> ID12_By | C22: =IF('DF raw data'!C22="","",'DF raw data'!C22) ->  | D22: =IF('DF raw data'!D22="","",'DF raw data'!D22) -> 
A23: =IF('DF raw data'!A23="","",'DF raw data'!A23) -> Probe Type | B23: =IF('DF raw data'!B23="","",'DF raw data'!B23) -> DF_ID_3D_Bxyz | C23: =IF('DF raw data'!C23="","",'DF raw data'!C23) ->  | D23: =IF('DF raw data'!D23="","",'DF raw data'!D23) -> 
A24: =IF('DF raw data'!A24="","",'DF raw data'!A24) -> Probe Danfysik Reg. Number | B24: =IF('DF raw data'!B24="","",'DF raw data'!B24) -> 2277 | C24: =IF('DF raw data'!C24="","",'DF raw data'!C24) ->  | D24: =IF('DF raw data'!D24="","",'DF raw data'!D24) -> 
A25: =IF('DF raw data'!A25="","",'DF raw data'!A25) -> Probe Axis | B25: =IF('DF raw data'!B25="","",'DF raw data'!B25) -> By | C25: =IF('DF raw data'!C25="","",'DF raw data'!C25) ->  | D25: =IF('DF raw data'!D25="","",'DF raw data'!D25) -> 
A26: =IF('DF raw data'!A26="","",'DF raw data'!A26) -> Probe Current Supply | B26: =IF('DF raw data'!B26="","",'DF raw data'!B26) -> 1825-D | C26: =IF('DF raw data'!C26="","",'DF raw data'!C26) ->  | D26: =IF('DF raw data'!D26="","",'DF raw data'!D26) -> 
A27: =IF('DF raw data'!A27="","",'DF raw data'!A27) -> Probe Gain Correction | B27: =IF('DF raw data'!B27="","",'DF raw data'!B27) -> 0.99613 | C27: =IF('DF raw data'!C27="","",'DF raw data'!C27) ->  | D27: =IF('DF raw data'!D27="","",'DF raw data'!D27) -> 
A28: =IF('DF raw data'!A28="","",'DF raw data'!A28) -> Probe Offset Correction | B28: =IF('DF raw data'!B28="","",'DF raw data'!B28) -> 0.0027394 | C28: =IF('DF raw data'!C28="","",'DF raw data'!C28) ->  | D28: =IF('DF raw data'!D28="","",'DF raw data'!D28) -> 
A29: =IF('DF raw data'!A29="","",'DF raw data'!A29) -> DVM Number | B29: =IF('DF raw data'!B29="","",'DF raw data'!B29) -> 2 | C29: =IF('DF raw data'!C29="","",'DF raw data'!C29) ->  | D29: =IF('DF raw data'!D29="","",'DF raw data'!D29) -> 
A30: =IF('DF raw data'!A30="","",'DF raw data'!A30) -> DVM Type | B30: =IF('DF raw data'!B30="","",'DF raw data'!B30) -> K2701 | C30: =IF('DF raw data'!C30="","",'DF raw data'!C30) ->  | D30: =IF('DF raw data'!D30="","",'DF raw data'!D30) -> 
A31: =IF('DF raw data'!A31="","",'DF raw data'!A31) -> DVM Danfysik Reg. Number | B31: =IF('DF raw data'!B31="","",'DF raw data'!B31) -> 1743-D | C31: =IF('DF raw data'!C31="","",'DF raw data'!C31) ->  | D31: =IF('DF raw data'!D31="","",'DF raw data'!D31) -> 
A32: =IF('DF raw data'!A32="","",'DF raw data'!A32) -> Probe Name | B32: =IF('DF raw data'!B32="","",'DF raw data'!B32) -> ID12_Bx | C32: =IF('DF raw data'!C32="","",'DF raw data'!C32) ->  | D32: =IF('DF raw data'!D32="","",'DF raw data'!D32) -> 
A33: =IF('DF raw data'!A33="","",'DF raw data'!A33) -> Probe Type | B33: =IF('DF raw data'!B33="","",'DF raw data'!B33) -> DF_ID_3D_Bxyz | C33: =IF('DF raw data'!C33="","",'DF raw data'!C33) ->  | D33: =IF('DF raw data'!D33="","",'DF raw data'!D33) -> 
A34: =IF('DF raw data'!A34="","",'DF raw data'!A34) -> Probe Danfysik Reg. Number | B34: =IF('DF raw data'!B34="","",'DF raw data'!B34) -> 2277 | C34: =IF('DF raw data'!C34="","",'DF raw data'!C34) ->  | D34: =IF('DF raw data'!D34="","",'DF raw data'!D34) -> 
A35: =IF('DF raw data'!A35="","",'DF raw data'!A35) -> Probe Axis | B35: =IF('DF raw data'!B35="","",'DF raw data'!B35) -> Bx | C35: =IF('DF raw data'!C35="","",'DF raw data'!C35) ->  | D35: =IF('DF raw data'!D35="","",'DF raw data'!D35) -> 
A36: =IF('DF raw data'!A36="","",'DF raw data'!A36) -> Probe Current Supply | B36: =IF('DF raw data'!B36="","",'DF raw data'!B36) -> 1825-D | C36: =IF('DF raw data'!C36="","",'DF raw data'!C36) ->  | D36: =IF('DF raw data'!D36="","",'DF raw data'!D36) -> 
A37: =IF('DF raw data'!A37="","",'DF raw data'!A37) -> Probe Gain Correction | B37: =IF('DF raw data'!B37="","",'DF raw data'!B37) -> 1 | C37: =IF('DF raw data'!C37="","",'DF raw data'!C37) ->  | D37: =IF('DF raw data'!D37="","",'DF raw data'!D37) -> 
A38: =IF('DF raw data'!A38="","",'DF raw data'!A38) -> Probe Offset Correction | B38: =IF('DF raw data'!B38="","",'DF raw data'!B38) -> -0.17584 | C38: =IF('DF raw data'!C38="","",'DF raw data'!C38) ->  | D38: =IF('DF raw data'!D38="","",'DF raw data'!D38) -> 
A39: =IF('DF raw data'!A39="","",'DF raw data'!A39) -> DVM Number | B39: =IF('DF raw data'!B39="","",'DF raw data'!B39) -> 3 | C39: =IF('DF raw data'!C39="","",'DF raw data'!C39) ->  | D39: =IF('DF raw data'!D39="","",'DF raw data'!D39) -> 
A40: =IF('DF raw data'!A40="","",'DF raw data'!A40) -> DVM Type | B40: =IF('DF raw data'!B40="","",'DF raw data'!B40) -> K2701 | C40: =IF('DF raw data'!C40="","",'DF raw data'!C40) ->  | D40: =IF('DF raw data'!D40="","",'DF raw data'!D40) -> 
A41: =IF('DF raw data'!A41="","",'DF raw data'!A41) -> DVM Danfysik Reg. Number | B41: =IF('DF raw data'!B41="","",'DF raw data'!B41) -> 1744-D | C41: =IF('DF raw data'!C41="","",'DF raw data'!C41) ->  | D41: =IF('DF raw data'!D41="","",'DF raw data'!D41) -> 
A42: =IF('DF raw data'!A42="","",'DF raw data'!A42) -> Probe Name | B42: =IF('DF raw data'!B42="","",'DF raw data'!B42) -> ID12_Bz | C42: =IF('DF raw data'!C42="","",'DF raw data'!C42) ->  | D42: =IF('DF raw data'!D42="","",'DF raw data'!D42) -> 
A43: =IF('DF raw data'!A43="","",'DF raw data'!A43) -> Probe Type | B43: =IF('DF raw data'!B43="","",'DF raw data'!B43) -> DF_ID_3D_Bxyz | C43: =IF('DF raw data'!C43="","",'DF raw data'!C43) ->  | D43: =IF('DF raw data'!D43="","",'DF raw data'!D43) -> 
A44: =IF('DF raw data'!A44="","",'DF raw data'!A44) -> Probe Danfysik Reg. Number | B44: =IF('DF raw data'!B44="","",'DF raw data'!B44) -> 2277 | C44: =IF('DF raw data'!C44="","",'DF raw data'!C44) ->  | D44: =IF('DF raw data'!D44="","",'DF raw data'!D44) -> 
A45: =IF('DF raw data'!A45="","",'DF raw data'!A45) -> Probe Axis | B45: =IF('DF raw data'!B45="","",'DF raw data'!B45) -> Bz | C45: =IF('DF raw data'!C45="","",'DF raw data'!C45) ->  | D45: =IF('DF raw data'!D45="","",'DF raw data'!D45) -> 
A46: =IF('DF raw data'!A46="","",'DF raw data'!A46) -> Probe Current Supply | B46: =IF('DF raw data'!B46="","",'DF raw data'!B46) -> 1825-D | C46: =IF('DF raw data'!C46="","",'DF raw data'!C46) ->  | D46: =IF('DF raw data'!D46="","",'DF raw data'!D46) -> 
A47: =IF('DF raw data'!A47="","",'DF raw data'!A47) -> Probe Gain Correction | B47: =IF('DF raw data'!B47="","",'DF raw data'!B47) -> 1 | C47: =IF('DF raw data'!C47="","",'DF raw data'!C47) ->  | D47: =IF('DF raw data'!D47="","",'DF raw data'!D47) -> 
A48: =IF('DF raw data'!A48="","",'DF raw data'!A48) -> Probe Offset Correction | B48: =IF('DF raw data'!B48="","",'DF raw data'!B48) -> 0.0073634 | C48: =IF('DF raw data'!C48="","",'DF raw data'!C48) ->  | D48: =IF('DF raw data'!D48="","",'DF raw data'!D48) -> 
A49: =IF('DF raw data'!A49="","",'DF raw data'!A49) -> DVM Number | B49: =IF('DF raw data'!B49="","",'DF raw data'!B49) -> 8 | C49: =IF('DF raw data'!C49="","",'DF raw data'!C49) ->  | D49: =IF('DF raw data'!D49="","",'DF raw data'!D49) -> 
A50: =IF('DF raw data'!A50="","",'DF raw data'!A50) -> DVM Type | B50: =IF('DF raw data'!B50="","",'DF raw data'!B50) -> K2700 | C50: =IF('DF raw data'!C50="","",'DF raw data'!C50) ->  | D50: =IF('DF raw data'!D50="","",'DF raw data'!D50) -> 
A51: =IF('DF raw data'!A51="","",'DF raw data'!A51) -> DVM Danfysik Reg. Number | B51: =IF('DF raw data'!B51="","",'DF raw data'!B51) -> 1756-D | C51: =IF('DF raw data'!C51="","",'DF raw data'!C51) ->  | D51: =IF('DF raw data'!D51="","",'DF raw data'!D51) -> 
A52: =IF('DF raw data'!A52="","",'DF raw data'!A52) -> NTC voltage | B52: =IF('DF raw data'!B52="","",'DF raw data'!B52) -> 0.40178 | C52: =IF('DF raw data'!C52="","",'DF raw data'!C52) ->  | D52: =IF('DF raw data'!D52="","",'DF raw data'!D52) -> 
A53: =IF('DF raw data'!A53="","",'DF raw data'!A53) -> PS-Gap: | B53: =IF('DF raw data'!B53="","",'DF raw data'!B53) -> 10 | C53: =IF('DF raw data'!C53="","",'DF raw data'!C53) ->  | D53: =IF('DF raw data'!D53="","",'DF raw data'!D53) -> 
A54: =IF('DF raw data'!A54="","",'DF raw data'!A54) -> PS-Temperature: | B54: =IF('DF raw data'!B54="","",'DF raw data'!B54) -> 26.3 | C54: =IF('DF raw data'!C54="","",'DF raw data'!C54) ->  | D54: =IF('DF raw data'!D54="","",'DF raw data'!D54) -> 
A55: =IF('DF raw data'!A55="","",'DF raw data'!A55) -> PS-Encoder: | B55: =IF('DF raw data'!B55="","",'DF raw data'!B55) -> 19.8493 | C55: =IF('DF raw data'!C55="","",'DF raw data'!C55) ->  | D55: =IF('DF raw data'!D55="","",'DF raw data'!D55) -> 
A56: =IF('DF raw data'!A56="","",'DF raw data'!A56) ->  | B56: =IF('DF raw data'!B56="","",'DF raw data'!B56) -> 
A57: =IF('DF raw data'!A57="","",'DF raw data'!A57) -> Monitor-Index | B57: =IF('DF raw data'!B57="","",'DF raw data'!B57) -> [1,1,4]
A58: =IF('DF raw data'!A58="","",'DF raw data'!A58) ->  | B58: =IF('DF raw data'!B58="","",'DF raw data'!B58) -> 
A59: =IF('DF raw data'!A59="","",'DF raw data'!A59) -> Time [s] | B59: =IF('DF raw data'!B59="","",'DF raw data'!B59) -> Y [mm]
A60: =IF('DF raw data'!A60="","",'DF raw data'!A60) ->  | B60: =IF('DF raw data'!B60="","",'DF raw data'!B60) -> 
A61: =IF('DF raw data'!A61="","",'DF raw data'!A61) -> 208.3 | B61: =IF('DF raw data'!B61="","",'DF raw data'!B61) -> 31.45
A62: =IF('DF raw data'!A62="","",'DF raw data'!A62) ->  | B62: =IF('DF raw data'!B62="","",'DF raw data'!B62) -> 
A63: =IF('DF raw data'!A63="","",'DF raw data'!A63) -> Measurement-Index | B63: =IF('DF raw data'!B63="","",'DF raw data'!B63) -> [1,1,1201,2]
A64: =IF('DF raw data'!A64="","",'DF raw data'!A64) ->  | B64: =IF('DF raw data'!B64="","",'DF raw data'!B64) -> 
A65: =IF('DF raw data'!A65="","",'DF raw data'!A65) -> Z [mm] | B65: =IF('DF raw data'!B65="","",'DF raw data'!B65) -> By [T] | C65: =IF('DF raw data'!C65="","",'DF raw data'!C65) -> Bx [T] | D65: =IF('DF raw data'!D65="","",'DF raw data'!D65) -> Bz [T] | F65: By_corr | G65: Bx_corr | H65: Bz_corr | J65: Iy | K65: Jy | L65: Ix | M65: Jx | N65: PI
A66: =IF('DF raw data'!A66="","",'DF raw data'!A66) -> [1, 0, 0, 0] | B66: =IF('DF raw data'!B66="","",'DF raw data'!B66) ->  | C66: =IF('DF raw data'!C66="","",'DF raw data'!C66) ->  | D66: =IF('DF raw data'!D66="","",'DF raw data'!D66) -> 
A67: =IF('DF raw data'!A67="","",'DF raw data'!A67) -> -300 | B67: =IF('DF raw data'!B67="","",'DF raw data'!B67) -> -1.7512e-05 | C67: =IF('DF raw data'!C67="","",'DF raw data'!C67) -> -2.14892e-05 | D67: =IF('DF raw data'!D67="","",'DF raw data'!D67) -> -3.33782e-05 | F67: =(1-$G$1*($B$54-$G$2))*(B67-F$5) -> 2.749716591e-06 | G67: =(1-$G$1*($B$54-$G$2))*(C67-G$5) -> 1.858700659e-05 | H67: =(1-$G$1*($B$54-$G$2))*(D67-H$5) -> 1.636670864e-06 | J67: =F67*$G$3+J66 -> 1.374858295e-06 | K67: =J67*$G$3+K66 -> 6.874291477e-07 | L67: =G67*$G$3+L66 -> 9.293503295e-06 | M67: =L67*$G$3+M66 -> 4.646751648e-06 | N67: =(J67^2+L67^2)*$G$3+N66 -> 4.412971942e-11
A68: =IF('DF raw data'!A68="","",'DF raw data'!A68) -> -299.5 | B68: =IF('DF raw data'!B68="","",'DF raw data'!B68) -> -2.79631e-05 | C68: =IF('DF raw data'!C68="","",'DF raw data'!C68) -> -1.63997e-05 | D68: =IF('DF raw data'!D68="","",'DF raw data'!D68) -> -3.24491e-05 | F68: -7.767225339e-06 | G68: 2.370857044e-05 | H68: 2.571624194e-06 | J68: =F68*$G$3+J67 -> -2.508754374e-06 | K68: =J68*$G$3+K67 -> -5.669480394e-07 | L68: =G68*$G$3+L67 -> 2.114778852e-05 | M68: =L68*$G$3+M67 -> 1.522064591e-05 | N68: =(J68^2+L68^2)*$G$3+N67 -> 2.708911232e-10
A69: =IF('DF raw data'!A69="","",'DF raw data'!A69) -> -299 | B69: =IF('DF raw data'!B69="","",'DF raw data'!B69) -> -3.15544e-05 | C69: =IF('DF raw data'!C69="","",'DF raw data'!C69) -> -2.4693e-05 | D69: =IF('DF raw data'!D69="","",'DF raw data'!D69) -> -3.08015e-05 | F69: -1.138115053e-05 | G69: 1.536302265e-05 | H69: 4.229604074e-06 | J69: -8.199329639e-06 | K69: -4.666612859e-06 | L69: 2.882929984e-05 | M69: 2.963529583e-05 | N69: 7.200698911e-10
A70: =IF('DF raw data'!A70="","",'DF raw data'!A70) -> -298.5 | B70: =IF('DF raw data'!B70="","",'DF raw data'!B70) -> -1.81551e-05 | C70: =IF('DF raw data'!C70="","",'DF raw data'!C70) -> -1.86462e-05 | D70: =IF('DF raw data'!D70="","",'DF raw data'!D70) -> -3.03383e-05 | F70: 2.102565061e-06 | G70: 2.144791749e-05 | H70: 4.695722234e-06 | J70: -7.148047108e-06 | K70: -8.240636413e-06 | L70: 3.955325859e-05 | M70: 4.941192512e-05 | N70: 1.527847312e-09
A71: =IF('DF raw data'!A71="","",'DF raw data'!A71) -> -298 | B71: =IF('DF raw data'!B71="","",'DF raw data'!B71) -> -1.78981e-05 | C71: =IF('DF raw data'!C71="","",'DF raw data'!C71) -> -1.67453e-05 | D71: =IF('DF raw data'!D71="","",'DF raw data'!D71) -> -3.11434e-05 | F71: 2.361184161e-06 | G71: 2.336079316e-05 | H71: 3.885550104e-06 | J71: -5.967455028e-06 | K71: -1.122436393e-05 | L71: 5.123365517e-05 | M71: 7.50287527e-05 | N71: 2.858096283e-09
A72: =IF('DF raw data'!A72="","",'DF raw data'!A72) -> -297.5 | B72: =IF('DF raw data'!B72="","",'DF raw data'!B72) -> -2.09111e-05 | C72: =IF('DF raw data'!C72="","",'DF raw data'!C72) -> -7.05879e-06 | D72: =IF('DF raw data'!D72="","",'DF raw data'!D72) -> -3.16074e-05 | F72: -6.707977392e-07 | G72: 3.310832817e-05 | H72: 3.418626904e-06 | J72: -6.302853898e-06 | K72: -1.437579088e-05 | L72: 6.778781925e-05 | M72: 0.0001089226623 | N72: 5.175553486e-09
A73: =IF('DF raw data'!A73="","",'DF raw data'!A73) -> -297 | B73: =IF('DF raw data'!B73="","",'DF raw data'!B73) -> -3.01437e-05 | C73: =IF('DF raw data'!C73="","",'DF raw data'!C73) -> -2.07785e-05 | D73: =IF('DF raw data'!D73="","",'DF raw data'!D73) -> -3.11574e-05 | F73: -9.961563119e-06 | G73: 1.9302184e-05 | H73: 3.871461904e-06 | J73: -1.128363546e-05 | K73: -2.00176086e-05 | L73: 7.743891125e-05 | M73: 0.000147642118 | N73: 8.237606189e-09
A74: =IF('DF raw data'!A74="","",'DF raw data'!A74) -> -296.5 | B74: =IF('DF raw data'!B74="","",'DF raw data'!B74) -> -1.59108e-05 | C74: =IF('DF raw data'!C74="","",'DF raw data'!C74) -> -3.00357e-05 | D74: =IF('DF raw data'!D74="","",'DF raw data'!D74) -> -3.10722e-05 | F74: 4.361004151e-06 | G74: 9.986663641e-06 | H74: 3.957198664e-06 | J74: -9.103133382e-06 | K74: -2.45691753e-05 | L74: 8.243224307e-05 | M74: 0.0001888582395 | N74: 1.167657706e-08
A75: =IF('DF raw data'!A75="","",'DF raw data'!A75) -> -296 | B75: =IF('DF raw data'!B75="","",'DF raw data'!B75) -> -2.24499e-05 | C75: =IF('DF raw data'!C75="","",'DF raw data'!C75) -> -2.9464e-05 | D75: =IF('DF raw data'!D75="","",'DF raw data'!D75) -> -3.14813e-05 | F75: -2.219292179e-06 | G75: 1.056196535e-05 | H75: 3.545521334e-06 | J75: -1.021277947e-05 | K75: -2.967556503e-05 | L75: 8.771322575e-05 | M75: 0.0002327148524 | N75: 1.557553247e-08
A76: =IF('DF raw data'!A76="","",'DF raw data'!A76) -> -295.5 | B76: =IF('DF raw data'!B76="","",'DF raw data'!B76) -> -2.62324e-05 | C76: =IF('DF raw data'!C76="","",'DF raw data'!C76) -> -2.56495e-05 | D76: =IF('DF raw data'!D76="","",'DF raw data'!D76) -> -3.17043e-05 | F76: -6.025621929e-06 | G76: 1.44004967e-05 | H76: 3.321116434e-06 | J76: -1.322559044e-05 | K76: -3.628836025e-05 | L76: 9.49134741e-05 | M76: 0.0002801715894 | N76: 2.016727438e-08
A77: =IF('DF raw data'!A77="","",'DF raw data'!A77) -> -295 | B77: =IF('DF raw data'!B77="","",'DF raw data'!B77) -> -2.34755e-05 | C77: =IF('DF raw data'!C77="","",'DF raw data'!C77) -> -1.39134e-05 | D77: =IF('DF raw data'!D77="","",'DF raw data'!D77) -> -3.18194e-05 | F77: -3.251353459e-06 | G77: 2.621053413e-05 | H77: 3.205291304e-06 | J77: -1.485126717e-05 | K77: -4.371399383e-05 | L77: 0.0001080187412 | M77: 0.00033418096 | N77: 2.611157867e-08
A78: =IF('DF raw data'!A78="","",'DF raw data'!A78) -> -294.5 | B78: =IF('DF raw data'!B78="","",'DF raw data'!B78) -> -2.70659e-05 | C78: =IF('DF raw data'!C78="","",'DF raw data'!C78) -> -1.81642e-05 | D78: =IF('DF raw data'!D78="","",'DF raw data'!D78) -> -3.17804e-05 | F78: -6.864372979e-06 | G78: 2.193295409e-05 | H78: 3.244537004e-06 | J78: -1.828345366e-05 | K78: -5.285572066e-05 | L78: 0.0001189852182 | M78: 0.0003936735691 | N78: 3.335746208e-08
A79: =IF('DF raw data'!A79="","",'DF raw data'!A79) -> -294 | B79: =IF('DF raw data'!B79="","",'DF raw data'!B79) -> -3.48239e-05 | C79: =IF('DF raw data'!C79="","",'DF raw data'!C79) -> -2.47036e-05 | D79: =IF('DF raw data'!D79="","",'DF raw data'!D79) -> -3.11357e-05 | F79: -1.467124838e-05 | G79: 1.535235587e-05 | H79: 3.893298614e-06 | J79: -2.561907784e-05 | K79: -6.566525958e-05 | L79: 0.0001266613961 | M79: 0.0004570042672 | N79: 4.170718529e-08
A80: =IF('DF raw data'!A80="","",'DF raw data'!A80) -> -293.5 | B80: =IF('DF raw data'!B80="","",'DF raw data'!B80) -> -2.7259e-05 | C80: =IF('DF raw data'!C80="","",'DF raw data'!C80) -> -3.10321e-05 | D80: =IF('DF raw data'!D80="","",'DF raw data'!D80) -> -3.05027e-05 | F80: -7.058689509e-06 | G80: 8.983986321e-06 | H80: 4.530286514e-06 | J80: -2.91484226e-05 | K80: -8.023947088e-05 | L80: 0.0001311533893 | M80: 0.0005225809618 | N80: 5.073260633e-08
A81: =IF('DF raw data'!A81="","",'DF raw data'!A81) -> -293 | B81: =IF('DF raw data'!B81="","",'DF raw data'!B81) -> -2.3861e-05 | C81: =IF('DF raw data'!C81="","",'DF raw data'!C81) -> -3.1864e-05 | D81: =IF('DF raw data'!D81="","",'DF raw data'!D81) -> -3.05191e-05 | F81: -3.639282109e-06 | G81: 8.146845351e-06 | H81: 4.513783194e-06 | J81: -3.096806365e-05 | K81: -9.572350271e-05 | L81: 0.000135226812 | M81: 0.0005901943678 | N81: 6.035526215e-08
A82: =IF('DF raw data'!A82="","",'DF raw data'!A82) -> -292.5 | B82: =IF('DF raw data'!B82="","",'DF raw data'!B82) -> -2.43097e-05 | C82: =IF('DF raw data'!C82="","",'DF raw data'!C82) -> -1.99572e-05 | D82: =IF('DF raw data'!D82="","",'DF raw data'!D82) -> -3.07886e-05 | F82: -4.090808919e-06 | G82: 2.012865819e-05 | H82: 4.242585344e-06 | J82: -3.301346811e-05 | K82: -0.0001122302368 | L82: 0.0001452911411 | M82: 0.0006628399384 | N82: 7.145496453e-08
A83: =IF('DF raw data'!A83="","",'DF raw data'!A83) -> -292 | B83: =IF('DF raw data'!B83="","",'DF raw data'!B83) -> -2.463e-05 | C83: =IF('DF raw data'!C83="","",'DF raw data'!C83) -> -1.11521e-05 | D83: =IF('DF raw data'!D83="","",'DF raw data'!D83) -> -3.09927e-05 | F83: -4.413126809e-06 | G83: 2.898923032e-05 | H83: 4.037199514e-06 | J83: -3.522003152e-05 | K83: -0.0001298402525 | L83: 0.0001597857562 | M83: 0.0007427328165 | N83: 8.484093378e-08
A84: =IF('DF raw data'!A84="","",'DF raw data'!A84) -> -291.5 | B84: =IF('DF raw data'!B84="","",'DF raw data'!B84) -> -1.84742e-05 | C84: =IF('DF raw data'!C84="","",'DF raw data'!C84) -> -1.31035e-05 | D84: =IF('DF raw data'!D84="","",'DF raw data'!D84) -> -3.26926e-05 | F84: 1.781454731e-06 | G84: 2.70255365e-05 | H84: 2.326590144e-06 | J84: -3.432930415e-05 | K84: -0.0001470049046 | L84: 0.0001732985245 | M84: 0.0008293820787 | N84: 1.004463736e-07
A85: =IF('DF raw data'!A85="","",'DF raw data'!A85) -> -291 | B85: =IF('DF raw data'!B85="","",'DF raw data'!B85) -> -2.89206e-05 | C85: =IF('DF raw data'!C85="","",'DF raw data'!C85) -> -1.56626e-05 | D85: =IF('DF raw data'!D85="","",'DF raw data'!D85) -> -3.86765e-05 | F85: -8.730757589e-06 | G85: 2.445031417e-05 | H85: -3.695008426e-06 | J85: -3.869468295e-05 | K85: -0.0001663522461 | L85: 0.0001855236816 | M85: 0.0009221439195 | N85: 1.184045311e-07
A86: =IF('DF raw data'!A86="","",'DF raw data'!A86) -> -290.5 | B86: =IF('DF raw data'!B86="","",'DF raw data'!B86) -> -1.93647e-05 | C86: =IF('DF raw data'!C86="","",'DF raw data'!C86) -> -1.18824e-05 | D86: =IF('DF raw data'!D86="","",'DF raw data'!D86) -> -4.36535e-05 | F86: 8.853445808e-07 | G86: 2.825432943e-05 | H86: -8.703363526e-06 | J86: -3.825201066e-05 | K86: -0.0001854782514 | L86: 0.0001996508463 | M86: 0.001021969343 | N86: 1.390663695e-07
A87: =IF('DF raw data'!A87="","",'DF raw data'!A87) -> -290 | B87: =IF('DF raw data'!B87="","",'DF raw data'!B87) -> -1.55813e-05 | C87: =IF('DF raw data'!C87="","",'DF raw data'!C87) -> -9.43792e-06 | D87: =IF('DF raw data'!D87="","",'DF raw data'!D87) -> -4.47061e-05 | F87: 4.692580001e-06 | G87: 3.071420965e-05 | H87: -9.762594906e-06 | J87: -3.590572066e-05 | K87: -0.0002034311117 | L87: 0.0002150079511 | M87: 0.001129473318 | N87: 1.628251894e-07
A88: =IF('DF raw data'!A88="","",'DF raw data'!A88) -> -289.5 | B88: =IF('DF raw data'!B88="","",'DF raw data'!B88) -> -1.5201e-05 | C88: =IF('DF raw data'!C88="","",'DF raw data'!C88) -> -1.22974e-05 | D88: =IF('DF raw data'!D88="","",'DF raw data'!D88) -> -3.79775e-05 | F88: 5.075275891e-06 | G88: 2.783671493e-05 | H88: -2.991604726e-06 | J88: -3.336808271e-05 | K88: -0.0002201151531 | L88: 0.0002289263086 | M88: 0.001243936472 | N88: 1.895855312e-07
A89: =IF('DF raw data'!A89="","",'DF raw data'!A89) -> -289 | B89: =IF('DF raw data'!B89="","",'DF raw data'!B89) -> -3.6549e-05 | C89: =IF('DF raw data'!C89="","",'DF raw data'!C89) -> -2.01608e-05 | D89: =IF('DF raw data'!D89="","",'DF raw data'!D89) -> -4.00572e-05 | F89: -1.640721651e-05 | G89: 1.992377551e-05 | H89: -5.084406836e-06 | J89: -4.157169097e-05 | K89: -0.0002409009986 | L89: 0.0002388881963 | M89: 0.001363380571 | N89: 2.189834191e-07
A90: =IF('DF raw data'!A90="","",'DF raw data'!A90) -> -288.5 | B90: =IF('DF raw data'!B90="","",'DF raw data'!B90) -> -6.03026e-06 | C90: =IF('DF raw data'!C90="","",'DF raw data'!C90) -> -2.13948e-05 | D90: =IF('DF raw data'!D90="","",'DF raw data'!D90) -> -4.21846e-05 | F90: 1.430379155e-05 | G90: 1.868200131e-05 | H90: -7.225209456e-06 | J90: -3.441979519e-05 | K90: -0.0002581108962 | L90: 0.000248229197 | M90: 0.001487495169 | N90: 2.503846474e-07
A91: =IF('DF raw data'!A91="","",'DF raw data'!A91) -> -288 | B91: =IF('DF raw data'!B91="","",'DF raw data'!B91) -> -1.98218e-05 | C91: =IF('DF raw data'!C91="","",'DF raw data'!C91) -> -2.30896e-05 | D91: =IF('DF raw data'!D91="","",'DF raw data'!D91) -> -3.06391e-05 | F91: 4.253648508e-07 | G91: 1.697652407e-05 | H91: 4.393027194e-06 | J91: -3.420711276e-05 | K91: -0.0002752144525 | L91: 0.000256717459 | M91: 0.001615853899 | N91: 2.839216376e-07
A92: =IF('DF raw data'!A92="","",'DF raw data'!A92) -> -287.5 | B92: =IF('DF raw data'!B92="","",'DF raw data'!B92) -> -1.59722e-05 | C92: =IF('DF raw data'!C92="","",'DF raw data'!C92) -> -1.82918e-05 | D92: =IF('DF raw data'!D92="","",'DF raw data'!D92) -> -3.51345e-05 | F92: 4.299217331e-06 | G92: 2.180455021e-05 | H92: -1.306938261e-07 | J92: -3.20575041e-05 | K92: -0.0002912432046 | L92: 0.0002676197341 | M92: 0.001749663766 | N92: 3.202456404e-07
A93: =IF('DF raw data'!A93="","",'DF raw data'!A93) -> -287 | B93: =IF('DF raw data'!B93="","",'DF raw data'!B93) -> -1.62909e-05 | C93: =IF('DF raw data'!C93="","",'DF raw data'!C93) -> -1.58172e-05 | D93: =IF('DF raw data'!D93="","",'DF raw data'!D93) -> -3.82514e-05 | F93: 3.978509521e-06 | G93: 2.429474019e-05 | H93: -3.267230296e-06 | J93: -3.006824934e-05 | K93: -0.0003062773293 | L93: 0.0002797671042 | M93: 0.001889547318 | N93: 3.598325065e-07
A94: =IF('DF raw data'!A94="","",'DF raw data'!A94) -> -286.5 | B94: =IF('DF raw data'!B94="","",'DF raw data'!B94) -> -1.60372e-05 | C94: =IF('DF raw data'!C94="","",'DF raw data'!C94) -> -1.60386e-05 | D94: =IF('DF raw data'!D94="","",'DF raw data'!D94) -> -3.39842e-05 | F94: 4.233807831e-06 | G94: 2.407194537e-05 | H94: 1.026853064e-06 | J94: -2.795134542e-05 | K94: -0.000320253002 | L94: 0.0002918030769 | M94: 0.002035448856 | N94: 4.027976632e-07
A95: =IF('DF raw data'!A95="","",'DF raw data'!A95) -> -286 | B95: =IF('DF raw data'!B95="","",'DF raw data'!B95) -> -2.39851e-05 | C95: =IF('DF raw data'!C95="","",'DF raw data'!C95) -> -1.88381e-05 | D95: =IF('DF raw data'!D95="","",'DF raw data'!D95) -> -3.67537e-05 | F95: -3.764163939e-06 | G95: 2.125480852e-05 | H95: -1.760094786e-06 | J95: -2.983342739e-05 | K95: -0.0003351697157 | L95: 0.0003024304812 | M95: 0.002186664097 | N95: 4.489747779e-07
A96: =IF('DF raw data'!A96="","",'DF raw data'!A96) -> -285.5 | B96: =IF('DF raw data'!B96="","",'DF raw data'!B96) -> -8.21747e-06 | C96: =IF('DF raw data'!C96="","",'DF raw data'!C96) -> -1.55368e-05 | D96: =IF('DF raw data'!D96="","",'DF raw data'!D96) -> -3.07137e-05 | F96: 1.210280213e-05 | G96: 2.457690671e-05 | H96: 4.317957214e-06 | J96: -2.378202633e-05 | K96: -0.0003470607288 | L96: 0.0003147189345 | M96: 0.002344023564 | N96: 4.987815742e-07
A97: =IF('DF raw data'!A97="","",'DF raw data'!A97) -> -285 | B97: =IF('DF raw data'!B97="","",'DF raw data'!B97) -> -1.88627e-05 | C97: =IF('DF raw data'!C97="","",'DF raw data'!C97) -> -1.01898e-05 | D97: =IF('DF raw data'!D97="","",'DF raw data'!D97) -> -2.68336e-05 | F97: 1.390507181e-06 | G97: 2.995759281e-05 | H97: 8.222501844e-06 | J97: -2.308677274e-05 | K97: -0.0003586041152 | L97: 0.0003296977309 | M97: 0.00250887243 | N97: 5.533983706e-07
A98: =IF('DF raw data'!A98="","",'DF raw data'!A98) -> -284.5 | B98: =IF('DF raw data'!B98="","",'DF raw data'!B98) -> -2.15455e-05 | C98: =IF('DF raw data'!C98="","",'DF raw data'!C98) -> -8.51618e-06 | D98: =IF('DF raw data'!D98="","",'DF raw data'!D98) -> -4.20576e-05 | F98: -1.309194459e-06 | G98: 3.164175662e-05 | H98: -7.097409356e-06 | J98: -2.374136997e-05 | K98: -0.0003704748002 | L98: 0.0003455186092 | M98: 0.002681631734 | N98: 6.133717516e-07
A99: =IF('DF raw data'!A99="","",'DF raw data'!A99) -> -284 | B99: =IF('DF raw data'!B99="","",'DF raw data'!B99) -> -1.30864e-05 | C99: =IF('DF raw data'!C99="","",'DF raw data'!C99) -> -9.99137e-06 | D99: =IF('DF raw data'!D99="","",'DF raw data'!D99) -> -3.6187e-05 | F99: 7.203197871e-06 | G99: 3.015727292e-05 | H99: -1.189824576e-06 | J99: -2.013977103e-05 | K99: -0.0003805446857 | L99: 0.0003605972457 | M99: 0.002861930357 | N99: 6.785897436e-07
A100: =IF('DF raw data'!A100="","",'DF raw data'!A100) -> -283.5 | B100: =IF('DF raw data'!B100="","",'DF raw data'!B100) -> -1.37841e-05 | C100: =IF('DF raw data'!C100="","",'DF raw data'!C100) -> -1.01026e-05 | D100: =IF('DF raw data'!D100="","",'DF raw data'!D100) -> -4.78556e-05 | F100: 6.501102361e-06 | G100: 3.004534217e-05 | H100: -1.293193676e-05 | J100: -1.688921985e-05 | K100: -0.0003889892956 | L100: 0.0003756199168 | M100: 0.003049740315 | N100: 7.492775274e-07
A101: =IF('DF raw data'!A101="","",'DF raw data'!A101) -> -283 | B101: =IF('DF raw data'!B101="","",'DF raw data'!B101) -> -1.63518e-05 | C101: =IF('DF raw data'!C101="","",'DF raw data'!C101) -> -6.85897e-06 | D101: =IF('DF raw data'!D101="","",'DF raw data'!D101) -> -4.2966e-05 | F101: 3.917225851e-06 | G101: 3.330940704e-05 | H101: -8.011532276e-06 | J101: -1.493060693e-05 | K101: -0.0003964545991 | L101: 0.0003922746203 | M101: 0.003245877626 | N101: 8.263286778e-07
A102: =IF('DF raw data'!A102="","",'DF raw data'!A102) -> -282.5 | B102: =IF('DF raw data'!B102="","",'DF raw data'!B102) -> -1.69891e-05 | C102: =IF('DF raw data'!C102="","",'DF raw data'!C102) -> -7.05787e-06 | D102: =IF('DF raw data'!D102="","",'DF raw data'!D102) -> -4.88224e-05 | F102: 3.275910861e-06 | G102: 3.310925397e-05 | H102: -1.39048276e-05 | J102: -1.32926515e-05 | K102: -0.0004031009248 | L102: 0.0004088292473 | M102: 0.003450292249 | N102: 9.099877018e-07
A103: =IF('DF raw data'!A103="","",'DF raw data'!A103) -> -282 | B103: =IF('DF raw data'!B103="","",'DF raw data'!B103) -> -1.31498e-05 | C103: =IF('DF raw data'!C103="","",'DF raw data'!C103) -> -1.1223e-05 | D103: =IF('DF raw data'!D103="","",'DF raw data'!D103) -> -3.74006e-05 | F103: 7.139398451e-06 | G103: 2.891788365e-05 | H103: -2.411070256e-06 | J103: -9.72295227e-06 | K103: -0.000407962401 | L103: 0.0004232881891 | M103: 0.003661936344 | N103: 9.996214152e-07
A104: =IF('DF raw data'!A104="","",'DF raw data'!A104) -> -281.5 | B104: =IF('DF raw data'!B104="","",'DF raw data'!B104) -> -1.30814e-05 | C104: =IF('DF raw data'!C104="","",'DF raw data'!C104) -> -8.25769e-06 | D104: =IF('DF raw data'!D104="","",'DF raw data'!D104) -> -4.38463e-05 | F104: 7.208229371e-06 | G104: 3.19018751e-05 | H104: -8.897378166e-06 | J104: -6.118837584e-06 | K104: -0.0004110218198 | L104: 0.0004392391267 | M104: 0.003881555907 | N104: 1.09610564e-06
A105: =IF('DF raw data'!A105="","",'DF raw data'!A105) -> -281 | B105: =IF('DF raw data'!B105="","",'DF raw data'!B105) -> -2.28294e-05 | C105: =IF('DF raw data'!C105="","",'DF raw data'!C105) -> -2.85796e-06 | D105: =IF('DF raw data'!D105="","",'DF raw data'!D105) -> -3.93502e-05 | F105: -2.601183029e-06 | G105: 3.73356234e-05 | H105: -4.372952736e-06 | J105: -7.419429099e-06 | K105: -0.0004147315343 | L105: 0.0004579069384 | M105: 0.004110509376 | N105: 1.200972547e-06
A106: =IF('DF raw data'!A106="","",'DF raw data'!A106) -> -280.5 | B106: =IF('DF raw data'!B106="","",'DF raw data'!B106) -> -2.05178e-05 | C106: =IF('DF raw data'!C106="","",'DF raw data'!C106) -> -1.79697e-07 | D106: =IF('DF raw data'!D106="","",'DF raw data'!D106) -> -4.49756e-05 | F106: -2.750199492e-07 | G106: 4.003075946e-05 | H106: -1.003379276e-05 | J106: -7.556939074e-06 | K106: -0.0004185100039 | L106: 0.0004779223181 | M106: 0.004349470535 | N106: 1.315205971e-06
A107: =IF('DF raw data'!A107="","",'DF raw data'!A107) -> -280 | B107: =IF('DF raw data'!B107="","",'DF raw data'!B107) -> -2.18698e-05 | C107: =IF('DF raw data'!C107="","",'DF raw data'!C107) -> -1.88306e-06 | D107: =IF('DF raw data'!D107="","",'DF raw data'!D107) -> -3.641e-05 | F107: -1.635537549e-06 | G107: 3.831666527e-05 | H107: -1.414229476e-06 | J107: -8.374707848e-06 | K107: -0.0004226973578 | L107: 0.0004970806507 | M107: 0.004598010861 | N107: 1.438785626e-06
A108: =IF('DF raw data'!A108="","",'DF raw data'!A108) -> -279.5 | B108: =IF('DF raw data'!B108="","",'DF raw data'!B108) -> -1.71187e-05 | C108: =IF('DF raw data'!C108="","",'DF raw data'!C108) -> -1.21095e-05 | D108: =IF('DF raw data'!D108="","",'DF raw data'!D108) -> -4.65834e-05 | F108: 3.145494381e-06 | G108: 2.80257987e-05 | H108: -1.16517219e-05 | J108: -6.801960658e-06 | K108: -0.0004260983381 | L108: 0.0005110935501 | M108: 0.004853557636 | N108: 1.569417068e-06
A109: =IF('DF raw data'!A109="","",'DF raw data'!A109) -> -279 | B109: =IF('DF raw data'!B109="","",'DF raw data'!B109) -> -2.14237e-05 | C109: =IF('DF raw data'!C109="","",'DF raw data'!C109) -> -1.1615e-05 | D109: =IF('DF raw data'!D109="","",'DF raw data'!D109) -> -3.20768e-05 | F109: -1.186627119e-06 | G109: 2.852341405e-05 | H109: 2.946269684e-06 | J109: -7.395274217e-06 | K109: -0.0004297959752 | L109: 0.0005253552571 | M109: 0.005116235264 | N109: 1.707443486e-06
A110: =IF('DF raw data'!A110="","",'DF raw data'!A110) -> -278.5 | B110: =IF('DF raw data'!B110="","",'DF raw data'!B110) -> -1.99383e-05 | C110: =IF('DF raw data'!C110="","",'DF raw data'!C110) -> -2.5237e-06 | D110: =IF('DF raw data'!D110="","",'DF raw data'!D110) -> -4.8576e-05 | F110: 3.081309008e-07 | G110: 3.767198924e-05 | H110: -1.365687528e-05 | J110: -7.241208767e-06 | K110: -0.0004334165796 | L110: 0.0005441912517 | M110: 0.00538833089 | N110: 1.855541763e-06
A111: =IF('DF raw data'!A111="","",'DF raw data'!A111) -> -278 | B111: =IF('DF raw data'!B111="","",'DF raw data'!B111) -> -2.29569e-05 | C111: =IF('DF raw data'!C111="","",'DF raw data'!C111) -> -5.21433e-06 | D111: =IF('DF raw data'!D111="","",'DF raw data'!D111) -> -4.05717e-05 | F111: -2.729486279e-06 | G111: 3.496440827e-05 | H111: -5.602148186e-06 | J111: -8.605951907e-06 | K111: -0.0004377195556 | L111: 0.0005616734559 | M111: 0.005669167618 | N111: 2.013317329e-06
A112: =IF('DF raw data'!A112="","",'DF raw data'!A112) -> -277.5 | B112: =IF('DF raw data'!B112="","",'DF raw data'!B112) -> -1.2376e-05 | C112: =IF('DF raw data'!C112="","",'DF raw data'!C112) -> -1.96371e-06 | D112: =IF('DF raw data'!D112="","",'DF raw data'!D112) -> -4.43383e-05 | F112: 7.918073391e-06 | G112: 3.823550718e-05 | H112: -9.392477766e-06 | J112: -4.646915211e-06 | K112: -0.0004400430132 | L112: 0.0005807912095 | M112: 0.005959563223 | N112: 2.181987341e-06
A113: =IF('DF raw data'!A113="","",'DF raw data'!A113) -> -277 | B113: =IF('DF raw data'!B113="","",'DF raw data'!B113) -> -2.1674e-05 | C113: =IF('DF raw data'!C113="","",'DF raw data'!C113) -> -7.60109e-06 | D113: =IF('DF raw data'!D113="","",'DF raw data'!D113) -> -4.15974e-05 | F113: -1.438504009e-06 | G113: 3.256261168e-05 | H113: -6.634310096e-06 | J113: -5.366167216e-06 | K113: -0.0004427260968 | L113: 0.0005970725153 | M113: 0.006258099481 | N113: 2.360249533e-06
A114: =IF('DF raw data'!A114="","",'DF raw data'!A114) -> -276.5 | B114: =IF('DF raw data'!B114="","",'DF raw data'!B114) -> -3.89854e-05 | C114: =IF('DF raw data'!C114="","",'DF raw data'!C114) -> -1.21956e-05 | D114: =IF('DF raw data'!D114="","",'DF raw data'!D114) -> -3.97169e-05 | F114: -1.885896583e-05 | G114: 2.793915627e-05 | H114: -4.741962946e-06 | J114: -1.479565013e-05 | K114: -0.0004501239218 | L114: 0.0006110420934 | M114: 0.006563620527 | N114: 2.547045208e-06
A115: =IF('DF raw data'!A115="","",'DF raw data'!A115) -> -276 | B115: =IF('DF raw data'!B115="","",'DF raw data'!B115) -> -1.59104e-05 | C115: =IF('DF raw data'!C115="","",'DF raw data'!C115) -> -1.12992e-05 | D115: =IF('DF raw data'!D115="","",'DF raw data'!D115) -> -3.17544e-05 | F115: 4.361406671e-06 | G115: 2.884120359e-05 | H115: 3.270700804e-06 | J115: -1.26149468e-05 | K115: -0.0004564313952 | L115: 0.0006254626952 | M115: 0.006876351875 | N115: 2.742726568e-06
A116: =IF('DF raw data'!A116="","",'DF raw data'!A116) -> -275.5 | B116: =IF('DF raw data'!B116="","",'DF raw data'!B116) -> -2.24477e-05 | C116: =IF('DF raw data'!C116="","",'DF raw data'!C116) -> -7.63126e-06 | D116: =IF('DF raw data'!D116="","",'DF raw data'!D116) -> -3.49015e-05 | F116: -2.217078319e-06 | G116: 3.253225161e-05 | H116: 1.037740739e-07 | J116: -1.372348595e-05 | K116: -0.0004632931382 | L116: 0.000641728821 | M116: 0.007197216285 | N116: 2.948728675e-06
A117: =IF('DF raw data'!A117="","",'DF raw data'!A117) -> -275 | B117: =IF('DF raw data'!B117="","",'DF raw data'!B117) -> -2.42495e-05 | C117: =IF('DF raw data'!C117="","",'DF raw data'!C117) -> -9.11076e-06 | D117: =IF('DF raw data'!D117="","",'DF raw data'!D117) -> -2.45278e-05 | F117: -4.030229659e-06 | G117: 3.104343076e-05 | H117: 1.054282838e-05 | J117: -1.573860078e-05 | K117: -0.0004711624386 | L117: 0.0006572505364 | M117: 0.007525841554 | N117: 3.164841661e-06
A118: =IF('DF raw data'!A118="","",'DF raw data'!A118) -> -274.5 | B118: =IF('DF raw data'!B118="","",'DF raw data'!B118) -> -2.35373e-05 | C118: =IF('DF raw data'!C118="","",'DF raw data'!C118) -> -8.73278e-06 | D118: =IF('DF raw data'!D118="","",'DF raw data'!D118) -> -3.55071e-05 | F118: -3.313542799e-06 | G118: 3.142379204e-05 | H118: -5.056412061e-07 | J118: -1.739537218e-05 | K118: -0.0004798601247 | L118: 0.0006729624324 | M118: 0.00786232277 | N118: 3.391432178e-06
A119: =IF('DF raw data'!A119="","",'DF raw data'!A119) -> -274 | B119: =IF('DF raw data'!B119="","",'DF raw data'!B119) -> -1.35312e-05 | C119: =IF('DF raw data'!C119="","",'DF raw data'!C119) -> -2.82211e-06 | D119: =IF('DF raw data'!D119="","",'DF raw data'!D119) -> -4.25419e-05 | F119: 6.755595631e-06 | G119: 3.737169926e-05 | H119: -7.584760446e-06 | J119: -1.401757437e-05 | K119: -0.0004868689119 | L119: 0.0006916482821 | M119: 0.008208146911 | N119: 3.630719097e-06
A120: =IF('DF raw data'!A120="","",'DF raw data'!A120) -> -273.5 | B120: =IF('DF raw data'!B120="","",'DF raw data'!B120) -> -2.44914e-05 | C120: =IF('DF raw data'!C120="","",'DF raw data'!C120) -> -6.07185e-06 | D120: =IF('DF raw data'!D120="","",'DF raw data'!D120) -> -4.68836e-05 | F120: -4.273653629e-06 | G120: 3.41014859e-05 | H120: -1.195381316e-05 | J120: -1.615440118e-05 | K120: -0.0004949461125 | L120: 0.000708699025 | M120: 0.008562496423 | N120: 3.881976734e-06
A121: =IF('DF raw data'!A121="","",'DF raw data'!A121) -> -273 | B121: =IF('DF raw data'!B121="","",'DF raw data'!B121) -> -3.31525e-05 | C121: =IF('DF raw data'!C121="","",'DF raw data'!C121) -> -5.25107e-06 | D121: =IF('DF raw data'!D121="","",'DF raw data'!D121) -> -3.77835e-05 | F121: -1.298931856e-05 | G121: 3.492743681e-05 | H121: -2.796382526e-06 | J121: -2.264906046e-05 | K121: -0.0005062706427 | L121: 0.0007261627434 | M121: 0.008925577795 | N121: 4.145889389e-06
A122: =IF('DF raw data'!A122="","",'DF raw data'!A122) -> -272.5 | B122: =IF('DF raw data'!B122="","",'DF raw data'!B122) -> -1.80233e-05 | C122: =IF('DF raw data'!C122="","",'DF raw data'!C122) -> -3.11156e-07 | D122: =IF('DF raw data'!D122="","",'DF raw data'!D122) -> -3.57616e-05 | F122: 2.235195401e-06 | G122: 3.989847227e-05 | H122: -7.617445561e-07 | J122: -2.153146276e-05 | K122: -0.0005170363741 | L122: 0.0007461119795 | M122: 0.009298633785 | N122: 4.424462734e-06
A123: =IF('DF raw data'!A123="","",'DF raw data'!A123) -> -272 | B123: =IF('DF raw data'!B123="","",'DF raw data'!B123) -> -2.13524e-05 | C123: =IF('DF raw data'!C123="","",'DF raw data'!C123) -> -1.02111e-06 | D123: =IF('DF raw data'!D123="","",'DF raw data'!D123) -> -4.34498e-05 | F123: -1.114877929e-06 | G123: 3.918404556e-05 | H123: -8.498380216e-06 | J123: -2.208890173e-05 | K123: -0.0005280808249 | L123: 0.0007657040023 | M123: 0.009681485786 | N123: 4.717858003e-06
A124: =IF('DF raw data'!A124="","",'DF raw data'!A124) -> -271.5 | B124: =IF('DF raw data'!B124="","",'DF raw data'!B124) -> -2.51378e-05 | C124: =IF('DF raw data'!C124="","",'DF raw data'!C124) -> -1.30209e-06 | D124: =IF('DF raw data'!D124="","",'DF raw data'!D124) -> -3.88657e-05 | F124: -4.924125949e-06 | G124: 3.890129538e-05 | H124: -3.885400386e-06 | J124: -2.45509647e-05 | K124: -0.0005403563073 | L124: 0.00078515465 | M124: 0.01007406311 | N124: 5.02639329e-06
A125: =IF('DF raw data'!A125="","",'DF raw data'!A125) -> -271 | B125: =IF('DF raw data'!B125="","",'DF raw data'!B125) -> -1.60927e-05 | C125: =IF('DF raw data'!C125="","",'DF raw data'!C125) -> 2.93447e-06 | D125: =IF('DF raw data'!D125="","",'DF raw data'!D125) -> -4.69777e-05 | F125: 4.177958181e-06 | G125: 4.316454571e-05 | H125: -1.204850599e-05 | J125: -2.246198561e-05 | K125: -0.0005515873001 | L125: 0.0008067369229 | M125: 0.01047743157 | N125: 5.352057792e-06
A126: =IF('DF raw data'!A126="","",'DF raw data'!A126) -> -270.5 | B126: =IF('DF raw data'!B126="","",'DF raw data'!B126) -> -1.9752e-05 | C126: =IF('DF raw data'!C126="","",'DF raw data'!C126) -> 1.33663e-06 | D126: =IF('DF raw data'!D126="","",'DF raw data'!D126) -> -3.95684e-05 | F126: 4.956045908e-07 | G126: 4.155663932e-05 | H126: -4.592527396e-06 | J126: -2.221418332e-05 | K126: -0.0005626943918 | L126: 0.0008275152425 | M126: 0.01089118919 | N126: 5.694695265e-06
A127: =IF('DF raw data'!A127="","",'DF raw data'!A127) -> -270 | B127: =IF('DF raw data'!B127="","",'DF raw data'!B127) -> -1.43646e-05 | C127: =IF('DF raw data'!C127="","",'DF raw data'!C127) -> 1.02478e-06 | D127: =IF('DF raw data'!D127="","",'DF raw data'!D127) -> -4.27218e-05 | F127: 5.916945211e-06 | G127: 4.124282466e-05 | H127: -7.765793816e-06 | J127: -1.925571071e-05 | K127: -0.0005723222471 | L127: 0.0008481366549 | M127: 0.01131525752 | N127: 6.054548549e-06
A128: =IF('DF raw data'!A128="","",'DF raw data'!A128) -> -269.5 | B128: =IF('DF raw data'!B128="","",'DF raw data'!B128) -> -1.89746e-05 | C128: =IF('DF raw data'!C128="","",'DF raw data'!C128) -> 5.57555e-06 | D128: =IF('DF raw data'!D128="","",'DF raw data'!D128) -> -5.19444e-05 | F128: 1.277902211e-06 | G128: 4.582226452e-05 | H128: -1.70464962e-05 | J128: =F128*$G$3+J127 -> -1.86167596e-05 | K128: =J128*$G$3+K127 -> -0.0005816306269 | L128: =G128*$G$3+L127 -> 0.0008710477871 | M128: =L128*$G$3+M127 -> 0.01175078141 | N128: =(J128^2+L128^2)*$G$3+N127 -> 6.434083965e-06
A129: =IF('DF raw data'!A129="","",'DF raw data'!A129) -> -269 | B129: =IF('DF raw data'!B129="","",'DF raw data'!B129) -> -1.43644e-05 | C129: =IF('DF raw data'!C129="","",'DF raw data'!C129) -> -5.82839e-06 | D129: =IF('DF raw data'!D129="","",'DF raw data'!D129) -> -4.30341e-05 | F129: 5.917146471e-06 | G129: 3.434647969e-05 | H129: -8.080061306e-06 | J129: -1.565818637e-05 | K129: -0.0005894597201 | L129: 0.000888221027 | M129: 0.01219489193 | N129: 6.82867485e-06
A130: =IF('DF raw data'!A130="","",'DF raw data'!A130) -> -268.5 | B130: =IF('DF raw data'!B130="","",'DF raw data'!B130) -> -1.99435e-05 | C130: =IF('DF raw data'!C130="","",'DF raw data'!C130) -> -7.98945e-07 | D130: =IF('DF raw data'!D130="","",'DF raw data'!D130) -> -4.07064e-05 | F130: 3.028981408e-07 | G130: 3.94076102e-05 | H130: -5.737696796e-06 | J130: -1.55067373e-05 | K130: -0.0005972130887 | L130: 0.0009079248321 | M130: 0.01264885434 | N130: 7.24095883e-06
A131: =IF('DF raw data'!A131="","",'DF raw data'!A131) -> -268 | B131: =IF('DF raw data'!B131="","",'DF raw data'!B131) -> -2.27658e-05 | C131: =IF('DF raw data'!C131="","",'DF raw data'!C131) -> -1.1023e-06 | D131: =IF('DF raw data'!D131="","",'DF raw data'!D131) -> -3.88997e-05 | F131: =(1-$G$1*($B$54-$G$2))*(B131-F$5) -> -2.537182349e-06 | G131: =(1-$G$1*($B$54-$G$2))*(C131-G$5) -> 3.910234406e-05 | H131: =(1-$G$1*($B$54-$G$2))*(D131-H$5) -> -3.919614586e-06 | J131: -1.677532847e-05 | K131: -0.000605600753 | L131: 0.0009274760041 | M131: 0.01311259235 | N131: 7.671205405e-06
A132: =IF('DF raw data'!A132="","",'DF raw data'!A132) -> -267.5 | B132: =IF('DF raw data'!B132="","",'DF raw data'!B132) -> -1.79569e-05 | C132: =IF('DF raw data'!C132="","",'DF raw data'!C132) -> -1.42789e-08 | D132: =IF('DF raw data'!D132="","",'DF raw data'!D132) -> -3.94848e-05 | F132: 2.302013721e-06 | G132: 4.019721969e-05 | H132: -4.508400716e-06 | J132: -1.562432161e-05 | K132: -0.0006134129138 | L132: 0.0009475746139 | M132: 0.01358637965 | N132: 8.120276289e-06
A133: =IF('DF raw data'!A133="","",'DF raw data'!A133) -> -267 | B133: =IF('DF raw data'!B133="","",'DF raw data'!B133) -> -2.4425e-05 | C133: =IF('DF raw data'!C133="","",'DF raw data'!C133) -> -6.79693e-06 | D133: =IF('DF raw data'!D133="","",'DF raw data'!D133) -> -5.06386e-05 | F133: -4.206835309e-06 | G133: 3.337183789e-05 | H133: -1.573246966e-05 | J133: -1.772773927e-05 | K133: -0.0006222767834 | L133: 0.0009642605329 | M133: 0.01406850992 | N133: 8.585332613e-06
A134: =IF('DF raw data'!A134="","",'DF raw data'!A134) -> -266.5 | B134: =IF('DF raw data'!B134="","",'DF raw data'!B134) -> -2.66802e-05 | C134: =IF('DF raw data'!C134="","",'DF raw data'!C134) -> -1.49193e-05 | D134: =IF('DF raw data'!D134="","",'DF raw data'!D134) -> -3.30696e-05 | F134: -6.476243069e-06 | G134: 2.519829696e-05 | H134: 1.947215044e-06 | J134: -2.09658608e-05 | K134: -0.0006327597138 | L134: 0.0009768596814 | M134: 0.01455693976 | N134: 9.062679816e-06
A135: =IF('DF raw data'!A135="","",'DF raw data'!A135) -> -266 | B135: =IF('DF raw data'!B135="","",'DF raw data'!B135) -> -2.05863e-05 | C135: =IF('DF raw data'!C135="","",'DF raw data'!C135) -> -1.68157e-05 | D135: =IF('DF raw data'!D135="","",'DF raw data'!D135) -> -3.84967e-05 | F135: -3.439514992e-07 | G135: 2.328994964e-05 | H135: -3.514075686e-06 | J135: -2.113783655e-05 | K135: -0.0006433286321 | L135: 0.0009885046562 | M135: 0.01505119209 | N135: 9.551473947e-06
A136: =IF('DF raw data'!A136="","",'DF raw data'!A136) -> -265.5 | B136: =IF('DF raw data'!B136="","",'DF raw data'!B136) -> -2.92414e-05 | C136: =IF('DF raw data'!C136="","",'DF raw data'!C136) -> -7.36316e-06 | D136: =IF('DF raw data'!D136="","",'DF raw data'!D136) -> -3.84812e-05 | F136: -9.053578629e-06 | G136: 3.280204064e-05 | H136: -3.498478036e-06 | J136: -2.566462587e-05 | K136: -0.000656160945 | L136: 0.001004905677 | M136: 0.01555364493 | N136: 1.005672099e-05
A137: =IF('DF raw data'!A137="","",'DF raw data'!A137) -> -265 | B137: =IF('DF raw data'!B137="","",'DF raw data'!B137) -> -2.05888e-05 | C137: =IF('DF raw data'!C137="","",'DF raw data'!C137) -> -7.42119e-06 | D137: =IF('DF raw data'!D137="","",'DF raw data'!D137) -> -3.45791e-05 | F137: -3.464672492e-07 | G137: 3.274364505e-05 | H137: 4.282051939e-07 | J137: -2.583785949e-05 | K137: -0.0006690798748 | L137: 0.001021277499 | M137: 0.01606428368 | N137: 1.057855866e-05
A138: =IF('DF raw data'!A138="","",'DF raw data'!A138) -> -264.5 | B138: =IF('DF raw data'!B138="","",'DF raw data'!B138) -> -1.94986e-05 | C138: =IF('DF raw data'!C138="","",'DF raw data'!C138) -> -1.42534e-05 | D138: =IF('DF raw data'!D138="","",'DF raw data'!D138) -> -3.49182e-05 | F138: 7.506010108e-07 | G138: 2.586839213e-05 | H138: 8.69688639e-08 | J138: -2.546255899e-05 | K138: -0.0006818111543 | L138: 0.001034211695 | M138: 0.01658138952 | N138: 1.111367974e-05
A139: =IF('DF raw data'!A139="","",'DF raw data'!A139) -> -264 | B139: =IF('DF raw data'!B139="","",'DF raw data'!B139) -> -1.80192e-05 | C139: =IF('DF raw data'!C139="","",'DF raw data'!C139) -> -1.82226e-05 | D139: =IF('DF raw data'!D139="","",'DF raw data'!D139) -> -4.20807e-05 | F139: 2.239321231e-06 | G139: 2.187418617e-05 | H139: -7.120654886e-06 | J139: -2.434289837e-05 | K139: -0.0006939826035 | L139: 0.001045148788 | M139: 0.01710396392 | N139: 1.166014402e-05
A140: =IF('DF raw data'!A140="","",'DF raw data'!A140) -> -263.5 | B140: =IF('DF raw data'!B140="","",'DF raw data'!B140) -> -2.67427e-05 | C140: =IF('DF raw data'!C140="","",'DF raw data'!C140) -> -1.14262e-05 | D140: =IF('DF raw data'!D140="","",'DF raw data'!D140) -> -3.57469e-05 | F140: -6.539136819e-06 | G140: 2.871340349e-05 | H140: -7.469519461e-07 | J140: -2.761246678e-05 | K140: -0.0007077888369 | L140: 0.00105950549 | M140: 0.01763371666 | N140: 1.222180119e-05
A141: =IF('DF raw data'!A141="","",'DF raw data'!A141) -> -263 | B141: =IF('DF raw data'!B141="","",'DF raw data'!B141) -> -2.54562e-05 | C141: =IF('DF raw data'!C141="","",'DF raw data'!C141) -> -4.00317e-06 | D141: =IF('DF raw data'!D141="","",'DF raw data'!D141) -> -4.24023e-05 | F141: -5.244531869e-06 | G141: 3.618319858e-05 | H141: -7.444280966e-06 | J141: -3.023473271e-05 | K141: -0.0007229062032 | L141: 0.001077597089 | M141: 0.01817251521 | N141: 1.2802866e-05
A142: =IF('DF raw data'!A142="","",'DF raw data'!A142) -> -262.5 | B142: =IF('DF raw data'!B142="","",'DF raw data'!B142) -> -2.11074e-05 | C142: =IF('DF raw data'!C142="","",'DF raw data'!C142) -> -7.80954e-06 | D142: =IF('DF raw data'!D142="","",'DF raw data'!D142) -> -2.58279e-05 | F142: -8.683344292e-07 | G142: 3.235284845e-05 | H142: 9.234537754e-06 | J142: -3.066889993e-05 | K142: -0.0007382406532 | L142: 0.001093773513 | M142: 0.01871940196 | N142: 1.340150654e-05
A143: =IF('DF raw data'!A143="","",'DF raw data'!A143) -> -262 | B143: =IF('DF raw data'!B143="","",'DF raw data'!B143) -> -2.16138e-05 | C143: =IF('DF raw data'!C143="","",'DF raw data'!C143) -> -2.34225e-06 | D143: =IF('DF raw data'!D143="","",'DF raw data'!D143) -> -3.58451e-05 | F143: -1.377924749e-06 | G143: 3.785458238e-05 | H143: -8.457706061e-07 | J143: -3.13578623e-05 | K143: -0.0007539195843 | L143: 0.001112700805 | M143: 0.01927575237 | N143: 1.402104974e-05
A144: =IF('DF raw data'!A144="","",'DF raw data'!A144) -> -261.5 | B144: =IF('DF raw data'!B144="","",'DF raw data'!B144) -> -2.3859e-05 | C144: =IF('DF raw data'!C144="","",'DF raw data'!C144) -> -5.76785e-06 | D144: =IF('DF raw data'!D144="","",'DF raw data'!D144) -> -3.35953e-05 | F144: -3.637269509e-06 | G144: 3.44074011e-05 | H144: 1.418203134e-06 | J144: -3.317649706e-05 | K144: -0.0007705078329 | L144: 0.001129904505 | M144: 0.01984070462 | N144: 1.465994218e-05
A145: =IF('DF raw data'!A145="","",'DF raw data'!A145) -> -261 | B145: =IF('DF raw data'!B145="","",'DF raw data'!B145) -> -2.29615e-05 | C145: =IF('DF raw data'!C145="","",'DF raw data'!C145) -> -2.06068e-05 | D145: =IF('DF raw data'!D145="","",'DF raw data'!D145) -> -3.34985e-05 | F145: -2.734115259e-06 | G145: 1.947496571e-05 | H145: 1.515612974e-06 | J145: -3.454355469e-05 | K145: -0.0007877796102 | L145: 0.001139641988 | M145: 0.02041052561 | N145: 1.530993074e-05
A146: =IF('DF raw data'!A146="","",'DF raw data'!A146) -> -260.5 | B146: =IF('DF raw data'!B146="","",'DF raw data'!B146) -> -3.35398e-05 | C146: =IF('DF raw data'!C146="","",'DF raw data'!C146) -> -1.87303e-05 | D146: =IF('DF raw data'!D146="","",'DF raw data'!D146) -> -3.41263e-05 | F146: -1.337905855e-05 | G146: 2.136328766e-05 | H146: 8.838578339e-07 | J146: -4.123308396e-05 | K146: -0.0008083961522 | L146: 0.001150323632 | M146: 0.02098568743 | N146: 1.597240305e-05
A147: =IF('DF raw data'!A147="","",'DF raw data'!A147) -> -260 | B147: =IF('DF raw data'!B147="","",'DF raw data'!B147) -> -2.00712e-05 | C147: =IF('DF raw data'!C147="","",'DF raw data'!C147) -> -1.06931e-05 | D147: =IF('DF raw data'!D147="","",'DF raw data'!D147) -> -4.15022e-05 | F147: 1.743936308e-07 | G147: 2.945112202e-05 | H147: -6.538510336e-06 | J147: -4.114588715e-05 | K147: -0.0008289690958 | L147: 0.001165049193 | M147: 0.02156821203 | N147: 1.665191935e-05
A148: =IF('DF raw data'!A148="","",'DF raw data'!A148) -> -259.5 | B148: =IF('DF raw data'!B148="","",'DF raw data'!B148) -> -1.40489e-05 | C148: =IF('DF raw data'!C148="","",'DF raw data'!C148) -> -5.50285e-06 | D148: =IF('DF raw data'!D148="","",'DF raw data'!D148) -> -3.50044e-05 | F148: 6.234634121e-06 | G148: 3.46740706e-05 | H148: 2.258039024e-10 | J148: -3.802857009e-05 | K148: -0.0008479833808 | L148: 0.001182386228 | M148: 0.02215940514 | N148: 1.735166103e-05
A149: =IF('DF raw data'!A149="","",'DF raw data'!A149) -> -259 | B149: =IF('DF raw data'!B149="","",'DF raw data'!B149) -> -1.7315e-05 | C149: =IF('DF raw data'!C149="","",'DF raw data'!C149) -> -7.39102e-06 | D149: =IF('DF raw data'!D149="","",'DF raw data'!D149) -> -4.08327e-05 | F149: 2.947957691e-06 | G149: 3.277400512e-05 | H149: -5.864792486e-06 | J149: -3.655459124e-05 | K149: -0.0008662606764 | L149: 0.001198773231 | M149: 0.02275879175 | N149: 1.807085778e-05
A150: =IF('DF raw data'!A150="","",'DF raw data'!A150) -> -258.5 | B150: =IF('DF raw data'!B150="","",'DF raw data'!B150) -> -8.40522e-06 | C150: =IF('DF raw data'!C150="","",'DF raw data'!C150) -> -1.5057e-05 | D150: =IF('DF raw data'!D150="","",'DF raw data'!D150) -> -3.80044e-05 | F150: 1.19138693e-05 | G150: 2.505972945e-05 | H150: -3.018674196e-06 | J150: -3.059765659e-05 | K150: -0.0008815595047 | L150: 0.001211303095 | M150: 0.0233644433 | N150: 1.880495349e-05
A151: =IF('DF raw data'!A151="","",'DF raw data'!A151) -> -258 | B151: =IF('DF raw data'!B151="","",'DF raw data'!B151) -> -1.41123e-05 | C151: =IF('DF raw data'!C151="","",'DF raw data'!C151) -> -1.12559e-05 | D151: =IF('DF raw data'!D151="","",'DF raw data'!D151) -> -3.63558e-05 | F151: 6.170834701e-06 | G151: 2.888477638e-05 | H151: -1.359688016e-06 | J151: -2.751223924e-05 | K151: -0.0008953156243 | L151: 0.001225745484 | M151: 0.02397731604 | N151: 1.955655794e-05
A152: =IF('DF raw data'!A152="","",'DF raw data'!A152) -> -257.5 | B152: =IF('DF raw data'!B152="","",'DF raw data'!B152) -> -1.655e-05 | C152: =IF('DF raw data'!C152="","",'DF raw data'!C152) -> -7.06026e-06 | D152: =IF('DF raw data'!D152="","",'DF raw data'!D152) -> -3.4111e-05 | F152: 3.717777191e-06 | G152: 3.310684891e-05 | H152: 8.992542239e-07 | J152: -2.565335064e-05 | K152: -0.0009081422997 | L152: 0.001242298908 | M152: 0.0245984655 | N152: 2.032854028e-05
A153: =IF('DF raw data'!A153="","",'DF raw data'!A153) -> -257 | B153: =IF('DF raw data'!B153="","",'DF raw data'!B153) -> -1.14194e-05 | C153: =IF('DF raw data'!C153="","",'DF raw data'!C153) -> -7.35591e-06 | D153: =IF('DF raw data'!D153="","",'DF raw data'!D153) -> -3.63306e-05 | F153: 8.880699971e-06 | G153: 3.280933632e-05 | H153: -1.334329256e-06 | J153: -2.121300066e-05 | K153: -0.0009187488 | L153: 0.001258703576 | M153: 0.02522781729 | N153: 2.112093262e-05
A154: =IF('DF raw data'!A154="","",'DF raw data'!A154) -> -256.5 | B154: =IF('DF raw data'!B154="","",'DF raw data'!B154) -> -1.44362e-05 | C154: =IF('DF raw data'!C154="","",'DF raw data'!C154) -> -5.96054e-06 | D154: =IF('DF raw data'!D154="","",'DF raw data'!D154) -> -3.10198e-05 | F154: 5.844894131e-06 | G154: 3.421349715e-05 | H154: 4.009928784e-06 | J154: -1.829055359e-05 | K154: -0.0009278940768 | L154: 0.001275810325 | M154: 0.02586572245 | N154: 2.193494588e-05
A155: =IF('DF raw data'!A155="","",'DF raw data'!A155) -> -256 | B155: =IF('DF raw data'!B155="","",'DF raw data'!B155) -> -1.07805e-05 | C155: =IF('DF raw data'!C155="","",'DF raw data'!C155) -> -1.18625e-05 | D155: =IF('DF raw data'!D155="","",'DF raw data'!D155) -> -3.29077e-05 | F155: 9.523625041e-06 | G155: 2.82743548e-05 | H155: 2.110135014e-06 | J155: -1.352874107e-05 | K155: -0.0009346584473 | L155: 0.001289947502 | M155: 0.0265106962 | N155: 2.276701968e-05
A156: =IF('DF raw data'!A156="","",'DF raw data'!A156) -> -255.5 | B156: =IF('DF raw data'!B156="","",'DF raw data'!B156) -> -7.56846e-06 | C156: =IF('DF raw data'!C156="","",'DF raw data'!C156) -> -1.55392e-05 | D156: =IF('DF raw data'!D156="","",'DF raw data'!D156) -> -4.29095e-05 | F156: 1.275590089e-05 | G156: 2.457449159e-05 | H156: -7.954676326e-06 | J156: -7.150790626e-06 | K156: -0.0009382338426 | L156: 0.001302234748 | M156: 0.02716181357 | N156: 2.361495291e-05
A157: =IF('DF raw data'!A157="","",'DF raw data'!A157) -> -255 | B157: =IF('DF raw data'!B157="","",'DF raw data'!B157) -> -1.80248e-05 | C157: =IF('DF raw data'!C157="","",'DF raw data'!C157) -> -7.94312e-06 | D157: =IF('DF raw data'!D157="","",'DF raw data'!D157) -> -3.35737e-05 | F157: 2.233685951e-06 | G157: 3.221842689e-05 | H157: 1.439939214e-06 | J157: -6.03394765e-06 | K157: -0.0009412508165 | L157: 0.001318343961 | M157: 0.02782098556 | N157: 2.448398652e-05
A158: =IF('DF raw data'!A158="","",'DF raw data'!A158) -> -254.5 | B158: =IF('DF raw data'!B158="","",'DF raw data'!B158) -> -2.06572e-05 | C158: =IF('DF raw data'!C158="","",'DF raw data'!C158) -> -9.15385e-06 | D158: =IF('DF raw data'!D158="","",'DF raw data'!D158) -> -2.78481e-05 | F158: -4.152981692e-07 | G158: 3.10000693e-05 | H158: 7.201610494e-06 | J158: -6.241596735e-06 | K158: -0.0009443716148 | L158: 0.001333843996 | M158: 0.02848790755 | N158: 2.53735759e-05
A159: =IF('DF raw data'!A159="","",'DF raw data'!A159) -> -254 | B159: =IF('DF raw data'!B159="","",'DF raw data'!B159) -> -2.04611e-05 | C159: =IF('DF raw data'!C159="","",'DF raw data'!C159) -> -4.92012e-06 | D159: =IF('DF raw data'!D159="","",'DF raw data'!D159) -> -3.37173e-05 | F159: -2.179627392e-07 | G159: 3.526047179e-05 | H159: 1.295434534e-06 | J159: -6.350578105e-06 | K159: -0.0009475469039 | L159: 0.001351474232 | M159: 0.02916364467 | N159: 2.628683737e-05
A160: =IF('DF raw data'!A160="","",'DF raw data'!A160) -> -253.5 | B160: =IF('DF raw data'!B160="","",'DF raw data'!B160) -> -2.18692e-05 | C160: =IF('DF raw data'!C160="","",'DF raw data'!C160) -> -1.64351e-05 | D160: =IF('DF raw data'!D160="","",'DF raw data'!D160) -> -3.74446e-05 | F160: -1.634933769e-06 | G160: 2.367294742e-05 | H160: -2.455347456e-06 | J160: -7.168044989e-06 | K160: -0.0009511309264 | L160: 0.001363310706 | M160: 0.02984530002 | N160: 2.72161711e-05
A161: =IF('DF raw data'!A161="","",'DF raw data'!A161) -> -253 | B161: =IF('DF raw data'!B161="","",'DF raw data'!B161) -> -2.54555e-05 | C161: =IF('DF raw data'!C161="","",'DF raw data'!C161) -> -1.123e-05 | D161: =IF('DF raw data'!D161="","",'DF raw data'!D161) -> -4.34261e-05 | F161: -5.243827459e-06 | G161: 2.891083955e-05 | H161: -8.474530906e-06 | J161: -9.789958719e-06 | K161: -0.0009560259057 | L161: 0.001377766126 | M161: 0.03053418308 | N161: 2.816533877e-05
A162: =IF('DF raw data'!A162="","",'DF raw data'!A162) -> -252.5 | B162: =IF('DF raw data'!B162="","",'DF raw data'!B162) -> -2.07181e-05 | C162: =IF('DF raw data'!C162="","",'DF raw data'!C162) -> -1.07889e-05 | D162: =IF('DF raw data'!D162="","",'DF raw data'!D162) -> -3.2977e-05 | F162: -4.765818392e-07 | G162: 2.935471848e-05 | H162: 2.040398424e-06 | J162: -1.002824964e-05 | K162: -0.0009610400305 | L162: 0.001392443485 | M162: 0.03123040483 | N162: 2.913483848e-05
A163: =IF('DF raw data'!A163="","",'DF raw data'!A163) -> -252 | B163: =IF('DF raw data'!B163="","",'DF raw data'!B163) -> -1.96879e-05 | C163: =IF('DF raw data'!C163="","",'DF raw data'!C163) -> -6.19142e-06 | D163: =IF('DF raw data'!D163="","",'DF raw data'!D163) -> -3.93054e-05 | F163: 5.601084208e-07 | G163: 3.39811626e-05 | H163: -4.327870496e-06 | J163: -9.748195428e-06 | K163: -0.0009659141283 | L163: 0.001409434066 | M163: 0.03193512186 | N163: 3.012813818e-05
A164: =IF('DF raw data'!A164="","",'DF raw data'!A164) -> -251.5 | B164: =IF('DF raw data'!B164="","",'DF raw data'!B164) -> -1.25669e-05 | C164: =IF('DF raw data'!C164="","",'DF raw data'!C164) -> -8.43428e-06 | D164: =IF('DF raw data'!D164="","",'DF raw data'!D164) -> -4.63857e-05 | F164: 7.725970721e-06 | G164: 3.172417259e-05 | H164: -1.145277639e-05 | J164: -5.885210068e-06 | K164: -0.0009688567333 | L164: 0.001425296152 | M164: 0.03264776994 | N164: 3.114389006e-05
A165: =IF('DF raw data'!A165="","",'DF raw data'!A165) -> -251 | B165: =IF('DF raw data'!B165="","",'DF raw data'!B165) -> -2.12842e-05 | C165: =IF('DF raw data'!C165="","",'DF raw data'!C165) -> -8.89794e-06 | D165: =IF('DF raw data'!D165="","",'DF raw data'!D165) -> -4.95725e-05 | F165: -1.046248269e-06 | G165: 3.125759153e-05 | H165: -1.465965323e-05 | J165: -6.408334202e-06 | K165: -0.0009720609004 | L165: 0.001440924948 | M165: 0.03336823241 | N165: 3.218204295e-05
A166: =IF('DF raw data'!A166="","",'DF raw data'!A166) -> -250.5 | B166: =IF('DF raw data'!B166="","",'DF raw data'!B166) -> -1.64185e-05 | C166: =IF('DF raw data'!C166="","",'DF raw data'!C166) -> -1.95264e-05 | D166: =IF('DF raw data'!D166="","",'DF raw data'!D166) -> -3.92105e-05 | F166: 3.850105641e-06 | G166: 2.056217223e-05 | H166: -4.232372626e-06 | J166: -4.483281382e-06 | K166: -0.0009743025411 | L166: 0.001451206034 | M166: 0.03409383543 | N166: 3.323505248e-05
A167: =IF('DF raw data'!A167="","",'DF raw data'!A167) -> -250 | B167: =IF('DF raw data'!B167="","",'DF raw data'!B167) -> -1.57671e-05 | C167: =IF('DF raw data'!C167="","",'DF raw data'!C167) -> -1.8898e-05 | D167: =IF('DF raw data'!D167="","",'DF raw data'!D167) -> -5.49399e-05 | F167: 4.505609461e-06 | G167: 2.119453115e-05 | H167: -2.006086785e-05 | J167: -2.230476651e-06 | K167: -0.0009754177794 | L167: 0.0014618033 | M167: 0.03482473708 | N167: 3.430348941e-05
A168: =IF('DF raw data'!A168="","",'DF raw data'!A168) -> -249.5 | B168: =IF('DF raw data'!B168="","",'DF raw data'!B168) -> -2.04525e-05 | C168: =IF('DF raw data'!C168="","",'DF raw data'!C168) -> -8.97819e-06 | D168: =IF('DF raw data'!D168="","",'DF raw data'!D168) -> -4.70207e-05 | F168: -2.093085592e-07 | G168: 3.117683595e-05 | H168: -1.209177689e-05 | J168: -2.335130931e-06 | K168: -0.0009765853449 | L168: 0.001477391718 | M168: 0.03556343294 | N168: 3.539483528e-05
A169: =IF('DF raw data'!A169="","",'DF raw data'!A169) -> -249 | B169: =IF('DF raw data'!B169="","",'DF raw data'!B169) -> -2.14751e-05 | C169: =IF('DF raw data'!C169="","",'DF raw data'!C169) -> -2.70932e-07 | D169: =IF('DF raw data'!D169="","",'DF raw data'!D169) -> -5.19599e-05 | F169: -1.238350939e-06 | G169: 3.993894968e-05 | H169: -1.706209385e-05 | J169: -2.954306401e-06 | K169: -0.0009780624981 | L169: 0.001497361193 | M169: 0.03631211353 | N169: 3.651588491e-05
A170: =IF('DF raw data'!A170="","",'DF raw data'!A170) -> -248.5 | B170: =IF('DF raw data'!B170="","",'DF raw data'!B170) -> -1.19276e-05 | C170: =IF('DF raw data'!C170="","",'DF raw data'!C170) -> -8.6678e-06 | D170: =IF('DF raw data'!D170="","",'DF raw data'!D170) -> -4.35387e-05 | F170: 8.369298311e-06 | G170: 3.148918141e-05 | H170: -8.587840286e-06 | J170: 1.230342755e-06 | K170: -0.0009774473267 | L170: 0.001513105783 | M170: 0.03706866642 | N170: 3.766063023e-05
A171: =IF('DF raw data'!A171="","",'DF raw data'!A171) -> -248 | B171: =IF('DF raw data'!B171="","",'DF raw data'!B171) -> -1.74398e-05 | C171: =IF('DF raw data'!C171="","",'DF raw data'!C171) -> -1.00508e-05 | D171: =IF('DF raw data'!D171="","",'DF raw data'!D171) -> -4.59738e-05 | F171: 2.822371451e-06 | G171: 3.009746851e-05 | H171: -1.103828142e-05 | J171: 2.64152848e-06 | K171: -0.0009761265625 | L171: 0.001528154518 | M171: 0.03783274368 | N171: 3.882826183e-05
A172: =IF('DF raw data'!A172="","",'DF raw data'!A172) -> -247.5 | B172: =IF('DF raw data'!B172="","",'DF raw data'!B172) -> -1.2442e-05 | C172: =IF('DF raw data'!C172="","",'DF raw data'!C172) -> -1.4521e-05 | D172: =IF('DF raw data'!D172="","",'DF raw data'!D172) -> -4.12958e-05 | F172: 7.851657591e-06 | G172: 2.559910625e-05 | H172: -6.330810016e-06 | J172: 6.567357276e-06 | K172: -0.0009728428838 | L172: 0.001540954071 | M172: 0.03860322072 | N172: 4.001555312e-05
A173: =IF('DF raw data'!A173="","",'DF raw data'!A173) -> -247 | B173: =IF('DF raw data'!B173="","",'DF raw data'!B173) -> -1.84652e-05 | C173: =IF('DF raw data'!C173="","",'DF raw data'!C173) -> -8.19655e-06 | D173: =IF('DF raw data'!D173="","",'DF raw data'!D173) -> -4.6615e-05 | F173: 1.790511431e-06 | G173: 3.196340029e-05 | H173: -1.168352098e-05 | J173: 7.462612991e-06 | K173: -0.0009691115773 | L173: 0.001556935771 | M173: 0.0393816886 | N173: 4.122760546e-05
A174: =IF('DF raw data'!A174="","",'DF raw data'!A174) -> -246.5 | B174: =IF('DF raw data'!B174="","",'DF raw data'!B174) -> -2.8149e-05 | C174: =IF('DF raw data'!C174="","",'DF raw data'!C174) -> -2.12843e-05 | D174: =IF('DF raw data'!D174="","",'DF raw data'!D174) -> -4.21568e-05 | F174: -7.954296509e-06 | G174: 1.879319746e-05 | H174: -7.197234316e-06 | J174: 3.485464736e-06 | K174: -0.000967368845 | L174: 0.00156633237 | M174: 0.04016485479 | N174: 4.245431008e-05
A175: =IF('DF raw data'!A175="","",'DF raw data'!A175) -> -246 | B175: =IF('DF raw data'!B175="","",'DF raw data'!B175) -> -2.32731e-05 | C175: =IF('DF raw data'!C175="","",'DF raw data'!C175) -> -1.77219e-05 | D175: =IF('DF raw data'!D175="","",'DF raw data'!D175) -> -4.75381e-05 | F175: -3.047678339e-06 | G175: 2.237804058e-05 | H175: -1.261243651e-05 | J175: 1.961625567e-06 | K175: -0.0009663880322 | L175: 0.00157752139 | M175: 0.04095361548 | N175: 4.369859887e-05
A176: =IF('DF raw data'!A176="","",'DF raw data'!A176) -> -245.5 | B176: =IF('DF raw data'!B176="","",'DF raw data'!B176) -> -2.1988e-05 | C176: =IF('DF raw data'!C176="","",'DF raw data'!C176) -> -1.2985e-05 | D176: =IF('DF raw data'!D176="","",'DF raw data'!D176) -> -5.18827e-05 | F176: -1.754482209e-06 | G176: 2.714478305e-05 | H176: -1.698440749e-05 | J176: 1.084384462e-06 | K176: -0.0009658458399 | L176: 0.001591093781 | M176: 0.04174916237 | N176: 4.496438917e-05
A177: =IF('DF raw data'!A177="","",'DF raw data'!A177) -> -245 | B177: =IF('DF raw data'!B177="","",'DF raw data'!B177) -> -3.23078e-05 | C177: =IF('DF raw data'!C177="","",'DF raw data'!C177) -> -1.43426e-05 | D177: =IF('DF raw data'!D177="","",'DF raw data'!D177) -> -5.53201e-05 | F177: -1.213929695e-05 | G177: 2.577863017e-05 | H177: -2.044346311e-05 | J177: -4.985264013e-06 | K177: -0.000968338472 | L177: 0.001603983096 | M177: 0.04255115392 | N177: 4.625078248e-05
A178: =IF('DF raw data'!A178="","",'DF raw data'!A178) -> -244.5 | B178: =IF('DF raw data'!B178="","",'DF raw data'!B178) -> -3.02041e-05 | C178: =IF('DF raw data'!C178="","",'DF raw data'!C178) -> -1.92703e-05 | D178: =IF('DF raw data'!D178="","",'DF raw data'!D178) -> -3.66559e-05 | F178: -1.002234364e-05 | G178: 2.081988566e-05 | H178: -1.661678646e-06 | J178: -9.996435832e-06 | K178: -0.0009733366899 | L178: 0.001614393039 | M178: 0.04335835044 | N178: 4.755396489e-05
A179: =IF('DF raw data'!A179="","",'DF raw data'!A179) -> -244 | B179: =IF('DF raw data'!B179="","",'DF raw data'!B179) -> -2.04519e-05 | C179: =IF('DF raw data'!C179="","",'DF raw data'!C179) -> -1.14499e-05 | D179: =IF('DF raw data'!D179="","",'DF raw data'!D179) -> -4.80107e-05 | F179: -2.087047792e-07 | G179: 2.868955418e-05 | H179: -1.308801389e-05 | J179: -1.010078822e-05 | K179: -0.000978387084 | L179: 0.001628737816 | M179: 0.04417271935 | N179: 4.888040934e-05
A180: =IF('DF raw data'!A180="","",'DF raw data'!A180) -> -243.5 | B180: =IF('DF raw data'!B180="","",'DF raw data'!B180) -> -2.4298e-05 | C180: =IF('DF raw data'!C180="","",'DF raw data'!C180) -> -2.0009e-05 | D180: =IF('DF raw data'!D180="","",'DF raw data'!D180) -> -4.88606e-05 | F180: -4.079035209e-06 | G180: 2.007653185e-05 | H180: -1.394326826e-05 | J180: -1.214030583e-05 | K180: -0.0009844572369 | L180: 0.001638776082 | M180: 0.04499210739 | N180: 5.022327656e-05
A181: =IF('DF raw data'!A181="","",'DF raw data'!A181) -> -243 | B181: =IF('DF raw data'!B181="","",'DF raw data'!B181) -> -2.02604e-05 | C181: =IF('DF raw data'!C181="","",'DF raw data'!C181) -> -7.56818e-06 | D181: =IF('DF raw data'!D181="","",'DF raw data'!D181) -> -4.64822e-05 | F181: -1.599832921e-08 | G181: 3.259572902e-05 | H181: -1.154988434e-05 | J181: -1.214830499e-05 | K181: -0.0009905313894 | L181: 0.001655073947 | M181: 0.04581964436 | N181: 5.159298523e-05
A182: =IF('DF raw data'!A182="","",'DF raw data'!A182) -> -242.5 | B182: =IF('DF raw data'!B182="","",'DF raw data'!B182) -> -1.74365e-05 | C182: =IF('DF raw data'!C182="","",'DF raw data'!C182) -> -5.82994e-06 | D182: =IF('DF raw data'!D182="","",'DF raw data'!D182) -> -5.11009e-05 | F182: 2.825692241e-06 | G182: 3.434491993e-05 | H182: -1.619768215e-05 | J182: -1.073545887e-05 | K182: -0.0009958991188 | L182: 0.001672246407 | M182: 0.04665576757 | N182: 5.299124688e-05
A183: =IF('DF raw data'!A183="","",'DF raw data'!A183) -> -242 | B183: =IF('DF raw data'!B183="","",'DF raw data'!B183) -> -1.77661e-05 | C183: =IF('DF raw data'!C183="","",'DF raw data'!C183) -> -9.96205e-06 | D183: =IF('DF raw data'!D183="","",'DF raw data'!D183) -> -3.70059e-05 | F183: 2.494015761e-06 | G183: 3.018677764e-05 | H183: -2.013883646e-06 | J183: -9.48845099e-06 | K183: -0.001000643344 | L183: 0.001687339796 | M183: 0.04749943747 | N183: 5.441484969e-05
A184: =IF('DF raw data'!A184="","",'DF raw data'!A184) -> -241.5 | B184: =IF('DF raw data'!B184="","",'DF raw data'!B184) -> -2.78336e-05 | C184: =IF('DF raw data'!C184="","",'DF raw data'!C184) -> -6.39588e-06 | D184: =IF('DF raw data'!D184="","",'DF raw data'!D184) -> -3.4436e-05 | F184: -7.636909489e-06 | G184: 3.377541451e-05 | H184: 5.722067239e-07 | J184: -1.330690573e-05 | K184: -0.001007296797 | L184: 0.001704227503 | M184: 0.04835155122 | N184: 5.586713392e-05
A185: =IF('DF raw data'!A185="","",'DF raw data'!A185) -> -241 | B185: =IF('DF raw data'!B185="","",'DF raw data'!B185) -> -2.89276e-05 | C185: =IF('DF raw data'!C185="","",'DF raw data'!C185) -> -4.8654e-06 | D185: =IF('DF raw data'!D185="","",'DF raw data'!D185) -> -2.78547e-05 | F185: -8.737801689e-06 | G185: 3.531553653e-05 | H185: 7.194968914e-06 | J185: -1.767580658e-05 | K185: -0.0010161347 | L185: 0.001721885271 | M185: 0.04921249385 | N185: 5.734973458e-05
A186: =IF('DF raw data'!A186="","",'DF raw data'!A186) -> -240.5 | B186: =IF('DF raw data'!B186="","",'DF raw data'!B186) -> -2.85382e-05 | C186: =IF('DF raw data'!C186="","",'DF raw data'!C186) -> -1.10107e-05 | D186: =IF('DF raw data'!D186="","",'DF raw data'!D186) -> -3.5156e-05 | F186: -8.345948469e-06 | G186: 2.913152114e-05 | H186: -1.523292761e-07 | J186: -2.184878081e-05 | K186: -0.001027059091 | L186: 0.001736451032 | M186: 0.05008071937 | N186: 5.885760436e-05
A187: =IF('DF raw data'!A187="","",'DF raw data'!A187) -> -240 | B187: =IF('DF raw data'!B187="","",'DF raw data'!B187) -> -2.44956e-05 | C187: =IF('DF raw data'!C187="","",'DF raw data'!C187) -> -1.17544e-05 | D187: =IF('DF raw data'!D187="","",'DF raw data'!D187) -> -4.05511e-05 | F187: -4.277880089e-06 | G187: 2.838313583e-05 | H187: -5.581418406e-06 | J187: -2.398772086e-05 | K187: -0.001039052951 | L187: 0.0017506426 | M187: 0.05095604067 | N187: 6.039026682e-05
A188: =IF('DF raw data'!A188="","",'DF raw data'!A188) -> -239.5 | B188: =IF('DF raw data'!B188="","",'DF raw data'!B188) -> -2.94939e-05 | C188: =IF('DF raw data'!C188="","",'DF raw data'!C188) -> -1.05242e-05 | D188: =IF('DF raw data'!D188="","",'DF raw data'!D188) -> -4.46147e-05 | F188: -9.307669379e-06 | G188: 2.962108609e-05 | H188: -9.670619086e-06 | J188: -2.864155555e-05 | K188: -0.001053373729 | L188: 0.001765453143 | M188: 0.05183876724 | N188: 6.194908939e-05
A189: =IF('DF raw data'!A189="","",'DF raw data'!A189) -> -239 | B189: =IF('DF raw data'!B189="","",'DF raw data'!B189) -> -2.20547e-05 | C189: =IF('DF raw data'!C189="","",'DF raw data'!C189) -> -9.57918e-06 | D189: =IF('DF raw data'!D189="","",'DF raw data'!D189) -> -4.77283e-05 | F189: -1.821602419e-06 | G189: 3.057205972e-05 | H189: -1.280383477e-05 | J189: -2.955235676e-05 | K189: -0.001068149907 | L189: 0.001780739173 | M189: 0.05272913683 | N189: 6.353504206e-05
A190: =IF('DF raw data'!A190="","",'DF raw data'!A190) -> -238.5 | B190: =IF('DF raw data'!B190="","",'DF raw data'!B190) -> -3.03914e-05 | C190: =IF('DF raw data'!C190="","",'DF raw data'!C190) -> -1.32641e-05 | D190: =IF('DF raw data'!D190="","",'DF raw data'!D190) -> -4.46601e-05 | F190: -1.021082363e-05 | G190: 2.686392472e-05 | H190: -9.716305106e-06 | J190: -3.465776857e-05 | K190: -0.001085478792 | L190: 0.001794171135 | M190: 0.05362622239 | N190: 6.514516767e-05
A191: =IF('DF raw data'!A191="","",'DF raw data'!A191) -> -238 | B191: =IF('DF raw data'!B191="","",'DF raw data'!B191) -> -3.13631e-05 | C191: =IF('DF raw data'!C191="","",'DF raw data'!C191) -> -1.69125e-05 | D191: =IF('DF raw data'!D191="","",'DF raw data'!D191) -> -2.89708e-05 | F191: -1.118864534e-05 | G191: 2.31925398e-05 | H191: 6.071837484e-06 | J191: -4.025209124e-05 | K191: -0.001105604837 | L191: 0.001805767405 | M191: 0.0545291061 | N191: 6.677637574e-05
A192: =IF('DF raw data'!A192="","",'DF raw data'!A192) -> -237.5 | B192: =IF('DF raw data'!B192="","",'DF raw data'!B192) -> -2.16761e-05 | C192: =IF('DF raw data'!C192="","",'DF raw data'!C192) -> -1.80195e-05 | D192: =IF('DF raw data'!D192="","",'DF raw data'!D192) -> -3.8431e-05 | F192: -1.440617239e-06 | G192: 2.20785657e-05 | H192: -3.447961776e-06 | J192: =F192*$G$3+J191 -> -4.097239986e-05 | K192: =J192*$G$3+K191 -> -0.001126091037 | L192: =G192*$G$3+L191 -> 0.001816806688 | M192: =L192*$G$3+M191 -> 0.05543750944 | N192: =(J192^2+L192^2)*$G$3+N191 -> 6.842760838e-05
A193: =IF('DF raw data'!A193="","",'DF raw data'!A193) -> -237 | B193: =IF('DF raw data'!B193="","",'DF raw data'!B193) -> -2.8153e-05 | C193: =IF('DF raw data'!C193="","",'DF raw data'!C193) -> -2.43432e-05 | D193: =IF('DF raw data'!D193="","",'DF raw data'!D193) -> -3.60362e-05 | F193: -7.958321709e-06 | G193: 1.571502639e-05 | H193: -1.038074536e-06 | J193: -4.495156072e-05 | K193: -0.001148566818 | L193: 0.001824664201 | M193: 0.05634984154 | N193: 7.009331843e-05
A194: =IF('DF raw data'!A194="","",'DF raw data'!A194) -> -236.5 | B194: =IF('DF raw data'!B194="","",'DF raw data'!B194) -> -2.2633e-05 | C194: =IF('DF raw data'!C194="","",'DF raw data'!C194) -> -1.76406e-05 | D194: =IF('DF raw data'!D194="","",'DF raw data'!D194) -> -4.58967e-05 | F194: -2.403545709e-06 | G194: 2.245985277e-05 | H194: -1.096069569e-05 | J194: -4.615333357e-05 | K194: -0.001171643484 | L194: 0.001835894127 | M194: 0.0572677886 | N194: 7.177963712e-05
A195: =IF('DF raw data'!A195="","",'DF raw data'!A195) -> -236 | B195: =IF('DF raw data'!B195="","",'DF raw data'!B195) -> -1.36536e-05 | C195: =IF('DF raw data'!C195="","",'DF raw data'!C195) -> -8.94352e-06 | D195: =IF('DF raw data'!D195="","",'DF raw data'!D195) -> -5.15192e-05 | F195: =(1-$G$1*($B$54-$G$2))*(B195-F$5) -> 6.632424511e-06 | G195: =(1-$G$1*($B$54-$G$2))*(C195-G$5) -> 3.121172437e-05 | H195: =(1-$G$1*($B$54-$G$2))*(D195-H$5) -> -1.661861744e-05 | J195: -4.283712132e-05 | K195: -0.001193062045 | L195: 0.001851499989 | M195: 0.0581935386 | N195: 7.349458073e-05
A196: =IF('DF raw data'!A196="","",'DF raw data'!A196) -> -235.5 | B196: =IF('DF raw data'!B196="","",'DF raw data'!B196) -> -2.80166e-05 | C196: =IF('DF raw data'!C196="","",'DF raw data'!C196) -> -1.90164e-05 | D196: =IF('DF raw data'!D196="","",'DF raw data'!D196) -> -4.8718e-05 | F196: -7.821062389e-06 | G196: 2.107538523e-05 | H196: -1.379976988e-05 | J196: -4.674765251e-05 | K196: -0.001216435871 | L196: 0.001862037682 | M196: 0.05912455744 | N196: 7.522926557e-05
A197: =IF('DF raw data'!A197="","",'DF raw data'!A197) -> -235 | B197: =IF('DF raw data'!B197="","",'DF raw data'!B197) -> -3.28908e-05 | C197: =IF('DF raw data'!C197="","",'DF raw data'!C197) -> -2.04012e-05 | D197: =IF('DF raw data'!D197="","",'DF raw data'!D197) -> -4.59127e-05 | F197: -1.272596985e-05 | G197: 1.968186099e-05 | H197: -1.097679649e-05 | J197: -5.311063743e-05 | K197: -0.00124299119 | L197: 0.001871878613 | M197: 0.06006049675 | N197: 7.698264071e-05
A198: =IF('DF raw data'!A198="","",'DF raw data'!A198) -> -234.5 | B198: =IF('DF raw data'!B198="","",'DF raw data'!B198) -> -1.88477e-05 | C198: =IF('DF raw data'!C198="","",'DF raw data'!C198) -> -8.64608e-06 | D198: =IF('DF raw data'!D198="","",'DF raw data'!D198) -> -4.99627e-05 | F198: 1.405601681e-06 | G198: 3.151103825e-05 | H198: -1.505231149e-05 | J198: -5.240783659e-05 | K198: -0.001269195108 | L198: 0.001887634132 | M198: 0.06100431381 | N198: 7.87655953e-05
A199: =IF('DF raw data'!A199="","",'DF raw data'!A199) -> -234 | B199: =IF('DF raw data'!B199="","",'DF raw data'!B199) -> -1.98683e-05 | C199: =IF('DF raw data'!C199="","",'DF raw data'!C199) -> -5.69826e-06 | D199: =IF('DF raw data'!D199="","",'DF raw data'!D199) -> -5.78838e-05 | F199: 3.785719008e-07 | G199: 3.447742951e-05 | H199: -2.302331442e-05 | J199: -5.221855064e-05 | K199: -0.001295304384 | L199: 0.001904872846 | M199: 0.06195675024 | N199: 8.058122897e-05
A200: =IF('DF raw data'!A200="","",'DF raw data'!A200) -> -233.5 | B200: =IF('DF raw data'!B200="","",'DF raw data'!B200) -> -3.01353e-05 | C200: =IF('DF raw data'!C200="","",'DF raw data'!C200) -> -7.64454e-06 | D200: =IF('DF raw data'!D200="","",'DF raw data'!D200) -> -4.41776e-05 | F200: -9.953110199e-06 | G200: 3.251888795e-05 | H200: -9.230765356e-06 | J200: -5.719510574e-05 | K200: -0.001323901937 | L200: 0.00192113229 | M200: 0.06291731638 | N200: 8.242823925e-05
... 1079 more rows

Sheet 15 mm
A1: =IF('DF raw data'!E1="","",'DF raw data'!E1) -> Number of header lines | B1: =IF('DF raw data'!F1="","",'DF raw data'!F1) -> 54 | C1: =IF('DF raw data'!C1="","",'DF raw data'!C1) ->  | D1: =IF('DF raw data'!D1="","",'DF raw data'!D1) ->  | F1: T_coeff | G1: -0.001 | H1: /degC | J1: IBy total | K1: =J1267*1000 -> -8.276517513 | L1: muTm | M1: =L1267*1000 -> -13.53398135 | R1: DF ref | S1: 1
A2: =IF('DF raw data'!E2="","",'DF raw data'!E2) -> Measured by | B2: =IF('DF raw data'!F2="","",'DF raw data'!F2) -> Danfysik | C2: =IF('DF raw data'!C2="","",'DF raw data'!C2) ->  | D2: =IF('DF raw data'!D2="","",'DF raw data'!D2) ->  | F2: Tcorr | G2: 20 | H2: degC | J2: JBy total | K2: =K1267 -> -8.090769815 | L2: muTm^2 | M2: =M1267 -> -1.071928433
A3: =IF('DF raw data'!E3="","",'DF raw data'!E3) -> Operator | B3: =IF('DF raw data'!F3="","",'DF raw data'!F3) -> PMHA | C3: =IF('DF raw data'!C3="","",'DF raw data'!C3) ->  | D3: =IF('DF raw data'!D3="","",'DF raw data'!D3) ->  | F3: Step | G3: =A68-A67 -> 0.5 | H3: mm | J3: PI total | K3: =N1267 -> 7238.189419 | L3: T^2mm^3
A4: =IF('DF raw data'!E4="","",'DF raw data'!E4) -> Data-time | B4: =IF('DF raw data'!F4="","",'DF raw data'!F4) -> 03-10-2024, 17:33:13 | C4: =IF('DF raw data'!C4="","",'DF raw data'!C4) ->  | D4: =IF('DF raw data'!D4="","",'DF raw data'!D4) -> 
A5: =IF('DF raw data'!E5="","",'DF raw data'!E5) -> Project | B5: =IF('DF raw data'!F5="","",'DF raw data'!F5) -> 504314 | C5: =IF('DF raw data'!C5="","",'DF raw data'!C5) ->  | D5: Bamb avr | F5: =(AVERAGE(B67:B107) + AVERAGE(B1227:B1267))/2 -> -2.112905768e-05 | G5: =(AVERAGE(C67:C107) + AVERAGE(C1227:C1267))/2 -> -5.012520585e-05 | H5: =(AVERAGE(D67:D107) + AVERAGE(D1227:D1267))/2 -> -3.649095122e-05
A6: =IF('DF raw data'!E6="","",'DF raw data'!E6) -> Magnet type | B6: =IF('DF raw data'!F6="","",'DF raw data'!F6) -> Dipole | C6: =IF('DF raw data'!C6="","",'DF raw data'!C6) -> 
A7: =IF('DF raw data'!E7="","",'DF raw data'!E7) -> Magnet nr. | B7: =IF('DF raw data'!F7="","",'DF raw data'!F7) -> 2410086 | C7: =IF('DF raw data'!C7="","",'DF raw data'!C7) -> 
A8: =IF('DF raw data'!E8="","",'DF raw data'!E8) -> Meas. number | B8: =IF('DF raw data'!F8="","",'DF raw data'!F8) -> 1046 | C8: =IF('DF raw data'!C8="","",'DF raw data'!C8) -> 
A9: =IF('DF raw data'!E9="","",'DF raw data'!E9) -> Add. info | B9: =IF('DF raw data'!F9="","",'DF raw data'!F9) ->  | C9: =IF('DF raw data'!C9="","",'DF raw data'!C9) ->  | D9: =IF('DF raw data'!D9="","",'DF raw data'!D9) -> 
A10: =IF('DF raw data'!E10="","",'DF raw data'!E10) -> Device | B10: =IF('DF raw data'!F10="","",'DF raw data'!F10) -> (HAL) HALL-PROBE | C10: =IF('DF raw data'!C10="","",'DF raw data'!C10) ->  | D10: =IF('DF raw data'!D10="","",'DF raw data'!D10) -> 
A11: =IF('DF raw data'!E11="","",'DF raw data'!E11) -> Goal | B11: =IF('DF raw data'!F11="","",'DF raw data'!F11) -> (AXI) AXis Integral (Line, EFB) | C11: =IF('DF raw data'!C11="","",'DF raw data'!C11) ->  | D11: =IF('DF raw data'!D11="","",'DF raw data'!D11) -> 
A12: =IF('DF raw data'!E12="","",'DF raw data'!E12) -> Power supply mode | B12: =IF('DF raw data'!F12="","",'DF raw data'!F12) -> (PM) Permanent Magnet (no MPS in use) | C12: =IF('DF raw data'!C12="","",'DF raw data'!C12) ->  | D12: =IF('DF raw data'!D12="","",'DF raw data'!D12) -> 
A13: =IF('DF raw data'!E13="","",'DF raw data'!E13) -> Data format | B13: =IF('DF raw data'!F13="","",'DF raw data'!F13) -> Raw data text file | C13: =IF('DF raw data'!C13="","",'DF raw data'!C13) ->  | D13: =IF('DF raw data'!D13="","",'DF raw data'!D13) -> 
A14: =IF('DF raw data'!E14="","",'DF raw data'!E14) -> Direction of the pos. x-axis | B14: =IF('DF raw data'!F14="","",'DF raw data'!F14) -> See test program | C14: =IF('DF raw data'!C14="","",'DF raw data'!C14) ->  | D14: =IF('DF raw data'!D14="","",'DF raw data'!D14) -> 
A15: =IF('DF raw data'!E15="","",'DF raw data'!E15) -> Direction of the pos. y-axis | B15: =IF('DF raw data'!F15="","",'DF raw data'!F15) -> Vertical up | C15: =IF('DF raw data'!C15="","",'DF raw data'!C15) ->  | D15: =IF('DF raw data'!D15="","",'DF raw data'!D15) -> 
A16: =IF('DF raw data'!E16="","",'DF raw data'!E16) -> Direction of the pos. z-axis | B16: =IF('DF raw data'!F16="","",'DF raw data'!F16) -> See test program | C16: =IF('DF raw data'!C16="","",'DF raw data'!C16) ->  | D16: =IF('DF raw data'!D16="","",'DF raw data'!D16) -> 
A17: =IF('DF raw data'!E17="","",'DF raw data'!E17) -> Mapper type | B17: =IF('DF raw data'!F17="","",'DF raw data'!F17) -> Precision Hall Mapper | C17: =IF('DF raw data'!C17="","",'DF raw data'!C17) ->  | D17: =IF('DF raw data'!D17="","",'DF raw data'!D17) -> 
A18: =IF('DF raw data'!E18="","",'DF raw data'!E18) -> Mapper Danfysik Reg. Number | B18: =IF('DF raw data'!F18="","",'DF raw data'!F18) -> 2033-D (mapper 1) | C18: =IF('DF raw data'!C18="","",'DF raw data'!C18) ->  | D18: =IF('DF raw data'!D18="","",'DF raw data'!D18) -> 
A19: =IF('DF raw data'!E19="","",'DF raw data'!E19) -> Measurement consept | B19: =IF('DF raw data'!F19="","",'DF raw data'!F19) -> Square line grid | C19: =IF('DF raw data'!C19="","",'DF raw data'!C19) ->  | D19: =IF('DF raw data'!D19="","",'DF raw data'!D19) -> 
A20: =IF('DF raw data'!E20="","",'DF raw data'!E20) -> Mode | B20: =IF('DF raw data'!F20="","",'DF raw data'!F20) -> On-the-fly measurement | C20: =IF('DF raw data'!C20="","",'DF raw data'!C20) ->  | D20: =IF('DF raw data'!D20="","",'DF raw data'!D20) -> 
A21: =IF('DF raw data'!E21="","",'DF raw data'!E21) ->  | B21: =IF('DF raw data'!F21="","",'DF raw data'!F21) ->  | C21: =IF('DF raw data'!C21="","",'DF raw data'!C21) ->  | D21: =IF('DF raw data'!D21="","",'DF raw data'!D21) -> 
A22: =IF('DF raw data'!E22="","",'DF raw data'!E22) -> Probe Name | B22: =IF('DF raw data'!F22="","",'DF raw data'!F22) -> ID12_By | C22: =IF('DF raw data'!C22="","",'DF raw data'!C22) ->  | D22: =IF('DF raw data'!D22="","",'DF raw data'!D22) -> 
A23: =IF('DF raw data'!E23="","",'DF raw data'!E23) -> Probe Type | B23: =IF('DF raw data'!F23="","",'DF raw data'!F23) -> DF_ID_3D_Bxyz | C23: =IF('DF raw data'!C23="","",'DF raw data'!C23) ->  | D23: =IF('DF raw data'!D23="","",'DF raw data'!D23) -> 
A24: =IF('DF raw data'!E24="","",'DF raw data'!E24) -> Probe Danfysik Reg. Number | B24: =IF('DF raw data'!F24="","",'DF raw data'!F24) -> 2277 | C24: =IF('DF raw data'!C24="","",'DF raw data'!C24) ->  | D24: =IF('DF raw data'!D24="","",'DF raw data'!D24) -> 
A25: =IF('DF raw data'!E25="","",'DF raw data'!E25) -> Probe Axis | B25: =IF('DF raw data'!F25="","",'DF raw data'!F25) -> By | C25: =IF('DF raw data'!C25="","",'DF raw data'!C25) ->  | D25: =IF('DF raw data'!D25="","",'DF raw data'!D25) -> 
A26: =IF('DF raw data'!E26="","",'DF raw data'!E26) -> Probe Current Supply | B26: =IF('DF raw data'!F26="","",'DF raw data'!F26) -> 1825-D | C26: =IF('DF raw data'!C26="","",'DF raw data'!C26) ->  | D26: =IF('DF raw data'!D26="","",'DF raw data'!D26) -> 
A27: =IF('DF raw data'!E27="","",'DF raw data'!E27) -> Probe Gain Correction | B27: =IF('DF raw data'!F27="","",'DF raw data'!F27) -> 0.99613 | C27: =IF('DF raw data'!C27="","",'DF raw data'!C27) ->  | D27: =IF('DF raw data'!D27="","",'DF raw data'!D27) -> 
A28: =IF('DF raw data'!E28="","",'DF raw data'!E28) -> Probe Offset Correction | B28: =IF('DF raw data'!F28="","",'DF raw data'!F28) -> 0.0027394 | C28: =IF('DF raw data'!C28="","",'DF raw data'!C28) ->  | D28: =IF('DF raw data'!D28="","",'DF raw data'!D28) -> 
A29: =IF('DF raw data'!E29="","",'DF raw data'!E29) -> DVM Number | B29: =IF('DF raw data'!F29="","",'DF raw data'!F29) -> 2 | C29: =IF('DF raw data'!C29="","",'DF raw data'!C29) ->  | D29: =IF('DF raw data'!D29="","",'DF raw data'!D29) -> 
A30: =IF('DF raw data'!E30="","",'DF raw data'!E30) -> DVM Type | B30: =IF('DF raw data'!F30="","",'DF raw data'!F30) -> K2701 | C30: =IF('DF raw data'!C30="","",'DF raw data'!C30) ->  | D30: =IF('DF raw data'!D30="","",'DF raw data'!D30) -> 
A31: =IF('DF raw data'!E31="","",'DF raw data'!E31) -> DVM Danfysik Reg. Number | B31: =IF('DF raw data'!F31="","",'DF raw data'!F31) -> 1743-D | C31: =IF('DF raw data'!C31="","",'DF raw data'!C31) ->  | D31: =IF('DF raw data'!D31="","",'DF raw data'!D31) -> 
A32: =IF('DF raw data'!E32="","",'DF raw data'!E32) -> Probe Name | B32: =IF('DF raw data'!F32="","",'DF raw data'!F32) -> ID12_Bx | C32: =IF('DF raw data'!C32="","",'DF raw data'!C32) ->  | D32: =IF('DF raw data'!D32="","",'DF raw data'!D32) -> 
A33: =IF('DF raw data'!E33="","",'DF raw data'!E33) -> Probe Type | B33: =IF('DF raw data'!F33="","",'DF raw data'!F33) -> DF_ID_3D_Bxyz | C33: =IF('DF raw data'!C33="","",'DF raw data'!C33) ->  | D33: =IF('DF raw data'!D33="","",'DF raw data'!D33) -> 
A34: =IF('DF raw data'!E34="","",'DF raw data'!E34) -> Probe Danfysik Reg. Number | B34: =IF('DF raw data'!F34="","",'DF raw data'!F34) -> 2277 | C34: =IF('DF raw data'!C34="","",'DF raw data'!C34) ->  | D34: =IF('DF raw data'!D34="","",'DF raw data'!D34) -> 
A35: =IF('DF raw data'!E35="","",'DF raw data'!E35) -> Probe Axis | B35: =IF('DF raw data'!F35="","",'DF raw data'!F35) -> Bx | C35: =IF('DF raw data'!C35="","",'DF raw data'!C35) ->  | D35: =IF('DF raw data'!D35="","",'DF raw data'!D35) -> 
A36: =IF('DF raw data'!E36="","",'DF raw data'!E36) -> Probe Current Supply | B36: =IF('DF raw data'!F36="","",'DF raw data'!F36) -> 1825-D | C36: =IF('DF raw data'!C36="","",'DF raw data'!C36) ->  | D36: =IF('DF raw data'!D36="","",'DF raw data'!D36) -> 
A37: =IF('DF raw data'!E37="","",'DF raw data'!E37) -> Probe Gain Correction | B37: =IF('DF raw data'!F37="","",'DF raw data'!F37) -> 1 | C37: =IF('DF raw data'!C37="","",'DF raw data'!C37) ->  | D37: =IF('DF raw data'!D37="","",'DF raw data'!D37) -> 
A38: =IF('DF raw data'!E38="","",'DF raw data'!E38) -> Probe Offset Correction | B38: =IF('DF raw data'!F38="","",'DF raw data'!F38) -> -0.17584 | C38: =IF('DF raw data'!C38="","",'DF raw data'!C38) ->  | D38: =IF('DF raw data'!D38="","",'DF raw data'!D38) -> 
A39: =IF('DF raw data'!E39="","",'DF raw data'!E39) -> DVM Number | B39: =IF('DF raw data'!F39="","",'DF raw data'!F39) -> 3 | C39: =IF('DF raw data'!C39="","",'DF raw data'!C39) ->  | D39: =IF('DF raw data'!D39="","",'DF raw data'!D39) -> 
A40: =IF('DF raw data'!E40="","",'DF raw data'!E40) -> DVM Type | B40: =IF('DF raw data'!F40="","",'DF raw data'!F40) -> K2701 | C40: =IF('DF raw data'!C40="","",'DF raw data'!C40) ->  | D40: =IF('DF raw data'!D40="","",'DF raw data'!D40) -> 
A41: =IF('DF raw data'!E41="","",'DF raw data'!E41) -> DVM Danfysik Reg. Number | B41: =IF('DF raw data'!F41="","",'DF raw data'!F41) -> 1744-D | C41: =IF('DF raw data'!C41="","",'DF raw data'!C41) ->  | D41: =IF('DF raw data'!D41="","",'DF raw data'!D41) -> 
A42: =IF('DF raw data'!E42="","",'DF raw data'!E42) -> Probe Name | B42: =IF('DF raw data'!F42="","",'DF raw data'!F42) -> ID12_Bz | C42: =IF('DF raw data'!C42="","",'DF raw data'!C42) ->  | D42: =IF('DF raw data'!D42="","",'DF raw data'!D42) -> 
A43: =IF('DF raw data'!E43="","",'DF raw data'!E43) -> Probe Type | B43: =IF('DF raw data'!F43="","",'DF raw data'!F43) -> DF_ID_3D_Bxyz | C43: =IF('DF raw data'!C43="","",'DF raw data'!C43) ->  | D43: =IF('DF raw data'!D43="","",'DF raw data'!D43) -> 
A44: =IF('DF raw data'!E44="","",'DF raw data'!E44) -> Probe Danfysik Reg. Number | B44: =IF('DF raw data'!F44="","",'DF raw data'!F44) -> 2277 | C44: =IF('DF raw data'!C44="","",'DF raw data'!C44) ->  | D44: =IF('DF raw data'!D44="","",'DF raw data'!D44) -> 
A45: =IF('DF raw data'!E45="","",'DF raw data'!E45) -> Probe Axis | B45: =IF('DF raw data'!F45="","",'DF raw data'!F45) -> Bz | C45: =IF('DF raw data'!C45="","",'DF raw data'!C45) ->  | D45: =IF('DF raw data'!D45="","",'DF raw data'!D45) -> 
A46: =IF('DF raw data'!E46="","",'DF raw data'!E46) -> Probe Current Supply | B46: =IF('DF raw data'!F46="","",'DF raw data'!F46) -> 1825-D | C46: =IF('DF raw data'!C46="","",'DF raw data'!C46) ->  | D46: =IF('DF raw data'!D46="","",'DF raw data'!D46) -> 
A47: =IF('DF raw data'!E47="","",'DF raw data'!E47) -> Probe Gain Correction | B47: =IF('DF raw data'!F47="","",'DF raw data'!F47) -> 1 | C47: =IF('DF raw data'!C47="","",'DF raw data'!C47) ->  | D47: =IF('DF raw data'!D47="","",'DF raw data'!D47) -> 
A48: =IF('DF raw data'!E48="","",'DF raw data'!E48) -> Probe Offset Correction | B48: =IF('DF raw data'!F48="","",'DF raw data'!F48) -> 0.0073634 | C48: =IF('DF raw data'!C48="","",'DF raw data'!C48) ->  | D48: =IF('DF raw data'!D48="","",'DF raw data'!D48) -> 
A49: =IF('DF raw data'!E49="","",'DF raw data'!E49) -> DVM Number | B49: =IF('DF raw data'!F49="","",'DF raw data'!F49) -> 8 | C49: =IF('DF raw data'!C49="","",'DF raw data'!C49) ->  | D49: =IF('DF raw data'!D49="","",'DF raw data'!D49) -> 
A50: =IF('DF raw data'!E50="","",'DF raw data'!E50) -> DVM Type | B50: =IF('DF raw data'!F50="","",'DF raw data'!F50) -> K2700 | C50: =IF('DF raw data'!C50="","",'DF raw data'!C50) ->  | D50: =IF('DF raw data'!D50="","",'DF raw data'!D50) -> 
A51: =IF('DF raw data'!E51="","",'DF raw data'!E51) -> DVM Danfysik Reg. Number | B51: =IF('DF raw data'!F51="","",'DF raw data'!F51) -> 1756-D | C51: =IF('DF raw data'!C51="","",'DF raw data'!C51) ->  | D51: =IF('DF raw data'!D51="","",'DF raw data'!D51) -> 
A52: =IF('DF raw data'!E52="","",'DF raw data'!E52) -> NTC voltage | B52: =IF('DF raw data'!F52="","",'DF raw data'!F52) -> 0.40178 | C52: =IF('DF raw data'!C52="","",'DF raw data'!C52) ->  | D52: =IF('DF raw data'!D52="","",'DF raw data'!D52) -> 
A53: =IF('DF raw data'!E53="","",'DF raw data'!E53) -> PS-Gap: | B53: =IF('DF raw data'!F53="","",'DF raw data'!F53) -> 15 | C53: =IF('DF raw data'!C53="","",'DF raw data'!C53) ->  | D53: =IF('DF raw data'!D53="","",'DF raw data'!D53) -> 
A54: =IF('DF raw data'!E54="","",'DF raw data'!E54) -> PS-Temperature: | B54: =IF('DF raw data'!F54="","",'DF raw data'!F54) -> 26.1 | C54: =IF('DF raw data'!C54="","",'DF raw data'!C54) ->  | D54: =IF('DF raw data'!D54="","",'DF raw data'!D54) -> 
A55: =IF('DF raw data'!E55="","",'DF raw data'!E55) -> PS-Encoder: | B55: =IF('DF raw data'!F55="","",'DF raw data'!F55) -> 24.8512 | C55: =IF('DF raw data'!C55="","",'DF raw data'!C55) ->  | D55: =IF('DF raw data'!D55="","",'DF raw data'!D55) -> 
A56: =IF('DF raw data'!E56="","",'DF raw data'!E56) ->  | B56: =IF('DF raw data'!F56="","",'DF raw data'!F56) -> 
A57: =IF('DF raw data'!E57="","",'DF raw data'!E57) -> Monitor-Index | B57: =IF('DF raw data'!F57="","",'DF raw data'!F57) -> [1,1,4]
A58: =IF('DF raw data'!E58="","",'DF raw data'!E58) ->  | B58: =IF('DF raw data'!F58="","",'DF raw data'!F58) -> 
A59: =IF('DF raw data'!E59="","",'DF raw data'!E59) -> Time [s] | B59: =IF('DF raw data'!F59="","",'DF raw data'!F59) -> Y [mm]
A60: =IF('DF raw data'!E60="","",'DF raw data'!E60) ->  | B60: =IF('DF raw data'!F60="","",'DF raw data'!F60) -> 
A61: =IF('DF raw data'!E61="","",'DF raw data'!E61) -> 207.6 | B61: =IF('DF raw data'!F61="","",'DF raw data'!F61) -> 31.45
A62: =IF('DF raw data'!E62="","",'DF raw data'!E62) ->  | B62: =IF('DF raw data'!F62="","",'DF raw data'!F62) -> 
A63: =IF('DF raw data'!E63="","",'DF raw data'!E63) -> Measurement-Index | B63: =IF('DF raw data'!F63="","",'DF raw data'!F63) -> [1,1,1201,2]
A64: =IF('DF raw data'!E64="","",'DF raw data'!E64) ->  | B64: =IF('DF raw data'!F64="","",'DF raw data'!F64) -> 
A65: =IF('DF raw data'!E65="","",'DF raw data'!E65) -> Z [mm] | B65: =IF('DF raw data'!F65="","",'DF raw data'!F65) -> By [T] | C65: =IF('DF raw data'!G65="","",'DF raw data'!G65) -> Bx [T] | D65: =IF('DF raw data'!H65="","",'DF raw data'!H65) -> Bz [T] | F65: By_corr | G65: Bx_corr | H65: Bz_corr | J65: Iy | K65: Jy | L65: Ix | M65: Jx | N65: PI
B66: =IF('DF raw data'!F66="","",'DF raw data'!F66) ->  | C66: =IF('DF raw data'!G66="","",'DF raw data'!G66) ->  | D66: =IF('DF raw data'!H66="","",'DF raw data'!H66) -> 
A67: =IF('DF raw data'!E67="","",'DF raw data'!E67) -> -300 | B67: =IF('DF raw data'!F67="","",'DF raw data'!F67) -> -3.00665e-05 | C67: =IF('DF raw data'!G67="","",'DF raw data'!G67) -> -2.02417e-05 | D67: =IF('DF raw data'!H67="","",'DF raw data'!H67) -> -3.25413e-05 | F67: =(1-$G$1*($B$54-$G$2))*(B67-F$5) -> -8.991960715e-06 | G67: =(1-$G$1*($B$54-$G$2))*(C67-G$5) -> 3.006579524e-05 | H67: =(1-$G$1*($B$54-$G$2))*(D67-H$5) -> 3.973744092e-06 | J67: =F67*$G$3+J66 -> -4.495980358e-06 | K67: =J67*$G$3+K66 -> -2.247990179e-06 | L67: =G67*$G$3+L66 -> 1.503289762e-05 | M67: =L67*$G$3+M66 -> 7.51644881e-06 | N67: =(J67^2+L67^2)*$G$3+N66 -> 1.231009251e-10
A68: =IF('DF raw data'!E68="","",'DF raw data'!E68) -> -299.5 | B68: =IF('DF raw data'!F68="","",'DF raw data'!F68) -> -2.3142e-05 | C68: =IF('DF raw data'!G68="","",'DF raw data'!G68) -> -1.55118e-05 | D68: =IF('DF raw data'!H68="","",'DF raw data'!H68) -> -3.29344e-05 | F68: -2.025221265e-06 | G68: 3.482454763e-05 | H68: 3.578246182e-06 | J68: =F68*$G$3+J67 -> -5.50859099e-06 | K68: =J68*$G$3+K67 -> -5.002285674e-06 | L68: =G68*$G$3+L67 -> 3.244517143e-05 | M68: =L68*$G$3+M67 -> 2.373903453e-05 | N68: =(J68^2+L68^2)*$G$3+N67 -> 6.646177872e-10
A69: =IF('DF raw data'!E69="","",'DF raw data'!E69) -> -299 | B69: =IF('DF raw data'!F69="","",'DF raw data'!F69) -> -2.45521e-05 | C69: =IF('DF raw data'!G69="","",'DF raw data'!G69) -> -7.38853e-06 | D69: =IF('DF raw data'!H69="","",'DF raw data'!H69) -> -3.35105e-05 | F69: -3.443922875e-06 | G69: 4.299736958e-05 | H69: 2.998631972e-06 | J69: -7.230552428e-06 | K69: -8.617561888e-06 | L69: 5.394385622e-05 | M69: 5.071096264e-05 | N69: 2.145728043e-09
A70: =IF('DF raw data'!E70="","",'DF raw data'!E70) -> -298.5 | B70: =IF('DF raw data'!F70="","",'DF raw data'!F70) -> -2.46802e-05 | C70: =IF('DF raw data'!G70="","",'DF raw data'!G70) -> -1.3019e-05 | D70: =IF('DF raw data'!H70="","",'DF raw data'!H70) -> -3.35998e-05 | F70: -3.572804285e-06 | G70: 3.733255371e-05 | H70: 2.908787242e-06 | J70: -9.01695457e-06 | K70: -1.312603917e-05 | L70: 7.261013308e-05 | M70: 8.701602918e-05 | N70: 4.822496491e-09
A71: =IF('DF raw data'!E71="","",'DF raw data'!E71) -> -298 | B71: =IF('DF raw data'!F71="","",'DF raw data'!F71) -> -2.51932e-05 | C71: =IF('DF raw data'!G71="","",'DF raw data'!G71) -> -9.87321e-06 | D71: =IF('DF raw data'!H71="","",'DF raw data'!H71) -> -3.34595e-05 | F71: -4.088933585e-06 | G71: 4.049753303e-05 | H71: 3.049943072e-06 | J71: -1.106142136e-05 | K71: -1.865674985e-05 | L71: 9.285889959e-05 | M71: 0.000133445479 | N71: 9.195061629e-09
A72: =IF('DF raw data'!E72="","",'DF raw data'!E72) -> -297.5 | B72: =IF('DF raw data'!F72="","",'DF raw data'!F72) -> -1.92948e-05 | C72: =IF('DF raw data'!G72="","",'DF raw data'!G72) -> -6.81335e-06 | D72: =IF('DF raw data'!H72="","",'DF raw data'!H72) -> -3.3754e-05 | F72: 1.845446655e-06 | G72: 4.357605817e-05 | H72: 2.753646622e-06 | J72: -1.013869804e-05 | K72: -2.372609887e-05 | L72: 0.0001146469287 | M72: 0.0001907689433 | N72: 1.581841736e-08
A73: =IF('DF raw data'!E73="","",'DF raw data'!E73) -> -297 | B73: =IF('DF raw data'!F73="","",'DF raw data'!F73) -> -2.16668e-05 | C73: =IF('DF raw data'!G73="","",'DF raw data'!G73) -> -4.55534e-06 | D73: =IF('DF raw data'!H73="","",'DF raw data'!H73) -> -3.41148e-05 | F73: -5.410225452e-07 | G73: 4.584784204e-05 | H73: 2.390645742e-06 | J73: -1.040920931e-05 | K73: -2.893070353e-05 | L73: 0.0001375708497 | M73: 0.0002595543682 | N73: 2.533546252e-08
A74: =IF('DF raw data'!E74="","",'DF raw data'!E74) -> -296.5 | B74: =IF('DF raw data'!F74="","",'DF raw data'!F74) -> -2.72448e-05 | C74: =IF('DF raw data'!G74="","",'DF raw data'!G74) -> -1.14716e-05 | D74: =IF('DF raw data'!H74="","",'DF raw data'!H74) -> -3.37349e-05 | F74: -6.153048345e-06 | G74: 3.888939285e-05 | H74: 2.772863132e-06 | J74: -1.348573348e-05 | K74: -3.567357027e-05 | L74: 0.0001570155461 | M74: 0.0003380621412 | N74: 3.775333588e-08
A75: =IF('DF raw data'!E75="","",'DF raw data'!E75) -> -296 | B75: =IF('DF raw data'!F75="","",'DF raw data'!F75) -> -2.50012e-05 | C75: =IF('DF raw data'!G75="","",'DF raw data'!G75) -> -1.46484e-05 | D75: =IF('DF raw data'!H75="","",'DF raw data'!H75) -> -3.31911e-05 | F75: -3.895762385e-06 | G75: 3.569321437e-05 | H75: 3.319980312e-06 | J75: -1.543361467e-05 | K75: -4.33903776e-05 | L75: 0.0001748621533 | M75: 0.0004254932179 | N75: 5.316082044e-08
A76: =IF('DF raw data'!E76="","",'DF raw data'!E76) -> -295.5 | B76: =IF('DF raw data'!F76="","",'DF raw data'!F76) -> -1.5384e-05 | C76: =IF('DF raw data'!G76="","",'DF raw data'!G76) -> -1.53243e-05 | D76: =IF('DF raw data'!H76="","",'DF raw data'!H76) -> -3.36165e-05 | F76: 5.780102535e-06 | G76: 3.501319138e-05 | H76: 2.891985372e-06 | J76: -1.254356341e-05 | K76: -4.966215931e-05 | L76: 0.000192368749 | M76: 0.0005216775924 | N76: 7.174235873e-08
A77: =IF('DF raw data'!E77="","",'DF raw data'!E77) -> -295 | B77: =IF('DF raw data'!F77="","",'DF raw data'!F77) -> -1.78199e-05 | C77: =IF('DF raw data'!G77="","",'DF raw data'!G77) -> -1.76227e-05 | D77: =IF('DF raw data'!H77="","",'DF raw data'!H77) -> -3.40578e-05 | F77: 3.329343545e-06 | G77: 3.270077114e-05 | H77: 2.447993442e-06 | J77: -1.087889163e-05 | K77: -5.510160512e-05 | L77: 0.0002087191346 | M77: 0.0006260371597 | N77: 9.358337244e-08
A78: =IF('DF raw data'!E78="","",'DF raw data'!E78) -> -294.5 | B78: =IF('DF raw data'!F78="","",'DF raw data'!F78) -> -3.2887e-05 | C78: =IF('DF raw data'!G78="","",'DF raw data'!G78) -> -1.92291e-05 | D78: =IF('DF raw data'!H78="","",'DF raw data'!H78) -> -3.31059e-05 | F78: -1.182966577e-05 | G78: 3.10845721e-05 | H78: 3.405700032e-06 | J78: -1.679372452e-05 | K78: -6.349846738e-05 | L78: 0.0002242614206 | M78: 0.00073816787 | N78: 1.188709794e-07
A79: =IF('DF raw data'!E79="","",'DF raw data'!E79) -> -294 | B79: =IF('DF raw data'!F79="","",'DF raw data'!F79) -> -1.32053e-05 | C79: =IF('DF raw data'!G79="","",'DF raw data'!G79) -> -1.50341e-05 | D79: =IF('DF raw data'!H79="","",'DF raw data'!H79) -> -3.20301e-05 | F79: 7.972092605e-06 | G79: 3.53051616e-05 | H79: 4.488062412e-06 | J79: -1.280767821e-05 | K79: -6.990230649e-05 | L79: 0.0002419140014 | M79: 0.0008591248707 | N79: 1.482141898e-07
A80: =IF('DF raw data'!E80="","",'DF raw data'!E80) -> -293.5 | B80: =IF('DF raw data'!F80="","",'DF raw data'!F80) -> -9.7429e-06 | C80: =IF('DF raw data'!G80="","",'DF raw data'!G80) -> -5.84708e-06 | D80: =IF('DF raw data'!H80="","",'DF raw data'!H80) -> -3.22796e-05 | F80: 1.145561324e-05 | G80: 4.454822242e-05 | H80: 4.237040462e-06 | J80: -7.079871591e-06 | K80: -7.344224228e-05 | L80: 0.0002641881126 | M80: 0.000991218927 | N80: 1.831369315e-07
A81: =IF('DF raw data'!E81="","",'DF raw data'!E81) -> -293 | B81: =IF('DF raw data'!F81="","",'DF raw data'!F81) -> -3.52326e-06 | C81: =IF('DF raw data'!G81="","",'DF raw data'!G81) -> -8.68007e-06 | D81: =IF('DF raw data'!H81="","",'DF raw data'!H81) -> -3.34871e-05 | F81: 1.771319305e-05 | G81: 4.169795118e-05 | H81: 3.022174712e-06 | J81: 1.776724933e-06 | K81: -7.255387982e-05 | L81: 0.0002850370882 | M81: 0.001133737471 | N81: 2.237615807e-07
A82: =IF('DF raw data'!E82="","",'DF raw data'!E82) -> -292.5 | B82: =IF('DF raw data'!F82="","",'DF raw data'!F82) -> -8.13879e-06 | C82: =IF('DF raw data'!G82="","",'DF raw data'!G82) -> -1.40178e-05 | D82: =IF('DF raw data'!H82="","",'DF raw data'!H82) -> -3.45556e-05 | F82: 1.306950832e-05 | G82: 3.632766103e-05 | H82: 1.947156862e-06 | J82: 8.311479091e-06 | K82: -6.839814027e-05 | L82: 0.0003032009187 | M82: 0.00128533793 | N82: 2.697615196e-07
A83: =IF('DF raw data'!E83="","",'DF raw data'!E83) -> -292 | B83: =IF('DF raw data'!F83="","",'DF raw data'!F83) -> -8.77955e-06 | C83: =IF('DF raw data'!G83="","",'DF raw data'!G83) -> -1.74724e-05 | D83: =IF('DF raw data'!H83="","",'DF raw data'!H83) -> -3.50896e-05 | F83: 1.242483968e-05 | G83: 3.285198797e-05 | H83: 1.409899462e-06 | J83: 1.452389893e-05 | K83: -6.113619081e-05 | L83: 0.0003196269127 | M83: 0.001445151387 | N83: 3.209476731e-07
A84: =IF('DF raw data'!E84="","",'DF raw data'!E84) -> -291.5 | B84: =IF('DF raw data'!F84="","",'DF raw data'!F84) -> -2.02529e-05 | C84: =IF('DF raw data'!G84="","",'DF raw data'!G84) -> -2.54721e-05 | D84: =IF('DF raw data'!H84="","",'DF raw data'!H84) -> -3.90267e-05 | F84: 8.815022448e-07 | G84: 2.48034898e-05 | H84: -2.551216848e-06 | J84: 1.496465005e-05 | K84: -5.365386578e-05 | L84: 0.0003320286576 | M84: 0.001611165716 | N84: 3.761811582e-07
A85: =IF('DF raw data'!E85="","",'DF raw data'!E85) -> -291 | B85: =IF('DF raw data'!F85="","",'DF raw data'!F85) -> -1.41555e-05 | C85: =IF('DF raw data'!G85="","",'DF raw data'!G85) -> -2.26035e-05 | D85: =IF('DF raw data'!H85="","",'DF raw data'!H85) -> -4.94203e-05 | F85: 7.016096385e-06 | G85: 2.768958826e-05 | H85: -1.300821781e-05 | J85: 1.847269825e-05 | K85: -4.441751666e-05 | L85: 0.0003458734517 | M85: 0.001784102441 | N85: 4.361660008e-07
A86: =IF('DF raw data'!E86="","",'DF raw data'!E86) -> -290.5 | B86: =IF('DF raw data'!F86="","",'DF raw data'!F86) -> -2.91659e-05 | C86: =IF('DF raw data'!G86="","",'DF raw data'!G86) -> -2.39578e-05 | D86: =IF('DF raw data'!H86="","",'DF raw data'!H86) -> -3.71139e-05 | F86: -8.085867055e-06 | G86: 2.632702703e-05 | H86: -6.26748768e-07 | J86: 1.442976472e-05 | K86: -3.72026343e-05 | L86: 0.0003590369653 | M86: 0.001963620924 | N86: 5.007238811e-07
A87: =IF('DF raw data'!E87="","",'DF raw data'!E87) -> -290 | B87: =IF('DF raw data'!F87="","",'DF raw data'!F87) -> -3.38861e-06 | C87: =IF('DF raw data'!G87="","",'DF raw data'!G87) -> -2.52082e-05 | D87: =IF('DF raw data'!H87="","",'DF raw data'!H87) -> -4.34016e-05 | F87: 1.784866441e-05 | G87: 2.506899959e-05 | H87: -6.952803738e-06 | J87: 2.335409692e-05 | K87: -2.552558584e-05 | L87: 0.0003715714651 | M87: 0.002149406657 | N87: 5.700292648e-07
A88: =IF('DF raw data'!E88="","",'DF raw data'!E88) -> -289.5 | B88: =IF('DF raw data'!F88="","",'DF raw data'!F88) -> -1.90297e-05 | C88: =IF('DF raw data'!G88="","",'DF raw data'!G88) -> -2.38683e-05 | D88: =IF('DF raw data'!H88="","",'DF raw data'!H88) -> -4.70715e-05 | F88: 2.112163765e-06 | G88: 2.641707298e-05 | H88: -1.064509013e-05 | J88: 2.441017881e-05 | K88: -1.332049643e-05 | L88: 0.0003847800015 | M88: 0.002341796657 | N88: 6.44355018e-07
A89: =IF('DF raw data'!E89="","",'DF raw data'!E89) -> -289 | B89: =IF('DF raw data'!F89="","",'DF raw data'!F89) -> -2.29504e-05 | C89: =IF('DF raw data'!G89="","",'DF raw data'!G89) -> -2.43544e-05 | D89: =IF('DF raw data'!H89="","",'DF raw data'!H89) -> -3.19178e-05 | F89: -1.832452505e-06 | G89: 2.592800777e-05 | H89: 4.601047442e-06 | J89: 2.349395255e-05 | K89: -1.573520155e-06 | L89: 0.0003977440054 | M89: 0.00254066866 | N89: 7.237311478e-07
A90: =IF('DF raw data'!E90="","",'DF raw data'!E90) -> -288.5 | B90: =IF('DF raw data'!F90="","",'DF raw data'!F90) -> -2.32681e-05 | C90: =IF('DF raw data'!G90="","",'DF raw data'!G90) -> -2.42147e-05 | D90: =IF('DF raw data'!H90="","",'DF raw data'!H90) -> -3.61345e-05 | F90: -2.152090475e-06 | G90: 2.606855994e-05 | H90: 3.58625572e-07 | J90: 2.241790732e-05 | K90: 9.635433503e-06 | L90: 0.0004107782854 | M90: 0.002746057803 | N90: 8.08351829e-07
A91: =IF('DF raw data'!E91="","",'DF raw data'!E91) -> -288 | B91: =IF('DF raw data'!F91="","",'DF raw data'!F91) -> -7.49652e-06 | C91: =IF('DF raw data'!G91="","",'DF raw data'!G91) -> -1.81901e-05 | D91: =IF('DF raw data'!H91="","",'DF raw data'!H91) -> -3.63497e-05 | F91: 1.371569616e-05 | G91: 3.212991e-05 | H91: 1.42112852e-07 | J91: 2.92757554e-05 | K91: 2.42733112e-05 | L91: 0.0004268432404 | M91: 0.002959479423 | N91: 8.998779399e-07
A92: =IF('DF raw data'!E92="","",'DF raw data'!E92) -> -287.5 | B92: =IF('DF raw data'!F92="","",'DF raw data'!F92) -> -2.43595e-05 | C92: =IF('DF raw data'!G92="","",'DF raw data'!G92) -> -2.26098e-05 | D92: =IF('DF raw data'!H92="","",'DF raw data'!H92) -> -3.40351e-05 | F92: -3.250148015e-06 | G92: 2.768324983e-05 | H92: 2.470831912e-06 | J92: 2.765068139e-05 | K92: 3.80986519e-05 | L92: 0.0004406848653 | M92: 0.003179821856 | N92: 9.973617952e-07
A93: =IF('DF raw data'!E93="","",'DF raw data'!E93) -> -287 | B93: =IF('DF raw data'!F93="","",'DF raw data'!F93) -> -2.63432e-05 | C93: =IF('DF raw data'!G93="","",'DF raw data'!G93) -> -2.24186e-05 | D93: =IF('DF raw data'!H93="","",'DF raw data'!H93) -> -3.99361e-05 | F93: -5.245948585e-06 | G93: 2.787561615e-05 | H93: -3.466164188e-06 | J93: 2.50277071e-05 | K93: 5.061250545e-05 | L93: 0.0004546226734 | M93: 0.003407133192 | N93: 1.101015876e-06
A94: =IF('DF raw data'!E94="","",'DF raw data'!E94) -> -286.5 | B94: =IF('DF raw data'!F94="","",'DF raw data'!F94) -> -1.8908e-05 | C94: =IF('DF raw data'!G94="","",'DF raw data'!G94) -> -1.52829e-05 | D94: =IF('DF raw data'!H94="","",'DF raw data'!H94) -> -3.70023e-05 | F94: 2.234606135e-06 | G94: 3.505484392e-05 | H94: -5.14468008e-07 | J94: 2.614501017e-05 | K94: 6.368501053e-05 | L94: 0.0004721500953 | M94: 0.00364320824 | N94: 1.212820513e-06
A95: =IF('DF raw data'!E95="","",'DF raw data'!E95) -> -286 | B95: =IF('DF raw data'!F95="","",'DF raw data'!F95) -> -1.25571e-05 | C95: =IF('DF raw data'!G95="","",'DF raw data'!G95) -> -1.57998e-05 | D95: =IF('DF raw data'!H95="","",'DF raw data'!H95) -> -4.30013e-05 | F95: 8.624246625e-06 | G95: 3.453479083e-05 | H95: -6.550061908e-06 | J95: 3.045713348e-05 | K95: 7.891357727e-05 | L95: 0.0004894174908 | M95: 0.003887916985 | N95: 1.333049072e-06
A96: =IF('DF raw data'!E96="","",'DF raw data'!E96) -> -285.5 | B96: =IF('DF raw data'!F96="","",'DF raw data'!F96) -> -1.08899e-05 | C96: =IF('DF raw data'!G96="","",'DF raw data'!G96) -> -3.22109e-05 | D96: =IF('DF raw data'!H96="","",'DF raw data'!H96) -> -4.3398e-05 | F96: 1.030161654e-05 | G96: 1.802358312e-05 | H96: -6.949181778e-06 | J96: 3.560794175e-05 | K96: 9.671754814e-05 | L96: 0.0004984292823 | M96: 0.004137131627 | N96: 1.457898909e-06
A97: =IF('DF raw data'!E97="","",'DF raw data'!E97) -> -285 | B97: =IF('DF raw data'!F97="","",'DF raw data'!F97) -> -1.94811e-05 | C97: =IF('DF raw data'!G97="","",'DF raw data'!G97) -> -2.38481e-05 | D97: =IF('DF raw data'!H97="","",'DF raw data'!H97) -> -4.28005e-05 | F97: 1.658010225e-06 | G97: 2.64373962e-05 | H97: -6.348037028e-06 | J97: 3.643694686e-05 | K97: 0.0001149360216 | L97: 0.0005116479804 | M97: 0.004392955617 | N97: 1.589454563e-06
A98: =IF('DF raw data'!E98="","",'DF raw data'!E98) -> -284.5 | B98: =IF('DF raw data'!F98="","",'DF raw data'!F98) -> -2.32654e-05 | C98: =IF('DF raw data'!G98="","",'DF raw data'!G98) -> -1.68781e-05 | D98: =IF('DF raw data'!H98="","",'DF raw data'!H98) -> -4.02744e-05 | F98: -2.149374005e-06 | G98: 3.34499132e-05 | H98: -3.806527818e-06 | J98: 3.536225986e-05 | K98: 0.0001326171515 | L98: 0.000528372937 | M98: 0.004657142085 | N98: 1.729668788e-06
A99: =IF('DF raw data'!E99="","",'DF raw data'!E99) -> -284 | B99: =IF('DF raw data'!F99="","",'DF raw data'!F99) -> -1.60179e-05 | C99: =IF('DF raw data'!G99="","",'DF raw data'!G99) -> -2.36826e-05 | D99: =IF('DF raw data'!H99="","",'DF raw data'!H99) -> -4.47422e-05 | F99: 5.142335745e-06 | G99: 2.660390575e-05 | H99: -8.301581398e-06 | J99: 3.793342773e-05 | K99: 0.0001515838654 | L99: 0.0005416748899 | M99: 0.00492797953 | N99: 1.877094103e-06
A100: =IF('DF raw data'!E100="","",'DF raw data'!E100) -> -283.5 | B100: =IF('DF raw data'!F100="","",'DF raw data'!F100) -> -1.70417e-05 | C100: =IF('DF raw data'!G100="","",'DF raw data'!G100) -> -2.51234e-05 | D100: =IF('DF raw data'!H100="","",'DF raw data'!H100) -> -4.77303e-05 | F100: 4.112290565e-06 | G100: 2.515431687e-05 | H100: -1.130790881e-05 | J100: 3.998957301e-05 | K100: 0.0001715786519 | L100: 0.0005542520483 | M100: 0.005205105554 | N100: 2.031491353e-06
A101: =IF('DF raw data'!E101="","",'DF raw data'!E101) -> -283 | B101: =IF('DF raw data'!F101="","",'DF raw data'!F101) -> -3.22405e-05 | C101: =IF('DF raw data'!G101="","",'DF raw data'!G101) -> -2.37095e-05 | D101: =IF('DF raw data'!H101="","",'DF raw data'!H101) -> -4.13034e-05 | F101: -1.117922212e-05 | G101: 2.657684166e-05 | H101: -4.841804718e-06 | J101: 3.439996196e-05 | K101: 0.0001887786329 | L101: 0.0005675404692 | M101: 0.005488875789 | N101: 2.193134123e-06
A102: =IF('DF raw data'!E102="","",'DF raw data'!E102) -> -282.5 | B102: =IF('DF raw data'!F102="","",'DF raw data'!F102) -> -1.44157e-05 | C102: =IF('DF raw data'!G102="","",'DF raw data'!G102) -> -2.10762e-05 | D102: =IF('DF raw data'!H102="","",'DF raw data'!H102) -> -4.37147e-05 | F102: 6.754309165e-06 | G102: 2.922620479e-05 | H102: -7.267813648e-06 | J102: 3.777711654e-05 | K102: 0.0002076671911 | L102: 0.0005821535716 | M102: 0.005779952575 | N102: 2.363299069e-06
A103: =IF('DF raw data'!E103="","",'DF raw data'!E103) -> -282 | B103: =IF('DF raw data'!F103="","",'DF raw data'!F103) -> -1.92226e-05 | C103: =IF('DF raw data'!G103="","",'DF raw data'!G103) -> -2.13092e-05 | D103: =IF('DF raw data'!H103="","",'DF raw data'!H103) -> -4.60872e-05 | F103: 1.918087075e-06 | G103: 2.899178349e-05 | H103: -9.654785898e-06 | J103: 3.873616008e-05 | K103: 0.0002270352712 | L103: 0.0005966494633 | M103: 0.006078277306 | N103: 2.542044605e-06
A104: =IF('DF raw data'!E104="","",'DF raw data'!E104) -> -281.5 | B104: =IF('DF raw data'!F104="","",'DF raw data'!F104) -> -2.23704e-05 | C104: =IF('DF raw data'!G104="","",'DF raw data'!G104) -> -1.94119e-05 | D104: =IF('DF raw data'!H104="","",'DF raw data'!H104) -> -3.63909e-05 | F104: -1.248914505e-06 | G104: 3.090065702e-05 | H104: 1.00661532e-07 | J104: 3.811170282e-05 | K104: 0.0002460911226 | L104: 0.0006120997918 | M104: 0.006384327202 | N104: 2.730103934e-06
A105: =IF('DF raw data'!E105="","",'DF raw data'!E105) -> -281 | B105: =IF('DF raw data'!F105="","",'DF raw data'!F105) -> -2.62154e-05 | C105: =IF('DF raw data'!G105="","",'DF raw data'!G105) -> -1.81067e-05 | D105: =IF('DF raw data'!H105="","",'DF raw data'!H105) -> -3.93282e-05 | F105: -5.117369005e-06 | G105: 3.221381874e-05 | H105: -2.854555998e-06 | J105: 3.555301832e-05 | K105: 0.0002638676317 | L105: 0.0006282067012 | M105: 0.006698430553 | N105: 2.928057772e-06
A106: =IF('DF raw data'!E106="","",'DF raw data'!E106) -> -280.5 | B106: =IF('DF raw data'!F106="","",'DF raw data'!F106) -> -9.8125e-06 | C106: =IF('DF raw data'!G106="","",'DF raw data'!G106) -> -2.81237e-05 | D106: =IF('DF raw data'!H106="","",'DF raw data'!H106) -> -2.40092e-05 | F106: 1.138558868e-05 | G106: 2.213571504e-05 | H106: 1.25578899e-05 | J106: 4.124581266e-05 | K106: 0.0002844905381 | L106: 0.0006392745587 | M106: 0.007018067832 | N106: 3.133244361e-06
A107: =IF('DF raw data'!E107="","",'DF raw data'!E107) -> -280 | B107: =IF('DF raw data'!F107="","",'DF raw data'!F107) -> -2.5258e-05 | C107: =IF('DF raw data'!G107="","",'DF raw data'!G107) -> -2.70433e-05 | D107: =IF('DF raw data'!H107="","",'DF raw data'!H107) -> -3.25631e-05 | F107: -4.154128865e-06 | G107: 2.322270548e-05 | H107: 3.951811112e-06 | J107: 3.916874823e-05 | K107: 0.0003040749122 | L107: 0.0006508859114 | M107: 0.007343510788 | N107: 3.345837691e-06
A108: =IF('DF raw data'!E108="","",'DF raw data'!E108) -> -279.5 | B108: =IF('DF raw data'!F108="","",'DF raw data'!F108) -> -1.58996e-05 | C108: =IF('DF raw data'!G108="","",'DF raw data'!G108) -> -2.30856e-05 | D108: =IF('DF raw data'!H108="","",'DF raw data'!H108) -> -2.94242e-05 | F108: 5.261357375e-06 | G108: 2.720454745e-05 | H108: 7.109858402e-06 | J108: 4.179942692e-05 | K108: 0.0003249746256 | L108: 0.0006644881852 | M108: 0.007675754881 | N108: 3.567483562e-06
A109: =IF('DF raw data'!E109="","",'DF raw data'!E109) -> -279 | B109: =IF('DF raw data'!F109="","",'DF raw data'!F109) -> -3.12161e-05 | C109: =IF('DF raw data'!G109="","",'DF raw data'!G109) -> -2.92509e-05 | D109: =IF('DF raw data'!H109="","",'DF raw data'!H109) -> -3.9154e-05 | F109: -1.014857328e-05 | G109: 2.100163912e-05 | H109: -2.679293378e-06 | J109: 3.672514028e-05 | K109: 0.0003433371958 | L109: 0.0006749890047 | M109: 0.008013249383 | N109: 3.795963008e-06
A110: =IF('DF raw data'!E110="","",'DF raw data'!E110) -> -278.5 | B110: =IF('DF raw data'!F110="","",'DF raw data'!F110) -> -2.71826e-05 | C110: =IF('DF raw data'!G110="","",'DF raw data'!G110) -> -2.72067e-05 | D110: =IF('DF raw data'!H110="","",'DF raw data'!H110) -> -3.0602e-05 | F110: -6.090468925e-06 | G110: 2.305830874e-05 | H110: 5.924873822e-06 | J110: 3.367990582e-05 | K110: 0.0003601771487 | L110: 0.0006865181591 | M110: 0.008356508462 | N110: 4.032183767e-06
A111: =IF('DF raw data'!E111="","",'DF raw data'!E111) -> -278 | B111: =IF('DF raw data'!F111="","",'DF raw data'!F111) -> -1.30748e-05 | C111: =IF('DF raw data'!G111="","",'DF raw data'!G111) -> -2.38419e-05 | D111: =IF('DF raw data'!H111="","",'DF raw data'!H111) -> -3.5574e-05 | F111: 8.103388655e-06 | G111: 2.644363402e-05 | H111: 9.22544622e-07 | J111: 3.773160015e-05 | K111: 0.0003790429488 | L111: 0.0006997399761 | M111: 0.008706378451 | N111: 4.277713621e-06
A112: =IF('DF raw data'!E112="","",'DF raw data'!E112) -> -277.5 | B112: =IF('DF raw data'!F112="","",'DF raw data'!F112) -> -2.49944e-05 | C112: =IF('DF raw data'!G112="","",'DF raw data'!G112) -> -2.55289e-05 | D112: =IF('DF raw data'!H112="","",'DF raw data'!H112) -> -4.36016e-05 | F112: -3.888920905e-06 | G112: 2.474634332e-05 | H112: -7.154023738e-06 | J112: 3.578713969e-05 | K112: 0.0003969365186 | L112: 0.0007121131478 | M112: 0.009062435024 | N112: 4.531906548e-06
A113: =IF('DF raw data'!E113="","",'DF raw data'!E113) -> -277 | B113: =IF('DF raw data'!F113="","",'DF raw data'!F113) -> -2.6528e-05 | C113: =IF('DF raw data'!G113="","",'DF raw data'!G113) -> -2.82244e-05 | D113: =IF('DF raw data'!H113="","",'DF raw data'!H113) -> -5.12857e-05 | F113: -5.431875865e-06 | G113: 2.203440077e-05 | H113: -1.488499675e-05 | J113: 3.307120176e-05 | K113: 0.0004134721195 | L113: 0.0007231303481 | M113: 0.009424000198 | N113: 4.793912151e-06
A114: =IF('DF raw data'!E114="","",'DF raw data'!E114) -> -276.5 | B114: =IF('DF raw data'!F114="","",'DF raw data'!F114) -> -2.91643e-05 | C114: =IF('DF raw data'!G114="","",'DF raw data'!G114) -> -2.45938e-05 | D114: =IF('DF raw data'!H114="","",'DF raw data'!H114) -> -3.95116e-05 | F114: -8.084257295e-06 | G114: 2.568714743e-05 | H114: -3.039074738e-06 | J114: 2.902907311e-05 | K114: 0.0004279866561 | L114: 0.0007359739219 | M114: 0.009791987159 | N114: 5.065162301e-06
A115: =IF('DF raw data'!E115="","",'DF raw data'!E115) -> -276 | B115: =IF('DF raw data'!F115="","",'DF raw data'!F115) -> -1.50573e-05 | C115: =IF('DF raw data'!G115="","",'DF raw data'!G115) -> -2.05082e-05 | D115: =IF('DF raw data'!H115="","",'DF raw data'!H115) -> -4.29321e-05 | F115: 6.108795405e-06 | G115: 2.979766959e-05 | H115: -6.480439788e-06 | J115: 3.208347082e-05 | K115: 0.0004440283915 | L115: 0.0007508727567 | M115: 0.01016742354 | N115: 5.347581924e-06
A116: =IF('DF raw data'!E116="","",'DF raw data'!E116) -> -275.5 | B116: =IF('DF raw data'!F116="","",'DF raw data'!F116) -> -1.35805e-05 | C116: =IF('DF raw data'!G116="","",'DF raw data'!G116) -> -1.37823e-05 | D116: =IF('DF raw data'!H116="","",'DF raw data'!H116) -> -4.65493e-05 | F116: 7.594603885e-06 | G116: 3.656459758e-05 | H116: -1.011970471e-05 | J116: 3.588077276e-05 | K116: 0.0004619687778 | L116: 0.0007691550554 | M116: 0.01055200107 | N116: 5.644025389e-06
A117: =IF('DF raw data'!E117="","",'DF raw data'!E117) -> -275 | B117: =IF('DF raw data'!F117="","",'DF raw data'!F117) -> -1.91608e-05 | C117: =IF('DF raw data'!G117="","",'DF raw data'!G117) -> -2.1395e-05 | D117: =IF('DF raw data'!H117="","",'DF raw data'!H117) -> -4.26502e-05 | F117: 1.980264055e-06 | G117: 2.890546011e-05 | H117: -6.196820198e-06 | J117: 3.687090479e-05 | K117: 0.0004804042302 | L117: 0.0007836077855 | M117: 0.01094380496 | N117: 5.951725701e-06
A118: =IF('DF raw data'!E118="","",'DF raw data'!E118) -> -274.5 | B118: =IF('DF raw data'!F118="","",'DF raw data'!F118) -> -3.4553e-05 | C118: =IF('DF raw data'!G118="","",'DF raw data'!G118) -> -2.69757e-05 | D118: =IF('DF raw data'!H118="","",'DF raw data'!H118) -> -3.43294e-05 | F118: -1.350582837e-05 | G118: 2.329071784e-05 | H118: 2.174736682e-06 | J118: 3.01179906e-05 | K118: 0.0004954632255 | L118: 0.0007952531444 | M118: 0.01134143153 | N118: 6.26839303e-06
A119: =IF('DF raw data'!E119="","",'DF raw data'!E119) -> -274 | B119: =IF('DF raw data'!F119="","",'DF raw data'!F119) -> -1.4223e-05 | C119: =IF('DF raw data'!G119="","",'DF raw data'!G119) -> -1.91361e-05 | D119: =IF('DF raw data'!H119="","",'DF raw data'!H119) -> -4.44315e-05 | F119: 6.948184635e-06 | G119: 3.11781394e-05 | H119: -7.988986128e-06 | J119: 3.359208292e-05 | K119: 0.000512259267 | L119: 0.0008108422141 | M119: 0.01174685264 | N119: 6.597689792e-06
A120: =IF('DF raw data'!E120="","",'DF raw data'!E120) -> -273.5 | B120: =IF('DF raw data'!F120="","",'DF raw data'!F120) -> -1.07651e-05 | C120: =IF('DF raw data'!G120="","",'DF raw data'!G120) -> -7.85222e-06 | D120: =IF('DF raw data'!H120="","",'DF raw data'!H120) -> -3.81007e-05 | F120: 1.042717782e-05 | G120: 4.253085107e-05 | H120: -1.619568248e-06 | J120: 3.880567183e-05 | K120: 0.0005316621029 | L120: 0.0008321076397 | M120: 0.01216290646 | N120: 6.944644294e-06
A121: =IF('DF raw data'!E121="","",'DF raw data'!E121) -> -273 | B121: =IF('DF raw data'!F121="","",'DF raw data'!F121) -> -1.65295e-05 | C121: =IF('DF raw data'!G121="","",'DF raw data'!G121) -> -8.47148e-06 | D121: =IF('DF raw data'!H121="","",'DF raw data'!H121) -> -4.6693e-05 | F121: 4.627614985e-06 | G121: 4.190781358e-05 | H121: -1.026428128e-05 | J121: 4.111947933e-05 | K121: 0.0005522218426 | L121: 0.0008530615464 | M121: 0.01258943723 | N121: 7.309346701e-06
A122: =IF('DF raw data'!E122="","",'DF raw data'!E122) -> -272.5 | B122: =IF('DF raw data'!F122="","",'DF raw data'!F122) -> -1.98004e-05 | C122: =IF('DF raw data'!G122="","",'DF raw data'!G122) -> -8.25085e-06 | D122: =IF('DF raw data'!H122="","",'DF raw data'!H122) -> -4.49389e-05 | F122: 1.336762495e-06 | G122: 4.212978942e-05 | H122: -8.499481268e-06 | J122: 4.178786057e-05 | K122: 0.0005731157729 | L122: 0.0008741264412 | M122: 0.01302650045 | N122: 7.692268331e-06
A123: =IF('DF raw data'!E123="","",'DF raw data'!E123) -> -272 | B123: =IF('DF raw data'!F123="","",'DF raw data'!F123) -> -1.97325e-05 | C123: =IF('DF raw data'!G123="","",'DF raw data'!G123) -> -1.08625e-05 | D123: =IF('DF raw data'!H123="","",'DF raw data'!H123) -> -5.05613e-05 | F123: 1.405076685e-06 | G123: 3.950220836e-05 | H123: -1.415617791e-05 | J123: 4.249039892e-05 | K123: 0.0005943609723 | L123: 0.0008938775453 | M123: 0.01347343922 | N123: 8.092679581e-06
A124: =IF('DF raw data'!E124="","",'DF raw data'!E124) -> -271.5 | B124: =IF('DF raw data'!F124="","",'DF raw data'!F124) -> -2.83253e-05 | C124: =IF('DF raw data'!G124="","",'DF raw data'!G124) -> -1.44837e-05 | D124: =IF('DF raw data'!H124="","",'DF raw data'!H124) -> -4.79471e-05 | F124: -7.240139395e-06 | G124: 3.585891904e-05 | H124: -1.152603129e-05 | J124: 3.887032922e-05 | K124: 0.0006137961369 | L124: 0.0009118070049 | M124: 0.01392934273 | N124: 8.509131039e-06
A125: =IF('DF raw data'!E125="","",'DF raw data'!E125) -> -271 | B125: =IF('DF raw data'!F125="","",'DF raw data'!F125) -> -2.8003e-05 | C125: =IF('DF raw data'!G125="","",'DF raw data'!G125) -> -1.8386e-05 | D125: =IF('DF raw data'!H125="","",'DF raw data'!H125) -> -5.08157e-05 | F125: -6.915873365e-06 | G125: 3.193281501e-05 | H125: -1.441212975e-05 | J125: 3.541239253e-05 | K125: 0.0006315023332 | L125: 0.0009277734124 | M125: 0.01439322943 | N125: 8.94013981e-06
A126: =IF('DF raw data'!E126="","",'DF raw data'!E126) -> -270.5 | B126: =IF('DF raw data'!F126="","",'DF raw data'!F126) -> -1.85236e-05 | C126: =IF('DF raw data'!G126="","",'DF raw data'!G126) -> -1.92281e-05 | D126: =IF('DF raw data'!H126="","",'DF raw data'!H126) -> -3.66801e-05 | F126: 2.621350975e-06 | G126: 3.10855782e-05 | H126: -1.90302588e-07 | J126: 3.672306802e-05 | K126: 0.0006498638672 | L126: 0.0009433162015 | M126: 0.01486488753 | N126: 9.38573683e-06
A127: =IF('DF raw data'!E127="","",'DF raw data'!E127) -> -270 | B127: =IF('DF raw data'!F127="","",'DF raw data'!F127) -> -1.20386e-05 | C127: =IF('DF raw data'!G127="","",'DF raw data'!G127) -> -1.75677e-05 | D127: =IF('DF raw data'!H127="","",'DF raw data'!H127) -> -5.15966e-05 | F127: 9.145909475e-06 | G127: 3.275610664e-05 | H127: -1.519779324e-05 | J127: 4.129602276e-05 | K127: 0.0006705118786 | L127: 0.0009596942548 | M127: 0.01534473466 | N127: 9.847096042e-06
A128: =IF('DF raw data'!E128="","",'DF raw data'!E128) -> -269.5 | B128: =IF('DF raw data'!F128="","",'DF raw data'!F128) -> -1.40931e-05 | C128: =IF('DF raw data'!G128="","",'DF raw data'!G128) -> -1.93822e-05 | D128: =IF('DF raw data'!H128="","",'DF raw data'!H128) -> -4.69625e-05 | F128: 7.078877025e-06 | G128: 3.093053819e-05 | H128: -1.053542523e-05 | J128: 4.483546127e-05 | K128: 0.0006929296092 | L128: 0.0009751595239 | M128: 0.01583231442 | N128: 1.03235692e-05
A129: =IF('DF raw data'!E129="","",'DF raw data'!E129) -> -269 | B129: =IF('DF raw data'!F129="","",'DF raw data'!F129) -> -2.83898e-05 | C129: =IF('DF raw data'!G129="","",'DF raw data'!G129) -> -2.07095e-05 | D129: =IF('DF raw data'!H129="","",'DF raw data'!H129) -> -4.75462e-05 | F129: -7.305032845e-06 | G129: 2.959514166e-05 | H129: -1.11226858e-05 | J129: 4.118294485e-05 | K129: 0.0007135210816 | L129: 0.0009899570947 | M129: 0.01632729297 | N129: 1.081442474e-05
A130: =IF('DF raw data'!E130="","",'DF raw data'!E130) -> -268.5 | B130: =IF('DF raw data'!F130="","",'DF raw data'!F130) -> -2.72416e-05 | C130: =IF('DF raw data'!G130="","",'DF raw data'!G130) -> -2.1393e-05 | D130: =IF('DF raw data'!H130="","",'DF raw data'!H130) -> -3.85758e-05 | F130: -6.149828825e-06 | G130: 2.890747231e-05 | H130: -2.097566358e-06 | J130: 3.810803044e-05 | K130: 0.0007325750969 | L130: 0.001004410831 | M130: 0.01682949839 | N130: 1.131957141e-05
A131: =IF('DF raw data'!E131="","",'DF raw data'!E131) -> -268 | B131: =IF('DF raw data'!F131="","",'DF raw data'!F131) -> -1.46717e-05 | C131: =IF('DF raw data'!G131="","",'DF raw data'!G131) -> -1.93482e-05 | D131: =IF('DF raw data'!H131="","",'DF raw data'!H131) -> -4.4413e-05 | F131: =(1-$G$1*($B$54-$G$2))*(B131-F$5) -> 6.496747565e-06 | G131: =(1-$G$1*($B$54-$G$2))*(C131-G$5) -> 3.096474559e-05 | H131: =(1-$G$1*($B$54-$G$2))*(D131-H$5) -> -7.970373278e-06 | J131: 4.135640422e-05 | K131: 0.000753253299 | L131: 0.001019893204 | M131: 0.01733944499 | N131: 1.184051766e-05
A132: =IF('DF raw data'!E132="","",'DF raw data'!E132) -> -267.5 | B132: =IF('DF raw data'!F132="","",'DF raw data'!F132) -> -1.55045e-05 | C132: =IF('DF raw data'!G132="","",'DF raw data'!G132) -> -1.32419e-05 | D132: =IF('DF raw data'!H132="","",'DF raw data'!H132) -> -4.56104e-05 | F132: 5.658867485e-06 | G132: 3.710829402e-05 | H132: -9.175077418e-06 | J132: =F132*$G$3+J131 -> 4.418583796e-05 | K132: =J132*$G$3+K131 -> 0.000775346218 | L132: =G132*$G$3+L131 -> 0.001038447351 | M132: =L132*$G$3+M131 -> 0.01785866866 | N132: =(J132^2+L132^2)*$G$3+N131 -> 1.238068031e-05
A133: =IF('DF raw data'!E133="","",'DF raw data'!E133) -> -267 | B133: =IF('DF raw data'!F133="","",'DF raw data'!F133) -> -3.08283e-05 | C133: =IF('DF raw data'!G133="","",'DF raw data'!G133) -> -1.83129e-05 | D133: =IF('DF raw data'!H133="","",'DF raw data'!H133) -> -4.39444e-05 | F133: -9.758407695e-06 | G133: 3.200636092e-05 | H133: -7.498914818e-06 | J133: 3.930663411e-05 | K133: 0.000794999535 | L133: 0.001054450531 | M133: 0.01838589393 | N133: 1.293738577e-05
A134: =IF('DF raw data'!E134="","",'DF raw data'!E134) -> -266.5 | B134: =IF('DF raw data'!F134="","",'DF raw data'!F134) -> -2.72441e-05 | C134: =IF('DF raw data'!G134="","",'DF raw data'!G134) -> -2.38286e-05 | D134: =IF('DF raw data'!H134="","",'DF raw data'!H134) -> -3.48407e-05 | F134: -6.152344075e-06 | G134: 2.645701515e-05 | H134: 1.660317752e-06 | J134: 3.623046208e-05 | K134: 0.0008131147661 | L134: 0.001067679039 | M134: 0.01891973345 | N134: 1.350801136e-05
A135: =IF('DF raw data'!E135="","",'DF raw data'!E135) -> -266 | B135: =IF('DF raw data'!F135="","",'DF raw data'!F135) -> -2.34524e-05 | C135: =IF('DF raw data'!G135="","",'DF raw data'!G135) -> -1.86656e-05 | D135: =IF('DF raw data'!H135="","",'DF raw data'!H135) -> -4.87828e-05 | F135: -2.337514705e-06 | G135: 3.165150945e-05 | H135: -1.236682906e-05 | J135: 3.506170472e-05 | K135: 0.0008306456184 | L135: 0.001083504793 | M135: 0.01946148584 | N135: 1.409561734e-05
A136: =IF('DF raw data'!E136="","",'DF raw data'!E136) -> -265.5 | B136: =IF('DF raw data'!F136="","",'DF raw data'!F136) -> -1.92866e-05 | C136: =IF('DF raw data'!G136="","",'DF raw data'!G136) -> -2.38373e-05 | D136: =IF('DF raw data'!H136="","",'DF raw data'!H136) -> -4.63625e-05 | F136: 1.853696675e-06 | G136: 2.644826208e-05 | H136: -9.931765228e-06 | J136: 3.598855306e-05 | K136: 0.0008486398949 | L136: 0.001096728924 | M136: 0.02000985031 | N136: 1.46976721e-05
A137: =IF('DF raw data'!E137="","",'DF raw data'!E137) -> -265 | B137: =IF('DF raw data'!F137="","",'DF raw data'!F137) -> -2.35166e-05 | C137: =IF('DF raw data'!G137="","",'DF raw data'!G137) -> -2.15362e-05 | D137: =IF('DF raw data'!H137="","",'DF raw data'!H137) -> -4.84051e-05 | F137: -2.402106325e-06 | G137: 2.876339879e-05 | H137: -1.198682509e-05 | J137: 3.47874999e-05 | K137: 0.0008660336449 | L137: 0.001111110624 | M137: 0.02056540562 | N137: 1.531556059e-05
A138: =IF('DF raw data'!E138="","",'DF raw data'!E138) -> -264.5 | B138: =IF('DF raw data'!F138="","",'DF raw data'!F138) -> -1.78714e-05 | C138: =IF('DF raw data'!G138="","",'DF raw data'!G138) -> -2.06612e-05 | D138: =IF('DF raw data'!H138="","",'DF raw data'!H138) -> -5.36637e-05 | F138: 3.277529395e-06 | G138: 2.964373629e-05 | H138: -1.727750255e-05 | J138: 3.64262646e-05 | K138: 0.0008842467772 | L138: 0.001125932492 | M138: 0.02112837186 | N138: 1.595008601e-05
A139: =IF('DF raw data'!E139="","",'DF raw data'!E139) -> -264 | B139: =IF('DF raw data'!F139="","",'DF raw data'!F139) -> -1.75536e-05 | C139: =IF('DF raw data'!G139="","",'DF raw data'!G139) -> -1.25703e-05 | D139: =IF('DF raw data'!H139="","",'DF raw data'!H139) -> -4.93055e-05 | F139: 3.597267975e-06 | G139: 3.778399078e-05 | H139: -1.289271753e-05 | J139: 3.822489858e-05 | K139: 0.0009033592265 | L139: 0.001144824487 | M139: 0.02170078411 | N139: 1.660612814e-05
A140: =IF('DF raw data'!E140="","",'DF raw data'!E140) -> -263.5 | B140: =IF('DF raw data'!F140="","",'DF raw data'!F140) -> -2.15237e-05 | C140: =IF('DF raw data'!G140="","",'DF raw data'!G140) -> -1.62508e-05 | D140: =IF('DF raw data'!H140="","",'DF raw data'!H140) -> -5.70537e-05 | F140: -3.970496352e-07 | G140: 3.408103973e-05 | H140: -2.068818155e-05 | J140: 3.802637377e-05 | K140: 0.0009223724134 | L140: 0.001161865007 | M140: 0.02228171661 | N140: 1.728181629e-05
A141: =IF('DF raw data'!E141="","",'DF raw data'!E141) -> -263 | B141: =IF('DF raw data'!F141="","",'DF raw data'!F141) -> -2.62838e-05 | C141: =IF('DF raw data'!G141="","",'DF raw data'!G141) -> -2.64045e-05 | D141: =IF('DF raw data'!H141="","",'DF raw data'!H141) -> -3.25411e-05 | F141: -5.186186245e-06 | G141: 2.386540216e-05 | H141: 3.973945312e-06 | J141: 3.543328064e-05 | K141: 0.0009400890537 | L141: 0.001173797708 | M141: 0.02286861547 | N141: 1.797134458e-05
A142: =IF('DF raw data'!E142="","",'DF raw data'!E142) -> -262.5 | B142: =IF('DF raw data'!F142="","",'DF raw data'!F142) -> -1.64775e-05 | C142: =IF('DF raw data'!G142="","",'DF raw data'!G142) -> -1.99565e-05 | D142: =IF('DF raw data'!H142="","",'DF raw data'!H142) -> -2.82585e-05 | F142: 4.679932185e-06 | G142: 3.035273496e-05 | H142: 8.282669172e-06 | J142: 3.777324674e-05 | K142: 0.0009589756771 | L142: 0.001188974076 | M142: 0.0234631025 | N142: 1.867888766e-05
A143: =IF('DF raw data'!E143="","",'DF raw data'!E143) -> -262 | B143: =IF('DF raw data'!F143="","",'DF raw data'!F143) -> -2.26219e-05 | C143: =IF('DF raw data'!G143="","",'DF raw data'!G143) -> -7.49962e-06 | D143: =IF('DF raw data'!H143="","",'DF raw data'!H143) -> -4.39946e-05 | F143: -1.501948655e-06 | G143: 4.288560193e-05 | H143: -7.549421038e-06 | J143: 3.702227241e-05 | K143: 0.0009774868133 | L143: 0.001210416877 | M143: 0.02406831094 | N143: 1.94121275e-05
A144: =IF('DF raw data'!E144="","",'DF raw data'!E144) -> -261.5 | B144: =IF('DF raw data'!F144="","",'DF raw data'!F144) -> -1.58908e-05 | C144: =IF('DF raw data'!G144="","",'DF raw data'!G144) -> -8.40481e-06 | D144: =IF('DF raw data'!H144="","",'DF raw data'!H144) -> -4.30298e-05 | F144: 5.270211055e-06 | G144: 4.197489027e-05 | H144: -6.578735758e-06 | J144: 3.965737794e-05 | K144: 0.0009973155022 | L144: 0.001231404322 | M144: 0.0246840131 | N144: 2.017109215e-05
A145: =IF('DF raw data'!E145="","",'DF raw data'!E145) -> -261 | B145: =IF('DF raw data'!F145="","",'DF raw data'!F145) -> -2.2166e-05 | C145: =IF('DF raw data'!G145="","",'DF raw data'!G145) -> -1.79006e-05 | D145: =IF('DF raw data'!H145="","",'DF raw data'!H145) -> -5.51552e-05 | F145: -1.043267665e-06 | G145: 3.242117595e-05 | H145: -1.87781007e-05 | J145: 3.91357441e-05 | K145: 0.001016883374 | L145: 0.00124761491 | M145: 0.02530782056 | N145: 2.095012944e-05
A146: =IF('DF raw data'!E146="","",'DF raw data'!E146) -> -260.5 | B146: =IF('DF raw data'!F146="","",'DF raw data'!F146) -> -1.82679e-05 | C146: =IF('DF raw data'!G146="","",'DF raw data'!G146) -> -2.81422e-05 | D146: =IF('DF raw data'!H146="","",'DF raw data'!H146) -> -3.55292e-05 | F146: 2.878610745e-06 | G146: 2.211710219e-05 | H146: 9.67617902e-07 | J146: 4.057504948e-05 | K146: 0.001037170899 | L146: 0.001258673461 | M146: 0.02593715729 | N146: 2.174308204e-05
A147: =IF('DF raw data'!E147="","",'DF raw data'!E147) -> -260 | B147: =IF('DF raw data'!F147="","",'DF raw data'!F147) -> -2.58928e-05 | C147: =IF('DF raw data'!G147="","",'DF raw data'!G147) -> -2.15343e-05 | D147: =IF('DF raw data'!H147="","",'DF raw data'!H147) -> -4.22445e-05 | F147: -4.792801145e-06 | G147: 2.876531038e-05 | H147: -5.788645428e-06 | J147: 3.81786489e-05 | K147: 0.001056260223 | L147: 0.001273056116 | M147: 0.02657368535 | N147: 2.255414679e-05
A148: =IF('DF raw data'!E148="","",'DF raw data'!E148) -> -259.5 | B148: =IF('DF raw data'!F148="","",'DF raw data'!F148) -> -1.67868e-05 | C148: =IF('DF raw data'!G148="","",'DF raw data'!G148) -> -1.78935e-05 | D148: =IF('DF raw data'!H148="","",'DF raw data'!H148) -> -4.54175e-05 | F148: 4.368745455e-06 | G148: 3.242831926e-05 | H148: -8.981000728e-06 | J148: 4.036302163e-05 | K148: 0.001076441734 | L148: 0.001289270276 | M148: 0.02721832048 | N148: 2.33860703e-05
A149: =IF('DF raw data'!E149="","",'DF raw data'!E149) -> -259 | B149: =IF('DF raw data'!F149="","",'DF raw data'!F149) -> -1.86483e-05 | C149: =IF('DF raw data'!G149="","",'DF raw data'!G149) -> -1.72572e-05 | D149: =IF('DF raw data'!H149="","",'DF raw data'!H149) -> -4.20891e-05 | F149: 2.495890305e-06 | G149: 3.306850069e-05 | H149: -5.632297488e-06 | J149: 4.161096678e-05 | K149: 0.001097247218 | L149: 0.001305804526 | M149: 0.02787122275 | N149: 2.423949876e-05
A150: =IF('DF raw data'!E150="","",'DF raw data'!E150) -> -258.5 | B150: =IF('DF raw data'!F150="","",'DF raw data'!F150) -> -1.60153e-05 | C150: =IF('DF raw data'!G150="","",'DF raw data'!G150) -> -8.42944e-06 | D150: =IF('DF raw data'!H150="","",'DF raw data'!H150) -> -4.8797e-05 | F150: 5.144951605e-06 | G150: 4.195011003e-05 | H150: -1.238111568e-05 | J150: 4.418344258e-05 | K150: 0.001119338939 | L150: 0.001326779581 | M150: 0.02853461254 | N150: 2.512064688e-05
A151: =IF('DF raw data'!E151="","",'DF raw data'!E151) -> -258 | B151: =IF('DF raw data'!F151="","",'DF raw data'!F151) -> -1.01796e-05 | C151: =IF('DF raw data'!G151="","",'DF raw data'!G151) -> -1.4718e-05 | D151: =IF('DF raw data'!H151="","",'DF raw data'!H151) -> -5.10565e-05 | F151: 1.101624937e-05 | G151: 3.562318981e-05 | H151: -1.465439863e-05 | J151: 4.969156727e-05 | K151: 0.001144184723 | L151: 0.001344591176 | M151: 0.02920690813 | N151: 2.602584422e-05
A152: =IF('DF raw data'!E152="","",'DF raw data'!E152) -> -257.5 | B152: =IF('DF raw data'!F152="","",'DF raw data'!F152) -> -2.03091e-05 | C152: =IF('DF raw data'!G152="","",'DF raw data'!G152) -> -1.65383e-05 | D152: =IF('DF raw data'!H152="","",'DF raw data'!H152) -> -5.13526e-05 | F152: 8.249594248e-07 | G152: 3.379178598e-05 | H152: -1.495230484e-05 | J152: 5.010404698e-05 | K152: 0.001169236746 | L152: 0.001361487069 | M152: 0.02988765166 | N152: 2.695392295e-05
A153: =IF('DF raw data'!E153="","",'DF raw data'!E153) -> -257 | B153: =IF('DF raw data'!F153="","",'DF raw data'!F153) -> -2.83285e-05 | C153: =IF('DF raw data'!G153="","",'DF raw data'!G153) -> -1.36478e-05 | D153: =IF('DF raw data'!H153="","",'DF raw data'!H153) -> -4.2938e-05 | F153: -7.243358915e-06 | G153: 3.669991803e-05 | H153: -6.486375778e-06 | J153: 4.648236753e-05 | K153: 0.00119247793 | L153: 0.001379837028 | M153: 0.03057757017 | N153: 2.790697836e-05
A154: =IF('DF raw data'!E154="","",'DF raw data'!E154) -> -256.5 | B154: =IF('DF raw data'!F154="","",'DF raw data'!F154) -> -1.61484e-05 | C154: =IF('DF raw data'!G154="","",'DF raw data'!G154) -> -1.56449e-05 | D154: =IF('DF raw data'!H154="","",'DF raw data'!H154) -> -4.11971e-05 | F154: 5.011039695e-06 | G154: 3.469063572e-05 | H154: -4.734856288e-06 | J154: 4.898788737e-05 | K154: 0.001216971874 | L154: 0.001397182346 | M154: 0.03127616135 | N154: 2.888423753e-05
A155: =IF('DF raw data'!E155="","",'DF raw data'!E155) -> -256 | B155: =IF('DF raw data'!F155="","",'DF raw data'!F155) -> -1.32004e-05 | C155: =IF('DF raw data'!G155="","",'DF raw data'!G155) -> -1.54452e-05 | D155: =IF('DF raw data'!H155="","",'DF raw data'!H155) -> -3.95143e-05 | F155: 7.977022495e-06 | G155: 3.489155389e-05 | H155: -3.041791208e-06 | J155: 5.297639862e-05 | K155: 0.001243460073 | L155: 0.001414628123 | M155: 0.03198347541 | N155: 2.988622714e-05
A156: =IF('DF raw data'!E156="","",'DF raw data'!E156) -> -255.5 | B156: =IF('DF raw data'!F156="","",'DF raw data'!F156) -> -1.43466e-05 | C156: =IF('DF raw data'!G156="","",'DF raw data'!G156) -> -1.91137e-05 | D156: =IF('DF raw data'!H156="","",'DF raw data'!H156) -> -5.1546e-05 | F156: 6.823830675e-06 | G156: 3.120067604e-05 | H156: -1.514688458e-05 | J156: 5.638831396e-05 | K156: 0.00127165423 | L156: 0.001430228461 | M156: 0.03269858964 | N156: 3.091059368e-05
A157: =IF('DF raw data'!E157="","",'DF raw data'!E157) -> -255 | B157: =IF('DF raw data'!F157="","",'DF raw data'!F157) -> -2.51161e-05 | C157: =IF('DF raw data'!G157="","",'DF raw data'!G157) -> -1.10951e-05 | D157: =IF('DF raw data'!H157="","",'DF raw data'!H157) -> -5.35541e-05 | F157: -4.011363275e-06 | G157: 3.92681895e-05 | H157: -1.716723399e-05 | J157: 5.438263232e-05 | K157: 0.001298845546 | L157: 0.001449862556 | M157: 0.03342352092 | N157: 3.196312313e-05
A158: =IF('DF raw data'!E158="","",'DF raw data'!E158) -> -254.5 | B158: =IF('DF raw data'!F158="","",'DF raw data'!F158) -> -1.94725e-05 | C158: =IF('DF raw data'!G158="","",'DF raw data'!G158) -> -7.53487e-06 | D158: =IF('DF raw data'!H158="","",'DF raw data'!H158) -> -5.60204e-05 | F158: 1.666662685e-06 | G158: 4.28501369e-05 | H158: -1.964857842e-05 | J158: 5.521596366e-05 | K158: 0.001326453528 | L158: 0.001471287624 | M158: 0.03415916473 | N158: 3.304699117e-05
A159: =IF('DF raw data'!E159="","",'DF raw data'!E159) -> -254 | B159: =IF('DF raw data'!F159="","",'DF raw data'!F159) -> -1.76801e-05 | C159: =IF('DF raw data'!G159="","",'DF raw data'!G159) -> -1.09508e-05 | D159: =IF('DF raw data'!H159="","",'DF raw data'!H159) -> -5.19465e-05 | F159: 3.469996325e-06 | G159: 3.941336973e-05 | H159: -1.554982763e-05 | J159: 5.695096183e-05 | K159: 0.001354929009 | L159: 0.001490994309 | M159: 0.03490466188 | N159: 3.416014489e-05
A160: =IF('DF raw data'!E160="","",'DF raw data'!E160) -> -253.5 | B160: =IF('DF raw data'!F160="","",'DF raw data'!F160) -> -2.13405e-05 | C160: =IF('DF raw data'!G160="","",'DF raw data'!G160) -> -1.12297e-05 | D160: =IF('DF raw data'!H160="","",'DF raw data'!H160) -> -4.27998e-05 | F160: -2.127321152e-07 | G160: 3.913276844e-05 | H160: -6.347332758e-06 | J160: 5.684459577e-05 | K160: 0.001383351307 | L160: 0.001510560693 | M160: 0.03565994223 | N160: 3.530265735e-05
A161: =IF('DF raw data'!E161="","",'DF raw data'!E161) -> -253 | B161: =IF('DF raw data'!F161="","",'DF raw data'!F161) -> -2.62671e-05 | C161: =IF('DF raw data'!G161="","",'DF raw data'!G161) -> -6.06539e-06 | D161: =IF('DF raw data'!H161="","",'DF raw data'!H161) -> -5.82802e-05 | F161: -5.169384375e-06 | G161: 4.432858073e-05 | H161: -2.19221632e-05 | J161: 5.425990358e-05 | K161: 0.001410481258 | L161: 0.001532724984 | M161: 0.03642630472 | N161: 3.647875236e-05
A162: =IF('DF raw data'!E162="","",'DF raw data'!E162) -> -252.5 | B162: =IF('DF raw data'!F162="","",'DF raw data'!F162) -> -1.5372e-05 | C162: =IF('DF raw data'!G162="","",'DF raw data'!G162) -> -8.05212e-06 | D162: =IF('DF raw data'!H162="","",'DF raw data'!H162) -> -5.21571e-05 | F162: 5.792175735e-06 | G162: 4.232973168e-05 | H162: -1.576171229e-05 | J162: 5.715599145e-05 | K162: 0.001439059254 | L162: 0.001553889849 | M162: 0.03720324965 | N162: 3.768767259e-05
A163: =IF('DF raw data'!E163="","",'DF raw data'!E163) -> -252 | B163: =IF('DF raw data'!F163="","",'DF raw data'!F163) -> -1.81259e-05 | C163: =IF('DF raw data'!G163="","",'DF raw data'!G163) -> -1.52479e-05 | D163: =IF('DF raw data'!H163="","",'DF raw data'!H163) -> -5.66557e-05 | F163: 3.021476945e-06 | G163: 3.509005742e-05 | H163: -2.028775375e-05 | J163: 5.866672992e-05 | K163: 0.001468392619 | L163: 0.001571434878 | M163: 0.03798896709 | N163: 3.892409727e-05
A164: =IF('DF raw data'!E164="","",'DF raw data'!E164) -> -251.5 | B164: =IF('DF raw data'!F164="","",'DF raw data'!F164) -> -2.38967e-05 | C164: =IF('DF raw data'!G164="","",'DF raw data'!G164) -> -1.44188e-05 | D164: =IF('DF raw data'!H164="","",'DF raw data'!H164) -> -5.54338e-05 | F164: -2.784524935e-06 | G164: 3.592421493e-05 | H164: -1.905840016e-05 | J164: 5.727446745e-05 | K164: 0.001497029853 | L164: 0.001589396986 | M164: 0.03878366558 | N164: 4.018882884e-05
A165: =IF('DF raw data'!E165="","",'DF raw data'!E165) -> -251 | B165: =IF('DF raw data'!F165="","",'DF raw data'!F165) -> -2.62095e-05 | C165: =IF('DF raw data'!G165="","",'DF raw data'!G165) -> -1.75978e-05 | D165: =IF('DF raw data'!H165="","",'DF raw data'!H165) -> -4.84258e-05 | F165: -5.111433015e-06 | G165: 3.272582303e-05 | H165: -1.200765136e-05 | J165: 5.471875095e-05 | K165: 0.001524389228 | L165: 0.001605759897 | M165: 0.03958654553 | N165: 4.147955834e-05
A166: =IF('DF raw data'!E166="","",'DF raw data'!E166) -> -250.5 | B166: =IF('DF raw data'!F166="","",'DF raw data'!F166) -> -1.90297e-05 | C166: =IF('DF raw data'!G166="","",'DF raw data'!G166) -> -2.12169e-05 | D166: =IF('DF raw data'!H166="","",'DF raw data'!H166) -> -4.70612e-05 | F166: 2.112163765e-06 | G166: 2.908464652e-05 | H166: -1.06347273e-05 | J166: 5.577483283e-05 | K166: 0.001552276645 | L166: 0.00162030222 | M166: 0.04039669664 | N166: 4.27938034e-05
A167: =IF('DF raw data'!E167="","",'DF raw data'!E167) -> -250 | B167: =IF('DF raw data'!F167="","",'DF raw data'!F167) -> -2.45373e-05 | C167: =IF('DF raw data'!G167="","",'DF raw data'!G167) -> -1.26217e-05 | D167: =IF('DF raw data'!H167="","",'DF raw data'!H167) -> -5.61297e-05 | F167: -3.429032595e-06 | G167: 3.773227724e-05 | H167: -1.975854515e-05 | J167: 5.406031653e-05 | K167: 0.001579306803 | L167: 0.001639168359 | M167: 0.04121628082 | N167: 4.413870111e-05
A168: =IF('DF raw data'!E168="","",'DF raw data'!E168) -> -249.5 | B168: =IF('DF raw data'!F168="","",'DF raw data'!F168) -> -2.15304e-05 | C168: =IF('DF raw data'!G168="","",'DF raw data'!G168) -> -1.35064e-05 | D168: =IF('DF raw data'!H168="","",'DF raw data'!H168) -> -4.66231e-05 | F168: -4.037905052e-07 | G168: 3.684218057e-05 | H168: -1.019395489e-05 | J168: 5.385842128e-05 | K168: 0.001606236014 | L168: 0.001657589449 | M168: 0.04204507554 | N168: 4.551395287e-05
A169: =IF('DF raw data'!E169="","",'DF raw data'!E169) -> -249 | B169: =IF('DF raw data'!F169="","",'DF raw data'!F169) -> -3.05689e-05 | C169: =IF('DF raw data'!G169="","",'DF raw data'!G169) -> -1.26312e-05 | D169: =IF('DF raw data'!H169="","",'DF raw data'!H169) -> -4.85434e-05 | F169: -9.497425355e-06 | G169: 3.772271929e-05 | H169: -1.212596872e-05 | J169: 4.91097086e-05 | K169: 0.001630790868 | L169: 0.001676450809 | M169: 0.04288330095 | N169: 4.692040241e-05
A170: =IF('DF raw data'!E170="","",'DF raw data'!E170) -> -248.5 | B170: =IF('DF raw data'!F170="","",'DF raw data'!F170) -> -8.52113e-06 | C170: =IF('DF raw data'!G170="","",'DF raw data'!G170) -> -1.04805e-05 | D170: =IF('DF raw data'!H170="","",'DF raw data'!H170) -> -3.81175e-05 | F170: 1.268483604e-05 | G170: 3.988653856e-05 | H170: -1.636470728e-06 | J170: 5.545212662e-05 | K170: 0.001658516931 | L170: 0.001696394078 | M170: 0.04373149798 | N170: 4.836081631e-05
A171: =IF('DF raw data'!E171="","",'DF raw data'!E171) -> -248 | B171: =IF('DF raw data'!F171="","",'DF raw data'!F171) -> -2.76922e-05 | C171: =IF('DF raw data'!G171="","",'DF raw data'!G171) -> -1.28204e-05 | D171: =IF('DF raw data'!H171="","",'DF raw data'!H171) -> -3.56179e-05 | F171: -6.603177485e-06 | G171: 3.753236517e-05 | H171: 8.78376832e-07 | J171: 5.215053788e-05 | K171: 0.0016845922 | L171: 0.001715160261 | M171: 0.04458907812 | N171: 4.983306351e-05
A172: =IF('DF raw data'!E172="","",'DF raw data'!E172) -> -247.5 | B172: =IF('DF raw data'!F172="","",'DF raw data'!F172) -> -3.14636e-05 | C172: =IF('DF raw data'!G172="","",'DF raw data'!G172) -> -2.03024e-05 | D172: =IF('DF raw data'!H172="","",'DF raw data'!H172) -> -5.28812e-05 | F172: -1.039758303e-05 | G172: 3.000472497e-05 | H172: -1.64902293e-05 | J172: 4.695174637e-05 | K172: 0.001708068073 | L172: 0.001730162623 | M172: 0.04545415943 | N172: 5.133089709e-05
A173: =IF('DF raw data'!E173="","",'DF raw data'!E173) -> -247 | B173: =IF('DF raw data'!F173="","",'DF raw data'!F173) -> -2.87744e-05 | C173: =IF('DF raw data'!G173="","",'DF raw data'!G173) -> -2.01e-05 | D173: =IF('DF raw data'!H173="","",'DF raw data'!H173) -> -4.77126e-05 | F173: -7.691978905e-06 | G173: 3.020835961e-05 | H173: -1.129010084e-05 | J173: 4.310575691e-05 | K173: 0.001729620952 | L173: 0.001745266803 | M173: 0.04632679283 | N173: 5.285480425e-05
A174: =IF('DF raw data'!E174="","",'DF raw data'!E174) -> -246.5 | B174: =IF('DF raw data'!F174="","",'DF raw data'!F174) -> -2.81987e-05 | C174: =IF('DF raw data'!G174="","",'DF raw data'!G174) -> -2.10461e-05 | D174: =IF('DF raw data'!H174="","",'DF raw data'!H174) -> -4.54514e-05 | F174: -7.112767135e-06 | G174: 2.92564884e-05 | H174: -9.015107518e-06 | J174: 3.954937335e-05 | K174: 0.001749395638 | L174: 0.001759895047 | M174: 0.04720674035 | N174: 5.440420162e-05
A175: =IF('DF raw data'!E175="","",'DF raw data'!E175) -> -246 | B175: =IF('DF raw data'!F175="","",'DF raw data'!F175) -> -3.48654e-05 | C175: =IF('DF raw data'!G175="","",'DF raw data'!G175) -> -1.47607e-05 | D175: =IF('DF raw data'!H175="","",'DF raw data'!H175) -> -4.71313e-05 | F175: -1.382013401e-05 | G175: 3.558022934e-05 | H175: -1.070525491e-05 | J175: 3.263930634e-05 | K175: 0.001765715292 | L175: 0.001777685162 | M175: 0.04809558293 | N175: 5.598481655e-05
A176: =IF('DF raw data'!E176="","",'DF raw data'!E176) -> -245.5 | B176: =IF('DF raw data'!F176="","",'DF raw data'!F176) -> -3.05776e-05 | C176: =IF('DF raw data'!G176="","",'DF raw data'!G176) -> -1.04868e-05 | D176: =IF('DF raw data'!H176="","",'DF raw data'!H176) -> -3.51391e-05 | F176: -9.506178425e-06 | G176: 3.988020013e-05 | H176: 1.360097512e-06 | J176: 2.788621713e-05 | K176: 0.0017796584 | L176: 0.001797625262 | M176: 0.04899439556 | N176: 5.760093366e-05
A177: =IF('DF raw data'!E177="","",'DF raw data'!E177) -> -245 | B177: =IF('DF raw data'!F177="","",'DF raw data'!F177) -> -3.00648e-05 | C177: =IF('DF raw data'!G177="","",'DF raw data'!G177) -> -5.5447e-06 | D177: =IF('DF raw data'!H177="","",'DF raw data'!H177) -> -3.4937e-05 | F177: -8.990250345e-06 | G177: 4.485244694e-05 | H177: 1.563430322e-06 | J177: 2.339109196e-05 | K177: 0.001791353946 | L177: 0.001820051485 | M177: 0.04990442131 | N177: 5.925750094e-05
A178: =IF('DF raw data'!E178="","",'DF raw data'!E178) -> -244.5 | B178: =IF('DF raw data'!F178="","",'DF raw data'!F178) -> -1.59519e-05 | C178: =IF('DF raw data'!G178="","",'DF raw data'!G178) -> 6.23996e-07 | D178: =IF('DF raw data'!H178="","",'DF raw data'!H178) -> -4.79245e-05 | F178: 5.208738345e-06 | G178: 5.105877198e-05 | H178: -1.150329343e-05 | J178: 2.599546113e-05 | K178: 0.001804351677 | L178: 0.001845580871 | M178: 0.05082721174 | N178: 6.096092319e-05
A179: =IF('DF raw data'!E179="","",'DF raw data'!E179) -> -244 | B179: =IF('DF raw data'!F179="","",'DF raw data'!F179) -> -2.8333e-05 | C179: =IF('DF raw data'!G179="","",'DF raw data'!G179) -> -3.9758e-06 | D179: =IF('DF raw data'!H179="","",'DF raw data'!H179) -> -3.61491e-05 | F179: -7.247886365e-06 | G179: 4.643091723e-05 | H179: 3.43936512e-07 | J179: 2.237151795e-05 | K179: 0.001815537436 | L179: 0.00186879633 | M179: 0.05176160991 | N179: 6.27073733e-05
A180: =IF('DF raw data'!E180="","",'DF raw data'!E180) -> -243.5 | B180: =IF('DF raw data'!F180="","",'DF raw data'!F180) -> -2.98626e-05 | C180: =IF('DF raw data'!G180="","",'DF raw data'!G180) -> -8.1326e-06 | D180: =IF('DF raw data'!H180="","",'DF raw data'!H180) -> -5.00425e-05 | F180: -8.786816925e-06 | G180: 4.224876075e-05 | H180: -1.363421323e-05 | J180: 1.797810949e-05 | K180: 0.00182452649 | L180: 0.00188992071 | M180: 0.05270657026 | N180: 6.449343505e-05
A181: =IF('DF raw data'!E181="","",'DF raw data'!E181) -> -243 | B181: =IF('DF raw data'!F181="","",'DF raw data'!F181) -> -2.15963e-05 | C181: =IF('DF raw data'!G181="","",'DF raw data'!G181) -> -1.73696e-05 | D181: =IF('DF raw data'!H181="","",'DF raw data'!H181) -> -4.37041e-05 | F181: -4.700924952e-07 | G181: 3.295541505e-05 | H181: -7.257148988e-06 | J181: 1.774306324e-05 | K181: 0.001833398022 | L181: 0.001906398418 | M181: 0.05365976947 | N181: 6.631076992e-05
A182: =IF('DF raw data'!E182="","",'DF raw data'!E182) -> -242.5 | B182: =IF('DF raw data'!F182="","",'DF raw data'!F182) -> -2.19721e-05 | C182: =IF('DF raw data'!G182="","",'DF raw data'!G182) -> -2.14955e-05 | D182: =IF('DF raw data'!H182="","",'DF raw data'!H182) -> -5.74528e-05 | F182: -8.481848752e-07 | G182: 2.880434706e-05 | H182: -2.108971606e-05 | J182: 1.73189708e-05 | K182: 0.001842057507 | L182: 0.001920800591 | M182: 0.05462016977 | N182: 6.815565735e-05
A183: =IF('DF raw data'!E183="","",'DF raw data'!E183) -> -242 | B183: =IF('DF raw data'!F183="","",'DF raw data'!F183) -> -3.27507e-05 | C183: =IF('DF raw data'!G183="","",'DF raw data'!G183) -> -2.47163e-05 | D183: =IF('DF raw data'!H183="","",'DF raw data'!H183) -> -4.54495e-05 | F183: -1.169253434e-05 | G183: 2.556390018e-05 | H183: -9.013195928e-06 | J183: 1.147270363e-05 | K183: 0.001847793859 | L183: 0.001933582542 | M183: 0.05558696104 | N183: 7.002509389e-05
A184: =IF('DF raw data'!E184="","",'DF raw data'!E184) -> -241.5 | B184: =IF('DF raw data'!F184="","",'DF raw data'!F184) -> -2.72412e-05 | C184: =IF('DF raw data'!G184="","",'DF raw data'!G184) -> -1.72293e-05 | D184: =IF('DF raw data'!H184="","",'DF raw data'!H184) -> -3.92105e-05 | F184: -6.149426385e-06 | G184: 3.309657088e-05 | H184: -2.736138028e-06 | J184: 8.39799044e-06 | K184: 0.001851992855 | L184: 0.001950130827 | M184: 0.05656202645 | N184: 7.192663427e-05
A185: =IF('DF raw data'!E185="","",'DF raw data'!E185) -> -241 | B185: =IF('DF raw data'!F185="","",'DF raw data'!F185) -> -2.435e-05 | C185: =IF('DF raw data'!G185="","",'DF raw data'!G185) -> -1.24064e-05 | D185: =IF('DF raw data'!H185="","",'DF raw data'!H185) -> -4.86106e-05 | F185: -3.240590065e-06 | G185: 3.794889057e-05 | H185: -1.219357864e-05 | J185: 6.777695407e-06 | K185: 0.001855381702 | L185: 0.001969105272 | M185: 0.05754657909 | N185: 7.386534503e-05
A186: =IF('DF raw data'!E186="","",'DF raw data'!E186) -> -240.5 | B186: =IF('DF raw data'!F186="","",'DF raw data'!F186) -> -2.86479e-05 | C186: =IF('DF raw data'!G186="","",'DF raw data'!G186) -> -1.39212e-05 | D186: =IF('DF raw data'!H186="","",'DF raw data'!H186) -> -4.4939e-05 | F186: -7.564707255e-06 | G186: 3.642485029e-05 | H186: -8.499581878e-06 | J186: 2.99534178e-06 | K186: 0.001856879373 | L186: 0.001987317697 | M186: 0.05854023794 | N186: 7.584006533e-05
A187: =IF('DF raw data'!E187="","",'DF raw data'!E187) -> -240 | B187: =IF('DF raw data'!F187="","",'DF raw data'!F187) -> -3.80733e-05 | C187: =IF('DF raw data'!G187="","",'DF raw data'!G187) -> -1.67634e-05 | D187: =IF('DF raw data'!H187="","",'DF raw data'!H187) -> -4.34386e-05 | F187: -1.70476022e-05 | G187: 3.356531287e-05 | H187: -6.990029438e-06 | J187: -5.528459318e-06 | K187: 0.001854115143 | L187: 0.002004100354 | M187: 0.05954228811 | N187: 7.784828972e-05
A188: =IF('DF raw data'!E188="","",'DF raw data'!E188) -> -239.5 | B188: =IF('DF raw data'!F188="","",'DF raw data'!F188) -> -3.8847e-05 | C188: =IF('DF raw data'!G188="","",'DF raw data'!G188) -> -2.80104e-05 | D188: =IF('DF raw data'!H188="","",'DF raw data'!H188) -> -3.6611e-05 | F188: -1.782602177e-05 | G188: 2.224970617e-05 | H188: -1.20781078e-07 | J188: -1.44414702e-05 | K188: 0.001846894408 | L188: 0.002015225207 | M188: 0.06054990072 | N188: 7.987896032e-05
A189: =IF('DF raw data'!E189="","",'DF raw data'!E189) -> -239 | B189: =IF('DF raw data'!F189="","",'DF raw data'!F189) -> -3.56968e-05 | C189: =IF('DF raw data'!G189="","",'DF raw data'!G189) -> -2.81859e-05 | D189: =IF('DF raw data'!H189="","",'DF raw data'!H189) -> -4.99575e-05 | F189: -1.465660555e-05 | G189: 2.207313562e-05 | H189: -1.354869473e-05 | J189: -2.176977297e-05 | K189: 0.001836009522 | L189: 0.002026261775 | M189: 0.0615630316 | N189: 8.193206567e-05
A190: =IF('DF raw data'!E190="","",'DF raw data'!E190) -> -238.5 | B190: =IF('DF raw data'!F190="","",'DF raw data'!F190) -> -3.55095e-05 | C190: =IF('DF raw data'!G190="","",'DF raw data'!G190) -> -1.7847e-05 | D190: =IF('DF raw data'!H190="","",'DF raw data'!H190) -> -4.24808e-05 | F190: -1.446816302e-05 | G190: 3.247510291e-05 | H190: -6.026386858e-06 | J190: -2.900385448e-05 | K190: 0.001821507595 | L190: 0.002042499326 | M190: 0.06258428127 | N190: 8.401838803e-05
A191: =IF('DF raw data'!E191="","",'DF raw data'!E191) -> -238 | B191: =IF('DF raw data'!F191="","",'DF raw data'!F191) -> -2.26143e-05 | C191: =IF('DF raw data'!G191="","",'DF raw data'!G191) -> -2.09528e-05 | D191: =IF('DF raw data'!H191="","",'DF raw data'!H191) -> -5.5753e-05 | F191: -1.494302295e-06 | G191: 2.935035753e-05 | H191: -1.937954728e-05 | J191: -2.975100563e-05 | K191: 0.001806632092 | L191: 0.002057174505 | M191: 0.06361286852 | N191: 8.613481406e-05
A192: =IF('DF raw data'!E192="","",'DF raw data'!E192) -> -237.5 | B192: =IF('DF raw data'!F192="","",'DF raw data'!F192) -> -2.83864e-05 | C192: =IF('DF raw data'!G192="","",'DF raw data'!G192) -> -1.57239e-05 | D192: =IF('DF raw data'!H192="","",'DF raw data'!H192) -> -5.27296e-05 | F192: -7.301612105e-06 | G192: 3.461115382e-05 | H192: -1.633770454e-05 | J192: -3.340181168e-05 | K192: 0.001789931186 | L192: 0.002074480082 | M192: 0.06465010856 | N192: 8.828710571e-05
A193: =IF('DF raw data'!E193="","",'DF raw data'!E193) -> -237 | B193: =IF('DF raw data'!F193="","",'DF raw data'!F193) -> -2.51848e-05 | C193: =IF('DF raw data'!G193="","",'DF raw data'!G193) -> -1.9251e-05 | D193: =IF('DF raw data'!H193="","",'DF raw data'!H193) -> -4.62962e-05 | F193: -4.080482345e-06 | G193: 3.106253851e-05 | H193: -9.865060798e-06 | J193: -3.544205285e-05 | K193: 0.00177221016 | L193: 0.002090011351 | M193: 0.06569511424 | N193: 9.04718075e-05
A194: =IF('DF raw data'!E194="","",'DF raw data'!E194) -> -236.5 | B194: =IF('DF raw data'!F194="","",'DF raw data'!F194) -> -3.05042e-05 | C194: =IF('DF raw data'!G194="","",'DF raw data'!G194) -> -1.90849e-05 | D194: =IF('DF raw data'!H194="","",'DF raw data'!H194) -> -4.93502e-05 | F194: -9.432330685e-06 | G194: 3.122965172e-05 | H194: -1.29376902e-05 | J194: -4.01582182e-05 | K194: 0.00175213105 | L194: 0.002105626177 | M194: 0.06674792732 | N194: 9.268944464e-05
A195: =IF('DF raw data'!E195="","",'DF raw data'!E195) -> -236 | B195: =IF('DF raw data'!F195="","",'DF raw data'!F195) -> -3.14613e-05 | C195: =IF('DF raw data'!G195="","",'DF raw data'!G195) -> -2.21045e-05 | D195: =IF('DF raw data'!H195="","",'DF raw data'!H195) -> -5.64967e-05 | F195: =(1-$G$1*($B$54-$G$2))*(B195-F$5) -> -1.0395269e-05 | G195: =(1-$G$1*($B$54-$G$2))*(C195-G$5) -> 2.819163216e-05 | H195: =(1-$G$1*($B$54-$G$2))*(D195-H$5) -> -2.012778385e-05 | J195: -4.535585269e-05 | K195: 0.001729453124 | L195: 0.002119721993 | M195: 0.06780778832 | N195: 9.493708388e-05
A196: =IF('DF raw data'!E196="","",'DF raw data'!E196) -> -235.5 | B196: =IF('DF raw data'!F196="","",'DF raw data'!F196) -> -3.74317e-05 | C196: =IF('DF raw data'!G196="","",'DF raw data'!G196) -> -2.63007e-05 | D196: =IF('DF raw data'!H196="","",'DF raw data'!H196) -> -4.41996e-05 | F196: -1.640208844e-05 | G196: 2.396983534e-05 | H196: -7.755671538e-06 | J196: =F196*$G$3+J195 -> -5.355689691e-05 | K196: =J196*$G$3+K195 -> 0.001702674676 | L196: =G196*$G$3+L195 -> 0.002131706911 | M196: =L196*$G$3+M195 -> 0.06887364178 | N196: =(J196^2+L196^2)*$G$3+N195 -> 9.721060523e-05
A197: =IF('DF raw data'!E197="","",'DF raw data'!E197) -> -235 | B197: =IF('DF raw data'!F197="","",'DF raw data'!F197) -> -2.27508e-05 | C197: =IF('DF raw data'!G197="","",'DF raw data'!G197) -> -3.27409e-05 | D197: =IF('DF raw data'!H197="","",'DF raw data'!H197) -> -4.30018e-05 | F197: -1.631634945e-06 | G197: 1.749035012e-05 | H197: -6.550564958e-06 | J197: -5.437271438e-05 | K197: 0.001675488318 | L197: 0.002140452086 | M197: 0.06994386782 | N197: 9.950285099e-05
A198: =IF('DF raw data'!E198="","",'DF raw data'!E198) -> -234.5 | B198: =IF('DF raw data'!F198="","",'DF raw data'!F198) -> -3.89691e-05 | C198: =IF('DF raw data'!G198="","",'DF raw data'!G198) -> -2.26667e-05 | D198: =IF('DF raw data'!H198="","",'DF raw data'!H198) -> -4.61813e-05 | F198: -1.794886658e-05 | G198: 2.762600274e-05 | H198: -9.749459908e-06 | J198: -6.334714767e-05 | K198: 0.001643814745 | L198: 0.002154265087 | M198: 0.07102100036 | N198: 0.0001018252865
A199: =IF('DF raw data'!E199="","",'DF raw data'!E199) -> -234 | B199: =IF('DF raw data'!F199="","",'DF raw data'!F199) -> -2.62689e-05 | C199: =IF('DF raw data'!G199="","",'DF raw data'!G199) -> -2.07406e-05 | D199: =IF('DF raw data'!H199="","",'DF raw data'!H199) -> -5.5503e-05 | F199: -5.171195355e-06 | G199: 2.956385195e-05 | H199: -1.912802228e-05 | J199: -6.593274535e-05 | K199: 0.001610848372 | L199: 0.002169047013 | M199: 0.07210552387 | N199: 0.0001041798425
A200: =IF('DF raw data'!E200="","",'DF raw data'!E200) -> -233.5 | B200: =IF('DF raw data'!F200="","",'DF raw data'!F200) -> -2.41601e-05 | C200: =IF('DF raw data'!G200="","",'DF raw data'!G200) -> -2.02399e-05 | D200: =IF('DF raw data'!H200="","",'DF raw data'!H200) -> -4.46903e-05 | F200: -3.049531675e-06 | G200: 3.006760622e-05 | H200: -8.249364808e-06 | J200: -6.745751119e-05 | K200: 0.001577119616 | L200: 0.002184080816 | M200: 0.07319756428 | N200: 0.0001065672223
... 1079 more rows

Sheet 20 mm
A1: =IF('DF raw data'!I1="","",'DF raw data'!I1) -> Number of header lines | B1: =IF('DF raw data'!J1="","",'DF raw data'!J1) -> 54 | C1: =IF('DF raw data'!C1="","",'DF raw data'!C1) ->  | D1: =IF('DF raw data'!D1="","",'DF raw data'!D1) ->  | F1: T_coeff | G1: -0.001 | H1: /degC | J1: IBy total | K1: =J1267*1000 -> -11.04615857 | L1: muTm | M1: =L1267*1000 -> -9.425006658 | R1: DF ref | S1: 1
A2: =IF('DF raw data'!I2="","",'DF raw data'!I2) -> Measured by | B2: =IF('DF raw data'!J2="","",'DF raw data'!J2) -> Danfysik | C2: =IF('DF raw data'!C2="","",'DF raw data'!C2) ->  | D2: =IF('DF raw data'!D2="","",'DF raw data'!D2) ->  | F2: Tcorr | G2: 20 | H2: degC | J2: JBy total | K2: =K1267 -> -8.449460546 | L2: muTm^2 | M2: =M1267 -> -0.6300100656
A3: =IF('DF raw data'!I3="","",'DF raw data'!I3) -> Operator | B3: =IF('DF raw data'!J3="","",'DF raw data'!J3) -> PMHA | C3: =IF('DF raw data'!C3="","",'DF raw data'!C3) ->  | D3: =IF('DF raw data'!D3="","",'DF raw data'!D3) ->  | F3: Step | G3: =A68-A67 -> 0.5 | H3: mm | J3: PI total | K3: =N1267 -> 5006.079073 | L3: T^2mm^3
A4: =IF('DF raw data'!I4="","",'DF raw data'!I4) -> Data-time | B4: =IF('DF raw data'!J4="","",'DF raw data'!J4) -> 03-10-2024, 17:39:30 | C4: =IF('DF raw data'!C4="","",'DF raw data'!C4) ->  | D4: =IF('DF raw data'!D4="","",'DF raw data'!D4) -> 
A5: =IF('DF raw data'!I5="","",'DF raw data'!I5) -> Project | B5: =IF('DF raw data'!J5="","",'DF raw data'!J5) -> 504314 | C5: =IF('DF raw data'!C5="","",'DF raw data'!C5) ->  | D5: Bamb avr | F5: =(AVERAGE(B67:B107) + AVERAGE(B1227:B1267))/2 -> -1.88532761e-05 | G5: =(AVERAGE(C67:C107) + AVERAGE(C1227:C1267))/2 -> 1.793923293e-06 | H5: =(AVERAGE(D67:D107) + AVERAGE(D1227:D1267))/2 -> -3.204325488e-05
A6: =IF('DF raw data'!I6="","",'DF raw data'!I6) -> Magnet type | B6: =IF('DF raw data'!J6="","",'DF raw data'!J6) -> Dipole | C6: =IF('DF raw data'!C6="","",'DF raw data'!C6) -> 
A7: =IF('DF raw data'!I7="","",'DF raw data'!I7) -> Magnet nr. | B7: =IF('DF raw data'!J7="","",'DF raw data'!J7) -> 2410086 | C7: =IF('DF raw data'!C7="","",'DF raw data'!C7) -> 
A8: =IF('DF raw data'!I8="","",'DF raw data'!I8) -> Meas. number | B8: =IF('DF raw data'!J8="","",'DF raw data'!J8) -> 1047 | C8: =IF('DF raw data'!C8="","",'DF raw data'!C8) -> 
A9: =IF('DF raw data'!I9="","",'DF raw data'!I9) -> Add. info | B9: =IF('DF raw data'!J9="","",'DF raw data'!J9) ->  | C9: =IF('DF raw data'!C9="","",'DF raw data'!C9) ->  | D9: =IF('DF raw data'!D9="","",'DF raw data'!D9) -> 
A10: =IF('DF raw data'!I10="","",'DF raw data'!I10) -> Device | B10: =IF('DF raw data'!J10="","",'DF raw data'!J10) -> (HAL) HALL-PROBE | C10: =IF('DF raw data'!C10="","",'DF raw data'!C10) ->  | D10: =IF('DF raw data'!D10="","",'DF raw data'!D10) -> 
A11: =IF('DF raw data'!I11="","",'DF raw data'!I11) -> Goal | B11: =IF('DF raw data'!J11="","",'DF raw data'!J11) -> (AXI) AXis Integral (Line, EFB) | C11: =IF('DF raw data'!C11="","",'DF raw data'!C11) ->  | D11: =IF('DF raw data'!D11="","",'DF raw data'!D11) -> 
A12: =IF('DF raw data'!I12="","",'DF raw data'!I12) -> Power supply mode | B12: =IF('DF raw data'!J12="","",'DF raw data'!J12) -> (PM) Permanent Magnet (no MPS in use) | C12: =IF('DF raw data'!C12="","",'DF raw data'!C12) ->  | D12: =IF('DF raw data'!D12="","",'DF raw data'!D12) -> 
A13: =IF('DF raw data'!I13="","",'DF raw data'!I13) -> Data format | B13: =IF('DF raw data'!J13="","",'DF raw data'!J13) -> Raw data text file | C13: =IF('DF raw data'!C13="","",'DF raw data'!C13) ->  | D13: =IF('DF raw data'!D13="","",'DF raw data'!D13) -> 
A14: =IF('DF raw data'!I14="","",'DF raw data'!I14) -> Direction of the pos. x-axis | B14: =IF('DF raw data'!J14="","",'DF raw data'!J14) -> See test program | C14: =IF('DF raw data'!C14="","",'DF raw data'!C14) ->  | D14: =IF('DF raw data'!D14="","",'DF raw data'!D14) -> 
A15: =IF('DF raw data'!I15="","",'DF raw data'!I15) -> Direction of the pos. y-axis | B15: =IF('DF raw data'!J15="","",'DF raw data'!J15) -> Vertical up | C15: =IF('DF raw data'!C15="","",'DF raw data'!C15) ->  | D15: =IF('DF raw data'!D15="","",'DF raw data'!D15) -> 
A16: =IF('DF raw data'!I16="","",'DF raw data'!I16) -> Direction of the pos. z-axis | B16: =IF('DF raw data'!J16="","",'DF raw data'!J16) -> See test program | C16: =IF('DF raw data'!C16="","",'DF raw data'!C16) ->  | D16: =IF('DF raw data'!D16="","",'DF raw data'!D16) -> 
A17: =IF('DF raw data'!I17="","",'DF raw data'!I17) -> Mapper type | B17: =IF('DF raw data'!J17="","",'DF raw data'!J17) -> Precision Hall Mapper | C17: =IF('DF raw data'!C17="","",'DF raw data'!C17) ->  | D17: =IF('DF raw data'!D17="","",'DF raw data'!D17) -> 
A18: =IF('DF raw data'!I18="","",'DF raw data'!I18) -> Mapper Danfysik Reg. Number | B18: =IF('DF raw data'!J18="","",'DF raw data'!J18) -> 2033-D (mapper 1) | C18: =IF('DF raw data'!C18="","",'DF raw data'!C18) ->  | D18: =IF('DF raw data'!D18="","",'DF raw data'!D18) -> 
A19: =IF('DF raw data'!I19="","",'DF raw data'!I19) -> Measurement consept | B19: =IF('DF raw data'!J19="","",'DF raw data'!J19) -> Square line grid | C19: =IF('DF raw data'!C19="","",'DF raw data'!C19) ->  | D19: =IF('DF raw data'!D19="","",'DF raw data'!D19) -> 
A20: =IF('DF raw data'!I20="","",'DF raw data'!I20) -> Mode | B20: =IF('DF raw data'!J20="","",'DF raw data'!J20) -> On-the-fly measurement | C20: =IF('DF raw data'!C20="","",'DF raw data'!C20) ->  | D20: =IF('DF raw data'!D20="","",'DF raw data'!D20) -> 
A21: =IF('DF raw data'!I21="","",'DF raw data'!I21) ->  | B21: =IF('DF raw data'!J21="","",'DF raw data'!J21) ->  | C21: =IF('DF raw data'!C21="","",'DF raw data'!C21) ->  | D21: =IF('DF raw data'!D21="","",'DF raw data'!D21) -> 
A22: =IF('DF raw data'!I22="","",'DF raw data'!I22) -> Probe Name | B22: =IF('DF raw data'!J22="","",'DF raw data'!J22) -> ID12_By | C22: =IF('DF raw data'!C22="","",'DF raw data'!C22) ->  | D22: =IF('DF raw data'!D22="","",'DF raw data'!D22) -> 
A23: =IF('DF raw data'!I23="","",'DF raw data'!I23) -> Probe Type | B23: =IF('DF raw data'!J23="","",'DF raw data'!J23) -> DF_ID_3D_Bxyz | C23: =IF('DF raw data'!C23="","",'DF raw data'!C23) ->  | D23: =IF('DF raw data'!D23="","",'DF raw data'!D23) -> 
A24: =IF('DF raw data'!I24="","",'DF raw data'!I24) -> Probe Danfysik Reg. Number | B24: =IF('DF raw data'!J24="","",'DF raw data'!J24) -> 2277 | C24: =IF('DF raw data'!C24="","",'DF raw data'!C24) ->  | D24: =IF('DF raw data'!D24="","",'DF raw data'!D24) -> 
A25: =IF('DF raw data'!I25="","",'DF raw data'!I25) -> Probe Axis | B25: =IF('DF raw data'!J25="","",'DF raw data'!J25) -> By | C25: =IF('DF raw data'!C25="","",'DF raw data'!C25) ->  | D25: =IF('DF raw data'!D25="","",'DF raw data'!D25) -> 
A26: =IF('DF raw data'!I26="","",'DF raw data'!I26) -> Probe Current Supply | B26: =IF('DF raw data'!J26="","",'DF raw data'!J26) -> 1825-D | C26: =IF('DF raw data'!C26="","",'DF raw data'!C26) ->  | D26: =IF('DF raw data'!D26="","",'DF raw data'!D26) -> 
A27: =IF('DF raw data'!I27="","",'DF raw data'!I27) -> Probe Gain Correction | B27: =IF('DF raw data'!J27="","",'DF raw data'!J27) -> 0.99613 | C27: =IF('DF raw data'!C27="","",'DF raw data'!C27) ->  | D27: =IF('DF raw data'!D27="","",'DF raw data'!D27) -> 
A28: =IF('DF raw data'!I28="","",'DF raw data'!I28) -> Probe Offset Correction | B28: =IF('DF raw data'!J28="","",'DF raw data'!J28) -> 0.0027394 | C28: =IF('DF raw data'!C28="","",'DF raw data'!C28) ->  | D28: =IF('DF raw data'!D28="","",'DF raw data'!D28) -> 
A29: =IF('DF raw data'!I29="","",'DF raw data'!I29) -> DVM Number | B29: =IF('DF raw data'!J29="","",'DF raw data'!J29) -> 2 | C29: =IF('DF raw data'!C29="","",'DF raw data'!C29) ->  | D29: =IF('DF raw data'!D29="","",'DF raw data'!D29) -> 
A30: =IF('DF raw data'!I30="","",'DF raw data'!I30) -> DVM Type | B30: =IF('DF raw data'!J30="","",'DF raw data'!J30) -> K2701 | C30: =IF('DF raw data'!C30="","",'DF raw data'!C30) ->  | D30: =IF('DF raw data'!D30="","",'DF raw data'!D30) -> 
A31: =IF('DF raw data'!I31="","",'DF raw data'!I31) -> DVM Danfysik Reg. Number | B31: =IF('DF raw data'!J31="","",'DF raw data'!J31) -> 1743-D | C31: =IF('DF raw data'!C31="","",'DF raw data'!C31) ->  | D31: =IF('DF raw data'!D31="","",'DF raw data'!D31) -> 
A32: =IF('DF raw data'!I32="","",'DF raw data'!I32) -> Probe Name | B32: =IF('DF raw data'!J32="","",'DF raw data'!J32) -> ID12_Bx | C32: =IF('DF raw data'!C32="","",'DF raw data'!C32) ->  | D32: =IF('DF raw data'!D32="","",'DF raw data'!D32) -> 
A33: =IF('DF raw data'!I33="","",'DF raw data'!I33) -> Probe Type | B33: =IF('DF raw data'!J33="","",'DF raw data'!J33) -> DF_ID_3D_Bxyz | C33: =IF('DF raw data'!C33="","",'DF raw data'!C33) ->  | D33: =IF('DF raw data'!D33="","",'DF raw data'!D33) -> 
A34: =IF('DF raw data'!I34="","",'DF raw data'!I34) -> Probe Danfysik Reg. Number | B34: =IF('DF raw data'!J34="","",'DF raw data'!J34) -> 2277 | C34: =IF('DF raw data'!C34="","",'DF raw data'!C34) ->  | D34: =IF('DF raw data'!D34="","",'DF raw data'!D34) -> 
A35: =IF('DF raw data'!I35="","",'DF raw data'!I35) -> Probe Axis | B35: =IF('DF raw data'!J35="","",'DF raw data'!J35) -> Bx | C35: =IF('DF raw data'!C35="","",'DF raw data'!C35) ->  | D35: =IF('DF raw data'!D35="","",'DF raw data'!D35) -> 
A36: =IF('DF raw data'!I36="","",'DF raw data'!I36) -> Probe Current Supply | B36: =IF('DF raw data'!J36="","",'DF raw data'!J36) -> 1825-D | C36: =IF('DF raw data'!C36="","",'DF raw data'!C36) ->  | D36: =IF('DF raw data'!D36="","",'DF raw data'!D36) -> 
A37: =IF('DF raw data'!I37="","",'DF raw data'!I37) -> Probe Gain Correction | B37: =IF('DF raw data'!J37="","",'DF raw data'!J37) -> 1 | C37: =IF('DF raw data'!C37="","",'DF raw data'!C37) ->  | D37: =IF('DF raw data'!D37="","",'DF raw data'!D37) -> 
A38: =IF('DF raw data'!I38="","",'DF raw data'!I38) -> Probe Offset Correction | B38: =IF('DF raw data'!J38="","",'DF raw data'!J38) -> -0.17584 | C38: =IF('DF raw data'!C38="","",'DF raw data'!C38) ->  | D38: =IF('DF raw data'!D38="","",'DF raw data'!D38) -> 
A39: =IF('DF raw data'!I39="","",'DF raw data'!I39) -> DVM Number | B39: =IF('DF raw data'!J39="","",'DF raw data'!J39) -> 3 | C39: =IF('DF raw data'!C39="","",'DF raw data'!C39) ->  | D39: =IF('DF raw data'!D39="","",'DF raw data'!D39) -> 
A40: =IF('DF raw data'!I40="","",'DF raw data'!I40) -> DVM Type | B40: =IF('DF raw data'!J40="","",'DF raw data'!J40) -> K2701 | C40: =IF('DF raw data'!C40="","",'DF raw data'!C40) ->  | D40: =IF('DF raw data'!D40="","",'DF raw data'!D40) -> 
A41: =IF('DF raw data'!I41="","",'DF raw data'!I41) -> DVM Danfysik Reg. Number | B41: =IF('DF raw data'!J41="","",'DF raw data'!J41) -> 1744-D | C41: =IF('DF raw data'!C41="","",'DF raw data'!C41) ->  | D41: =IF('DF raw data'!D41="","",'DF raw data'!D41) -> 
A42: =IF('DF raw data'!I42="","",'DF raw data'!I42) -> Probe Name | B42: =IF('DF raw data'!J42="","",'DF raw data'!J42) -> ID12_Bz | C42: =IF('DF raw data'!C42="","",'DF raw data'!C42) ->  | D42: =IF('DF raw data'!D42="","",'DF raw data'!D42) -> 
A43: =IF('DF raw data'!I43="","",'DF raw data'!I43) -> Probe Type | B43: =IF('DF raw data'!J43="","",'DF raw data'!J43) -> DF_ID_3D_Bxyz | C43: =IF('DF raw data'!C43="","",'DF raw data'!C43) ->  | D43: =IF('DF raw data'!D43="","",'DF raw data'!D43) -> 
A44: =IF('DF raw data'!I44="","",'DF raw data'!I44) -> Probe Danfysik Reg. Number | B44: =IF('DF raw data'!J44="","",'DF raw data'!J44) -> 2277 | C44: =IF('DF raw data'!C44="","",'DF raw data'!C44) ->  | D44: =IF('DF raw data'!D44="","",'DF raw data'!D44) -> 
A45: =IF('DF raw data'!I45="","",'DF raw data'!I45) -> Probe Axis | B45: =IF('DF raw data'!J45="","",'DF raw data'!J45) -> Bz | C45: =IF('DF raw data'!C45="","",'DF raw data'!C45) ->  | D45: =IF('DF raw data'!D45="","",'DF raw data'!D45) -> 
A46: =IF('DF raw data'!I46="","",'DF raw data'!I46) -> Probe Current Supply | B46: =IF('DF raw data'!J46="","",'DF raw data'!J46) -> 1825-D | C46: =IF('DF raw data'!C46="","",'DF raw data'!C46) ->  | D46: =IF('DF raw data'!D46="","",'DF raw data'!D46) -> 
A47: =IF('DF raw data'!I47="","",'DF raw data'!I47) -> Probe Gain Correction | B47: =IF('DF raw data'!J47="","",'DF raw data'!J47) -> 1 | C47: =IF('DF raw data'!C47="","",'DF raw data'!C47) ->  | D47: =IF('DF raw data'!D47="","",'DF raw data'!D47) -> 
A48: =IF('DF raw data'!I48="","",'DF raw data'!I48) -> Probe Offset Correction | B48: =IF('DF raw data'!J48="","",'DF raw data'!J48) -> 0.0073634 | C48: =IF('DF raw data'!C48="","",'DF raw data'!C48) ->  | D48: =IF('DF raw data'!D48="","",'DF raw data'!D48) -> 
A49: =IF('DF raw data'!I49="","",'DF raw data'!I49) -> DVM Number | B49: =IF('DF raw data'!J49="","",'DF raw data'!J49) -> 8 | C49: =IF('DF raw data'!C49="","",'DF raw data'!C49) ->  | D49: =IF('DF raw data'!D49="","",'DF raw data'!D49) -> 
A50: =IF('DF raw data'!I50="","",'DF raw data'!I50) -> DVM Type | B50: =IF('DF raw data'!J50="","",'DF raw data'!J50) -> K2700 | C50: =IF('DF raw data'!C50="","",'DF raw data'!C50) ->  | D50: =IF('DF raw data'!D50="","",'DF raw data'!D50) -> 
A51: =IF('DF raw data'!I51="","",'DF raw data'!I51) -> DVM Danfysik Reg. Number | B51: =IF('DF raw data'!J51="","",'DF raw data'!J51) -> 1756-D | C51: =IF('DF raw data'!C51="","",'DF raw data'!C51) ->  | D51: =IF('DF raw data'!D51="","",'DF raw data'!D51) -> 
A52: =IF('DF raw data'!I52="","",'DF raw data'!I52) -> NTC voltage | B52: =IF('DF raw data'!J52="","",'DF raw data'!J52) -> 0.40178 | C52: =IF('DF raw data'!C52="","",'DF raw data'!C52) ->  | D52: =IF('DF raw data'!D52="","",'DF raw data'!D52) -> 
A53: =IF('DF raw data'!I53="","",'DF raw data'!I53) -> PS-Gap: | B53: =IF('DF raw data'!J53="","",'DF raw data'!J53) -> 20 | C53: =IF('DF raw data'!C53="","",'DF raw data'!C53) ->  | D53: =IF('DF raw data'!D53="","",'DF raw data'!D53) -> 
A54: =IF('DF raw data'!I54="","",'DF raw data'!I54) -> PS-Temperature: | B54: =IF('DF raw data'!J54="","",'DF raw data'!J54) -> 26 | C54: =IF('DF raw data'!C54="","",'DF raw data'!C54) ->  | D54: =IF('DF raw data'!D54="","",'DF raw data'!D54) -> 
A55: =IF('DF raw data'!I55="","",'DF raw data'!I55) -> PS-Encoder: | B55: =IF('DF raw data'!J55="","",'DF raw data'!J55) -> 29.8502 | C55: =IF('DF raw data'!C55="","",'DF raw data'!C55) ->  | D55: =IF('DF raw data'!D55="","",'DF raw data'!D55) -> 
A56: =IF('DF raw data'!I56="","",'DF raw data'!I56) ->  | B56: =IF('DF raw data'!J56="","",'DF raw data'!J56) -> 
A57: =IF('DF raw data'!I57="","",'DF raw data'!I57) -> Monitor-Index | B57: =IF('DF raw data'!J57="","",'DF raw data'!J57) -> [1,1,4]
A58: =IF('DF raw data'!I58="","",'DF raw data'!I58) ->  | B58: =IF('DF raw data'!J58="","",'DF raw data'!J58) -> 
A59: =IF('DF raw data'!I59="","",'DF raw data'!I59) -> Time [s] | B59: =IF('DF raw data'!J59="","",'DF raw data'!J59) -> Y [mm]
A60: =IF('DF raw data'!I60="","",'DF raw data'!I60) ->  | B60: =IF('DF raw data'!J60="","",'DF raw data'!J60) -> 
A61: =IF('DF raw data'!I61="","",'DF raw data'!I61) -> 206.2 | B61: =IF('DF raw data'!J61="","",'DF raw data'!J61) -> 31.45
A62: =IF('DF raw data'!I62="","",'DF raw data'!I62) ->  | B62: =IF('DF raw data'!J62="","",'DF raw data'!J62) -> 
A63: =IF('DF raw data'!I63="","",'DF raw data'!I63) -> Measurement-Index | B63: =IF('DF raw data'!J63="","",'DF raw data'!J63) -> [1,1,1201,2]
A64: =IF('DF raw data'!I64="","",'DF raw data'!I64) ->  | B64: =IF('DF raw data'!J64="","",'DF raw data'!J64) -> 
A65: =IF('DF raw data'!I65="","",'DF raw data'!I65) -> Z [mm] | B65: =IF('DF raw data'!J65="","",'DF raw data'!J65) -> By [T] | C65: =IF('DF raw data'!K65="","",'DF raw data'!K65) -> Bx [T] | D65: =IF('DF raw data'!L65="","",'DF raw data'!L65) -> Bz [T] | F65: By_corr | G65: Bx_corr | H65: Bz_corr | J65: Iy | K65: Jy | L65: Ix | M65: Jx | N65: PI
A66: =IF('DF raw data'!I66="","",'DF raw data'!I66) -> [1, 0, 0, 0] | B66: =IF('DF raw data'!J66="","",'DF raw data'!J66) ->  | C66: =IF('DF raw data'!K66="","",'DF raw data'!K66) ->  | D66: =IF('DF raw data'!L66="","",'DF raw data'!L66) -> 
A67: =IF('DF raw data'!I67="","",'DF raw data'!I67) -> -300 | B67: =IF('DF raw data'!J67="","",'DF raw data'!J67) -> -1.89799e-05 | C67: =IF('DF raw data'!K67="","",'DF raw data'!K67) -> 2.96154e-05 | D67: =IF('DF raw data'!L67="","",'DF raw data'!L67) -> -3.44542e-05 | F67: =(1-$G$1*($B$54-$G$2))*(B67-F$5) -> -1.273836459e-07 | G67: =(1-$G$1*($B$54-$G$2))*(C67-G$5) -> 2.798840557e-05 | H67: =(1-$G$1*($B$54-$G$2))*(D67-H$5) -> -2.425410793e-06 | J67: =F67*$G$3+J66 -> -6.369182293e-08 | K67: =J67*$G$3+K66 -> -3.184591146e-08 | L67: =G67*$G$3+L66 -> 1.399420278e-05 | M67: =L67*$G$3+M66 -> 6.997101392e-06 | N67: =(J67^2+L67^2)*$G$3+N66 -> 9.79208841e-11
A68: =IF('DF raw data'!I68="","",'DF raw data'!I68) -> -299.5 | B68: =IF('DF raw data'!J68="","",'DF raw data'!J68) -> -2.4814e-05 | C68: =IF('DF raw data'!K68="","",'DF raw data'!K68) -> 1.80584e-05 | D68: =IF('DF raw data'!L68="","",'DF raw data'!L68) -> -3.42419e-05 | F68: -5.996488246e-06 | G68: 1.636206357e-05 | H68: -2.211836993e-06 | J68: =F68*$G$3+J67 -> -3.061935946e-06 | K68: =J68*$G$3+K67 -> -1.562813884e-06 | L68: =G68*$G$3+L67 -> 2.217523457e-05 | M68: =L68*$G$3+M67 -> 1.808471868e-05 | N68: =(J68^2+L68^2)*$G$3+N67 -> 3.48479124e-10
A69: =IF('DF raw data'!I69="","",'DF raw data'!I69) -> -299 | B69: =IF('DF raw data'!J69="","",'DF raw data'!J69) -> -2.28268e-05 | C69: =IF('DF raw data'!K69="","",'DF raw data'!K69) -> 1.76003e-05 | D69: =IF('DF raw data'!L69="","",'DF raw data'!L69) -> -3.38321e-05 | F69: -3.997365046e-06 | G69: 1.590121497e-05 | H69: -1.799578193e-06 | J69: -5.060618469e-06 | K69: -4.093123119e-06 | L69: 3.012584205e-05 | M69: 3.31476397e-05 | N69: 8.150672333e-10
A70: =IF('DF raw data'!I70="","",'DF raw data'!I70) -> -298.5 | B70: =IF('DF raw data'!J70="","",'DF raw data'!J70) -> -2.61607e-05 | C70: =IF('DF raw data'!K70="","",'DF raw data'!K70) -> 1.26835e-05 | D70: =IF('DF raw data'!L70="","",'DF raw data'!L70) -> -3.33121e-05 | F70: -7.351268446e-06 | G70: 1.095491417e-05 | H70: -1.276458193e-06 | J70: -8.736252692e-06 | K70: -8.461249465e-06 | L70: 3.560329914e-05 | M70: 5.094928927e-05 | N70: 1.487025744e-09
A71: =IF('DF raw data'!I71="","",'DF raw data'!I71) -> -298 | B71: =IF('DF raw data'!J71="","",'DF raw data'!J71) -> -2.80201e-05 | C71: =IF('DF raw data'!K71="","",'DF raw data'!K71) -> 1.66317e-05 | D71: =IF('DF raw data'!L71="","",'DF raw data'!L71) -> -3.31058e-05 | F71: -9.221824846e-06 | G71: 1.492680337e-05 | H71: -1.068920393e-06 | J71: -1.334716511e-05 | K71: -1.513483202e-05 | L71: 4.306670082e-05 | M71: 7.248263968e-05 | N71: 2.503469512e-09
A72: =IF('DF raw data'!I72="","",'DF raw data'!I72) -> -297.5 | B72: =IF('DF raw data'!J72="","",'DF raw data'!J72) -> -1.30821e-05 | C72: =IF('DF raw data'!K72="","",'DF raw data'!K72) -> 1.80764e-05 | D72: =IF('DF raw data'!L72="","",'DF raw data'!L72) -> -3.37135e-05 | F72: 5.805803154e-06 | G72: 1.638017157e-05 | H72: -1.680266593e-06 | J72: -1.044426354e-05 | K72: -2.035696379e-05 | L72: 5.12567866e-05 | M72: 9.811103298e-05 | N72: 3.871639918e-09
A73: =IF('DF raw data'!I73="","",'DF raw data'!I73) -> -297 | B73: =IF('DF raw data'!J73="","",'DF raw data'!J73) -> -3.21224e-05 | C73: =IF('DF raw data'!K73="","",'DF raw data'!K73) -> 1.70787e-05 | D73: =IF('DF raw data'!L73="","",'DF raw data'!L73) -> -3.41333e-05 | F73: -1.334873865e-05 | G73: 1.537648537e-05 | H73: -2.102585393e-06 | J73: -1.711863286e-05 | K73: -2.891628022e-05 | L73: 5.894502929e-05 | M73: 0.0001275835476 | N73: 5.755421953e-09
A74: =IF('DF raw data'!I74="","",'DF raw data'!I74) -> -296.5 | B74: =IF('DF raw data'!J74="","",'DF raw data'!J74) -> -2.52631e-05 | C74: =IF('DF raw data'!K74="","",'DF raw data'!K74) -> 1.74503e-05 | D74: =IF('DF raw data'!L74="","",'DF raw data'!L74) -> -3.34833e-05 | F74: -6.448282846e-06 | G74: 1.575031497e-05 | H74: -1.448685393e-06 | J74: -2.034277428e-05 | K74: -3.908766736e-05 | L74: 6.682018677e-05 | M74: 0.000160993641 | N74: 8.194804865e-09
A75: =IF('DF raw data'!I75="","",'DF raw data'!I75) -> -296 | B75: =IF('DF raw data'!J75="","",'DF raw data'!J75) -> -3.39186e-05 | C75: =IF('DF raw data'!K75="","",'DF raw data'!K75) -> 7.76179e-06 | D75: =IF('DF raw data'!L75="","",'DF raw data'!L75) -> -3.22554e-05 | F75: -1.515571585e-05 | G75: 6.003673908e-06 | H75: -2.134179927e-07 | J75: -2.792063221e-05 | K75: -5.304798347e-05 | L75: 6.982202372e-05 | M75: 0.0001959046529 | N75: 1.102214322e-08
A76: =IF('DF raw data'!I76="","",'DF raw data'!I76) -> -295.5 | B76: =IF('DF raw data'!J76="","",'DF raw data'!J76) -> -1.73145e-05 | C76: =IF('DF raw data'!K76="","",'DF raw data'!K76) -> 9.34935e-06 | D76: =IF('DF raw data'!L76="","",'DF raw data'!L76) -> -3.2233e-05 | F76: 1.548008754e-06 | G76: 7.600759268e-06 | H76: -1.908835927e-07 | J76: -2.714662783e-05 | K76: -6.662129738e-05 | L76: 7.362240336e-05 | M76: 0.0002327158545 | N76: 1.410074205e-08
A77: =IF('DF raw data'!I77="","",'DF raw data'!I77) -> -295 | B77: =IF('DF raw data'!J77="","",'DF raw data'!J77) -> -1.10308e-05 | C77: =IF('DF raw data'!K77="","",'DF raw data'!K77) -> 1.47624e-05 | D77: =IF('DF raw data'!L77="","",'DF raw data'!L77) -> -3.34296e-05 | F77: 7.869410954e-06 | G77: 1.304628757e-05 | H77: -1.394663193e-06 | J77: -2.321192235e-05 | K77: -7.822725856e-05 | L77: 8.014554714e-05 | M77: 0.0002727886281 | N77: 1.758179309e-08
A78: =IF('DF raw data'!I78="","",'DF raw data'!I78) -> -294.5 | B78: =IF('DF raw data'!J78="","",'DF raw data'!J78) -> -2.67374e-05 | C78: =IF('DF raw data'!K78="","",'DF raw data'!K78) -> 1.05715e-05 | D78: =IF('DF raw data'!L78="","",'DF raw data'!L78) -> -3.39901e-05 | F78: -7.931428646e-06 | G78: 8.830242168e-06 | H78: -1.958526193e-06 | J78: -2.717763668e-05 | K78: -9.181607689e-05 | L78: 8.456066823e-05 | M78: 0.0003150689622 | N78: 2.152635836e-08
A79: =IF('DF raw data'!I79="","",'DF raw data'!I79) -> -294 | B79: =IF('DF raw data'!J79="","",'DF raw data'!J79) -> -2.2827e-05 | C79: =IF('DF raw data'!K79="","",'DF raw data'!K79) -> 7.33999e-06 | D79: =IF('DF raw data'!L79="","",'DF raw data'!L79) -> -3.34309e-05 | F79: -3.997566246e-06 | G79: 5.579343108e-06 | H79: -1.395970993e-06 | J79: -2.91764198e-05 | K79: -0.0001064042868 | L79: 8.735033978e-05 | M79: 0.0003587441321 | N79: 2.576703103e-08
A80: =IF('DF raw data'!I80="","",'DF raw data'!I80) -> -293.5 | B80: =IF('DF raw data'!J80="","",'DF raw data'!J80) -> -2.16733e-05 | C80: =IF('DF raw data'!K80="","",'DF raw data'!K80) -> 1.40565e-05 | D80: =IF('DF raw data'!L80="","",'DF raw data'!L80) -> -3.29991e-05 | F80: -2.836944046e-06 | G80: 1.233615217e-05 | H80: -9.615801927e-07 | J80: -3.059489182e-05 | K80: -0.0001217017327 | L80: 9.351841586e-05 | M80: 0.0004055033401 | N80: 3.060790178e-08
A81: =IF('DF raw data'!I81="","",'DF raw data'!I81) -> -293 | B81: =IF('DF raw data'!J81="","",'DF raw data'!J81) -> -1.72495e-05 | C81: =IF('DF raw data'!K81="","",'DF raw data'!K81) -> 9.74126e-06 | D81: =IF('DF raw data'!L81="","",'DF raw data'!L81) -> -3.33567e-05 | F81: 1.613398754e-06 | G81: 7.995020728e-06 | H81: -1.321325793e-06 | J81: -2.978819244e-05 | K81: -0.0001365958289 | L81: 9.751592623e-05 | M81: 0.0004542613032 | N81: 3.580624792e-08
A82: =IF('DF raw data'!I82="","",'DF raw data'!I82) -> -292.5 | B82: =IF('DF raw data'!J82="","",'DF raw data'!J82) -> -2.0711e-05 | C82: =IF('DF raw data'!K82="","",'DF raw data'!K82) -> 1.31739e-05 | D82: =IF('DF raw data'!L82="","",'DF raw data'!L82) -> -3.38509e-05 | F82: -1.868870246e-06 | G82: 1.144825657e-05 | H82: -1.818490993e-06 | J82: -3.072262757e-05 | K82: -0.0001519571427 | L82: 0.0001032400545 | M82: 0.0005058813304 | N82: 4.160744227e-08
A83: =IF('DF raw data'!I83="","",'DF raw data'!I83) -> -292 | B83: =IF('DF raw data'!J83="","",'DF raw data'!J83) -> -2.26985e-05 | C83: =IF('DF raw data'!K83="","",'DF raw data'!K83) -> 2.66289e-05 | D83: =IF('DF raw data'!L83="","",'DF raw data'!L83) -> -3.3897e-05 | F83: -3.868295246e-06 | G83: 2.498398657e-05 | H83: -1.864867593e-06 | J83: -3.265677519e-05 | K83: -0.0001682855303 | L83: 0.0001157320478 | M83: 0.0005637473543 | N83: 4.88376282e-08
A84: =IF('DF raw data'!I84="","",'DF raw data'!I84) -> -291.5 | B84: =IF('DF raw data'!J84="","",'DF raw data'!J84) -> -2.5895e-05 | C84: =IF('DF raw data'!K84="","",'DF raw data'!K84) -> 2.15232e-05 | D84: =IF('DF raw data'!L84="","",'DF raw data'!L84) -> -4.76454e-05 | F84: -7.083974246e-06 | G84: 1.984765237e-05 | H84: -1.569575799e-05 | J84: -3.619876231e-05 | K84: -0.0001863849115 | L84: 0.000125655874 | M84: 0.0006265752913 | N84: 5.738750273e-08
A85: =IF('DF raw data'!I85="","",'DF raw data'!I85) -> -291 | B85: =IF('DF raw data'!J85="","",'DF raw data'!J85) -> -2.26912e-05 | C85: =IF('DF raw data'!K85="","",'DF raw data'!K85) -> 9.44914e-06 | D85: =IF('DF raw data'!L85="","",'DF raw data'!L85) -> -4.51096e-05 | F85: -3.860951446e-06 | G85: 7.701148008e-06 | H85: -1.314474319e-05 | J85: -3.812923804e-05 | K85: -0.0002054495305 | L85: 0.000129506448 | M85: 0.0006913285153 | N85: 6.650038216e-08
A86: =IF('DF raw data'!I86="","",'DF raw data'!I86) -> -290.5 | B86: =IF('DF raw data'!J86="","",'DF raw data'!J86) -> -2.31409e-05 | C86: =IF('DF raw data'!K86="","",'DF raw data'!K86) -> 1.9983e-05 | D86: =IF('DF raw data'!L86="","",'DF raw data'!L86) -> -4.39373e-05 | F86: -4.313349646e-06 | G86: 1.829821117e-05 | H86: -1.196540939e-05 | J86: -4.028591286e-05 | K86: -0.0002255924869 | L86: 0.0001386555536 | M86: 0.0007606562921 | N86: 7.692454081e-08
A87: =IF('DF raw data'!I87="","",'DF raw data'!I87) -> -290 | B87: =IF('DF raw data'!J87="","",'DF raw data'!J87) -> -1.87222e-05 | C87: =IF('DF raw data'!K87="","",'DF raw data'!K87) -> 2.60856e-05 | D87: =IF('DF raw data'!L87="","",'DF raw data'!L87) -> -3.6355e-05 | F87: 1.318625541e-07 | G87: 2.443742677e-05 | H87: -4.337615593e-06 | J87: -4.021998158e-05 | K87: -0.0002457024777 | L87: 0.0001508742669 | M87: 0.0008360934256 | N87: 8.911488648e-08
A88: =IF('DF raw data'!I88="","",'DF raw data'!I88) -> -289.5 | B88: =IF('DF raw data'!J88="","",'DF raw data'!J88) -> -2.61001e-05 | C88: =IF('DF raw data'!K88="","",'DF raw data'!K88) -> 2.99069e-05 | D88: =IF('DF raw data'!L88="","",'DF raw data'!L88) -> -2.82031e-05 | F88: -7.290304846e-06 | G88: 2.828165457e-05 | H88: 3.863195807e-06 | J88: -4.3865134e-05 | K88: -0.0002676350447 | L88: 0.0001650150942 | M88: 0.0009186009727 | N88: 1.036919521e-07
A89: =IF('DF raw data'!I89="","",'DF raw data'!I89) -> -289 | B89: =IF('DF raw data'!J89="","",'DF raw data'!J89) -> -2.12874e-05 | C89: =IF('DF raw data'!K89="","",'DF raw data'!K89) -> 2.07896e-05 | D89: =IF('DF raw data'!L89="","",'DF raw data'!L89) -> -3.49577e-05 | F89: -2.448728646e-06 | G89: 1.910965077e-05 | H89: -2.931931793e-06 | J89: -4.508949833e-05 | K89: -0.0002901797939 | L89: 0.0001745699196 | M89: 0.001005885932 | N89: 1.19945812e-07
A90: =IF('DF raw data'!I90="","",'DF raw data'!I90) -> -288.5 | B90: =IF('DF raw data'!J90="","",'DF raw data'!J90) -> -1.46887e-05 | C90: =IF('DF raw data'!K90="","",'DF raw data'!K90) -> 2.6172e-05 | D90: =IF('DF raw data'!L90="","",'DF raw data'!L90) -> -2.79656e-05 | F90: 4.189563554e-06 | G90: 2.452434517e-05 | H90: 4.102120807e-06 | J90: -4.299471655e-05 | K90: -0.0003116771521 | L90: 0.0001868320922 | M90: 0.001099301979 | N90: 1.383232001e-07
A91: =IF('DF raw data'!I91="","",'DF raw data'!I91) -> -288 | B91: =IF('DF raw data'!J91="","",'DF raw data'!J91) -> -1.78944e-05 | C91: =IF('DF raw data'!K91="","",'DF raw data'!K91) -> 2.92999e-05 | D91: =IF('DF raw data'!L91="","",'DF raw data'!L91) -> -2.74756e-05 | F91: 9.646293541e-07 | G91: 2.767101257e-05 | H91: 4.595060807e-06 | J91: -4.251240187e-05 | K91: -0.0003329333531 | L91: 0.0002006675985 | M91: 0.001199635778 | N91: 1.593605948e-07
A92: =IF('DF raw data'!I92="","",'DF raw data'!I92) -> -287.5 | B92: =IF('DF raw data'!J92="","",'DF raw data'!J92) -> -2.25754e-05 | C92: =IF('DF raw data'!K92="","",'DF raw data'!K92) -> 2.38446e-05 | D92: =IF('DF raw data'!L92="","",'DF raw data'!L92) -> -2.60482e-05 | F92: -3.744456646e-06 | G92: 2.218298077e-05 | H92: 6.031025207e-06 | J92: -4.43846302e-05 | K92: -0.0003551256682 | L92: 0.0002117590889 | M92: 0.001305515322 | N92: 1.827665484e-07
A93: =IF('DF raw data'!I93="","",'DF raw data'!I93) -> -287 | B93: =IF('DF raw data'!J93="","",'DF raw data'!J93) -> -6.86904e-06 | C93: =IF('DF raw data'!K93="","",'DF raw data'!K93) -> 2.14333e-05 | D93: =IF('DF raw data'!L93="","",'DF raw data'!L93) -> -2.51489e-05 | F93: 1.205614151e-05 | G93: 1.975721297e-05 | H93: 6.935721007e-06 | J93: -3.835655944e-05 | K93: -0.0003743039479 | L93: 0.0002216376954 | M93: 0.00141633417 | N93: 2.080637952e-07
A94: =IF('DF raw data'!I94="","",'DF raw data'!I94) -> -286.5 | B94: =IF('DF raw data'!J94="","",'DF raw data'!J94) -> -2.35955e-05 | C94: =IF('DF raw data'!K94="","",'DF raw data'!K94) -> 2.05477e-05 | D94: =IF('DF raw data'!L94="","",'DF raw data'!L94) -> -3.47082e-05 | F94: -4.770677246e-06 | G94: 1.886629937e-05 | H94: -2.680934793e-06 | J94: -4.074189806e-05 | K94: -0.0003946748969 | L94: 0.000231070845 | M94: 0.001531869592 | N94: 2.355906141e-07
A95: =IF('DF raw data'!I95="","",'DF raw data'!I95) -> -286 | B95: =IF('DF raw data'!J95="","",'DF raw data'!J95) -> -2.01334e-05 | C95: =IF('DF raw data'!K95="","",'DF raw data'!K95) -> 1.78255e-05 | D95: =IF('DF raw data'!L95="","",'DF raw data'!L95) -> -3.51311e-05 | F95: -1.287804646e-06 | G95: 1.612776617e-05 | H95: -3.106372193e-06 | J95: -4.138580038e-05 | K95: -0.0004153677971 | L95: 0.0002391347281 | M95: 0.001651436957 | N95: 2.650397154e-07
A96: =IF('DF raw data'!I96="","",'DF raw data'!I96) -> -285.5 | B96: =IF('DF raw data'!J96="","",'DF raw data'!J96) -> -2.30141e-05 | C96: =IF('DF raw data'!K96="","",'DF raw data'!K96) -> 1.36108e-05 | D96: =IF('DF raw data'!L96="","",'DF raw data'!L96) -> -4.17306e-05 | F96: -4.185788846e-06 | G96: 1.188777797e-05 | H96: -9.745469193e-06 | J96: -4.347869481e-05 | K96: -0.0004371071445 | L96: 0.0002450786171 | M96: 0.001773976265 | N96: 2.960166781e-07
A97: =IF('DF raw data'!I97="","",'DF raw data'!I97) -> -285 | B97: =IF('DF raw data'!J97="","",'DF raw data'!J97) -> -2.43635e-05 | C97: =IF('DF raw data'!K97="","",'DF raw data'!K97) -> 1.37957e-05 | D97: =IF('DF raw data'!L97="","",'DF raw data'!L97) -> -3.67214e-05 | F97: -5.543285246e-06 | G97: 1.207378737e-05 | H97: -4.706213993e-06 | J97: -4.625033743e-05 | K97: -0.0004602323132 | L97: 0.0002511155108 | M97: 0.00189953402 | N97: 3.286157249e-07
A98: =IF('DF raw data'!I98="","",'DF raw data'!I98) -> -284.5 | B98: =IF('DF raw data'!J98="","",'DF raw data'!J98) -> -2.6092e-05 | C98: =IF('DF raw data'!K98="","",'DF raw data'!K98) -> 2.40593e-05 | D98: =IF('DF raw data'!L98="","",'DF raw data'!L98) -> -4.06547e-05 | F98: -7.282156246e-06 | G98: 2.239896897e-05 | H98: -8.663113793e-06 | J98: -4.989141555e-05 | K98: -0.000485178021 | L98: 0.0002623149953 | M98: 0.002030691518 | N98: 3.642648799e-07
A99: =IF('DF raw data'!I99="","",'DF raw data'!I99) -> -284 | B99: =IF('DF raw data'!J99="","",'DF raw data'!J99) -> -3.06471e-05 | C99: =IF('DF raw data'!K99="","",'DF raw data'!K99) -> 1.38799e-05 | D99: =IF('DF raw data'!L99="","",'DF raw data'!L99) -> -3.56451e-05 | F99: -1.186458685e-05 | G99: 1.215849257e-05 | H99: -3.623456193e-06 | J99: -5.582370898e-05 | K99: -0.0005130898755 | L99: 0.0002683942416 | M99: 0.002164888639 | N99: 4.018407576e-07
A100: =IF('DF raw data'!I100="","",'DF raw data'!I100) -> -283.5 | B100: =IF('DF raw data'!J100="","",'DF raw data'!J100) -> -1.76934e-05 | C100: =IF('DF raw data'!K100="","",'DF raw data'!K100) -> 1.63208e-05 | D100: =IF('DF raw data'!L100="","",'DF raw data'!L100) -> -4.10626e-05 | F100: 1.166835354e-06 | G100: 1.461403797e-05 | H100: -9.073461193e-06 | J100: -5.52402913e-05 | K100: -0.0005407100212 | L100: 0.0002757012605 | M100: 0.002302739269 | N100: 4.41372095e-07
A101: =IF('DF raw data'!I101="","",'DF raw data'!I101) -> -283 | B101: =IF('DF raw data'!J101="","",'DF raw data'!J101) -> -3.11579e-05 | C101: =IF('DF raw data'!K101="","",'DF raw data'!K101) -> 2.8191e-05 | D101: =IF('DF raw data'!L101="","",'DF raw data'!L101) -> -3.88154e-05 | F101: -1.237845165e-05 | G101: 2.655545917e-05 | H101: -6.812777993e-06 | J101: -6.142951712e-05 | K101: -0.0005714247797 | L101: 0.0002889789901 | M101: 0.002447228764 | N101: 4.850133162e-07
A102: =IF('DF raw data'!I102="","",'DF raw data'!I102) -> -282.5 | B102: =IF('DF raw data'!J102="","",'DF raw data'!J102) -> -1.8982e-05 | C102: =IF('DF raw data'!K102="","",'DF raw data'!K102) -> 2.84515e-05 | D102: =IF('DF raw data'!L102="","",'DF raw data'!L102) -> -3.12204e-05 | F102: -1.294962459e-07 | G102: 2.681752217e-05 | H102: 8.277920073e-07 | J102: -6.149426525e-05 | K102: -0.0006021719123 | L102: 0.0003023877512 | M102: 0.00259842264 | N102: 5.326232646e-07
A103: =IF('DF raw data'!I103="","",'DF raw data'!I103) -> -282 | B103: =IF('DF raw data'!J103="","",'DF raw data'!J103) -> -3.00055e-05 | C103: =IF('DF raw data'!K103="","",'DF raw data'!K103) -> 2.6918e-05 | D103: =IF('DF raw data'!L103="","",'DF raw data'!L103) -> -3.63961e-05 | F103: -1.121913725e-05 | G103: 2.527482117e-05 | H103: -4.378962193e-06 | J103: -6.710383387e-05 | K103: -0.0006357238293 | L103: 0.0003150251618 | M103: 0.002755935221 | N103: 5.844951531e-07
A104: =IF('DF raw data'!I104="","",'DF raw data'!I104) -> -281.5 | B104: =IF('DF raw data'!J104="","",'DF raw data'!J104) -> -1.68588e-05 | C104: =IF('DF raw data'!K104="","",'DF raw data'!K104) -> 2.70181e-05 | D104: =IF('DF raw data'!L104="","",'DF raw data'!L104) -> -4.26802e-05 | F104: 2.006442954e-06 | G104: 2.537552177e-05 | H104: -1.070076679e-05 | J104: -6.610061239e-05 | K104: -0.0006687741355 | L104: 0.0003277129227 | M104: 0.002919791682 | N104: 6.403776784e-07
A105: =IF('DF raw data'!I105="","",'DF raw data'!I105) -> -281 | B105: =IF('DF raw data'!J105="","",'DF raw data'!J105) -> -1.45594e-05 | C105: =IF('DF raw data'!K105="","",'DF raw data'!K105) -> 2.79512e-05 | D105: =IF('DF raw data'!L105="","",'DF raw data'!L105) -> -2.96137e-05 | F105: 4.319639354e-06 | G105: 2.631422037e-05 | H105: 2.444132207e-06 | J105: -6.394079271e-05 | K105: -0.0007007445318 | L105: 0.0003408700329 | M105: 0.003090226698 | N105: 7.005180806e-07
A106: =IF('DF raw data'!I106="","",'DF raw data'!I106) -> -280.5 | B106: =IF('DF raw data'!J106="","",'DF raw data'!J106) -> -2.09656e-05 | C106: =IF('DF raw data'!K106="","",'DF raw data'!K106) -> 3.04772e-05 | D106: =IF('DF raw data'!L106="","",'DF raw data'!L106) -> -3.67275e-05 | F106: -2.124997846e-06 | G106: 2.885537637e-05 | H106: -4.712350593e-06 | J106: -6.500329164e-05 | K106: -0.0007332461776 | L106: 0.000355297721 | M106: 0.003267875559 | N106: 7.657490298e-07
A107: =IF('DF raw data'!I107="","",'DF raw data'!I107) -> -280 | B107: =IF('DF raw data'!J107="","",'DF raw data'!J107) -> -3.0132e-05 | C107: =IF('DF raw data'!K107="","",'DF raw data'!K107) -> 3.14545e-05 | D107: =IF('DF raw data'!L107="","",'DF raw data'!L107) -> -3.89539e-05 | F107: -1.134639625e-05 | G107: 2.983854017e-05 | H107: -6.952108993e-06 | J107: -7.067648976e-05 | K107: -0.0007685844225 | L107: 0.0003702169911 | M107: 0.003452984055 | N107: 8.367769232e-07
A108: =IF('DF raw data'!I108="","",'DF raw data'!I108) -> -279.5 | B108: =IF('DF raw data'!J108="","",'DF raw data'!J108) -> -2.34727e-05 | C108: =IF('DF raw data'!K108="","",'DF raw data'!K108) -> 2.36217e-05 | D108: =IF('DF raw data'!L108="","",'DF raw data'!L108) -> -2.64079e-05 | F108: -4.647140446e-06 | G108: 2.195874337e-05 | H108: 5.669167007e-06 | J108: -7.300005998e-05 | K108: -0.0008050844525 | L108: 0.0003811963628 | M108: 0.003643582236 | N108: 9.120967611e-07
A109: =IF('DF raw data'!I109="","",'DF raw data'!I109) -> -279 | B109: =IF('DF raw data'!J109="","",'DF raw data'!J109) -> -2.65427e-05 | C109: =IF('DF raw data'!K109="","",'DF raw data'!K109) -> 2.83189e-05 | D109: =IF('DF raw data'!L109="","",'DF raw data'!L109) -> -3.74466e-05 | F109: -7.735560446e-06 | G109: 2.668412657e-05 | H109: -5.435765193e-06 | J109: -7.686784021e-05 | K109: -0.0008435183726 | L109: 0.0003945384261 | M109: 0.003840851449 | N109: 9.928813783e-07
A110: =IF('DF raw data'!I110="","",'DF raw data'!I110) -> -278.5 | B110: =IF('DF raw data'!J110="","",'DF raw data'!J110) -> -2.22511e-05 | C110: =IF('DF raw data'!K110="","",'DF raw data'!K110) -> 2.42192e-05 | D110: =IF('DF raw data'!L110="","",'DF raw data'!L110) -> -3.15602e-05 | F110: -3.418210846e-06 | G110: 2.255982837e-05 | H110: 4.859532073e-07 | J110: -7.857694563e-05 | K110: -0.0008828068454 | L110: 0.0004058183403 | M110: 0.004043760619 | N110: 1.078312809e-06
A111: =IF('DF raw data'!I111="","",'DF raw data'!I111) -> -278 | B111: =IF('DF raw data'!J111="","",'DF raw data'!J111) -> -2.05198e-05 | C111: =IF('DF raw data'!K111="","",'DF raw data'!K111) -> 1.85311e-05 | D111: =IF('DF raw data'!L111="","",'DF raw data'!L111) -> -3.24152e-05 | F111: -1.676523046e-06 | G111: 1.683759977e-05 | H111: -3.741767927e-07 | J111: -7.941520715e-05 | K111: -0.000922514449 | L111: 0.0004142371402 | M111: 0.004250879189 | N111: 1.167262401e-06
A112: =IF('DF raw data'!I112="","",'DF raw data'!I112) -> -277.5 | B112: =IF('DF raw data'!J112="","",'DF raw data'!J112) -> -4.17368e-05 | C112: =IF('DF raw data'!K112="","",'DF raw data'!K112) -> 1.2814e-05 | D112: =IF('DF raw data'!L112="","",'DF raw data'!L112) -> -3.73144e-05 | F112: -2.302082505e-05 | G112: 1.108619717e-05 | H112: -5.302771993e-06 | J112: -9.092561967e-05 | K112: -0.0009679772588 | L112: 0.0004197802387 | M112: 0.004460769309 | N112: 1.259503859e-06
A113: =IF('DF raw data'!I113="","",'DF raw data'!I113) -> -277 | B113: =IF('DF raw data'!J113="","",'DF raw data'!J113) -> -1.5389e-05 | C113: =IF('DF raw data'!K113="","",'DF raw data'!K113) -> 1.68578e-05 | D113: =IF('DF raw data'!L113="","",'DF raw data'!L113) -> -3.52089e-05 | F113: 3.485061754e-06 | G113: 1.515425997e-05 | H113: -3.184638993e-06 | J113: -8.91830888e-05 | K113: -0.001012568803 | L113: 0.0004273573687 | M113: 0.004674447993 | N113: 1.354797831e-06
A114: =IF('DF raw data'!I114="","",'DF raw data'!I114) -> -276.5 | B114: =IF('DF raw data'!J114="","",'DF raw data'!J114) -> -2.80185e-05 | C114: =IF('DF raw data'!K114="","",'DF raw data'!K114) -> 1.94725e-05 | D114: =IF('DF raw data'!L114="","",'DF raw data'!L114) -> -3.55856e-05 | F114: -9.220215246e-06 | G114: 1.778464817e-05 | H114: -3.563599193e-06 | J114: -9.379319642e-05 | K114: -0.001059465401 | L114: 0.0004362496928 | M114: 0.004892572839 | N114: 1.45435331e-06
A115: =IF('DF raw data'!I115="","",'DF raw data'!I115) -> -276 | B115: =IF('DF raw data'!J115="","",'DF raw data'!J115) -> -9.49823e-06 | C115: =IF('DF raw data'!K115="","",'DF raw data'!K115) -> 1.54942e-05 | D115: =IF('DF raw data'!L115="","",'DF raw data'!L115) -> -2.41928e-05 | F115: 9.411176374e-06 | G115: 1.378247837e-05 | H115: 7.897557607e-06 | J115: -8.908760823e-05 | K115: -0.001104009206 | L115: 0.000443140932 | M115: 0.005114143305 | N115: 1.556508554e-06
A116: =IF('DF raw data'!I116="","",'DF raw data'!I116) -> -275.5 | B116: =IF('DF raw data'!J116="","",'DF raw data'!J116) -> -1.61569e-05 | C116: =IF('DF raw data'!K116="","",'DF raw data'!K116) -> 2.52862e-05 | D116: =IF('DF raw data'!L116="","",'DF raw data'!L116) -> -3.73764e-05 | F116: 2.712554354e-06 | G116: 2.363323037e-05 | H116: -5.365143993e-06 | J116: -8.773133106e-05 | K116: -0.001147874871 | L116: 0.0004549575472 | M116: 0.005341622079 | N116: 1.663850132e-06
A117: =IF('DF raw data'!I117="","",'DF raw data'!I117) -> -275 | B117: =IF('DF raw data'!J117="","",'DF raw data'!J117) -> -2.17353e-05 | C117: =IF('DF raw data'!K117="","",'DF raw data'!K117) -> 1.71702e-05 | D117: =IF('DF raw data'!L117="","",'DF raw data'!L117) -> -3.60706e-05 | F117: -2.899316046e-06 | G117: 1.546853437e-05 | H117: -4.051509193e-06 | J117: -8.918098908e-05 | K117: -0.001192465366 | L117: 0.0004626918144 | M117: 0.005572967986 | N117: 1.774868614e-06
A118: =IF('DF raw data'!I118="","",'DF raw data'!I118) -> -274.5 | B118: =IF('DF raw data'!J118="","",'DF raw data'!J118) -> -2.80803e-05 | C118: =IF('DF raw data'!K118="","",'DF raw data'!K118) -> 1.32912e-05 | D118: =IF('DF raw data'!L118="","",'DF raw data'!L118) -> -3.89521e-05 | F118: -9.282386046e-06 | G118: 1.156626037e-05 | H118: -6.950298193e-06 | J118: -9.38221821e-05 | K118: -0.001239376457 | L118: 0.0004684749445 | M118: 0.005807205458 | N118: 1.889004302e-06
A119: =IF('DF raw data'!I119="","",'DF raw data'!I119) -> -274 | B119: =IF('DF raw data'!J119="","",'DF raw data'!J119) -> -3.64235e-05 | C119: =IF('DF raw data'!K119="","",'DF raw data'!K119) -> 1.93248e-05 | D119: =IF('DF raw data'!L119="","",'DF raw data'!L119) -> -2.53758e-05 | F119: -1.767564525e-05 | G119: 1.763606197e-05 | H119: 6.707459607e-06 | J119: -0.0001026600047 | K119: -0.001290706459 | L119: 0.0004772929755 | M119: 0.006045851946 | N119: 2.008178133e-06
A120: =IF('DF raw data'!I120="","",'DF raw data'!I120) -> -273.5 | B120: =IF('DF raw data'!J120="","",'DF raw data'!J120) -> -3.05866e-05 | C120: =IF('DF raw data'!K120="","",'DF raw data'!K120) -> 2.39277e-05 | D120: =IF('DF raw data'!L120="","",'DF raw data'!L120) -> -2.98696e-05 | F120: -1.180372385e-05 | G120: 2.226657937e-05 | H120: 2.186696807e-06 | J120: -0.0001085618666 | K120: -0.001344987392 | L120: 0.0004884262652 | M120: 0.006290065079 | N120: 2.13335108e-06
A121: =IF('DF raw data'!I121="","",'DF raw data'!I121) -> -273 | B121: =IF('DF raw data'!J121="","",'DF raw data'!J121) -> -3.20669e-05 | C121: =IF('DF raw data'!K121="","",'DF raw data'!K121) -> 2.00468e-05 | D121: =IF('DF raw data'!L121="","",'DF raw data'!L121) -> -2.1121e-05 | F121: -1.329290565e-05 | G121: 1.836239397e-05 | H121: 1.098778841e-05 | J121: -0.0001152083195 | K121: -0.001402591552 | L121: 0.0004976074622 | M121: 0.00653886881 | N121: 2.263794152e-06
A122: =IF('DF raw data'!I122="","",'DF raw data'!I122) -> -272.5 | B122: =IF('DF raw data'!J122="","",'DF raw data'!J122) -> -2.47472e-05 | C122: =IF('DF raw data'!K122="","",'DF raw data'!K122) -> 1.39887e-05 | D122: =IF('DF raw data'!L122="","",'DF raw data'!L122) -> -3.81741e-05 | F122: -5.929287446e-06 | G122: 1.226794537e-05 | H122: -6.167630193e-06 | J122: -0.0001181729632 | K122: -0.001461678034 | L122: 0.0005037414349 | M122: 0.006790739527 | N122: 2.397654293e-06
A123: =IF('DF raw data'!I123="","",'DF raw data'!I123) -> -272 | B123: =IF('DF raw data'!J123="","",'DF raw data'!J123) -> -3.57851e-05 | C123: =IF('DF raw data'!K123="","",'DF raw data'!K123) -> 1.96601e-05 | D123: =IF('DF raw data'!L123="","",'DF raw data'!L123) -> -2.11186e-05 | F123: -1.703341485e-05 | G123: 1.797337377e-05 | H123: 1.099020281e-05 | J123: -0.0001266896706 | K123: -0.001525022869 | L123: 0.0005127281218 | M123: 0.007047103588 | N123: 2.537124493e-06
A124: =IF('DF raw data'!I124="","",'DF raw data'!I124) -> -271.5 | B124: =IF('DF raw data'!J124="","",'DF raw data'!J124) -> -2.19982e-05 | C124: =IF('DF raw data'!K124="","",'DF raw data'!K124) -> 2.98912e-05 | D124: =IF('DF raw data'!L124="","",'DF raw data'!L124) -> -2.61078e-05 | F124: -3.163793446e-06 | G124: 2.826586037e-05 | H124: 5.971067607e-06 | J124: -0.0001282715673 | K124: -0.001589158653 | L124: 0.0005268610519 | M124: 0.007310534114 | N124: 2.684142574e-06
A125: =IF('DF raw data'!I125="","",'DF raw data'!I125) -> -271 | B125: =IF('DF raw data'!J125="","",'DF raw data'!J125) -> -2.00063e-05 | C125: =IF('DF raw data'!K125="","",'DF raw data'!K125) -> 2.70282e-05 | D125: =IF('DF raw data'!L125="","",'DF raw data'!L125) -> -3.33181e-05 | F125: -1.159942046e-06 | G125: 2.538568237e-05 | H125: -1.282494193e-06 | J125: -0.0001288515384 | K125: -0.001653584422 | L125: 0.0005395538931 | M125: 0.007580311061 | N125: 2.838003136e-06
A126: =IF('DF raw data'!I126="","",'DF raw data'!I126) -> -270.5 | B126: =IF('DF raw data'!J126="","",'DF raw data'!J126) -> -2.05177e-05 | C126: =IF('DF raw data'!K126="","",'DF raw data'!K126) -> 2.27949e-05 | D126: =IF('DF raw data'!L126="","",'DF raw data'!L126) -> -3.56635e-05 | F126: -1.674410446e-06 | G126: 2.112698257e-05 | H126: -3.641966593e-06 | J126: -0.0001296887436 | K126: -0.001718428794 | L126: 0.0005501173844 | M126: 0.007855369753 | N126: 2.997727289e-06
A127: =IF('DF raw data'!I127="","",'DF raw data'!I127) -> -270 | B127: =IF('DF raw data'!J127="","",'DF raw data'!J127) -> -2.38565e-05 | C127: =IF('DF raw data'!K127="","",'DF raw data'!K127) -> 1.69261e-05 | D127: =IF('DF raw data'!L127="","",'DF raw data'!L127) -> -2.75798e-05 | F127: -5.033243246e-06 | G127: 1.522296977e-05 | H127: 4.490235607e-06 | J127: -0.0001322053652 | K127: -0.001784531476 | L127: 0.0005577288693 | M127: 0.008134234188 | N127: 3.161997164e-06
A128: =IF('DF raw data'!I128="","",'DF raw data'!I128) -> -269.5 | B128: =IF('DF raw data'!J128="","",'DF raw data'!J128) -> -3.21271e-05 | C128: =IF('DF raw data'!K128="","",'DF raw data'!K128) -> 1.19227e-05 | D128: =IF('DF raw data'!L128="","",'DF raw data'!L128) -> -2.69402e-05 | F128: -1.335346685e-05 | G128: 1.018954937e-05 | H128: 5.133673207e-06 | J128: -0.0001388820986 | K128: -0.001853972526 | L128: 0.000562823644 | M128: 0.00841564601 | N128: 3.33002651e-06
A129: =IF('DF raw data'!I129="","",'DF raw data'!I129) -> -269 | B129: =IF('DF raw data'!J129="","",'DF raw data'!J129) -> -2.66097e-05 | C129: =IF('DF raw data'!K129="","",'DF raw data'!K129) -> 1.73506e-05 | D129: =IF('DF raw data'!L129="","",'DF raw data'!L129) -> -3.3186e-05 | F129: -7.802962446e-06 | G129: 1.565001677e-05 | H129: -1.149601593e-06 | J129: -0.0001427835799 | K129: -0.001925364316 | L129: 0.0005706486524 | M129: 0.008700970336 | N129: 3.503040028e-06
A130: =IF('DF raw data'!I130="","",'DF raw data'!I130) -> -268.5 | B130: =IF('DF raw data'!J130="","",'DF raw data'!J130) -> -2.73135e-05 | C130: =IF('DF raw data'!K130="","",'DF raw data'!K130) -> 1.34603e-05 | D130: =IF('DF raw data'!L130="","",'DF raw data'!L130) -> -3.51399e-05 | F130: -8.510985246e-06 | G130: 1.173637497e-05 | H130: -3.115224993e-06 | J130: -0.0001470390725 | K130: -0.001998883852 | L130: 0.0005765168399 | M130: 0.008989228756 | N130: 3.680036105e-06
A131: =IF('DF raw data'!I131="","",'DF raw data'!I131) -> -268 | B131: =IF('DF raw data'!J131="","",'DF raw data'!J131) -> -1.93081e-05 | C131: =IF('DF raw data'!K131="","",'DF raw data'!K131) -> 1.3733e-05 | D131: =IF('DF raw data'!L131="","",'DF raw data'!L131) -> -2.23247e-05 | F131: =(1-$G$1*($B$54-$G$2))*(B131-F$5) -> -4.575528459e-07 | G131: =(1-$G$1*($B$54-$G$2))*(C131-G$5) -> 1.201071117e-05 | H131: =(1-$G$1*($B$54-$G$2))*(D131-H$5) -> 9.776866207e-06 | J131: -0.0001472678489 | K131: -0.002072517776 | L131: 0.0005825221954 | M131: 0.009280489853 | N131: 3.860546069e-06
A132: =IF('DF raw data'!I132="","",'DF raw data'!I132) -> -267.5 | B132: =IF('DF raw data'!J132="","",'DF raw data'!J132) -> -2.7758e-05 | C132: =IF('DF raw data'!K132="","",'DF raw data'!K132) -> 2.96382e-05 | D132: =IF('DF raw data'!L132="","",'DF raw data'!L132) -> -4.18681e-05 | F132: -8.958152246e-06 | G132: 2.801134237e-05 | H132: -9.883794193e-06 | J132: =F132*$G$3+J131 -> -0.000151746925 | K132: =J132*$G$3+K131 -> -0.002148391239 | L132: =G132*$G$3+L131 -> 0.0005965278666 | M132: =L132*$G$3+M131 -> 0.009578753787 | N132: =(J132^2+L132^2)*$G$3+N131 -> 4.049982382e-06
A133: =IF('DF raw data'!I133="","",'DF raw data'!I133) -> -267 | B133: =IF('DF raw data'!J133="","",'DF raw data'!J133) -> -2.1543e-05 | C133: =IF('DF raw data'!K133="","",'DF raw data'!K133) -> 2.80645e-05 | D133: =IF('DF raw data'!L133="","",'DF raw data'!L133) -> -3.62951e-05 | F133: -2.705862246e-06 | G133: 2.642820017e-05 | H133: -4.277356193e-06 | J133: -0.0001530998561 | K133: -0.002224941167 | L133: 0.0006097419667 | M133: 0.00988362477 | N133: 4.247594798e-06
A134: =IF('DF raw data'!I134="","",'DF raw data'!I134) -> -266.5 | B134: =IF('DF raw data'!J134="","",'DF raw data'!J134) -> -2.45503e-05 | C134: =IF('DF raw data'!K134="","",'DF raw data'!K134) -> 3.15773e-05 | D134: =IF('DF raw data'!L134="","",'DF raw data'!L134) -> -4.54805e-05 | F134: -5.731206046e-06 | G134: 2.996207697e-05 | H134: -1.351786859e-05 | J134: -0.0001559654592 | K134: -0.002302923896 | L134: 0.0006247230052 | M134: 0.01019598627 | N134: 4.454896826e-06
A135: =IF('DF raw data'!I135="","",'DF raw data'!I135) -> -266 | B135: =IF('DF raw data'!J135="","",'DF raw data'!J135) -> -2.07099e-05 | C135: =IF('DF raw data'!K135="","",'DF raw data'!K135) -> 3.35446e-05 | D135: =IF('DF raw data'!L135="","",'DF raw data'!L135) -> -3.55612e-05 | F135: -1.867763646e-06 | G135: 3.194118077e-05 | H135: -3.539052793e-06 | J135: -0.000156899341 | K135: -0.002381373567 | L135: 0.0006406935956 | M135: 0.01051633307 | N135: 4.67244967e-06
A136: =IF('DF raw data'!I136="","",'DF raw data'!I136) -> -265.5 | B136: =IF('DF raw data'!J136="","",'DF raw data'!J136) -> -2.3661e-05 | C136: =IF('DF raw data'!K136="","",'DF raw data'!K136) -> 2.91531e-05 | D136: =IF('DF raw data'!L136="","",'DF raw data'!L136) -> -3.27966e-05 | F136: -4.836570246e-06 | G136: 2.752333177e-05 | H136: -7.578651927e-07 | J136: -0.0001593176261 | K136: -0.00246103238 | L136: 0.0006544552615 | M136: 0.0108435607 | N136: 4.899296567e-06
A137: =IF('DF raw data'!I137="","",'DF raw data'!I137) -> -265 | B137: =IF('DF raw data'!J137="","",'DF raw data'!J137) -> -2.25074e-05 | C137: =IF('DF raw data'!K137="","",'DF raw data'!K137) -> 2.68994e-05 | D137: =IF('DF raw data'!L137="","",'DF raw data'!L137) -> -3.21891e-05 | F137: -3.676048646e-06 | G137: 2.525610957e-05 | H137: -1.467201927e-07 | J137: -0.0001611556504 | K137: -0.002541610205 | L137: 0.0006670833162 | M137: 0.01117710236 | N137: 5.134782214e-06
A138: =IF('DF raw data'!I138="","",'DF raw data'!I138) -> -264.5 | B138: =IF('DF raw data'!J138="","",'DF raw data'!J138) -> -2.66737e-05 | C138: =IF('DF raw data'!K138="","",'DF raw data'!K138) -> 2.49349e-05 | D138: =IF('DF raw data'!L138="","",'DF raw data'!L138) -> -3.30693e-05 | F138: -7.867346446e-06 | G138: 2.327982257e-05 | H138: -1.032201393e-06 | J138: -0.0001650893237 | K138: -0.002624154867 | L138: 0.0006787232275 | M138: 0.01151646397 | N138: 5.378742067e-06
A139: =IF('DF raw data'!I139="","",'DF raw data'!I139) -> -264 | B139: =IF('DF raw data'!J139="","",'DF raw data'!J139) -> -1.64697e-05 | C139: =IF('DF raw data'!K139="","",'DF raw data'!K139) -> 1.81128e-05 | D139: =IF('DF raw data'!L139="","",'DF raw data'!L139) -> -4.95995e-05 | F139: 2.397877554e-06 | G139: 1.641678997e-05 | H139: -1.766158259e-05 | J139: -0.0001638903849 | K139: -0.002706100059 | L139: 0.0006869316225 | M139: 0.01185992978 | N139: 5.628109623e-06
A140: =IF('DF raw data'!I140="","",'DF raw data'!I140) -> -263.5 | B140: =IF('DF raw data'!J140="","",'DF raw data'!J140) -> -1.5959e-05 | C140: =IF('DF raw data'!K140="","",'DF raw data'!K140) -> 1.85708e-05 | D140: =IF('DF raw data'!L140="","",'DF raw data'!L140) -> -4.631e-05 | F140: 2.911641754e-06 | G140: 1.687753797e-05 | H140: -1.435234559e-05 | J140: -0.000162434564 | K140: -0.002787317341 | L140: 0.0006953703915 | M140: 0.01220761498 | N140: 5.883072107e-06
A141: =IF('DF raw data'!I141="","",'DF raw data'!I141) -> -263 | B141: =IF('DF raw data'!J141="","",'DF raw data'!J141) -> -2.21178e-05 | C141: =IF('DF raw data'!K141="","",'DF raw data'!K141) -> 1.23306e-05 | D141: =IF('DF raw data'!L141="","",'DF raw data'!L141) -> -3.94625e-05 | F141: -3.284111046e-06 | G141: 1.059989677e-05 | H141: -7.463760593e-06 | J141: -0.0001640766195 | K141: -0.002869355651 | L141: 0.0007006703399 | M141: 0.01255795015 | N141: 6.142002138e-06
A142: =IF('DF raw data'!I142="","",'DF raw data'!I142) -> -262.5 | B142: =IF('DF raw data'!J142="","",'DF raw data'!J142) -> -1.74957e-05 | C142: =IF('DF raw data'!K142="","",'DF raw data'!K142) -> 1.55385e-05 | D142: =IF('DF raw data'!L142="","",'DF raw data'!L142) -> -4.91368e-05 | F142: 1.365721554e-06 | G142: 1.382704417e-05 | H142: -1.719610639e-05 | J142: -0.0001633937588 | K142: -0.002951052531 | L142: 0.000707583862 | M142: 0.01291174208 | N142: 6.405688359e-06
A143: =IF('DF raw data'!I143="","",'DF raw data'!I143) -> -262 | B143: =IF('DF raw data'!J143="","",'DF raw data'!J143) -> -1.89121e-05 | C143: =IF('DF raw data'!K143="","",'DF raw data'!K143) -> 2.58057e-05 | D143: =IF('DF raw data'!L143="","",'DF raw data'!L143) -> -3.98341e-05 | F143: -5.917684585e-08 | G143: 2.415584737e-05 | H143: -7.837590193e-06 | J143: -0.0001634233472 | K143: -0.003032764204 | L143: 0.0007196617856 | M143: 0.01327157297 | N143: 6.677998498e-06
A144: =IF('DF raw data'!I144="","",'DF raw data'!I144) -> -261.5 | B144: =IF('DF raw data'!J144="","",'DF raw data'!J144) -> -1.97473e-05 | C144: =IF('DF raw data'!K144="","",'DF raw data'!K144) -> 1.76602e-05 | D144: =IF('DF raw data'!L144="","",'DF raw data'!L144) -> -3.73857e-05 | F144: -8.993880459e-07 | G144: 1.596147437e-05 | H144: -5.374499793e-06 | J144: -0.0001638730412 | K144: -0.003114700725 | L144: 0.0007276425228 | M144: 0.01363539424 | N144: 6.956157505e-06
A145: =IF('DF raw data'!I145="","",'DF raw data'!I145) -> -261 | B145: =IF('DF raw data'!J145="","",'DF raw data'!J145) -> -1.14783e-05 | C145: =IF('DF raw data'!K145="","",'DF raw data'!K145) -> 2.32986e-05 | D145: =IF('DF raw data'!L145="","",'DF raw data'!L145) -> -3.56297e-05 | F145: 7.419225954e-06 | G145: 2.163370477e-05 | H145: -3.607963793e-06 | J145: -0.0001601634282 | K145: -0.003194782439 | L145: 0.0007384593752 | M145: 0.01400462392 | N145: 7.241644791e-06
A146: =IF('DF raw data'!I146="","",'DF raw data'!I146) -> -260.5 | B146: =IF('DF raw data'!J146="","",'DF raw data'!J146) -> -2.30815e-05 | C146: =IF('DF raw data'!K146="","",'DF raw data'!K146) -> 2.90543e-05 | D146: =IF('DF raw data'!L146="","",'DF raw data'!L146) -> -3.65239e-05 | F146: -4.253593246e-06 | G146: 2.742393897e-05 | H146: -4.507528993e-06 | J146: -0.0001622902248 | K146: -0.003275927551 | L146: 0.0007521713447 | M146: 0.0143807096 | N146: 7.537694716e-06
A147: =IF('DF raw data'!I147="","",'DF raw data'!I147) -> -260 | B147: =IF('DF raw data'!J147="","",'DF raw data'!J147) -> -2.22459e-05 | C147: =IF('DF raw data'!K147="","",'DF raw data'!K147) -> 2.9809e-05 | D147: =IF('DF raw data'!L147="","",'DF raw data'!L147) -> -3.9636e-05 | F147: -3.412979646e-06 | G147: 2.818316717e-05 | H147: -7.638301593e-06 | J147: -0.0001639967147 | K147: -0.003357925909 | L147: 0.0007662629283 | M147: 0.01476384106 | N147: 7.844721614e-06
A148: =IF('DF raw data'!I148="","",'DF raw data'!I148) -> -259.5 | B148: =IF('DF raw data'!J148="","",'DF raw data'!J148) -> -2.32695e-05 | C148: =IF('DF raw data'!K148="","",'DF raw data'!K148) -> 1.50896e-05 | D148: =IF('DF raw data'!L148="","",'DF raw data'!L148) -> -4.32728e-05 | F148: -4.442721246e-06 | G148: 1.337545077e-05 | H148: -1.129692239e-05 | J148: -0.0001662180753 | K148: -0.003441034946 | L148: 0.0007729506537 | M148: 0.01515031639 | N148: 8.157262195e-06
A149: =IF('DF raw data'!I149="","",'DF raw data'!I149) -> -259 | B149: =IF('DF raw data'!J149="","",'DF raw data'!J149) -> -2.41679e-05 | C149: =IF('DF raw data'!K149="","",'DF raw data'!K149) -> 1.87375e-05 | D149: =IF('DF raw data'!L149="","",'DF raw data'!L149) -> -4.19325e-05 | F149: -5.346511646e-06 | G149: 1.704523817e-05 | H149: -9.948580593e-06 | J149: -0.0001688913311 | K149: -0.003525480612 | L149: 0.0007814732727 | M149: 0.01554105302 | N149: 8.476874574e-06
A150: =IF('DF raw data'!I150="","",'DF raw data'!I150) -> -258.5 | B150: =IF('DF raw data'!J150="","",'DF raw data'!J150) -> -2.60931e-05 | C150: =IF('DF raw data'!K150="","",'DF raw data'!K150) -> 1.61632e-05 | D150: =IF('DF raw data'!L150="","",'DF raw data'!L150) -> -3.89656e-05 | F150: -7.283262846e-06 | G150: 1.445549237e-05 | H150: -6.963879193e-06 | J150: -0.0001725329625 | K150: -0.003611747093 | L150: 0.0007887010189 | M150: 0.01593540353 | N150: 8.802783034e-06
A151: =IF('DF raw data'!I151="","",'DF raw data'!I151) -> -258 | B151: =IF('DF raw data'!J151="","",'DF raw data'!J151) -> -2.77589e-05 | C151: =IF('DF raw data'!K151="","",'DF raw data'!K151) -> 1.66964e-05 | D151: =IF('DF raw data'!L151="","",'DF raw data'!L151) -> -4.04477e-05 | F151: -8.959057646e-06 | G151: 1.499189157e-05 | H151: -8.454871793e-06 | J151: -0.0001770124914 | K151: -0.003700253339 | L151: 0.0007961969647 | M151: 0.01633350201 | N151: 9.135414549e-06
A152: =IF('DF raw data'!I152="","",'DF raw data'!I152) -> -257.5 | B152: =IF('DF raw data'!J152="","",'DF raw data'!J152) -> -2.41013e-05 | C152: =IF('DF raw data'!K152="","",'DF raw data'!K152) -> 2.45364e-05 | D152: =IF('DF raw data'!L152="","",'DF raw data'!L152) -> -4.56013e-05 | F152: -5.279512046e-06 | G152: 2.287893157e-05 | H152: -1.363939339e-05 | J152: -0.0001796522474 | K152: -0.003790079462 | L152: 0.0008076364305 | M152: 0.01673732023 | N152: 9.477690316e-06
A153: =IF('DF raw data'!I153="","",'DF raw data'!I153) -> -257 | B153: =IF('DF raw data'!J153="","",'DF raw data'!J153) -> -2.17292e-05 | C153: =IF('DF raw data'!K153="","",'DF raw data'!K153) -> 2.36872e-05 | D153: =IF('DF raw data'!L153="","",'DF raw data'!L153) -> -4.5591e-05 | F153: -2.893179446e-06 | G153: 2.202463637e-05 | H153: -1.362903159e-05 | J153: -0.0001810988371 | K153: -0.003880628881 | L153: 0.0008186487487 | M153: 0.0171466446 | N153: 9.829181597e-06
A154: =IF('DF raw data'!I154="","",'DF raw data'!I154) -> -256.5 | B154: =IF('DF raw data'!J154="","",'DF raw data'!J154) -> -2.07721e-05 | C154: =IF('DF raw data'!K154="","",'DF raw data'!K154) -> 9.99981e-06 | D154: =IF('DF raw data'!L154="","",'DF raw data'!L154) -> -3.87492e-05 | F154: -1.930336846e-06 | G154: 8.255122028e-06 | H154: -6.746180793e-06 | J154: -0.0001820640055 | K154: -0.003971660884 | L154: 0.0008227763097 | M154: 0.01755803276 | N154: 1.018423568e-05
A155: =IF('DF raw data'!I155="","",'DF raw data'!I155) -> -256 | B155: =IF('DF raw data'!J155="","",'DF raw data'!J155) -> -1.58357e-05 | C155: =IF('DF raw data'!K155="","",'DF raw data'!K155) -> 1.59013e-05 | D155: =IF('DF raw data'!L155="","",'DF raw data'!L155) -> -3.86321e-05 | F155: 3.035681554e-06 | G155: 1.419202097e-05 | H155: -6.628378193e-06 | J155: -0.0001805461648 | K155: -0.004061933966 | L155: 0.0008298723202 | M155: 0.01797296892 | N155: 1.054487817e-05
A156: =IF('DF raw data'!I156="","",'DF raw data'!I156) -> -255.5 | B156: =IF('DF raw data'!J156="","",'DF raw data'!J156) -> -9.88014e-06 | C156: =IF('DF raw data'!K156="","",'DF raw data'!K156) -> 1.6076e-05 | D156: =IF('DF raw data'!L156="","",'DF raw data'!L156) -> -2.84309e-05 | F156: 9.026974914e-06 | G156: 1.436776917e-05 | H156: 3.634029007e-06 | J156: -0.0001760326773 | K156: -0.004149950305 | L156: 0.0008370562048 | M156: 0.01839149702 | N156: 1.091070347e-05
A157: =IF('DF raw data'!I157="","",'DF raw data'!I157) -> -255 | B157: =IF('DF raw data'!J157="","",'DF raw data'!J157) -> -1.65433e-05 | C157: =IF('DF raw data'!K157="","",'DF raw data'!K157) -> 1.21304e-05 | D157: =IF('DF raw data'!L157="","",'DF raw data'!L157) -> -3.51028e-05 | F157: 2.323835954e-06 | G157: 1.039849557e-05 | H157: -3.077902393e-06 | J157: -0.0001748707593 | K157: -0.004237385684 | L157: 0.0008422554525 | M157: 0.01881262475 | N157: 1.128069048e-05
A158: =IF('DF raw data'!I158="","",'DF raw data'!I158) -> -254.5 | B158: =IF('DF raw data'!J158="","",'DF raw data'!J158) -> -1.64063e-05 | C158: =IF('DF raw data'!K158="","",'DF raw data'!K158) -> 1.49077e-05 | D158: =IF('DF raw data'!L158="","",'DF raw data'!L158) -> -4.87412e-05 | F158: 2.461657954e-06 | G158: 1.319245937e-05 | H158: -1.679813279e-05 | J158: -0.0001736399303 | K158: -0.00432420565 | L158: 0.0008488516822 | M158: 0.01923705059 | N158: 1.165604048e-05
A159: =IF('DF raw data'!I159="","",'DF raw data'!I159) -> -254 | B159: =IF('DF raw data'!J159="","",'DF raw data'!J159) -> -3.34638e-05 | C159: =IF('DF raw data'!K159="","",'DF raw data'!K159) -> 2.1644e-05 | D159: =IF('DF raw data'!L159="","",'DF raw data'!L159) -> -4.18511e-05 | F159: -1.469818705e-05 | G159: 1.996917717e-05 | H159: -9.866692193e-06 | J159: -0.0001809890239 | K159: -0.004414700162 | L159: 0.0008588362708 | M159: 0.01966646872 | N159: 1.204121887e-05
A160: =IF('DF raw data'!I160="","",'DF raw data'!I160) -> -253.5 | B160: =IF('DF raw data'!J160="","",'DF raw data'!J160) -> -3.41716e-05 | C160: =IF('DF raw data'!K160="","",'DF raw data'!K160) -> 1.6919e-05 | D160: =IF('DF raw data'!L160="","",'DF raw data'!L160) -> -3.76139e-05 | F160: -1.541023385e-05 | G160: 1.521582717e-05 | H160: -5.604068993e-06 | J160: -0.0001886941408 | K160: -0.004509047232 | L160: 0.0008664441844 | M160: 0.02009969082 | N160: 1.243438437e-05
A161: =IF('DF raw data'!I161="","",'DF raw data'!I161) -> -253 | B161: =IF('DF raw data'!J161="","",'DF raw data'!J161) -> -3.23802e-05 | C161: =IF('DF raw data'!K161="","",'DF raw data'!K161) -> 1.01127e-05 | D161: =IF('DF raw data'!L161="","",'DF raw data'!L161) -> -3.20324e-05 | F161: -1.360808545e-05 | G161: 8.368689368e-06 | H161: 1.092000732e-08 | J161: -0.0001954981835 | K161: -0.004606796324 | L161: 0.0008706285291 | M161: 0.02053500508 | N161: 1.283249115e-05
A162: =IF('DF raw data'!I162="","",'DF raw data'!I162) -> -252.5 | B162: =IF('DF raw data'!J162="","",'DF raw data'!J162) -> -2.41724e-05 | C162: =IF('DF raw data'!K162="","",'DF raw data'!K162) -> 1.90493e-05 | D162: =IF('DF raw data'!L162="","",'DF raw data'!L162) -> -3.49617e-05 | F162: -5.351038646e-06 | G162: 1.735890897e-05 | H162: -2.935955793e-06 | J162: -0.0001981737028 | K162: -0.004705883175 | L162: 0.0008793079836 | M162: 0.02097465907 | N162: 1.323871883e-05
A163: =IF('DF raw data'!I163="","",'DF raw data'!I163) -> -252 | B163: =IF('DF raw data'!J163="","",'DF raw data'!J163) -> -2.46184e-05 | C163: =IF('DF raw data'!K163="","",'DF raw data'!K163) -> 1.99308e-05 | D163: =IF('DF raw data'!L163="","",'DF raw data'!L163) -> -3.91012e-05 | F163: -5.799714646e-06 | G163: 1.824569797e-05 | H163: -7.100292793e-06 | J163: -0.0002010735602 | K163: -0.004806419955 | L163: 0.0008884308325 | M163: 0.02141887449 | N163: 1.365358879e-05
A164: =IF('DF raw data'!I164="","",'DF raw data'!I164) -> -251.5 | B164: =IF('DF raw data'!J164="","",'DF raw data'!J164) -> -2.62221e-05 | C164: =IF('DF raw data'!K164="","",'DF raw data'!K164) -> 1.59893e-05 | D164: =IF('DF raw data'!L164="","",'DF raw data'!L164) -> -3.77298e-05 | F164: -7.413036846e-06 | G164: 1.428054897e-05 | H164: -5.720664393e-06 | J164: -0.0002047800786 | K164: -0.004908809994 | L164: 0.000895571107 | M164: 0.02186666004 | N164: 1.407558003e-05
A165: =IF('DF raw data'!I165="","",'DF raw data'!I165) -> -251 | B165: =IF('DF raw data'!J165="","",'DF raw data'!J165) -> -2.69903e-05 | C165: =IF('DF raw data'!K165="","",'DF raw data'!K165) -> 1.34554e-05 | D165: =IF('DF raw data'!L165="","",'DF raw data'!L165) -> -3.95163e-05 | F165: -8.185846046e-06 | G165: 1.173144557e-05 | H165: -7.517883393e-06 | J165: -0.0002088730016 | K165: -0.005013246495 | L165: 0.0009014368298 | M165: 0.02231737846 | N165: 1.450368818e-05
A166: =IF('DF raw data'!I166="","",'DF raw data'!I166) -> -250.5 | B166: =IF('DF raw data'!J166="","",'DF raw data'!J166) -> -2.12879e-05 | C166: =IF('DF raw data'!K166="","",'DF raw data'!K166) -> 1.32174e-05 | D166: =IF('DF raw data'!L166="","",'DF raw data'!L166) -> -3.41877e-05 | F166: -2.449231646e-06 | G166: 1.149201757e-05 | H166: -2.157311793e-06 | J166: -0.0002100976174 | K166: -0.005118295304 | L166: 0.0009071828386 | M166: 0.02277096988 | N166: 1.493724903e-05
A167: =IF('DF raw data'!I167="","",'DF raw data'!I167) -> -250 | B167: =IF('DF raw data'!J167="","",'DF raw data'!J167) -> -2.91037e-05 | C167: =IF('DF raw data'!K167="","",'DF raw data'!K167) -> 1.04148e-05 | D167: =IF('DF raw data'!L167="","",'DF raw data'!L167) -> -4.30481e-05 | F167: -1.031192645e-05 | G167: 8.672601968e-06 | H167: -1.107087419e-05 | J167: -0.0002152535806 | K167: -0.005225922094 | L167: 0.0009115191396 | M167: 0.02322672945 | N167: 1.537584966e-05
A168: =IF('DF raw data'!I168="","",'DF raw data'!I168) -> -249.5 | B168: =IF('DF raw data'!J168="","",'DF raw data'!J168) -> -2.05816e-05 | C168: =IF('DF raw data'!K168="","",'DF raw data'!K168) -> 9.56491e-06 | D168: =IF('DF raw data'!L168="","",'DF raw data'!L168) -> -3.57804e-05 | F168: -1.738693846e-06 | G168: 7.817612628e-06 | H168: -3.759567993e-06 | J168: -0.0002161229276 | K168: -0.005333983558 | L168: 0.0009154279459 | M168: 0.02368444342 | N168: 1.581820838e-05
A169: =IF('DF raw data'!I169="","",'DF raw data'!I169) -> -249 | B169: =IF('DF raw data'!J169="","",'DF raw data'!J169) -> -3.31548e-05 | C169: =IF('DF raw data'!K169="","",'DF raw data'!K169) -> 1.844e-05 | D169: =IF('DF raw data'!L169="","",'DF raw data'!L169) -> -2.38834e-05 | F169: -1.438733305e-05 | G169: 1.674595317e-05 | H169: 8.208814007e-06 | J169: -0.0002233165941 | K169: -0.005445641855 | L169: 0.0009238009225 | M169: 0.02414634388 | N169: 1.62698476e-05
A170: =IF('DF raw data'!I170="","",'DF raw data'!I170) -> -248.5 | B170: =IF('DF raw data'!J170="","",'DF raw data'!J170) -> -2.80841e-05 | C170: =IF('DF raw data'!K170="","",'DF raw data'!K170) -> 2.48876e-05 | D170: =IF('DF raw data'!L170="","",'DF raw data'!L170) -> -3.31315e-05 | F170: -9.286208846e-06 | G170: 2.323223877e-05 | H170: -1.094774593e-06 | J170: -0.0002279596985 | K170: -0.005559621704 | L170: 0.0009354170419 | M170: 0.0246140524 | N170: 1.673333293e-05
A171: =IF('DF raw data'!I171="","",'DF raw data'!I171) -> -248 | B171: =IF('DF raw data'!J171="","",'DF raw data'!J171) -> -3.53342e-05 | C171: =IF('DF raw data'!K171="","",'DF raw data'!K171) -> 2.12659e-05 | D171: =IF('DF raw data'!L171="","",'DF raw data'!L171) -> -2.47034e-05 | F171: -1.657980945e-05 | G171: 1.958880857e-05 | H171: 7.383894007e-06 | J171: -0.0002362496032 | K171: -0.005677746506 | L171: 0.0009452114461 | M171: 0.02508665812 | N171: 1.720795221e-05
A172: =IF('DF raw data'!I172="","",'DF raw data'!I172) -> -247.5 | B172: =IF('DF raw data'!J172="","",'DF raw data'!J172) -> -3.62279e-05 | C172: =IF('DF raw data'!K172="","",'DF raw data'!K172) -> 1.83492e-05 | D172: =IF('DF raw data'!L172="","",'DF raw data'!L172) -> -3.06118e-05 | F172: -1.747887165e-05 | G172: 1.665460837e-05 | H172: 1.440043607e-06 | J172: -0.0002449890391 | K172: -0.005800241026 | L172: 0.0009535387503 | M172: 0.0255634275 | N172: 1.76925801e-05
A173: =IF('DF raw data'!I173="","",'DF raw data'!I173) -> -247 | B173: =IF('DF raw data'!J173="","",'DF raw data'!J173) -> -2.39807e-05 | C173: =IF('DF raw data'!K173="","",'DF raw data'!K173) -> 1.72452e-05 | D173: =IF('DF raw data'!L173="","",'DF raw data'!L173) -> -3.38397e-05 | F173: -5.158188446e-06 | G173: 1.554398437e-05 | H173: -1.807223793e-06 | J173: -0.0002475681333 | K173: -0.005924025092 | L173: 0.0009613107425 | M173: 0.02604408287 | N173: 1.818528426e-05
A174: =IF('DF raw data'!I174="","",'DF raw data'!I174) -> -246.5 | B174: =IF('DF raw data'!J174="","",'DF raw data'!J174) -> -2.87241e-05 | C174: =IF('DF raw data'!K174="","",'DF raw data'!K174) -> 1.3463e-05 | D174: =IF('DF raw data'!L174="","",'DF raw data'!L174) -> -3.51997e-05 | F174: -9.930048846e-06 | G174: 1.173909117e-05 | H174: -3.175383793e-06 | J174: -0.0002525331577 | K174: -0.006050291671 | L174: 0.0009671802881 | M174: 0.02652767301 | N174: 1.868488961e-05
A175: =IF('DF raw data'!I175="","",'DF raw data'!I175) -> -246 | B175: =IF('DF raw data'!J175="","",'DF raw data'!J175) -> -2.48192e-05 | C175: =IF('DF raw data'!K175="","",'DF raw data'!K175) -> 2.13029e-05 | D175: =IF('DF raw data'!L175="","",'DF raw data'!L175) -> -2.62794e-05 | F175: -6.001719446e-06 | G175: 1.962603057e-05 | H175: 5.798438007e-06 | J175: -0.0002555340174 | K175: -0.00617805868 | L175: 0.0009769933034 | M175: 0.02701616967 | N175: 1.919479639e-05
A176: =IF('DF raw data'!I176="","",'DF raw data'!I176) -> -245.5 | B176: =IF('DF raw data'!J176="","",'DF raw data'!J176) -> -2.83438e-05 | C176: =IF('DF raw data'!K176="","",'DF raw data'!K176) -> 2.68335e-05 | D176: =IF('DF raw data'!L176="","",'DF raw data'!L176) -> -2.81566e-05 | F176: -9.547467046e-06 | G176: 2.518981417e-05 | H176: 3.909974807e-06 | J176: -0.000260307751 | K176: -0.006308212555 | L176: 0.0009895882105 | M176: 0.02751096377 | N176: 1.971831886e-05
A177: =IF('DF raw data'!I177="","",'DF raw data'!I177) -> -245 | B177: =IF('DF raw data'!J177="","",'DF raw data'!J177) -> -3.09023e-05 | C177: =IF('DF raw data'!K177="","",'DF raw data'!K177) -> 2.094e-05 | D177: =IF('DF raw data'!L177="","",'DF raw data'!L177) -> -3.75232e-05 | F177: -1.212131805e-05 | G177: 1.926095317e-05 | H177: -5.512824793e-06 | J177: -0.00026636841 | K177: -0.00644139676 | L177: 0.000999218687 | M177: 0.02801057312 | N177: 2.025301392e-05
A178: =IF('DF raw data'!I178="","",'DF raw data'!I178) -> -244.5 | B178: =IF('DF raw data'!J178="","",'DF raw data'!J178) -> -2.69254e-05 | C178: =IF('DF raw data'!K178="","",'DF raw data'!K178) -> 1.41916e-05 | D178: =IF('DF raw data'!L178="","",'DF raw data'!L178) -> -4.05088e-05 | F178: -8.120556646e-06 | G178: 1.247206277e-05 | H178: -8.516338393e-06 | J178: -0.0002704286883 | K178: -0.006576611104 | L178: 0.001005454718 | M178: 0.02851330047 | N178: 2.079504935e-05
A179: =IF('DF raw data'!I179="","",'DF raw data'!I179) -> -244 | B179: =IF('DF raw data'!J179="","",'DF raw data'!J179) -> -3.68654e-05 | C179: =IF('DF raw data'!K179="","",'DF raw data'!K179) -> 2.46313e-05 | D179: =IF('DF raw data'!L179="","",'DF raw data'!L179) -> -3.61544e-05 | F179: -1.812019665e-05 | G179: 2.297440097e-05 | H179: -4.135811993e-06 | J179: -0.0002794887866 | K179: -0.006716355498 | L179: 0.001016941919 | M179: 0.02902177143 | N179: 2.135119178e-05
A180: =IF('DF raw data'!I180="","",'DF raw data'!I180) -> -243.5 | B180: =IF('DF raw data'!J180="","",'DF raw data'!J180) -> -3.3597e-05 | C180: =IF('DF raw data'!K180="","",'DF raw data'!K180) -> 3.47381e-05 | D180: =IF('DF raw data'!L180="","",'DF raw data'!L180) -> -3.41168e-05 | F180: -1.483218625e-05 | G180: 3.314184177e-05 | H180: -2.085986393e-06 | J180: -0.0002869048797 | K180: -0.006859807938 | L180: 0.00103351284 | M180: 0.02953852785 | N180: 2.192642338e-05
A181: =IF('DF raw data'!I181="","",'DF raw data'!I181) -> -243 | B181: =IF('DF raw data'!J181="","",'DF raw data'!J181) -> -3.8667e-05 | C181: =IF('DF raw data'!K181="","",'DF raw data'!K181) -> 3.76035e-05 | D181: =IF('DF raw data'!L181="","",'DF raw data'!L181) -> -2.59581e-05 | F181: -1.993260625e-05 | G181: 3.602443417e-05 | H181: 6.121665807e-06 | J181: -0.0002968711829 | K181: -0.007008243529 | L181: 0.001051525057 | M181: 0.03006429038 | N181: 2.25233421e-05
A182: =IF('DF raw data'!I182="","",'DF raw data'!I182) -> -242.5 | B182: =IF('DF raw data'!J182="","",'DF raw data'!J182) -> -3.14887e-05 | C182: =IF('DF raw data'!K182="","",'DF raw data'!K182) -> 3.47239e-05 | D182: =IF('DF raw data'!L182="","",'DF raw data'!L182) -> -2.27254e-05 | F182: -1.271123645e-05 | G182: 3.312755657e-05 | H182: 9.373762007e-06 | J182: -0.0003032268011 | K182: -0.00715985693 | L182: 0.001068088835 | M182: 0.0305983348 | N182: 2.313972223e-05
A183: =IF('DF raw data'!I183="","",'DF raw data'!I183) -> -242 | B183: =IF('DF raw data'!J183="","",'DF raw data'!J183) -> -3.76406e-05 | C183: =IF('DF raw data'!K183="","",'DF raw data'!K183) -> 3.03547e-05 | D183: =IF('DF raw data'!L183="","",'DF raw data'!L183) -> -2.70455e-05 | F183: -1.890004785e-05 | G183: 2.873214137e-05 | H183: 5.027741407e-06 | J183: -0.000312676825 | K183: -0.007316195342 | L183: 0.001082454906 | M183: 0.03113956225 | N183: 2.377445994e-05
A184: =IF('DF raw data'!I184="","",'DF raw data'!I184) -> -241.5 | B184: =IF('DF raw data'!J184="","",'DF raw data'!J184) -> -2.93694e-05 | C184: =IF('DF raw data'!K184="","",'DF raw data'!K184) -> 2.45678e-05 | D184: =IF('DF raw data'!L184="","",'DF raw data'!L184) -> -2.87647e-05 | F184: -1.057922065e-05 | G184: 2.291051997e-05 | H184: 3.298226207e-06 | J184: -0.0003179664353 | K184: -0.00747517856 | L184: 0.001093910166 | M184: 0.03168651734 | N184: 2.442333099e-05
A185: =IF('DF raw data'!I185="","",'DF raw data'!I185) -> -241 | B185: =IF('DF raw data'!J185="","",'DF raw data'!J185) -> -3.78892e-05 | C185: =IF('DF raw data'!K185="","",'DF raw data'!K185) -> 1.46954e-05 | D185: =IF('DF raw data'!L185="","",'DF raw data'!L185) -> -3.91871e-05 | F185: -1.915013945e-05 | G185: 1.297888557e-05 | H185: -7.186708193e-06 | J185: -0.0003275415051 | K185: -0.007638949312 | L185: 0.001100399609 | M185: 0.03223671714 | N185: 2.508241236e-05
A186: =IF('DF raw data'!I186="","",'DF raw data'!I186) -> -240.5 | B186: =IF('DF raw data'!J186="","",'DF raw data'!J186) -> -1.61596e-05 | C186: =IF('DF raw data'!K186="","",'DF raw data'!K186) -> 2.52958e-05 | D186: =IF('DF raw data'!L186="","",'DF raw data'!L186) -> -3.32961e-05 | F186: 2.709838154e-06 | G186: 2.364288797e-05 | H186: -1.260362193e-06 | J186: -0.000326186586 | K186: -0.007802042605 | L186: 0.001112221053 | M186: 0.03279282767 | N186: 2.575412904e-05
A187: =IF('DF raw data'!I187="","",'DF raw data'!I187) -> -240 | B187: =IF('DF raw data'!J187="","",'DF raw data'!J187) -> -2.44884e-05 | C187: =IF('DF raw data'!K187="","",'DF raw data'!K187) -> 2.38658e-05 | D187: =IF('DF raw data'!L187="","",'DF raw data'!L187) -> -4.18841e-05 | F187: -5.668934646e-06 | G187: 2.220430797e-05 | H187: -9.899890193e-06 | J187: -0.0003290210533 | K187: -0.007966553132 | L187: 0.001123323207 | M187: 0.03335448927 | N187: 2.643918398e-05
A188: =IF('DF raw data'!I188="","",'DF raw data'!I188) -> -239.5 | B188: =IF('DF raw data'!J188="","",'DF raw data'!J188) -> -1.60248e-05 | C188: =IF('DF raw data'!K188="","",'DF raw data'!K188) -> 1.83658e-05 | D188: =IF('DF raw data'!L188="","",'DF raw data'!L188) -> -4.34093e-05 | F188: 2.845446954e-06 | G188: 1.667130797e-05 | H188: -1.143424139e-05 | J188: -0.0003275983298 | K188: -0.008130352297 | L188: 0.001131658861 | M188: 0.0339203187 | N188: 2.71331702e-05
A189: =IF('DF raw data'!I189="","",'DF raw data'!I189) -> -239 | B189: =IF('DF raw data'!J189="","",'DF raw data'!J189) -> -2.53305e-05 | C189: =IF('DF raw data'!K189="","",'DF raw data'!K189) -> 2.07519e-05 | D189: =IF('DF raw data'!L189="","",'DF raw data'!L189) -> -2.86344e-05 | F189: -6.516087246e-06 | G189: 1.907172457e-05 | H189: 3.429308007e-06 | J189: -0.0003308563735 | K189: -0.008295780484 | L189: 0.001141194723 | M189: 0.03449091606 | N189: 2.783906587e-05
A190: =IF('DF raw data'!I190="","",'DF raw data'!I190) -> -238.5 | B190: =IF('DF raw data'!J190="","",'DF raw data'!J190) -> -2.47413e-05 | C190: =IF('DF raw data'!K190="","",'DF raw data'!K190) -> 1.62913e-05 | D190: =IF('DF raw data'!L190="","",'DF raw data'!L190) -> -4.72229e-05 | F190: -5.923352046e-06 | G190: 1.458436097e-05 | H190: -1.527072299e-05 | J190: -0.0003338180495 | K190: -0.008462689508 | L190: 0.001148486903 | M190: 0.03506515951 | N190: 2.855429419e-05
A191: =IF('DF raw data'!I191="","",'DF raw data'!I191) -> -238 | B191: =IF('DF raw data'!J191="","",'DF raw data'!J191) -> -2.48114e-05 | C191: =IF('DF raw data'!K191="","",'DF raw data'!K191) -> 2.64323e-05 | D191: =IF('DF raw data'!L191="","",'DF raw data'!L191) -> -3.82937e-05 | F191: -5.993872646e-06 | G191: 2.478620697e-05 | H191: -6.287947793e-06 | J191: -0.0003368149858 | K191: -0.008631097001 | L191: 0.001160880007 | M191: 0.03564559952 | N191: 2.928483756e-05
A192: =IF('DF raw data'!I192="","",'DF raw data'!I192) -> -237.5 | B192: =IF('DF raw data'!J192="","",'DF raw data'!J192) -> -2.29501e-05 | C192: =IF('DF raw data'!K192="","",'DF raw data'!K192) -> 2.27666e-05 | D192: =IF('DF raw data'!L192="","",'DF raw data'!L192) -> -4.14004e-05 | F192: -4.121404846e-06 | G192: 2.109851277e-05 | H192: -9.413287993e-06 | J192: -0.0003388756882 | K192: -0.008800534845 | L192: 0.001171429263 | M192: 0.03623131415 | N192: 3.002837918e-05
A193: =IF('DF raw data'!I193="","",'DF raw data'!I193) -> -237 | B193: =IF('DF raw data'!J193="","",'DF raw data'!J193) -> -3.73768e-05 | C193: =IF('DF raw data'!K193="","",'DF raw data'!K193) -> 1.90765e-05 | D193: =IF('DF raw data'!L193="","",'DF raw data'!L193) -> -3.84564e-05 | F193: -1.863466505e-05 | G193: 1.738627217e-05 | H193: -6.451623993e-06 | J193: -0.0003481930207 | K193: -0.008974631356 | L193: 0.001180122399 | M193: 0.03682137535 | N193: 3.078534281e-05
A194: =IF('DF raw data'!I194="","",'DF raw data'!I194) -> -236.5 | B194: =IF('DF raw data'!J194="","",'DF raw data'!J194) -> -3.85379e-05 | C194: =IF('DF raw data'!K194="","",'DF raw data'!K194) -> 3.12871e-05 | D194: =IF('DF raw data'!L194="","",'DF raw data'!L194) -> -2.72872e-05 | F194: -1.980273165e-05 | G194: 2.967013577e-05 | H194: 4.784591207e-06 | J194: -0.0003580943866 | K194: -0.009153678549 | L194: 0.001194957467 | M194: 0.03741885408 | N194: 3.156342028e-05
A195: =IF('DF raw data'!I195="","",'DF raw data'!I195) -> -236 | B195: =IF('DF raw data'!J195="","",'DF raw data'!J195) -> -2.93722e-05 | C195: =IF('DF raw data'!K195="","",'DF raw data'!K195) -> 2.84051e-05 | D195: =IF('DF raw data'!L195="","",'DF raw data'!L195) -> -2.44802e-05 | F195: =(1-$G$1*($B$54-$G$2))*(B195-F$5) -> -1.058203745e-05 | G195: =(1-$G$1*($B$54-$G$2))*(C195-G$5) -> 2.677084377e-05 | H195: =(1-$G$1*($B$54-$G$2))*(D195-H$5) -> 7.608433207e-06 | J195: -0.0003633854053 | K195: -0.009335371252 | L195: 0.001208342889 | M195: 0.03802302553 | N195: 3.235949103e-05
A196: =IF('DF raw data'!I196="","",'DF raw data'!I196) -> -235.5 | B196: =IF('DF raw data'!J196="","",'DF raw data'!J196) -> -3.68619e-05 | C196: =IF('DF raw data'!K196="","",'DF raw data'!K196) -> 2.94523e-05 | D196: =IF('DF raw data'!L196="","",'DF raw data'!L196) -> -4.14939e-05 | F196: -1.811667565e-05 | G196: 2.782432697e-05 | H196: -9.507348993e-06 | J196: =F196*$G$3+J195 -> -0.0003724437431 | K196: =J196*$G$3+K195 -> -0.009521593123 | L196: =G196*$G$3+L195 -> 0.001222255053 | M196: =L196*$G$3+M195 -> 0.03863415305 | N196: =(J196^2+L196^2)*$G$3+N195 -> 3.31758019e-05
A197: =IF('DF raw data'!I197="","",'DF raw data'!I197) -> -235 | B197: =IF('DF raw data'!J197="","",'DF raw data'!J197) -> -3.26957e-05 | C197: =IF('DF raw data'!K197="","",'DF raw data'!K197) -> 2.4532e-05 | D197: =IF('DF raw data'!L197="","",'DF raw data'!L197) -> -4.00629e-05 | F197: -1.392547845e-05 | G197: 2.287450517e-05 | H197: -8.067762993e-06 | J197: -0.0003794064823 | K197: -0.009711296364 | L197: 0.001233692305 | M197: 0.0392509992 | N197: 3.400877489e-05
A198: =IF('DF raw data'!I198="","",'DF raw data'!I198) -> -234.5 | B198: =IF('DF raw data'!J198="","",'DF raw data'!J198) -> -2.87791e-05 | C198: =IF('DF raw data'!K198="","",'DF raw data'!K198) -> 2.20733e-05 | D198: =IF('DF raw data'!L198="","",'DF raw data'!L198) -> -4.90492e-05 | F198: -9.985378846e-06 | G198: 2.040105297e-05 | H198: -1.710798079e-05 | J198: -0.0003843991718 | K198: -0.00990349595 | L198: 0.001243892832 | M198: 0.03987294562 | N198: 3.485629094e-05
A199: =IF('DF raw data'!I199="","",'DF raw data'!I199) -> -234 | B199: =IF('DF raw data'!J199="","",'DF raw data'!J199) -> -2.41692e-05 | C199: =IF('DF raw data'!K199="","",'DF raw data'!K199) -> 1.89903e-05 | D199: =IF('DF raw data'!L199="","",'DF raw data'!L199) -> -4.00122e-05 | F199: -5.347819446e-06 | G199: 1.729955497e-05 | H199: -8.016758793e-06 | J199: -0.0003870730815 | K199: -0.01009703249 | L199: 0.001252542609 | M199: 0.04049921693 | N199: 3.571563522e-05
A200: =IF('DF raw data'!I200="","",'DF raw data'!I200) -> -233.5 | B200: =IF('DF raw data'!J200="","",'DF raw data'!J200) -> -2.96136e-05 | C200: =IF('DF raw data'!K200="","",'DF raw data'!K200) -> 2.18209e-05 | D200: =IF('DF raw data'!L200="","",'DF raw data'!L200) -> -4.76772e-05 | F200: -1.082488585e-05 | G200: 2.014713857e-05 | H200: -1.572774879e-05 | J200: -0.0003924855244 | K200: -0.01029327525 | L200: 0.001262616178 | M200: 0.04113052501 | N200: 3.658975747e-05
... 1079 more rows

Sheet 30 mm
A1: =IF('DF raw data'!M1="","",'DF raw data'!M1) -> Number of header lines | B1: =IF('DF raw data'!N1="","",'DF raw data'!N1) -> 54 | C1: =IF('DF raw data'!C1="","",'DF raw data'!C1) ->  | D1: =IF('DF raw data'!D1="","",'DF raw data'!D1) ->  | F1: T_coeff | G1: -0.001 | H1: /degC | J1: IBy total | K1: =J1267*1000 -> -13.28774252 | L1: muTm | M1: =L1267*1000 -> -0.8021713903 | R1: DF ref | S1: 1
A2: =IF('DF raw data'!M2="","",'DF raw data'!M2) -> Measured by | B2: =IF('DF raw data'!N2="","",'DF raw data'!N2) -> Danfysik | C2: =IF('DF raw data'!C2="","",'DF raw data'!C2) ->  | D2: =IF('DF raw data'!D2="","",'DF raw data'!D2) ->  | F2: Tcorr | G2: 20 | H2: degC | J2: JBy total | K2: =K1267 -> -8.272923358 | L2: muTm^2 | M2: =M1267 -> 2.079994021
A3: =IF('DF raw data'!M3="","",'DF raw data'!M3) -> Operator | B3: =IF('DF raw data'!N3="","",'DF raw data'!N3) -> PMHA | C3: =IF('DF raw data'!C3="","",'DF raw data'!C3) ->  | D3: =IF('DF raw data'!D3="","",'DF raw data'!D3) ->  | F3: Step | G3: =A68-A67 -> 0.5 | H3: mm | J3: PI total | K3: =N1267 -> 2465.597066 | L3: T^2mm^3
A4: =IF('DF raw data'!M4="","",'DF raw data'!M4) -> Data-time | B4: =IF('DF raw data'!N4="","",'DF raw data'!N4) -> 03-10-2024, 17:20:41 | C4: =IF('DF raw data'!C4="","",'DF raw data'!C4) ->  | D4: =IF('DF raw data'!D4="","",'DF raw data'!D4) -> 
A5: =IF('DF raw data'!M5="","",'DF raw data'!M5) -> Project | B5: =IF('DF raw data'!N5="","",'DF raw data'!N5) -> 504314 | C5: =IF('DF raw data'!C5="","",'DF raw data'!C5) ->  | D5: Bamb avr | F5: =(AVERAGE(B67:B107) + AVERAGE(B1227:B1267))/2 -> -1.539550951e-05 | G5: =(AVERAGE(C67:C107) + AVERAGE(C1227:C1267))/2 -> 1.460271782e-05 | H5: =(AVERAGE(D67:D107) + AVERAGE(D1227:D1267))/2 -> -3.300980488e-05
A6: =IF('DF raw data'!M6="","",'DF raw data'!M6) -> Magnet type | B6: =IF('DF raw data'!N6="","",'DF raw data'!N6) -> Dipole | C6: =IF('DF raw data'!C6="","",'DF raw data'!C6) -> 
A7: =IF('DF raw data'!M7="","",'DF raw data'!M7) -> Magnet nr. | B7: =IF('DF raw data'!N7="","",'DF raw data'!N7) -> 2410086 | C7: =IF('DF raw data'!C7="","",'DF raw data'!C7) -> 
A8: =IF('DF raw data'!M8="","",'DF raw data'!M8) -> Meas. number | B8: =IF('DF raw data'!N8="","",'DF raw data'!N8) -> 1043 | C8: =IF('DF raw data'!C8="","",'DF raw data'!C8) -> 
A9: =IF('DF raw data'!M9="","",'DF raw data'!M9) -> Add. info | B9: =IF('DF raw data'!N9="","",'DF raw data'!N9) -> X-alignment scan 3) | C9: =IF('DF raw data'!C9="","",'DF raw data'!C9) ->  | D9: =IF('DF raw data'!D9="","",'DF raw data'!D9) -> 
A10: =IF('DF raw data'!M10="","",'DF raw data'!M10) -> Device | B10: =IF('DF raw data'!N10="","",'DF raw data'!N10) -> (HAL) HALL-PROBE | C10: =IF('DF raw data'!C10="","",'DF raw data'!C10) ->  | D10: =IF('DF raw data'!D10="","",'DF raw data'!D10) -> 
A11: =IF('DF raw data'!M11="","",'DF raw data'!M11) -> Goal | B11: =IF('DF raw data'!N11="","",'DF raw data'!N11) -> (AXI) AXis Integral (Line, EFB) | C11: =IF('DF raw data'!C11="","",'DF raw data'!C11) ->  | D11: =IF('DF raw data'!D11="","",'DF raw data'!D11) -> 
A12: =IF('DF raw data'!M12="","",'DF raw data'!M12) -> Power supply mode | B12: =IF('DF raw data'!N12="","",'DF raw data'!N12) -> (PM) Permanent Magnet (no MPS in use) | C12: =IF('DF raw data'!C12="","",'DF raw data'!C12) ->  | D12: =IF('DF raw data'!D12="","",'DF raw data'!D12) -> 
A13: =IF('DF raw data'!M13="","",'DF raw data'!M13) -> Data format | B13: =IF('DF raw data'!N13="","",'DF raw data'!N13) -> Raw data text file | C13: =IF('DF raw data'!C13="","",'DF raw data'!C13) ->  | D13: =IF('DF raw data'!D13="","",'DF raw data'!D13) -> 
A14: =IF('DF raw data'!M14="","",'DF raw data'!M14) -> Direction of the pos. x-axis | B14: =IF('DF raw data'!N14="","",'DF raw data'!N14) -> See test program | C14: =IF('DF raw data'!C14="","",'DF raw data'!C14) ->  | D14: =IF('DF raw data'!D14="","",'DF raw data'!D14) -> 
A15: =IF('DF raw data'!M15="","",'DF raw data'!M15) -> Direction of the pos. y-axis | B15: =IF('DF raw data'!N15="","",'DF raw data'!N15) -> Vertical up | C15: =IF('DF raw data'!C15="","",'DF raw data'!C15) ->  | D15: =IF('DF raw data'!D15="","",'DF raw data'!D15) -> 
A16: =IF('DF raw data'!M16="","",'DF raw data'!M16) -> Direction of the pos. z-axis | B16: =IF('DF raw data'!N16="","",'DF raw data'!N16) -> See test program | C16: =IF('DF raw data'!C16="","",'DF raw data'!C16) ->  | D16: =IF('DF raw data'!D16="","",'DF raw data'!D16) -> 
A17: =IF('DF raw data'!M17="","",'DF raw data'!M17) -> Mapper type | B17: =IF('DF raw data'!N17="","",'DF raw data'!N17) -> Precision Hall Mapper | C17: =IF('DF raw data'!C17="","",'DF raw data'!C17) ->  | D17: =IF('DF raw data'!D17="","",'DF raw data'!D17) -> 
A18: =IF('DF raw data'!M18="","",'DF raw data'!M18) -> Mapper Danfysik Reg. Number | B18: =IF('DF raw data'!N18="","",'DF raw data'!N18) -> 2033-D (mapper 1) | C18: =IF('DF raw data'!C18="","",'DF raw data'!C18) ->  | D18: =IF('DF raw data'!D18="","",'DF raw data'!D18) -> 
A19: =IF('DF raw data'!M19="","",'DF raw data'!M19) -> Measurement consept | B19: =IF('DF raw data'!N19="","",'DF raw data'!N19) -> Square line grid | C19: =IF('DF raw data'!C19="","",'DF raw data'!C19) ->  | D19: =IF('DF raw data'!D19="","",'DF raw data'!D19) -> 
A20: =IF('DF raw data'!M20="","",'DF raw data'!M20) -> Mode | B20: =IF('DF raw data'!N20="","",'DF raw data'!N20) -> On-the-fly measurement | C20: =IF('DF raw data'!C20="","",'DF raw data'!C20) ->  | D20: =IF('DF raw data'!D20="","",'DF raw data'!D20) -> 
A21: =IF('DF raw data'!M21="","",'DF raw data'!M21) ->  | B21: =IF('DF raw data'!N21="","",'DF raw data'!N21) ->  | C21: =IF('DF raw data'!C21="","",'DF raw data'!C21) ->  | D21: =IF('DF raw data'!D21="","",'DF raw data'!D21) -> 
A22: =IF('DF raw data'!M22="","",'DF raw data'!M22) -> Probe Name | B22: =IF('DF raw data'!N22="","",'DF raw data'!N22) -> ID12_By | C22: =IF('DF raw data'!C22="","",'DF raw data'!C22) ->  | D22: =IF('DF raw data'!D22="","",'DF raw data'!D22) -> 
A23: =IF('DF raw data'!M23="","",'DF raw data'!M23) -> Probe Type | B23: =IF('DF raw data'!N23="","",'DF raw data'!N23) -> DF_ID_3D_Bxyz | C23: =IF('DF raw data'!C23="","",'DF raw data'!C23) ->  | D23: =IF('DF raw data'!D23="","",'DF raw data'!D23) -> 
A24: =IF('DF raw data'!M24="","",'DF raw data'!M24) -> Probe Danfysik Reg. Number | B24: =IF('DF raw data'!N24="","",'DF raw data'!N24) -> 2277 | C24: =IF('DF raw data'!C24="","",'DF raw data'!C24) ->  | D24: =IF('DF raw data'!D24="","",'DF raw data'!D24) -> 
A25: =IF('DF raw data'!M25="","",'DF raw data'!M25) -> Probe Axis | B25: =IF('DF raw data'!N25="","",'DF raw data'!N25) -> By | C25: =IF('DF raw data'!C25="","",'DF raw data'!C25) ->  | D25: =IF('DF raw data'!D25="","",'DF raw data'!D25) -> 
A26: =IF('DF raw data'!M26="","",'DF raw data'!M26) -> Probe Current Supply | B26: =IF('DF raw data'!N26="","",'DF raw data'!N26) -> 1825-D | C26: =IF('DF raw data'!C26="","",'DF raw data'!C26) ->  | D26: =IF('DF raw data'!D26="","",'DF raw data'!D26) -> 
A27: =IF('DF raw data'!M27="","",'DF raw data'!M27) -> Probe Gain Correction | B27: =IF('DF raw data'!N27="","",'DF raw data'!N27) -> 0.99613 | C27: =IF('DF raw data'!C27="","",'DF raw data'!C27) ->  | D27: =IF('DF raw data'!D27="","",'DF raw data'!D27) -> 
A28: =IF('DF raw data'!M28="","",'DF raw data'!M28) -> Probe Offset Correction | B28: =IF('DF raw data'!N28="","",'DF raw data'!N28) -> 0.0027394 | C28: =IF('DF raw data'!C28="","",'DF raw data'!C28) ->  | D28: =IF('DF raw data'!D28="","",'DF raw data'!D28) -> 
A29: =IF('DF raw data'!M29="","",'DF raw data'!M29) -> DVM Number | B29: =IF('DF raw data'!N29="","",'DF raw data'!N29) -> 2 | C29: =IF('DF raw data'!C29="","",'DF raw data'!C29) ->  | D29: =IF('DF raw data'!D29="","",'DF raw data'!D29) -> 
A30: =IF('DF raw data'!M30="","",'DF raw data'!M30) -> DVM Type | B30: =IF('DF raw data'!N30="","",'DF raw data'!N30) -> K2701 | C30: =IF('DF raw data'!C30="","",'DF raw data'!C30) ->  | D30: =IF('DF raw data'!D30="","",'DF raw data'!D30) -> 
A31: =IF('DF raw data'!M31="","",'DF raw data'!M31) -> DVM Danfysik Reg. Number | B31: =IF('DF raw data'!N31="","",'DF raw data'!N31) -> 1743-D | C31: =IF('DF raw data'!C31="","",'DF raw data'!C31) ->  | D31: =IF('DF raw data'!D31="","",'DF raw data'!D31) -> 
A32: =IF('DF raw data'!M32="","",'DF raw data'!M32) -> Probe Name | B32: =IF('DF raw data'!N32="","",'DF raw data'!N32) -> ID12_Bx | C32: =IF('DF raw data'!C32="","",'DF raw data'!C32) ->  | D32: =IF('DF raw data'!D32="","",'DF raw data'!D32) -> 
A33: =IF('DF raw data'!M33="","",'DF raw data'!M33) -> Probe Type | B33: =IF('DF raw data'!N33="","",'DF raw data'!N33) -> DF_ID_3D_Bxyz | C33: =IF('DF raw data'!C33="","",'DF raw data'!C33) ->  | D33: =IF('DF raw data'!D33="","",'DF raw data'!D33) -> 
A34: =IF('DF raw data'!M34="","",'DF raw data'!M34) -> Probe Danfysik Reg. Number | B34: =IF('DF raw data'!N34="","",'DF raw data'!N34) -> 2277 | C34: =IF('DF raw data'!C34="","",'DF raw data'!C34) ->  | D34: =IF('DF raw data'!D34="","",'DF raw data'!D34) -> 
A35: =IF('DF raw data'!M35="","",'DF raw data'!M35) -> Probe Axis | B35: =IF('DF raw data'!N35="","",'DF raw data'!N35) -> Bx | C35: =IF('DF raw data'!C35="","",'DF raw data'!C35) ->  | D35: =IF('DF raw data'!D35="","",'DF raw data'!D35) -> 
A36: =IF('DF raw data'!M36="","",'DF raw data'!M36) -> Probe Current Supply | B36: =IF('DF raw data'!N36="","",'DF raw data'!N36) -> 1825-D | C36: =IF('DF raw data'!C36="","",'DF raw data'!C36) ->  | D36: =IF('DF raw data'!D36="","",'DF raw data'!D36) -> 
A37: =IF('DF raw data'!M37="","",'DF raw data'!M37) -> Probe Gain Correction | B37: =IF('DF raw data'!N37="","",'DF raw data'!N37) -> 1 | C37: =IF('DF raw data'!C37="","",'DF raw data'!C37) ->  | D37: =IF('DF raw data'!D37="","",'DF raw data'!D37) -> 
A38: =IF('DF raw data'!M38="","",'DF raw data'!M38) -> Probe Offset Correction | B38: =IF('DF raw data'!N38="","",'DF raw data'!N38) -> -0.17584 | C38: =IF('DF raw data'!C38="","",'DF raw data'!C38) ->  | D38: =IF('DF raw data'!D38="","",'DF raw data'!D38) -> 
A39: =IF('DF raw data'!M39="","",'DF raw data'!M39) -> DVM Number | B39: =IF('DF raw data'!N39="","",'DF raw data'!N39) -> 3 | C39: =IF('DF raw data'!C39="","",'DF raw data'!C39) ->  | D39: =IF('DF raw data'!D39="","",'DF raw data'!D39) -> 
A40: =IF('DF raw data'!M40="","",'DF raw data'!M40) -> DVM Type | B40: =IF('DF raw data'!N40="","",'DF raw data'!N40) -> K2701 | C40: =IF('DF raw data'!C40="","",'DF raw data'!C40) ->  | D40: =IF('DF raw data'!D40="","",'DF raw data'!D40) -> 
A41: =IF('DF raw data'!M41="","",'DF raw data'!M41) -> DVM Danfysik Reg. Number | B41: =IF('DF raw data'!N41="","",'DF raw data'!N41) -> 1744-D | C41: =IF('DF raw data'!C41="","",'DF raw data'!C41) ->  | D41: =IF('DF raw data'!D41="","",'DF raw data'!D41) -> 
A42: =IF('DF raw data'!M42="","",'DF raw data'!M42) -> Probe Name | B42: =IF('DF raw data'!N42="","",'DF raw data'!N42) -> ID12_Bz | C42: =IF('DF raw data'!C42="","",'DF raw data'!C42) ->  | D42: =IF('DF raw data'!D42="","",'DF raw data'!D42) -> 
A43: =IF('DF raw data'!M43="","",'DF raw data'!M43) -> Probe Type | B43: =IF('DF raw data'!N43="","",'DF raw data'!N43) -> DF_ID_3D_Bxyz | C43: =IF('DF raw data'!C43="","",'DF raw data'!C43) ->  | D43: =IF('DF raw data'!D43="","",'DF raw data'!D43) -> 
A44: =IF('DF raw data'!M44="","",'DF raw data'!M44) -> Probe Danfysik Reg. Number | B44: =IF('DF raw data'!N44="","",'DF raw data'!N44) -> 2277 | C44: =IF('DF raw data'!C44="","",'DF raw data'!C44) ->  | D44: =IF('DF raw data'!D44="","",'DF raw data'!D44) -> 
A45: =IF('DF raw data'!M45="","",'DF raw data'!M45) -> Probe Axis | B45: =IF('DF raw data'!N45="","",'DF raw data'!N45) -> Bz | C45: =IF('DF raw data'!C45="","",'DF raw data'!C45) ->  | D45: =IF('DF raw data'!D45="","",'DF raw data'!D45) -> 
A46: =IF('DF raw data'!M46="","",'DF raw data'!M46) -> Probe Current Supply | B46: =IF('DF raw data'!N46="","",'DF raw data'!N46) -> 1825-D | C46: =IF('DF raw data'!C46="","",'DF raw data'!C46) ->  | D46: =IF('DF raw data'!D46="","",'DF raw data'!D46) -> 
A47: =IF('DF raw data'!M47="","",'DF raw data'!M47) -> Probe Gain Correction | B47: =IF('DF raw data'!N47="","",'DF raw data'!N47) -> 1 | C47: =IF('DF raw data'!C47="","",'DF raw data'!C47) ->  | D47: =IF('DF raw data'!D47="","",'DF raw data'!D47) -> 
A48: =IF('DF raw data'!M48="","",'DF raw data'!M48) -> Probe Offset Correction | B48: =IF('DF raw data'!N48="","",'DF raw data'!N48) -> 0.0073634 | C48: =IF('DF raw data'!C48="","",'DF raw data'!C48) ->  | D48: =IF('DF raw data'!D48="","",'DF raw data'!D48) -> 
A49: =IF('DF raw data'!M49="","",'DF raw data'!M49) -> DVM Number | B49: =IF('DF raw data'!N49="","",'DF raw data'!N49) -> 8 | C49: =IF('DF raw data'!C49="","",'DF raw data'!C49) ->  | D49: =IF('DF raw data'!D49="","",'DF raw data'!D49) -> 
A50: =IF('DF raw data'!M50="","",'DF raw data'!M50) -> DVM Type | B50: =IF('DF raw data'!N50="","",'DF raw data'!N50) -> K2700 | C50: =IF('DF raw data'!C50="","",'DF raw data'!C50) ->  | D50: =IF('DF raw data'!D50="","",'DF raw data'!D50) -> 
A51: =IF('DF raw data'!M51="","",'DF raw data'!M51) -> DVM Danfysik Reg. Number | B51: =IF('DF raw data'!N51="","",'DF raw data'!N51) -> 1756-D | C51: =IF('DF raw data'!C51="","",'DF raw data'!C51) ->  | D51: =IF('DF raw data'!D51="","",'DF raw data'!D51) -> 
A52: =IF('DF raw data'!M52="","",'DF raw data'!M52) -> NTC voltage | B52: =IF('DF raw data'!N52="","",'DF raw data'!N52) -> 0.40178 | C52: =IF('DF raw data'!C52="","",'DF raw data'!C52) ->  | D52: =IF('DF raw data'!D52="","",'DF raw data'!D52) -> 
A53: =IF('DF raw data'!M53="","",'DF raw data'!M53) -> PS-Gap: | B53: =IF('DF raw data'!N53="","",'DF raw data'!N53) -> 30 | C53: =IF('DF raw data'!C53="","",'DF raw data'!C53) ->  | D53: =IF('DF raw data'!D53="","",'DF raw data'!D53) -> 
A54: =IF('DF raw data'!M54="","",'DF raw data'!M54) -> PS-Temperature: | B54: =IF('DF raw data'!N54="","",'DF raw data'!N54) -> 26.1 | C54: =IF('DF raw data'!C54="","",'DF raw data'!C54) ->  | D54: =IF('DF raw data'!D54="","",'DF raw data'!D54) -> 
A55: =IF('DF raw data'!M55="","",'DF raw data'!M55) -> PS-Encoder: | B55: =IF('DF raw data'!N55="","",'DF raw data'!N55) -> 39.8516 | C55: =IF('DF raw data'!C55="","",'DF raw data'!C55) ->  | D55: =IF('DF raw data'!D55="","",'DF raw data'!D55) -> 
A56: =IF('DF raw data'!M56="","",'DF raw data'!M56) ->  | B56: =IF('DF raw data'!N56="","",'DF raw data'!N56) -> 
A57: =IF('DF raw data'!M57="","",'DF raw data'!M57) -> Monitor-Index | B57: =IF('DF raw data'!N57="","",'DF raw data'!N57) -> [1,1,4]
A58: =IF('DF raw data'!M58="","",'DF raw data'!M58) ->  | B58: =IF('DF raw data'!N58="","",'DF raw data'!N58) -> 
A59: =IF('DF raw data'!M59="","",'DF raw data'!M59) -> Time [s] | B59: =IF('DF raw data'!N59="","",'DF raw data'!N59) -> Y [mm]
A60: =IF('DF raw data'!M60="","",'DF raw data'!M60) ->  | B60: =IF('DF raw data'!N60="","",'DF raw data'!N60) -> 
A61: =IF('DF raw data'!M61="","",'DF raw data'!M61) -> 207.6 | B61: =IF('DF raw data'!N61="","",'DF raw data'!N61) -> 31.45
A62: =IF('DF raw data'!M62="","",'DF raw data'!M62) ->  | B62: =IF('DF raw data'!N62="","",'DF raw data'!N62) -> 
A63: =IF('DF raw data'!M63="","",'DF raw data'!M63) -> Measurement-Index | B63: =IF('DF raw data'!N63="","",'DF raw data'!N63) -> [1,1,1201,2]
A64: =IF('DF raw data'!M64="","",'DF raw data'!M64) ->  | B64: =IF('DF raw data'!N64="","",'DF raw data'!N64) -> 
A65: =IF('DF raw data'!M65="","",'DF raw data'!M65) -> Z [mm] | B65: =IF('DF raw data'!N65="","",'DF raw data'!N65) -> By [T] | C65: =IF('DF raw data'!O65="","",'DF raw data'!O65) -> Bx [T] | D65: =IF('DF raw data'!P65="","",'DF raw data'!P65) -> Bz [T] | F65: By_corr | G65: Bx_corr | H65: Bz_corr | J65: Iy | K65: Jy | L65: Ix | M65: Jx | N65: PI
B66: =IF('DF raw data'!N66="","",'DF raw data'!N66) ->  | C66: =IF('DF raw data'!O66="","",'DF raw data'!O66) ->  | D66: =IF('DF raw data'!P66="","",'DF raw data'!P66) -> 
A67: =IF('DF raw data'!M67="","",'DF raw data'!M67) -> -300 | B67: =IF('DF raw data'!N67="","",'DF raw data'!N67) -> -1.95544e-05 | C67: =IF('DF raw data'!O67="","",'DF raw data'!O67) -> 4.27728e-05 | D67: =IF('DF raw data'!P67="","",'DF raw data'!P67) -> -1.92523e-05 | F67: =(1-$G$1*($B$54-$G$2))*(B67-F$5) -> -4.18425972e-06 | G67: =(1-$G$1*($B$54-$G$2))*(C67-G$5) -> 2.834191968e-05 | H67: =(1-$G$1*($B$54-$G$2))*(D67-H$5) -> 1.384142566e-05 | J67: =F67*$G$3+J66 -> -2.09212986e-06 | K67: =J67*$G$3+K66 -> -1.04606493e-06 | L67: =G67*$G$3+L66 -> 1.417095984e-05 | M67: =L67*$G$3+M66 -> 7.085479921e-06 | N67: =(J67^2+L67^2)*$G$3+N66 -> 1.025965551e-10
A68: =IF('DF raw data'!M68="","",'DF raw data'!M68) -> -299.5 | B68: =IF('DF raw data'!N68="","",'DF raw data'!N68) -> -1.19249e-05 | C68: =IF('DF raw data'!O68="","",'DF raw data'!O68) -> 4.20374e-05 | D68: =IF('DF raw data'!P68="","",'DF raw data'!P68) -> -1.95998e-05 | F68: 3.49178023e-06 | G68: 2.760203374e-05 | H68: 1.349180591e-05 | J68: =F68*$G$3+J67 -> -3.462397448e-07 | K68: =J68*$G$3+K67 -> -1.219184802e-06 | L68: =G68*$G$3+L67 -> 2.797197671e-05 | M68: =L68*$G$3+M67 -> 2.107146828e-05 | N68: =(J68^2+L68^2)*$G$3+N67 -> 4.938722367e-10
A69: =IF('DF raw data'!M69="","",'DF raw data'!M69) -> -299 | B69: =IF('DF raw data'!N69="","",'DF raw data'!N69) -> -1.39122e-05 | C69: =IF('DF raw data'!O69="","",'DF raw data'!O69) -> 4.72006e-05 | D69: =IF('DF raw data'!P69="","",'DF raw data'!P69) -> -1.996e-05 | F69: 1.4923577e-06 | G69: 3.279672926e-05 | H69: 1.312940869e-05 | J69: 3.999391053e-07 | K69: -1.01921525e-06 | L69: 4.437034135e-05 | M69: 4.325663895e-05 | N69: 1.478315808e-09
A70: =IF('DF raw data'!M70="","",'DF raw data'!M70) -> -298.5 | B70: =IF('DF raw data'!N70="","",'DF raw data'!N70) -> -1.4425e-05 | C70: =IF('DF raw data'!O70="","",'DF raw data'!O70) -> 5.43747e-05 | D70: =IF('DF raw data'!P70="","",'DF raw data'!P70) -> -1.99352e-05 | F70: 9.764296202e-07 | G70: 4.001459127e-05 | H70: 1.315435997e-05 | J70: 8.881539154e-07 | K70: -5.75138292e-07 | L70: 6.437763698e-05 | M70: 7.544545744e-05 | N70: 3.550950288e-09
A71: =IF('DF raw data'!M71="","",'DF raw data'!M71) -> -298 | B71: =IF('DF raw data'!N71="","",'DF raw data'!N71) -> -4.93658e-06 | C71: =IF('DF raw data'!O71="","",'DF raw data'!O71) -> 4.35616e-05 | D71: =IF('DF raw data'!P71="","",'DF raw data'!P71) -> -2.02099e-05 | F71: 1.052272898e-05 | G71: 2.913553136e-05 | H71: 1.28779843e-05 | J71: 6.149518407e-06 | K71: 2.499620911e-06 | L71: 7.894540267e-05 | M71: 0.0001149181588 | N71: 6.686046878e-09
A72: =IF('DF raw data'!M72="","",'DF raw data'!M72) -> -297.5 | B72: =IF('DF raw data'!N72="","",'DF raw data'!N72) -> -1.0065e-05 | C72: =IF('DF raw data'!O72="","",'DF raw data'!O72) -> 4.60807e-05 | D72: =IF('DF raw data'!P72="","",'DF raw data'!P72) -> -2.10111e-05 | F72: 5.36302562e-06 | G72: 3.166999787e-05 | H72: 1.207189698e-05 | J72: 8.831031217e-06 | K72: 6.91513652e-06 | L72: 9.47804016e-05 | M72: 0.0001623083596 | N72: 1.12167027e-08
A73: =IF('DF raw data'!M73="","",'DF raw data'!M73) -> -297 | B73: =IF('DF raw data'!N73="","",'DF raw data'!N73) -> -6.47427e-06 | C73: =IF('DF raw data'!O73="","",'DF raw data'!O73) -> 4.54508e-05 | D73: =IF('DF raw data'!P73="","",'DF raw data'!P73) -> -2.16072e-05 | F73: 8.975659073e-06 | G73: 3.103625548e-05 | H73: 1.147216077e-05 | J73: 1.331886075e-05 | K73: 1.35745669e-05 | L73: 0.0001102985293 | M73: 0.0002174576242 | N73: 1.738828151e-08
A74: =IF('DF raw data'!M74="","",'DF raw data'!M74) -> -296.5 | B74: =IF('DF raw data'!N74="","",'DF raw data'!N74) -> -2.2438e-05 | C74: =IF('DF raw data'!O74="","",'DF raw data'!O74) -> 3.81515e-05 | D74: =IF('DF raw data'!P74="","",'DF raw data'!P74) -> -2.11124e-05 | F74: -7.08544968e-06 | G74: 2.369242975e-05 | H74: 1.196997905e-05 | J74: 9.776135913e-06 | K74: 1.846263485e-05 | L74: 0.0001221447442 | M74: 0.0002785299964 | N74: 2.48957372e-08
A75: =IF('DF raw data'!M75="","",'DF raw data'!M75) -> -296 | B75: =IF('DF raw data'!N75="","",'DF raw data'!N75) -> -1.43609e-05 | C75: =IF('DF raw data'!O75="","",'DF raw data'!O75) -> 4.05449e-05 | D75: =IF('DF raw data'!P75="","",'DF raw data'!P75) -> -2.01792e-05 | F75: 1.04092063e-06 | G75: 2.610042949e-05 | H75: 1.290887157e-05 | J75: 1.029659623e-05 | K75: 2.361093297e-05 | L75: 0.000135194959 | M75: 0.0003461274758 | N75: 3.408758561e-08
A76: =IF('DF raw data'!M76="","",'DF raw data'!M76) -> -295.5 | B76: =IF('DF raw data'!N76="","",'DF raw data'!N76) -> -1.32071e-05 | C76: =IF('DF raw data'!O76="","",'DF raw data'!O76) -> 4.94131e-05 | D76: =IF('DF raw data'!P76="","",'DF raw data'!P76) -> -2.00151e-05 | F76: 2.20175881e-06 | G76: 3.502272551e-05 | H76: 1.307397258e-05 | J76: 1.139747563e-05 | K76: 2.930967078e-05 | L76: 0.0001527063217 | M76: 0.0004224806367 | N76: 4.581214718e-08
A77: =IF('DF raw data'!M77="","",'DF raw data'!M77) -> -295 | B77: =IF('DF raw data'!N77="","",'DF raw data'!N77) -> -7.0518e-06 | C77: =IF('DF raw data'!O77="","",'DF raw data'!O77) -> 4.94799e-05 | D77: =IF('DF raw data'!P77="","",'DF raw data'!P77) -> -2.09424e-05 | F77: 8.39460614e-06 | G77: 3.508993299e-05 | H77: 1.214101605e-05 | J77: 1.55947787e-05 | K77: 3.710706014e-05 | L77: 0.0001702512882 | M77: 0.0005076062808 | N77: 6.042649632e-08
A78: =IF('DF raw data'!M78="","",'DF raw data'!M78) -> -294.5 | B78: =IF('DF raw data'!N78="","",'DF raw data'!N78) -> -1.27571e-05 | C78: =IF('DF raw data'!O78="","",'DF raw data'!O78) -> 4.5349e-05 | D78: =IF('DF raw data'!P78="","",'DF raw data'!P78) -> -2.17089e-05 | F78: 2.65450381e-06 | G78: 3.09338345e-05 | H78: 1.13698404e-05 | J78: 1.692203061e-05 | K78: 4.556807544e-05 | L78: 0.0001857182055 | M78: 0.0006004653836 | N78: 7.78152998e-08
A79: =IF('DF raw data'!M79="","",'DF raw data'!M79) -> -294 | B79: =IF('DF raw data'!N79="","",'DF raw data'!N79) -> -2.39125e-05 | C79: =IF('DF raw data'!O79="","",'DF raw data'!O79) -> 4.70233e-05 | D79: =IF('DF raw data'!P79="","",'DF raw data'!P79) -> -2.12826e-05 | F79: -8.56894413e-06 | G79: 3.261834773e-05 | H79: 1.179874083e-05 | J79: 1.263755854e-05 | K79: 5.188685471e-05 | L79: 0.0002020273793 | M79: 0.0007014790732 | N79: 9.830268474e-08
A80: =IF('DF raw data'!M80="","",'DF raw data'!M80) -> -293.5 | B80: =IF('DF raw data'!N80="","",'DF raw data'!N80) -> -1.89126e-05 | C80: =IF('DF raw data'!O80="","",'DF raw data'!O80) -> 5.31215e-05 | D80: =IF('DF raw data'!P80="","",'DF raw data'!P80) -> -2.03056e-05 | F80: -3.53854474e-06 | G80: 3.875374675e-05 | H80: 1.278170053e-05 | J80: 1.086828617e-05 | K80: 5.73209978e-05 | L80: 0.0002214042527 | M80: 0.0008121811996 | N80: 1.228716661e-07
A81: =IF('DF raw data'!M81="","",'DF raw data'!M81) -> -293 | B81: =IF('DF raw data'!N81="","",'DF raw data'!N81) -> -1.76305e-05 | C81: =IF('DF raw data'!O81="","",'DF raw data'!O81) -> 4.74063e-05 | D81: =IF('DF raw data'!P81="","",'DF raw data'!P81) -> -1.98691e-05 | F81: -2.24862393e-06 | G81: 3.300368403e-05 | H81: 1.322086318e-05 | J81: 9.743974209e-06 | K81: 6.21929849e-05 | L81: 0.0002379060947 | M81: 0.000931134247 | N81: 1.512187936e-07
A82: =IF('DF raw data'!M82="","",'DF raw data'!M82) -> -292.5 | B82: =IF('DF raw data'!N82="","",'DF raw data'!N82) -> -1.16041e-05 | C82: =IF('DF raw data'!O82="","",'DF raw data'!O82) -> 3.92938e-05 | D82: =IF('DF raw data'!P82="","",'DF raw data'!P82) -> -2.02749e-05 | F82: 3.81453711e-06 | G82: 2.484169778e-05 | H82: 1.28125878e-05 | J82: 1.165124276e-05 | K82: 6.801860629e-05 | L82: 0.0002503269436 | M82: 0.001056297719 | N82: 1.826184587e-07
A83: =IF('DF raw data'!M83="","",'DF raw data'!M83) -> -292 | B83: =IF('DF raw data'!N83="","",'DF raw data'!N83) -> -1.58988e-05 | C83: =IF('DF raw data'!O83="","",'DF raw data'!O83) -> 3.98778e-05 | D83: =IF('DF raw data'!P83="","",'DF raw data'!P83) -> -2.12605e-05 | F83: -5.063605598e-07 | G83: 2.542926018e-05 | H83: 1.182097564e-05 | J83: 1.139806248e-05 | K83: 7.371763753e-05 | L83: 0.0002630415737 | M83: 0.001187818506 | N83: 2.172788513e-07
A84: =IF('DF raw data'!M84="","",'DF raw data'!M84) -> -291.5 | B84: =IF('DF raw data'!N84="","",'DF raw data'!N84) -> -1.03766e-05 | C84: =IF('DF raw data'!O84="","",'DF raw data'!O84) -> 4.74106e-05 | D84: =IF('DF raw data'!P84="","",'DF raw data'!P84) -> -3.45325e-05 | F84: 5.04952486e-06 | G84: 3.300801026e-05 | H84: -1.531983562e-06 | J84: 1.392282491e-05 | K84: 8.067904999e-05 | L84: 0.0002795455789 | M84: 0.001327591295 | N84: 2.564486392e-07
A85: =IF('DF raw data'!M85="","",'DF raw data'!M85) -> -291 | B85: =IF('DF raw data'!N85="","",'DF raw data'!N85) -> -3.41648e-05 | C85: =IF('DF raw data'!O85="","",'DF raw data'!O85) -> 4.80696e-05 | D85: =IF('DF raw data'!P85="","",'DF raw data'!P85) -> -2.93866e-05 | F85: -1.888378316e-05 | G85: 3.367103016e-05 | H85: 3.645306428e-06 | J85: 4.480933335e-06 | K85: 8.291951665e-05 | L85: 0.0002963810939 | M85: 0.001475781842 | N85: 3.00379555e-07
A86: =IF('DF raw data'!M86="","",'DF raw data'!M86) -> -290.5 | B86: =IF('DF raw data'!N86="","",'DF raw data'!N86) -> -2.56427e-05 | C86: =IF('DF raw data'!O86="","",'DF raw data'!O86) -> 4.95849e-05 | D86: =IF('DF raw data'!P86="","",'DF raw data'!P86) -> -2.25814e-05 | F86: -1.030969835e-05 | G86: 3.519557349e-05 | H86: 1.049201815e-05 | J86: -6.739158403e-07 | K86: 8.258255873e-05 | L86: 0.0003139788807 | M86: 0.001632771282 | N86: 3.496711508e-07
A87: =IF('DF raw data'!M87="","",'DF raw data'!M87) -> -290 | B87: =IF('DF raw data'!N87="","",'DF raw data'!N87) -> -1.72344e-05 | C87: =IF('DF raw data'!O87="","",'DF raw data'!O87) -> 4.18245e-05 | D87: =IF('DF raw data'!P87="","",'DF raw data'!P87) -> -3.74784e-05 | F87: -1.85010772e-06 | G87: 2.738783505e-05 | H87: -4.495853552e-06 | J87: -1.5989697e-06 | K87: 8.178307388e-05 | L87: 0.0003276727982 | M87: 0.001796607681 | N87: 4.033571605e-07
A88: =IF('DF raw data'!M88="","",'DF raw data'!M88) -> -289.5 | B88: =IF('DF raw data'!N88="","",'DF raw data'!N88) -> -1.10788e-05 | C88: =IF('DF raw data'!O88="","",'DF raw data'!O88) -> 3.08185e-05 | D88: =IF('DF raw data'!P88="","",'DF raw data'!P88) -> -3.94077e-05 | F88: 4.34304144e-06 | G88: 1.631469845e-05 | H88: -6.436922282e-06 | J88: 5.725510199e-07 | K88: 8.206934939e-05 | L88: 0.0003358301474 | M88: 0.001964522755 | N88: 4.597482684e-07
A89: =IF('DF raw data'!M89="","",'DF raw data'!M89) -> -289 | B89: =IF('DF raw data'!N89="","",'DF raw data'!N89) -> -1.76228e-05 | C89: =IF('DF raw data'!O89="","",'DF raw data'!O89) -> 4.02666e-05 | D89: =IF('DF raw data'!P89="","",'DF raw data'!P89) -> -3.17204e-05 | F89: -2.24087696e-06 | G89: 2.582043186e-05 | H89: 1.297270248e-06 | J89: -5.4788746e-07 | K89: 8.179540566e-05 | L89: 0.0003487403634 | M89: 0.002138892937 | N89: 5.20558339e-07
A90: =IF('DF raw data'!M90="","",'DF raw data'!M90) -> -288.5 | B90: =IF('DF raw data'!N90="","",'DF raw data'!N90) -> -2.37093e-05 | C90: =IF('DF raw data'!O90="","",'DF raw data'!O90) -> 4.86013e-05 | D90: =IF('DF raw data'!P90="","",'DF raw data'!P90) -> -3.8147e-05 | F90: -8.36450461e-06 | G90: 3.420597353e-05 | H90: -5.168532012e-06 | J90: -4.730139765e-06 | K90: 7.943033578e-05 | L90: 0.0003658433501 | M90: 0.002321814612 | N90: 5.874902046e-07
A91: =IF('DF raw data'!M91="","",'DF raw data'!M91) -> -288 | B91: =IF('DF raw data'!N91="","",'DF raw data'!N91) -> -1.51846e-05 | C91: =IF('DF raw data'!O91="","",'DF raw data'!O91) -> 4.04769e-05 | D91: =IF('DF raw data'!P91="","",'DF raw data'!P91) -> -3.48773e-05 | F91: 2.121960602e-07 | G91: 2.603201469e-05 | H91: -1.878886842e-06 | J91: -4.624041735e-06 | K91: 7.711831491e-05 | L91: 0.0003788593575 | M91: 0.002511244291 | N91: 6.592681018e-07
A92: =IF('DF raw data'!M92="","",'DF raw data'!M92) -> -287.5 | B92: =IF('DF raw data'!N92="","",'DF raw data'!N92) -> -1.56342e-05 | C92: =IF('DF raw data'!O92="","",'DF raw data'!O92) -> 4.47765e-05 | D92: =IF('DF raw data'!P92="","",'DF raw data'!P92) -> -3.37958e-05 | F92: -2.401464998e-07 | G92: 3.035784225e-05 | H92: -7.907896922e-07 | J92: -4.744114985e-06 | K92: 7.474625742e-05 | L92: 0.0003940382786 | M92: 0.00270826343 | N92: 7.369124376e-07
A93: =IF('DF raw data'!M93="","",'DF raw data'!M93) -> -287 | B93: =IF('DF raw data'!N93="","",'DF raw data'!N93) -> -4.348e-06 | C93: =IF('DF raw data'!O93="","",'DF raw data'!O93) -> 5.05852e-05 | D93: =IF('DF raw data'!P93="","",'DF raw data'!P93) -> -3.83044e-05 | F93: 1.111489932e-05 | G93: 3.620197532e-05 | H93: -5.326892152e-06 | J93: 8.133346755e-07 | K93: 7.515292476e-05 | L93: 0.0004121392663 | M93: 0.002914333063 | N93: 8.218421558e-07
A94: =IF('DF raw data'!M94="","",'DF raw data'!M94) -> -286.5 | B94: =IF('DF raw data'!N94="","",'DF raw data'!N94) -> -2.08821e-05 | C94: =IF('DF raw data'!O94="","",'DF raw data'!O94) -> 5.38824e-05 | D94: =IF('DF raw data'!P94="","",'DF raw data'!P94) -> -4.77518e-05 | F94: -5.52005869e-06 | G94: 3.951928824e-05 | H94: -1.483192129e-05 | J94: -1.946694669e-06 | K94: 7.417957742e-05 | L94: 0.0004318989104 | M94: 0.003130282518 | N94: 9.15112385e-07
A95: =IF('DF raw data'!M95="","",'DF raw data'!M95) -> -286 | B95: =IF('DF raw data'!N95="","",'DF raw data'!N95) -> -1.72343e-05 | C95: =IF('DF raw data'!O95="","",'DF raw data'!O95) -> 4.85944e-05 | D95: =IF('DF raw data'!P95="","",'DF raw data'!P95) -> -3.76938e-05 | F95: -1.85000711e-06 | G95: 3.419903144e-05 | H95: -4.712567492e-06 | J95: -2.871698224e-06 | K95: 7.274372831e-05 | L95: 0.0004489984261 | M95: 0.003354781731 | N95: 1.015916302e-06
A96: =IF('DF raw data'!M96="","",'DF raw data'!M96) -> -285.5 | B96: =IF('DF raw data'!N96="","",'DF raw data'!N96) -> -2.0893e-05 | C96: =IF('DF raw data'!O96="","",'DF raw data'!O96) -> 4.90503e-05 | D96: =IF('DF raw data'!P96="","",'DF raw data'!P96) -> -3.08903e-05 | F96: -5.53102518e-06 | G96: 3.465771243e-05 | H96: 2.132433858e-06 | J96: -5.637210814e-06 | K96: 6.99251229e-05 | L96: 0.0004663272823 | M96: 0.003587945373 | N96: 1.124662758e-06
A97: =IF('DF raw data'!M97="","",'DF raw data'!M97) -> -285 | B97: =IF('DF raw data'!N97="","",'DF raw data'!N97) -> -1.58905e-05 | C97: =IF('DF raw data'!O97="","",'DF raw data'!O97) -> 4.88624e-05 | D97: =IF('DF raw data'!P97="","",'DF raw data'!P97) -> -3.40492e-05 | F97: -4.980099298e-07 | G97: 3.446866624e-05 | H97: -1.045735432e-06 | J97: -5.886215779e-06 | K97: 6.698201501e-05 | L97: 0.0004835616155 | M97: 0.00382972618 | N97: 1.241596e-06
A98: =IF('DF raw data'!M98="","",'DF raw data'!M98) -> -284.5 | B98: =IF('DF raw data'!N98="","",'DF raw data'!N98) -> -2.3643e-05 | C98: =IF('DF raw data'!O98="","",'DF raw data'!O98) -> 5.60361e-05 | D98: =IF('DF raw data'!P98="","",'DF raw data'!P98) -> -4.13432e-05 | F98: -8.29780018e-06 | G98: 4.168612581e-05 | H98: -8.384228832e-06 | J98: -1.003511587e-05 | K98: 6.196445708e-05 | L98: 0.0005044046784 | M98: 0.004081928519 | N98: 1.368858391e-06
A99: =IF('DF raw data'!M99="","",'DF raw data'!M99) -> -284 | B99: =IF('DF raw data'!N99="","",'DF raw data'!N99) -> -1.86482e-05 | C99: =IF('DF raw data'!O99="","",'DF raw data'!O99) -> 5.74697e-05 | D99: =IF('DF raw data'!P99="","",'DF raw data'!P99) -> -3.26104e-05 | F99: -3.2725319e-06 | G99: 4.312847077e-05 | H99: 4.018412478e-07 | J99: -1.167138182e-05 | K99: 5.612876617e-05 | L99: 0.0005259689138 | M99: 0.004344912976 | N99: 1.507248151e-06
A100: =IF('DF raw data'!M100="","",'DF raw data'!M100) -> -283.5 | B100: =IF('DF raw data'!N100="","",'DF raw data'!N100) -> -1.1273e-05 | C100: =IF('DF raw data'!O100="","",'DF raw data'!O100) -> 5.6405e-05 | D100: =IF('DF raw data'!P100="","",'DF raw data'!P100) -> -3.63168e-05 | F100: 4.14765682e-06 | G100: 4.20572761e-05 | H100: -3.327167792e-06 | J100: -9.597553409e-06 | K100: 5.132998947e-05 | L100: 0.0005469975518 | M100: 0.004618411752 | N100: 1.656897368e-06
A101: =IF('DF raw data'!M101="","",'DF raw data'!M101) -> -283 | B101: =IF('DF raw data'!N101="","",'DF raw data'!N101) -> -5.24512e-06 | C101: =IF('DF raw data'!O101="","",'DF raw data'!O101) -> 5.58237e-05 | D101: =IF('DF raw data'!P101="","",'DF raw data'!P101) -> -3.89085e-05 | F101: 1.021230689e-05 | G101: 4.147243017e-05 | H101: -5.934677162e-06 | J101: -4.491399965e-06 | K101: 4.908428948e-05 | L101: 0.0005677337669 | M101: 0.004902278636 | N101: 1.81806827e-06
A102: =IF('DF raw data'!M102="","",'DF raw data'!M102) -> -282.5 | B102: =IF('DF raw data'!N102="","",'DF raw data'!N102) -> -1.58791e-05 | C102: =IF('DF raw data'!O102="","",'DF raw data'!O102) -> 5.85764e-05 | D102: =IF('DF raw data'!P102="","",'DF raw data'!P102) -> -5.17001e-05 | F102: -4.865403898e-07 | G102: 4.424192164e-05 | H102: -1.880430592e-05 | J102: -4.73467016e-06 | K102: 4.67169544e-05 | L102: 0.0005898547277 | M102: 0.005197206 | N102: 1.992043778e-06
A103: =IF('DF raw data'!M103="","",'DF raw data'!M103) -> -282 | B103: =IF('DF raw data'!N103="","",'DF raw data'!N103) -> -1.03697e-05 | C103: =IF('DF raw data'!O103="","",'DF raw data'!O103) -> 5.41156e-05 | D103: =IF('DF raw data'!P103="","",'DF raw data'!P103) -> -4.5135e-05 | F103: 5.05646695e-06 | G103: 3.975391076e-05 | H103: -1.219915881e-05 | J103: -2.206436684e-06 | K103: 4.561373606e-05 | L103: 0.0006097316831 | M103: 0.005502071841 | N103: 2.177932575e-06
A104: =IF('DF raw data'!M104="","",'DF raw data'!M104) -> -281.5 | B104: =IF('DF raw data'!N104="","",'DF raw data'!N104) -> -2.36468e-05 | C104: =IF('DF raw data'!O104="","",'DF raw data'!O104) -> 4.37325e-05 | D104: =IF('DF raw data'!P104="","",'DF raw data'!P104) -> -3.54356e-05 | F104: -8.30162336e-06 | G104: 2.930747385e-05 | H104: -2.440592472e-06 | J104: -6.357248364e-06 | K104: 4.243511188e-05 | L104: 0.00062438542 | M104: 0.005814264551 | N104: 2.372881359e-06
A105: =IF('DF raw data'!M105="","",'DF raw data'!M105) -> -281 | B105: =IF('DF raw data'!N105="","",'DF raw data'!N105) -> -1.42149e-05 | C105: =IF('DF raw data'!O105="","",'DF raw data'!O105) -> 3.96486e-05 | D105: =IF('DF raw data'!P105="","",'DF raw data'!P105) -> -4.75948e-05 | F105: 1.18781123e-06 | G105: 2.519866206e-05 | H105: -1.467396359e-05 | J105: -5.763342749e-06 | K105: 3.955344051e-05 | L105: 0.0006369847511 | M105: 0.006132756927 | N105: 2.575772753e-06
A106: =IF('DF raw data'!M106="","",'DF raw data'!M106) -> -280.5 | B106: =IF('DF raw data'!N106="","",'DF raw data'!N106) -> -9.66251e-06 | C106: =IF('DF raw data'!O106="","",'DF raw data'!O106) -> 4.08308e-05 | D106: =IF('DF raw data'!P106="","",'DF raw data'!P106) -> -4.84804e-05 | F106: 5.767970809e-06 | G106: 2.638807348e-05 | H106: -1.556496575e-05 | J106: -2.879357345e-06 | K106: 3.811376183e-05 | L106: 0.0006501787878 | M106: 0.006457846321 | N106: 2.787143127e-06
A107: =IF('DF raw data'!M107="","",'DF raw data'!M107) -> -280 | B107: =IF('DF raw data'!N107="","",'DF raw data'!N107) -> -1.66545e-05 | C107: =IF('DF raw data'!O107="","",'DF raw data'!O107) -> 4.51926e-05 | D107: =IF('DF raw data'!P107="","",'DF raw data'!P107) -> -4.2279e-05 | F107: -1.26667033e-06 | G107: 3.077648046e-05 | H107: -9.325737212e-06 | J107: -3.51269251e-06 | K107: 3.635741558e-05 | L107: 0.000665567028 | M107: 0.006790629835 | N107: 3.00863903e-06
A108: =IF('DF raw data'!M108="","",'DF raw data'!M108) -> -279.5 | B108: =IF('DF raw data'!N108="","",'DF raw data'!N108) -> -2.28133e-05 | C108: =IF('DF raw data'!O108="","",'DF raw data'!O108) -> 4.14531e-05 | D108: =IF('DF raw data'!P108="","",'DF raw data'!P108) -> -3.54495e-05 | F108: -7.46303901e-06 | G108: 2.701416951e-05 | H108: -2.454577262e-06 | J108: -7.244212014e-06 | K108: 3.273530957e-05 | L108: 0.0006790741128 | M108: 0.007130166891 | N108: 3.239236095e-06
A109: =IF('DF raw data'!M109="","",'DF raw data'!M109) -> -279 | B109: =IF('DF raw data'!N109="","",'DF raw data'!N109) -> -7.42912e-06 | C109: =IF('DF raw data'!O109="","",'DF raw data'!O109) -> 3.92932e-05 | D109: =IF('DF raw data'!P109="","",'DF raw data'!P109) -> -3.2249e-05 | F109: 8.014984488e-06 | G109: 2.484109412e-05 | H109: 7.654457878e-07 | J109: -3.23671977e-06 | K109: 3.111694969e-05 | L109: 0.0006914946598 | M109: 0.007475914221 | N109: 3.478323766e-06
A110: =IF('DF raw data'!M110="","",'DF raw data'!M110) -> -278.5 | B110: =IF('DF raw data'!N110="","",'DF raw data'!N110) -> -1.88366e-05 | C110: =IF('DF raw data'!O110="","",'DF raw data'!O110) -> 4.18812e-05 | D110: =IF('DF raw data'!P110="","",'DF raw data'!P110) -> -3.85629e-05 | F110: -3.46208114e-06 | G110: 2.744488092e-05 | H110: -5.586969002e-06 | J110: -4.96776034e-06 | K110: 2.863306952e-05 | L110: 0.0007052171003 | M110: 0.007828522771 | N110: 3.727001684e-06
A111: =IF('DF raw data'!M111="","",'DF raw data'!M111) -> -278 | B111: =IF('DF raw data'!N111="","",'DF raw data'!N111) -> -1.666e-05 | C111: =IF('DF raw data'!O111="","",'DF raw data'!O111) -> 4.2853e-05 | D111: =IF('DF raw data'!P111="","",'DF raw data'!P111) -> -3.38139e-05 | F111: -1.27220388e-06 | G111: 2.84226089e-05 | H111: -8.090001022e-07 | J111: -5.60386228e-06 | K111: 2.583113838e-05 | L111: 0.0007194284048 | M111: 0.008188236973 | N111: 3.985806001e-06
A112: =IF('DF raw data'!M112="","",'DF raw data'!M112) -> -277.5 | B112: =IF('DF raw data'!N112="","",'DF raw data'!N112) -> -1.88978e-05 | C112: =IF('DF raw data'!O112="","",'DF raw data'!O112) -> 4.55765e-05 | D112: =IF('DF raw data'!P112="","",'DF raw data'!P112) -> -4.32066e-05 | F112: -3.52365446e-06 | G112: 3.116272225e-05 | H112: -1.025899557e-05 | J112: -7.36568951e-06 | K112: 2.214829362e-05 | L112: 0.0007350097659 | M112: 0.008555741856 | N112: 4.255952805e-06
A113: =IF('DF raw data'!M113="","",'DF raw data'!M113) -> -277 | B113: =IF('DF raw data'!N113="","",'DF raw data'!N113) -> -2.15941e-05 | C113: =IF('DF raw data'!O113="","",'DF raw data'!O113) -> 4.70644e-05 | D113: =IF('DF raw data'!P113="","",'DF raw data'!P113) -> -3.74285e-05 | F113: -6.23640189e-06 | G113: 3.265969844e-05 | H113: -4.445649162e-06 | J113: -1.048389045e-05 | K113: 1.690634839e-05 | L113: 0.0007513396151 | M113: 0.008931411664 | N113: 4.53826337e-06
A114: =IF('DF raw data'!M114="","",'DF raw data'!M114) -> -276.5 | B114: =IF('DF raw data'!N114="","",'DF raw data'!N114) -> -2.16565e-05 | C114: =IF('DF raw data'!O114="","",'DF raw data'!O114) -> 4.41065e-05 | D114: =IF('DF raw data'!P114="","",'DF raw data'!P114) -> -3.97466e-05 | F114: -6.29918253e-06 | G114: 2.968375525e-05 | H114: -6.777889572e-06 | J114: -1.363348172e-05 | K114: 1.008960753e-05 | L114: 0.0007661814927 | M114: 0.00931450241 | N114: 4.831873346e-06
A115: =IF('DF raw data'!M115="","",'DF raw data'!M115) -> -276 | B115: =IF('DF raw data'!N115="","",'DF raw data'!N115) -> -3.39661e-05 | C115: =IF('DF raw data'!O115="","",'DF raw data'!O115) -> 4.43586e-05 | D115: =IF('DF raw data'!P115="","",'DF raw data'!P115) -> -3.93196e-05 | F115: -1.868387109e-05 | G115: 2.993739306e-05 | H115: -6.348284872e-06 | J115: -2.297541726e-05 | K115: -1.398101099e-06 | L115: 0.0007811501893 | M115: 0.009705077505 | N115: 5.13723509e-06
A116: =IF('DF raw data'!M116="","",'DF raw data'!M116) -> -275.5 | B116: =IF('DF raw data'!N116="","",'DF raw data'!N116) -> -2.10165e-05 | C116: =IF('DF raw data'!O116="","",'DF raw data'!O116) -> 4.12112e-05 | D116: =IF('DF raw data'!P116="","",'DF raw data'!P116) -> -3.80798e-05 | F116: -5.65527853e-06 | G116: 2.677079392e-05 | H116: -5.100922092e-06 | J116: -2.580305653e-05 | K116: -1.429962936e-05 | L116: 0.0007945355862 | M116: 0.0101023453 | N116: 5.453211387e-06
A117: =IF('DF raw data'!M117="","",'DF raw data'!M117) -> -275 | B117: =IF('DF raw data'!N117="","",'DF raw data'!N117) -> -1.10201e-05 | C117: =IF('DF raw data'!O117="","",'DF raw data'!O117) -> 4.10385e-05 | D117: =IF('DF raw data'!P117="","",'DF raw data'!P117) -> -3.08473e-05 | F117: 4.40209951e-06 | G117: 2.659704045e-05 | H117: 2.175696158e-06 | J117: -2.360200677e-05 | K117: -2.610063275e-05 | L117: 0.0008078341065 | M117: 0.01050626235 | N117: 5.779787887e-06
A118: =IF('DF raw data'!M118="","",'DF raw data'!M118) -> -274.5 | B118: =IF('DF raw data'!N118="","",'DF raw data'!N118) -> -2.37724e-05 | C118: =IF('DF raw data'!O118="","",'DF raw data'!O118) -> 4.61632e-05 | D118: =IF('DF raw data'!P118="","",'DF raw data'!P118) -> -3.95611e-05 | F118: -8.42798952e-06 | G118: 3.175300112e-05 | H118: -6.591258022e-06 | J118: -2.781600153e-05 | K118: -4.000863352e-05 | L118: 0.000823710607 | M118: 0.01091811765 | N118: 6.119424334e-06
A119: =IF('DF raw data'!M119="","",'DF raw data'!M119) -> -274 | B119: =IF('DF raw data'!N119="","",'DF raw data'!N119) -> -2.07016e-05 | C119: =IF('DF raw data'!O119="","",'DF raw data'!O119) -> 4.9864e-05 | D119: =IF('DF raw data'!P119="","",'DF raw data'!P119) -> -2.96186e-05 | F119: -5.33845764e-06 | G119: 3.5476376e-05 | H119: 3.411891228e-06 | J119: -3.048523035e-05 | K119: -5.52512487e-05 | L119: 0.000841448795 | M119: 0.01133884205 | N119: 6.473907046e-06
A120: =IF('DF raw data'!M120="","",'DF raw data'!M120) -> -273.5 | B120: =IF('DF raw data'!N120="","",'DF raw data'!N120) -> -2.0249e-05 | C120: =IF('DF raw data'!O120="","",'DF raw data'!O120) -> 4.60171e-05 | D120: =IF('DF raw data'!P120="","",'DF raw data'!P120) -> -3.53219e-05 | F120: -4.88309678e-06 | G120: 3.160600991e-05 | H120: -2.326198902e-06 | J120: -3.292677874e-05 | K120: -7.171463807e-05 | L120: 0.0008572518 | M120: 0.01176746795 | N120: 6.841889456e-06
A121: =IF('DF raw data'!M121="","",'DF raw data'!M121) -> -273 | B121: =IF('DF raw data'!N121="","",'DF raw data'!N121) -> -2.36463e-05 | C121: =IF('DF raw data'!O121="","",'DF raw data'!O121) -> 4.01526e-05 | D121: =IF('DF raw data'!P121="","",'DF raw data'!P121) -> -3.63069e-05 | F121: -8.30112031e-06 | G121: 2.570573646e-05 | H121: -3.317207402e-06 | J121: -3.70773389e-05 | K121: -9.025330752e-05 | L121: 0.0008701046682 | M121: 0.01220252029 | N121: 7.221117888e-06
A122: =IF('DF raw data'!M122="","",'DF raw data'!M122) -> -272.5 | B122: =IF('DF raw data'!N122="","",'DF raw data'!N122) -> -9.79662e-06 | C122: =IF('DF raw data'!O122="","",'DF raw data'!O122) -> 4.39815e-05 | D122: =IF('DF raw data'!P122="","",'DF raw data'!P122) -> -3.94025e-05 | F122: 5.633042738e-06 | G122: 2.955799275e-05 | H122: -6.431690562e-06 | J122: -3.426081753e-05 | K122: -0.0001073837163 | L122: 0.0008848836646 | M122: 0.01264496212 | N122: 7.613214339e-06
A123: =IF('DF raw data'!M123="","",'DF raw data'!M123) -> -272 | B123: =IF('DF raw data'!N123="","",'DF raw data'!N123) -> -1.42842e-05 | C123: =IF('DF raw data'!O123="","",'DF raw data'!O123) -> 4.79931e-05 | D123: =IF('DF raw data'!P123="","",'DF raw data'!P123) -> -3.93407e-05 | F123: 1.1180885e-06 | G123: 3.359406351e-05 | H123: -6.369513582e-06 | J123: -3.370177328e-05 | K123: -0.0001242346029 | L123: 0.0009016806963 | M123: 0.01309580247 | N123: 8.020296283e-06
A124: =IF('DF raw data'!M124="","",'DF raw data'!M124) -> -271.5 | B124: =IF('DF raw data'!N124="","",'DF raw data'!N124) -> -2.21704e-05 | C124: =IF('DF raw data'!O124="","",'DF raw data'!O124) -> 5.44226e-05 | D124: =IF('DF raw data'!P124="","",'DF raw data'!P124) -> -3.81508e-05 | F124: -6.81621732e-06 | G124: 4.006278346e-05 | H124: -5.172355192e-06 | J124: -3.710988194e-05 | K124: -0.0001427895439 | L124: 0.0009217120881 | M124: 0.01355665851 | N124: 8.445761441e-06
A125: =IF('DF raw data'!M125="","",'DF raw data'!M125) -> -271 | B125: =IF('DF raw data'!N125="","",'DF raw data'!N125) -> -1.01791e-05 | C125: =IF('DF raw data'!O125="","",'DF raw data'!O125) -> 5.28201e-05 | D125: =IF('DF raw data'!P125="","",'DF raw data'!P125) -> -4.27348e-05 | F125: 5.24822961e-06 | G125: 3.845050821e-05 | H125: -9.784317592e-06 | J125: -3.448576713e-05 | K125: -0.0001600324275 | L125: 0.0009409373422 | M125: 0.01402712718 | N125: 8.889037616e-06
A126: =IF('DF raw data'!M126="","",'DF raw data'!M126) -> -270.5 | B126: =IF('DF raw data'!N126="","",'DF raw data'!N126) -> -2.08918e-05 | C126: =IF('DF raw data'!O126="","",'DF raw data'!O126) -> 4.26855e-05 | D126: =IF('DF raw data'!P126="","",'DF raw data'!P126) -> -3.26843e-05 | F126: -5.52981786e-06 | G126: 2.825408715e-05 | H126: 3.274904578e-07 | J126: -3.725067606e-05 | K126: -0.0001786577655 | L126: 0.0009550643858 | M126: 0.01450465937 | N126: 9.345805413e-06
A127: =IF('DF raw data'!M127="","",'DF raw data'!M127) -> -270 | B127: =IF('DF raw data'!N127="","",'DF raw data'!N127) -> -2.01821e-05 | C127: =IF('DF raw data'!O127="","",'DF raw data'!O127) -> 3.91438e-05 | D127: =IF('DF raw data'!P127="","",'DF raw data'!P127) -> -3.98307e-05 | F127: -4.81578869e-06 | G127: 2.469078278e-05 | H127: -6.862502582e-06 | J127: -3.965857041e-05 | K127: -0.0001984870507 | L127: 0.0009674097772 | M127: 0.01498836426 | N127: 9.814532653e-06
A128: =IF('DF raw data'!M128="","",'DF raw data'!M128) -> -269.5 | B128: =IF('DF raw data'!N128="","",'DF raw data'!N128) -> -2.60192e-05 | C128: =IF('DF raw data'!O128="","",'DF raw data'!O128) -> 4.62465e-05 | D128: =IF('DF raw data'!P128="","",'DF raw data'!P128) -> -3.51368e-05 | F128: -1.0688495e-05 | G128: 3.183680925e-05 | H128: -2.139969792e-06 | J128: -4.500281791e-05 | K128: -0.0002209884597 | L128: 0.0009833281818 | M128: 0.01548002835 | N128: 1.029901244e-05
A129: =IF('DF raw data'!M129="","",'DF raw data'!M129) -> -269 | B129: =IF('DF raw data'!N129="","",'DF raw data'!N129) -> -1.31376e-05 | C129: =IF('DF raw data'!O129="","",'DF raw data'!O129) -> 5.01102e-05 | D129: =IF('DF raw data'!P129="","",'DF raw data'!P129) -> -2.80561e-05 | F129: 2.27168276e-06 | G129: 3.572407782e-05 | H129: 4.983922478e-06 | J129: -4.386697653e-05 | K129: -0.0002429219479 | L129: 0.001001190221 | M129: 0.01598062346 | N129: 1.080116552e-05
A130: =IF('DF raw data'!M130="","",'DF raw data'!M130) -> -268.5 | B130: =IF('DF raw data'!N130="","",'DF raw data'!N130) -> -2.40282e-05 | C130: =IF('DF raw data'!O130="","",'DF raw data'!O130) -> 5.64892e-05 | D130: =IF('DF raw data'!P130="","",'DF raw data'!P130) -> -4.04198e-05 | F130: -8.6853499e-06 | G130: 4.214198972e-05 | H130: -7.455196092e-06 | J130: -4.820965148e-05 | K130: -0.0002670267737 | L130: 0.001022261216 | M130: 0.01649175407 | N130: 1.13248366e-05
A131: =IF('DF raw data'!M131="","",'DF raw data'!M131) -> -268 | B131: =IF('DF raw data'!N131="","",'DF raw data'!N131) -> -1.10816e-05 | C131: =IF('DF raw data'!O131="","",'DF raw data'!O131) -> 5.66237e-05 | D131: =IF('DF raw data'!P131="","",'DF raw data'!P131) -> -3.51254e-05 | F131: =(1-$G$1*($B$54-$G$2))*(B131-F$5) -> 4.34022436e-06 | G131: =(1-$G$1*($B$54-$G$2))*(C131-G$5) -> 4.227731017e-05 | H131: =(1-$G$1*($B$54-$G$2))*(D131-H$5) -> -2.128500252e-06 | J131: -4.60395393e-05 | K131: -0.0002900465433 | L131: 0.001043399871 | M131: 0.01701345401 | N131: 1.187023807e-05
A132: =IF('DF raw data'!M132="","",'DF raw data'!M132) -> -267.5 | B132: =IF('DF raw data'!N132="","",'DF raw data'!N132) -> -1.3703e-05 | C132: =IF('DF raw data'!O132="","",'DF raw data'!O132) -> 4.60694e-05 | D132: =IF('DF raw data'!P132="","",'DF raw data'!P132) -> -4.60964e-05 | F132: 1.70283382e-06 | G132: 3.165862894e-05 | H132: -1.316642335e-05 | J132: =F132*$G$3+J131 -> -4.518812239e-05 | K132: =J132*$G$3+K131 -> -0.0003126406045 | L132: =G132*$G$3+L131 -> 0.001059229185 | M132: =L132*$G$3+M131 -> 0.0175430686 | N132: =(J132^2+L132^2)*$G$3+N131 -> 1.243224228e-05
A133: =IF('DF raw data'!M133="","",'DF raw data'!M133) -> -267 | B133: =IF('DF raw data'!N133="","",'DF raw data'!N133) -> -1.89009e-05 | C133: =IF('DF raw data'!O133="","",'DF raw data'!O133) -> 4.19142e-05 | D133: =IF('DF raw data'!P133="","",'DF raw data'!P133) -> -3.83967e-05 | F133: -3.52677337e-06 | G133: 2.747808222e-05 | H133: -5.419755182e-06 | J133: -4.695150907e-05 | K133: -0.000336116359 | L133: 0.001072968226 | M133: 0.01807955271 | N133: 1.300897491e-05
A134: =IF('DF raw data'!M134="","",'DF raw data'!M134) -> -266.5 | B134: =IF('DF raw data'!N134="","",'DF raw data'!N134) -> -1.4672e-05 | C134: =IF('DF raw data'!O134="","",'DF raw data'!O134) -> 4.10134e-05 | D134: =IF('DF raw data'!P134="","",'DF raw data'!P134) -> -3.45228e-05 | F134: 7.279229202e-07 | G134: 2.657178734e-05 | H134: -1.522224392e-06 | J134: -4.658754761e-05 | K134: -0.0003594101328 | L134: 0.00108625412 | M134: 0.01862267977 | N134: 1.360003412e-05
A135: =IF('DF raw data'!M135="","",'DF raw data'!M135) -> -266 | B135: =IF('DF raw data'!N135="","",'DF raw data'!N135) -> -2.62162e-05 | C135: =IF('DF raw data'!O135="","",'DF raw data'!O135) -> 4.2405e-05 | D135: =IF('DF raw data'!P135="","",'DF raw data'!P135) -> -2.76239e-05 | F135: -1.08866967e-05 | G135: 2.79718761e-05 | H135: 5.418758898e-06 | J135: -5.203089596e-05 | K135: -0.0003854255808 | L135: 0.001100240058 | M135: 0.0191727998 | N135: 1.420665182e-05
A136: =IF('DF raw data'!M136="","",'DF raw data'!M136) -> -265.5 | B136: =IF('DF raw data'!N136="","",'DF raw data'!N136) -> -2.45475e-05 | C136: =IF('DF raw data'!O136="","",'DF raw data'!O136) -> 3.99124e-05 | D136: =IF('DF raw data'!P136="","",'DF raw data'!P136) -> -3.05246e-05 | F136: -9.20781763e-06 | G136: 2.546407124e-05 | H136: 2.500364628e-06 | J136: -5.663480478e-05 | K136: -0.0004137429832 | L136: 0.001112972094 | M136: 0.01972928585 | N136: 1.482760901e-05
A137: =IF('DF raw data'!M137="","",'DF raw data'!M137) -> -265 | B137: =IF('DF raw data'!N137="","",'DF raw data'!N137) -> -2.48929e-06 | C137: =IF('DF raw data'!O137="","",'DF raw data'!O137) -> 4.08892e-05 | D137: =IF('DF raw data'!P137="","",'DF raw data'!P137) -> -3.74373e-05 | F137: 1.298494745e-05 | G137: 2.644682972e-05 | H137: -4.454502842e-06 | J137: -5.014233105e-05 | K137: -0.0004388141487 | L137: 0.001126195508 | M137: 0.0202923836 | N137: 1.54630243e-05
A138: =IF('DF raw data'!M138="","",'DF raw data'!M138) -> -264.5 | B138: =IF('DF raw data'!N138="","",'DF raw data'!N138) -> -2.2619e-05 | C138: =IF('DF raw data'!O138="","",'DF raw data'!O138) -> 3.93047e-05 | D138: =IF('DF raw data'!P138="","",'DF raw data'!P138) -> -3.86748e-05 | F138: -7.26755378e-06 | G138: 2.485266427e-05 | H138: -5.699551592e-06 | J138: -5.377610794e-05 | K138: -0.0004657022027 | L138: 0.001138621841 | M138: 0.02086169452 | N138: 1.611270008e-05
A139: =IF('DF raw data'!M139="","",'DF raw data'!M139) -> -264 | B139: =IF('DF raw data'!N139="","",'DF raw data'!N139) -> -1.34466e-05 | C139: =IF('DF raw data'!O139="","",'DF raw data'!O139) -> 3.7892e-05 | D139: =IF('DF raw data'!P139="","",'DF raw data'!P139) -> -4.60708e-05 | F139: 1.96079786e-06 | G139: 2.34313468e-05 | H139: -1.314066719e-05 | J139: -5.279570901e-05 | K139: -0.0004921000572 | L139: 0.001150337514 | M139: 0.02143686328 | N139: 1.677573197e-05
A140: =IF('DF raw data'!M140="","",'DF raw data'!M140) -> -263.5 | B140: =IF('DF raw data'!N140="","",'DF raw data'!N140) -> -1.94727e-05 | C140: =IF('DF raw data'!O140="","",'DF raw data'!O140) -> 4.33765e-05 | D140: =IF('DF raw data'!P140="","",'DF raw data'!P140) -> -4.62175e-05 | F140: -4.10206135e-06 | G140: 2.894930225e-05 | H140: -1.328826206e-05 | J140: -5.484673969e-05 | K140: -0.0005195234271 | L140: 0.001164812165 | M140: 0.02201926936 | N140: 1.745562975e-05
A141: =IF('DF raw data'!M141="","",'DF raw data'!M141) -> -263 | B141: =IF('DF raw data'!N141="","",'DF raw data'!N141) -> -2.87778e-05 | C141: =IF('DF raw data'!O141="","",'DF raw data'!O141) -> 3.91599e-05 | D141: =IF('DF raw data'!P141="","",'DF raw data'!P141) -> -3.23451e-05 | F141: -1.346392246e-05 | G141: 2.470698099e-05 | H141: 6.687595778e-07 | J141: -6.157870092e-05 | K141: -0.0005503127775 | L141: 0.001177165656 | M141: 0.02260785219 | N141: 1.81503852e-05
A142: =IF('DF raw data'!M142="","",'DF raw data'!M142) -> -262.5 | B142: =IF('DF raw data'!N142="","",'DF raw data'!N142) -> -1.95466e-05 | C142: =IF('DF raw data'!O142="","",'DF raw data'!O142) -> 3.70118e-05 | D142: =IF('DF raw data'!P142="","",'DF raw data'!P142) -> -3.13414e-05 | F142: -4.17641214e-06 | G142: 2.254577758e-05 | H142: 1.678582148e-06 | J142: -6.366690699e-05 | K142: -0.000582146231 | L142: 0.001188438544 | M142: 0.02320207146 | N142: 1.885860503e-05
A143: =IF('DF raw data'!M143="","",'DF raw data'!M143) -> -262 | B143: =IF('DF raw data'!N143="","",'DF raw data'!N143) -> -1.54405e-05 | C143: =IF('DF raw data'!O143="","",'DF raw data'!O143) -> 4.409e-05 | D143: =IF('DF raw data'!P143="","",'DF raw data'!P143) -> -3.58057e-05 | F143: -4.526492978e-08 | G143: 2.96671546e-05 | H143: -2.812950082e-06 | J143: -6.368953945e-05 | K143: -0.0006139910007 | L143: 0.001203272122 | M143: 0.02380370752 | N143: 1.958456511e-05
A144: =IF('DF raw data'!M144="","",'DF raw data'!M144) -> -261.5 | B144: =IF('DF raw data'!N144="","",'DF raw data'!N144) -> -2.40208e-05 | C144: =IF('DF raw data'!O144="","",'DF raw data'!O144) -> 4.58702e-05 | D144: =IF('DF raw data'!P144="","",'DF raw data'!P144) -> -5.19287e-05 | F144: -8.67790476e-06 | G144: 3.145821382e-05 | H144: -1.903430038e-05 | J144: -6.802849183e-05 | K144: -0.0006480052467 | L144: 0.001219001229 | M144: 0.02441320814 | N144: 2.032986104e-05
A145: =IF('DF raw data'!M145="","",'DF raw data'!M145) -> -261 | B145: =IF('DF raw data'!N145="","",'DF raw data'!N145) -> -1.76784e-05 | C145: =IF('DF raw data'!O145="","",'DF raw data'!O145) -> 4.7117e-05 | D145: =IF('DF raw data'!P145="","",'DF raw data'!P145) -> -4.50221e-05 | F145: -2.29681612e-06 | G145: 3.27126193e-05 | H145: -1.208557012e-05 | J145: -6.917689989e-05 | K145: -0.0006825936966 | L145: 0.001235357538 | M145: 0.02503088691 | N145: 2.109530789e-05
A146: =IF('DF raw data'!M146="","",'DF raw data'!M146) -> -260.5 | B146: =IF('DF raw data'!N146="","",'DF raw data'!N146) -> -1.86449e-05 | C146: =IF('DF raw data'!O146="","",'DF raw data'!O146) -> 4.32096e-05 | D146: =IF('DF raw data'!P146="","",'DF raw data'!P146) -> -3.77053e-05 | F146: -3.26921177e-06 | G146: 2.878138416e-05 | H146: -4.724137642e-06 | J146: -7.081150578e-05 | K146: -0.0007179994495 | L146: 0.00124974823 | M146: 0.02565576102 | N146: 2.187875034e-05
A147: =IF('DF raw data'!M147="","",'DF raw data'!M147) -> -260 | B147: =IF('DF raw data'!N147="","",'DF raw data'!N147) -> -3.00459e-05 | C147: =IF('DF raw data'!O147="","",'DF raw data'!O147) -> 3.81393e-05 | D147: =IF('DF raw data'!P147="","",'DF raw data'!P147) -> -5.39442e-05 | F147: -1.473975787e-05 | G147: 2.368015533e-05 | H147: -2.106209493e-05 | J147: -7.818138471e-05 | K147: -0.0007570901418 | L147: 0.001261588308 | M147: 0.02628655518 | N147: 2.267760904e-05
A148: =IF('DF raw data'!M148="","",'DF raw data'!M148) -> -259.5 | B148: =IF('DF raw data'!N148="","",'DF raw data'!N148) -> -2.75563e-05 | C148: =IF('DF raw data'!O148="","",'DF raw data'!O148) -> 3.96491e-05 | D148: =IF('DF raw data'!P148="","",'DF raw data'!P148) -> -3.73964e-05 | F148: -1.223497131e-05 | G148: 2.519916511e-05 | H148: -4.413353352e-06 | J148: -8.429887037e-05 | K148: -0.000799239577 | L148: 0.001274187891 | M148: 0.02692364912 | N148: 2.349293958e-05
A149: =IF('DF raw data'!M149="","",'DF raw data'!M149) -> -259 | B149: =IF('DF raw data'!N149="","",'DF raw data'!N149) -> -2.28746e-05 | C149: =IF('DF raw data'!O149="","",'DF raw data'!O149) -> 3.62812e-05 | D149: =IF('DF raw data'!P149="","",'DF raw data'!P149) -> -3.99149e-05 | F149: -7.52471294e-06 | G149: 2.181072092e-05 | H149: -6.947216202e-06 | J149: -8.806122684e-05 | K149: -0.0008432701904 | L149: 0.001285093251 | M149: 0.02756619575 | N149: 2.43225493e-05
A150: =IF('DF raw data'!M150="","",'DF raw data'!M150) -> -258.5 | B150: =IF('DF raw data'!N150="","",'DF raw data'!N150) -> -1.83909e-05 | C150: =IF('DF raw data'!O150="","",'DF raw data'!O150) -> 4.9574e-05 | D150: =IF('DF raw data'!P150="","",'DF raw data'!P150) -> -3.39458e-05 | F150: -3.01366237e-06 | G150: 3.5184607e-05 | H150: -9.417046922e-07 | J150: -8.956805802e-05 | K150: -0.0008880542195 | L150: 0.001302685555 | M150: 0.02821753852 | N150: 2.517505534e-05
A151: =IF('DF raw data'!M151="","",'DF raw data'!M151) -> -258 | B151: =IF('DF raw data'!N151="","",'DF raw data'!N151) -> -2.01151e-05 | C151: =IF('DF raw data'!O151="","",'DF raw data'!O151) -> 5.07893e-05 | D151: =IF('DF raw data'!P151="","",'DF raw data'!P151) -> -4.41728e-05 | F151: -4.74837999e-06 | G151: 3.640732033e-05 | H151: -1.123108939e-05 | J151: -9.194224802e-05 | K151: -0.0009340253435 | L151: 0.001320889215 | M151: 0.02887798313 | N151: 2.605165619e-05
A152: =IF('DF raw data'!M152="","",'DF raw data'!M152) -> -257.5 | B152: =IF('DF raw data'!N152="","",'DF raw data'!N152) -> -2.0245e-05 | C152: =IF('DF raw data'!O152="","",'DF raw data'!O152) -> 4.57506e-05 | D152: =IF('DF raw data'!P152="","",'DF raw data'!P152) -> -4.15169e-05 | F152: -4.87907238e-06 | G152: 3.133788426e-05 | H152: -8.558988402e-06 | J152: -9.438178421e-05 | K152: -0.0009812162356 | L152: 0.001336558157 | M152: 0.02954626221 | N152: 2.6949304e-05
A153: =IF('DF raw data'!M153="","",'DF raw data'!M153) -> -257 | B153: =IF('DF raw data'!N153="","",'DF raw data'!N153) -> -1.08849e-05 | C153: =IF('DF raw data'!O153="","",'DF raw data'!O153) -> 4.67023e-05 | D153: =IF('DF raw data'!P153="","",'DF raw data'!P153) -> -4.16689e-05 | F153: 4.53812423e-06 | G153: 3.229538963e-05 | H153: -8.711915602e-06 | J153: -9.211272209e-05 | K153: -0.001027272597 | L153: 0.001352705852 | M153: 0.03022261514 | N153: 2.786845294e-05
A154: =IF('DF raw data'!M154="","",'DF raw data'!M154) -> -256.5 | B154: =IF('DF raw data'!N154="","",'DF raw data'!N154) -> -2.55033e-05 | C154: =IF('DF raw data'!O154="","",'DF raw data'!O154) -> 4.47882e-05 | D154: =IF('DF raw data'!P154="","",'DF raw data'!P154) -> -3.97854e-05 | F154: -1.016944801e-05 | G154: 3.036961362e-05 | H154: -6.816926252e-06 | J154: -9.71974461e-05 | K154: -0.00107587132 | L154: 0.001367890658 | M154: 0.03090656047 | N154: 2.880873904e-05
A155: =IF('DF raw data'!M155="","",'DF raw data'!M155) -> -256 | B155: =IF('DF raw data'!N155="","",'DF raw data'!N155) -> -3.65257e-05 | C155: =IF('DF raw data'!O155="","",'DF raw data'!O155) -> 4.96394e-05 | D155: =IF('DF raw data'!P155="","",'DF raw data'!P155) -> -4.66804e-05 | F155: -2.125908465e-05 | G155: 3.525040594e-05 | H155: -1.375398575e-05 | J155: -0.0001078269884 | K155: -0.001129784814 | L155: 0.001385515861 | M155: 0.0315993184 | N155: 2.977437947e-05
A156: =IF('DF raw data'!M156="","",'DF raw data'!M156) -> -255.5 | B156: =IF('DF raw data'!N156="","",'DF raw data'!N156) -> -2.39537e-05 | C156: =IF('DF raw data'!O156="","",'DF raw data'!O156) -> 5.54924e-05 | D156: =IF('DF raw data'!P156="","",'DF raw data'!P156) -> -5.66567e-05 | F156: -8.61039545e-06 | G156: 4.113910924e-05 | H156: -2.379114118e-05 | J156: -0.0001121321861 | K156: -0.001185850907 | L156: 0.001406085416 | M156: 0.0323023611 | N156: 3.076920438e-05
A157: =IF('DF raw data'!M157="","",'DF raw data'!M157) -> -255 | B157: =IF('DF raw data'!N157="","",'DF raw data'!N157) -> -2.27447e-05 | C157: =IF('DF raw data'!O157="","",'DF raw data'!O157) -> 4.62091e-05 | D157: =IF('DF raw data'!P157="","",'DF raw data'!P157) -> -4.24939e-05 | F157: -7.39402055e-06 | G157: 3.179918111e-05 | H157: -9.541948102e-06 | J157: -0.0001158291964 | K157: -0.001243765505 | L157: 0.001421985007 | M157: 0.03301335361 | N157: 3.178693326e-05
A158: =IF('DF raw data'!M158="","",'DF raw data'!M158) -> -254.5 | B158: =IF('DF raw data'!N158="","",'DF raw data'!N158) -> -2.88995e-05 | C158: =IF('DF raw data'!O158="","",'DF raw data'!O158) -> 5.40175e-05 | D158: =IF('DF raw data'!P158="","",'DF raw data'!P158) -> -4.23116e-05 | F158: -1.358636483e-05 | G158: 3.965521235e-05 | H158: -9.358536072e-06 | J158: -0.0001226223788 | K158: -0.001305076695 | L158: 0.001441812613 | M158: 0.03373425991 | N158: 3.283386319e-05
A159: =IF('DF raw data'!M159="","",'DF raw data'!M159) -> -254 | B159: =IF('DF raw data'!N159="","",'DF raw data'!N159) -> -3.1085e-05 | C159: =IF('DF raw data'!O159="","",'DF raw data'!O159) -> 5.90627e-05 | D159: =IF('DF raw data'!P159="","",'DF raw data'!P159) -> -3.33906e-05 | F159: -1.578519638e-05 | G159: 4.473118807e-05 | H159: -3.831179722e-07 | J159: -0.000130514977 | K159: -0.001370334183 | L159: 0.001464178207 | M159: 0.03446634902 | N159: 3.391428918e-05
A160: =IF('DF raw data'!M160="","",'DF raw data'!M160) -> -253.5 | B160: =IF('DF raw data'!N160="","",'DF raw data'!N160) -> -2.58351e-05 | C160: =IF('DF raw data'!O160="","",'DF raw data'!O160) -> 5.0977e-05 | D160: =IF('DF raw data'!P160="","",'DF raw data'!P160) -> -2.21424e-05 | F160: -1.050327199e-05 | G160: 3.65961653e-05 | H160: 1.093369605e-05 | J160: -0.000135766613 | K160: -0.00143821749 | L160: 0.001482476289 | M160: 0.03520758716 | N160: 3.502237344e-05
